Workbook

Sheet mnoznik (hidden)
A1: ROK | B1: wskaznik_wynagrodzenia | C1: wskaznik_inflacja | D1: koszt_kapitalu
A2: 2015 | B2: 1.358699891 | C2: 1.056749507 | D2: 1.3155112 | O2: dane z 2019 do 2020
A3: 2016 | B3: 1.295225131 | C3: 1.06527168 | D3: 1.228516629 | N3: Dynamika przeciętnego miesięcznego wynagrodzenia brutto - opieka zdrowotna i pomoc społeczna | O3: 1.1615316
A4: 2017 | B4: 1.213766169 | C4: 1.05264 | D4: 1.148730253 | N4: Dynamika wskaźnika cen towarów i usług konsumpcyjnych – zdrowie | O4: 1.022513615
A5: 2018 | B5: 1.102184204 | C5: 1.032 | D5: 1.071886991 | N5: Dynamika średnioważonego kosztu kapitału | O5: 1.071972358
A6: 2019 | B6: 1 | C6: 1 | D6: 1 | N6: Data aktualizacji: 15.05.2020 r.

Sheet LEKI_WM (hidden)
A1: KAT_MED | H1: LEKI_WM_mc | I1: LEKI_WM_mc_odciete | J1: OSOBODNI_mc | K1: OSOBODNI_mcodciete | L1: sr_LEKI_WM_mc | M1: sr_LEKI_WM_mc_odciete | O1: KAT_MED | P1: OSOBODNI_mc | Q1: metoda 1 - średni koszt | R1: metoda 2 - średni koszt odcięte | S1: metoda 3 - regresja liniowa | T1: metoda 4 - regresja liniowa odcięte | U1: metoda 5 - funkcja potęgowa | V1: metoda 6 - funkcja potęgowa odcięte | W1: metoda 7 - funkcja mieszana | X1: metoda 8 - funkcja mieszana odcięte | Z1: liczba łóżek | AA1: obłożenie | AB1: liczba dni w mc | AD1: koszt testu na osobodzień | AE1: koszt testu | AG1: Liczba opk | AH1: Liczba szpitali | AI1: Liczba opk po odcięciach | AJ1: Liczba szpitali po odcięciach | AN1: przecięcie funkcji | AO1: metoda 3 - regresja liniowa | AP1: metoda 5 - funkcja potęgowa | AR1: przecięcie funkcji odciętych | AS1: metoda 4 - regresja liniowa odcięte | AT1: metoda 6 - funkcja potęgowa odcięte
A2: 6 | H2: 16342.64214 | I2: 16342.64214 | J2: 444.6666667 | K2: 444.6666667 | L2: 36.75256854 | M2: 36.75256854 | O2: 6 | P2: =Z2*AA2*AB2 -> 11160 | Q2: =IFERROR(SUMIFS(L:L,A:A,O2)/COUNTIFS(A:A,O2,L:L,">0")*P2,0) -> 1522951.221 | R2: =IFERROR(SUMIFS(M:M,A:A,O2)/COUNTIFS(A:A,O2,M:M,">0")*P2,0) -> 788173.8585 | S2: =IF(P2=0,0,IFERROR(FORECAST(P2,$H$2:$H$55,$J$2:$J$55),0)) -> 1567145.346 | T2: =IF(P2=0,0,IFERROR(FORECAST(P2,$I$2:$I$55,$K$2:$K$55),0)) -> 1321481.82 | U2: =IFERROR(EXP(INDEX(LINEST(LN(#REF!),LN(#REF!),,),1,2))*P2^(INDEX(LINEST(LN(#REF!),LN(#REF!),,),1)),0) -> 0 | V2: =IFERROR(EXP(INDEX(LINEST(LN(#REF!),LN(#REF!),,),1,2))*P2^(INDEX(LINEST(LN(#REF!),LN(#REF!),,),1)),0) -> 0 | W2: =IF(P2>AN2,S2,U2) -> 1567145.346 | X2: =IF(P2>AR2,T2,V2) -> 1321481.82 | Z2: =ZALOZENIA!B3 -> 450 | AA2: =ZALOZENIA!C3 -> 0.8 | AB2: =ZALOZENIA!D3 -> 31 | AD2: =ZALOZENIA!B46*ZALOZENIA!B47/31 -> 0 | AE2: =AD2*Z2*AA2*AB2 -> 0 | AG2: 54 | AH2: 0 | AI2: 47 | AJ2: 1 | AK2: =IF(ISNUMBER(M2),C2,"") -> 0 | AN2: 248.9448834 | AO2: =IF(AN2=0,0,IFERROR(FORECAST(AN2,H2:H109,J2:J109),0)) -> 27768.81921 | AP2: =IFERROR(EXP(INDEX(LINEST(LN(#REF!),LN(#REF!),,),1,2))*AN2^(INDEX(LINEST(LN(#REF!),LN(#REF!),,),1)),0) -> 0 | AR2: 213.9779798 | AS2: =IF(AR2=0,0,IFERROR(FORECAST(AR2,I2:I109,K2:K109),0)) -> 16647.24586 | AT2: =IFERROR(EXP(INDEX(LINEST(LN(#REF!),LN(#REF!),,),1,2))*AR2^(INDEX(LINEST(LN(#REF!),LN(#REF!),,),1)),0) -> 0
A3: 6 | H3: 215713.5564 | J3: 377.8333333 | L3: 570.9225136 | O3: 7 | P3: =Z3*AA3*AB3 -> 0 | Q3: 0 | R3: 0 | S3: =IF(P3=0,0,IFERROR(FORECAST(P3,$H$56:$H$228,$J$56:$J$228),"")) -> 0 | T3: =IF(P3=0,0,IFERROR(FORECAST(P3,$I$56:$I$228,$K$56:$K$228),"")) -> 0 | U3: =IFERROR(EXP(INDEX(LINEST(LN(#REF!),LN(#REF!),,),1,2))*P3^INDEX(LINEST(LN(#REF!),LN(#REF!),,),1),0) -> 0 | V3: =IFERROR(EXP(INDEX(LINEST(LN(#REF!),LN(#REF!),,),1,2))*P3^INDEX(LINEST(LN(#REF!),LN(#REF!),,),1),0) -> 0 | W3: =IF(P3>AN3,S3,U3) -> 0 | X3: =IF(P3>AR3,T3,V3) -> 0 | Z3: =ZALOZENIA!B4 -> 0 | AA3: =ZALOZENIA!C4 -> 0.9 | AB3: =ZALOZENIA!D4 -> 31 | AD3: =ZALOZENIA!B46*ZALOZENIA!B47/31 -> 0 | AE3: =AD3*Z3*AA3*AB3 -> 0 | AG3: 173 | AH3: 0 | AI3: 158 | AJ3: 1 | AK3: =IF(ISNUMBER(M3),C3,"") ->  | AN3: 0 | AO3: =IF(AN3=0,0,IFERROR(FORECAST(AN3,H110:H363,J110:J363),"")) -> 0 | AP3: =IFERROR(EXP(INDEX(LINEST(LN(#REF!),LN(#REF!),,),1,2))*AN3^INDEX(LINEST(LN(#REF!),LN(#REF!),,),1),0) -> 0 | AR3: 412.0689857 | AS3: =IF(AR3=0,0,IFERROR(FORECAST(AR3,I110:I363,K110:K363),"")) -> 91688.92319 | AT3: =IFERROR(EXP(INDEX(LINEST(LN(#REF!),LN(#REF!),,),1,2))*AR3^INDEX(LINEST(LN(#REF!),LN(#REF!),,),1),0) -> 0
A4: 6 | H4: 45520.11476 | I4: 45520.11476 | J4: 668.4166667 | K4: 668.4166667 | L4: 68.10140595 | M4: 68.10140595 | O4: 18 | P4: =Z4*AA4*AB4 -> 1240 | Q4: 1001035.056 | R4: 835130.7864 | S4: =IF(P4=0,0,IFERROR(FORECAST(P4,$H$229:$H$426,$J$229:$J$426),"")) -> 664948.995 | T4: =IF(P4=0,0,IFERROR(FORECAST(P4,$I$229:$I$426,$K$229:$K$426),"")) -> 609063.1252 | U4: =IFERROR(EXP(INDEX(LINEST(LN(#REF!),LN(#REF!),,),1,2))*P4^INDEX(LINEST(LN(#REF!),LN(#REF!),,),1),0) -> 0 | V4: =IFERROR(EXP(INDEX(LINEST(LN(#REF!),LN(#REF!),,),1,2))*P4^INDEX(LINEST(LN(#REF!),LN(#REF!),,),1),0) -> 0 | W4: =IF(P4>AN4,S4,U4) -> 664948.995 | X4: =IF(P4>AR4,T4,V4) -> 609063.1252 | Z4: =ZALOZENIA!B5 -> 50 | AA4: =ZALOZENIA!C5 -> 0.8 | AB4: =ZALOZENIA!D5 -> 31 | AD4: =ZALOZENIA!B46*ZALOZENIA!B47/31 -> 0 | AE4: 0 | AG4: 197 | AH4: 1 | AI4: 183 | AJ4: 1 | AK4: 0 | AN4: 344.8323321 | AO4: =IF(AN4=0,0,IFERROR(FORECAST(AN4,H364:H550,J364:J550),"")) -> 255186.9494 | AP4: =IFERROR(EXP(INDEX(LINEST(LN(#REF!),LN(#REF!),,),1,2))*AN4^INDEX(LINEST(LN(#REF!),LN(#REF!),,),1),0) -> 0 | AR4: 229.2604729 | AS4: =IF(AR4=0,0,IFERROR(FORECAST(AR4,I364:I550,K364:K550),"")) -> 140273.4205 | AT4: =IFERROR(EXP(INDEX(LINEST(LN(#REF!),LN(#REF!),,),1,2))*AR4^INDEX(LINEST(LN(#REF!),LN(#REF!),,),1),0) -> 0
A5: 6 | H5: 292896.8125 | J5: 497.1666667 | L5: 589.13204 | O5: 43 | P5: =Z5*AA5*AB5 -> 0 | Q5: 0 | R5: 0 | S5: =IF(P5=0,0,IFERROR(FORECAST(P5,$H$427:$H$550,$J$427:$J$550),"")) -> 0 | T5: =IF(P5=0,0,IFERROR(FORECAST(P5,$I$427:$I$550,$K$427:$K$550),"")) -> 0 | U5: =IFERROR(EXP(INDEX(LINEST(LN(#REF!),LN(#REF!),,),1,2))*P5^INDEX(LINEST(LN(#REF!),LN(#REF!),,),1),0) -> 0 | V5: =IFERROR(EXP(INDEX(LINEST(LN(#REF!),LN(#REF!),,),1,2))*P5^INDEX(LINEST(LN(#REF!),LN(#REF!),,),1),0) -> 0 | W5: =IF(P5>AN5,S5,U5) -> 0 | X5: =IF(P5>AR5,T5,V5) -> 0 | Z5: =ZALOZENIA!B6 -> 0 | AA5: =ZALOZENIA!C6 -> 0.9 | AB5: =ZALOZENIA!D6 -> 31 | AD5: =ZALOZENIA!B46*ZALOZENIA!B47/31 -> 0 | AE5: 0 | AG5: 0 | AH5: 0 | AI5: 0 | AJ5: 0 | AN5: 1 | AO5: =IF(AN5=0,0,IFERROR(FORECAST(AN5,#REF!,#REF!),"")) ->  | AP5: =IFERROR(EXP(INDEX(LINEST(LN(#REF!),LN(#REF!),,),1,2))*AN5^INDEX(LINEST(LN(#REF!),LN(#REF!),,),1),0) -> 0 | AR5: 1 | AS5: =IF(AR5=0,0,IFERROR(FORECAST(AR5,#REF!,#REF!),"")) ->  | AT5: =IFERROR(EXP(INDEX(LINEST(LN(#REF!),LN(#REF!),,),1,2))*AR5^INDEX(LINEST(LN(#REF!),LN(#REF!),,),1),0) -> 0
A6: 6 | H6: 19953.21948 | I6: 19953.21948 | J6: 355 | K6: 355 | L6: 56.20625206 | M6: 56.20625206 | O6: b | P6: =Z6*AA6*AB6 -> 155 | Q6: 67429.06595 | R6: 42673.1042 | S6: =IF(P6=0,0,IFERROR(FORECAST(P6,$H$551:$H$766,$J$551:$J$766),"")) -> 123664.0361 | T6: =IF(P6=0,0,IFERROR(FORECAST(P6,$I$551:$I$766,$K$551:$K$766),"")) -> 80935.01281 | Z6: =ZALOZENIA!B10 -> 5 | AA6: =ZALOZENIA!C10/8 -> 1 | AB6: =ZALOZENIA!D10 -> 31 | AD6: 0 | AE6: 0 | AG6: 215 | AH6: 1 | AI6: 201 | AJ6: 1 | AK6: 0
A7: 6 | H7: 500548.6819 | J7: 798.25 | L7: 627.0575407 | O7: 8 | P7: =Z7*(AB7/31) -> 5 | Q7: 21505.74472 | R7: 21079.22868 | S7: =IF(P7=0,0,IFERROR(FORECAST(P7,$H$767:$H$842,$J$767:$J$842),"")) -> 24531.40441 | T7: =IF(P7=0,0,IFERROR(FORECAST(P7,$I$767:$I$842,$K$767:$K$842),"")) -> 25807.1319 | U7: =SUM(U2:U6) -> 0 | V7: 0 | W7: 2232094.341 | X7: 1930544.945 | Z7: =ZALOZENIA!B7 -> 5 | AA7: =ZALOZENIA!C7 -> nd | AB7: =ZALOZENIA!D7 -> 31 | AD7: =ZALOZENIA!B46*ZALOZENIA!B49/31 -> 0 | AE7: =AD7*AB7*ZALOZENIA!B78 -> 0 | AG7: 68 | AH7: 1 | AI7: 67 | AJ7: 1
A8: 6 | H8: 110972.8236 | I8: 110972.8236 | J8: 858.3333333 | K8: 858.3333333 | L8: 129.2887265 | M8: 129.2887265 | Q8: =SUM(Q2:Q7) -> 2612921.087 | R8: =SUM(R2:R7) -> 1687056.978 | S8: =SUM(S2:S7) -> 2380289.781 | T8: =SUM(T2:T7) -> 2037287.089 | AK8: 0
A9: 6 | H9: 71516.31602 | I9: 71516.31602 | J9: 478.5833333 | K9: 478.5833333 | L9: 149.433361 | M9: 149.433361 | AK9: 0
A10: 6 | H10: 9210.7849 | I10: 9210.7849 | J10: 421.1666667 | K10: 421.1666667 | L10: 21.8696911 | M10: 21.8696911 | AK10: 0
A11: 6 | H11: 7958.84678 | I11: 7958.84678 | J11: 441.75 | K11: 441.75 | L11: 18.01663108 | M11: 18.01663108 | AK11: 0
A12: 6 | H12: 36407.57454 | I12: 36407.57454 | J12: 606.75 | K12: 606.75 | L12: 60.00424316 | M12: 60.00424316 | U12: metoda 5 - funkcja potęgowa | V12: metoda 6 - funkcja potęgowa odcięte | W12: metoda 7 - funkcja mieszana | X12: metoda 8 - funkcja mieszana odcięte | AK12: 0
A13: 6 | H13: 38903.74174 | I13: 38903.74174 | J13: 450.9166667 | K13: 450.9166667 | L13: 86.27700996 | M13: 86.27700996 | O13: KAT_MED | P13: OSOBODNI_mc | Q13: metoda 1 - średni koszt | R13: metoda 2 - średni koszt odcięte | S13: metoda 3 - regresja liniowa | T13: metoda 4 - regresja liniowa odcięte | U13: =IFERROR(EXP(INDEX(LINEST(LN(#REF!),LN(#REF!),,),1,2))*P14^(INDEX(LINEST(LN(#REF!),LN(#REF!),,),1)),0) -> 0 | V13: =IFERROR(EXP(INDEX(LINEST(LN(#REF!),LN(#REF!),,),1,2))*P14^(INDEX(LINEST(LN(#REF!),LN(#REF!),,),1)),0) -> 0 | W13: =IF(P14>AN13,S14,U13) -> 1958757.281 | X13: =IF(P14>AR13,T14,V13) -> 1658400.085 | AK13: 0
A14: 6 | H14: 34031.61126 | I14: 34031.61126 | J14: 462.6666667 | K14: 462.6666667 | L14: 73.55535575 | M14: 73.55535575 | O14: 6 | P14: =Z2*AB2 -> 13950 | Q14: =IFERROR(SUMIFS(L:L,A:A,O14)/COUNTIFS(A:A,O14,L:L,">0")*P14,0) -> 1903689.026 | R14: =IFERROR(SUMIFS(M:M,A:A,O14)/COUNTIFS(A:A,O14,M:M,">0")*P14,0) -> 985217.3231 | S14: =IF(P14=0,0,IFERROR(FORECAST(P14,$H$2:$H$55,$J$2:$J$55),0)) -> 1958757.281 | T14: =IF(P14=0,0,IFERROR(FORECAST(P14,$I$2:$I$55,$K$2:$K$55),0)) -> 1658400.085 | U14: =IFERROR(EXP(INDEX(LINEST(LN(#REF!),LN(#REF!),,),1,2))*P15^INDEX(LINEST(LN(#REF!),LN(#REF!),,),1),0) -> 0 | V14: =IFERROR(EXP(INDEX(LINEST(LN(#REF!),LN(#REF!),,),1,2))*P15^INDEX(LINEST(LN(#REF!),LN(#REF!),,),1),0) -> 0 | W14: =IF(P15>AN14,S15,U14) -> 0 | X14: =IF(P15>AR14,T15,V14) -> 0 | AK14: 0
A15: 6 | H15: 11246.45392 | I15: 11246.45392 | J15: 377.9166667 | K15: 377.9166667 | L15: 29.75908424 | M15: 29.75908424 | O15: 7 | P15: =Z3*AB3 -> 0 | Q15: 0 | R15: 0 | S15: =IF(P15=0,0,IFERROR(FORECAST(P15,$H$56:$H$228,$J$56:$J$228),"")) -> 0 | T15: =IF(P15=0,0,IFERROR(FORECAST(P15,$I$56:$I$228,$K$56:$K$228),"")) -> 0 | U15: =IFERROR(EXP(INDEX(LINEST(LN(#REF!),LN(#REF!),,),1,2))*P16^INDEX(LINEST(LN(#REF!),LN(#REF!),,),1),0) -> 0 | V15: =IFERROR(EXP(INDEX(LINEST(LN(#REF!),LN(#REF!),,),1,2))*P16^INDEX(LINEST(LN(#REF!),LN(#REF!),,),1),0) -> 0 | W15: =IF(P16>AN15,S16,U15) -> 818195.6921 | X15: =IF(P16>AR15,T16,V15) -> 752648.4905 | AK15: 0
A16: 6 | H16: 46581.7452 | I16: 46581.7452 | J16: 593.25 | K16: 593.25 | L16: 78.51958736 | M16: 78.51958736 | O16: 18 | P16: =Z4*AB4 -> 1550 | Q16: 1251293.82 | R16: 1043913.483 | S16: =IF(P16=0,0,IFERROR(FORECAST(P16,$H$229:$H$426,$J$229:$J$426),"")) -> 818195.6921 | T16: =IF(P16=0,0,IFERROR(FORECAST(P16,$I$229:$I$426,$K$229:$K$426),"")) -> 752648.4905 | U16: =IFERROR(EXP(INDEX(LINEST(LN(#REF!),LN(#REF!),,),1,2))*P17^INDEX(LINEST(LN(#REF!),LN(#REF!),,),1),0) -> 0 | V16: =IFERROR(EXP(INDEX(LINEST(LN(#REF!),LN(#REF!),,),1,2))*P17^INDEX(LINEST(LN(#REF!),LN(#REF!),,),1),0) -> 0 | W16: =IF(P17>AN16,S17,U16) -> 0 | X16: =IF(P17>AR16,T17,V16) -> 0 | AK16: 0
A17: 6 | H17: 56331.3588 | I17: 56331.3588 | J17: 722.4166667 | K17: 722.4166667 | L17: 77.97627242 | M17: 77.97627242 | O17: 43 | P17: =Z5*AB5 -> 0 | Q17: 0 | R17: 0 | S17: =IF(P17=0,0,IFERROR(FORECAST(P17,$H$427:$H$550,$J$427:$J$550),"")) -> 0 | T17: =IF(P17=0,0,IFERROR(FORECAST(P17,$I$427:$I$550,$K$427:$K$550),"")) -> 0 | AK17: 0
A18: 6 | H18: 86659.82898 | I18: 86659.82898 | J18: 724.5 | K18: 724.5 | L18: 119.6132905 | M18: 119.6132905 | O18: b | P18: =Z6*AB6 -> 155 | Q18: 67429.06595 | R18: 42673.1042 | S18: =IF(P18=0,0,IFERROR(FORECAST(P18,$H$551:$H$766,$J$551:$J$766),"")) -> 123664.0361 | T18: =IF(P18=0,0,IFERROR(FORECAST(P18,$I$551:$I$766,$K$551:$K$766),"")) -> 80935.01281 | AK18: 0
A19: 6 | H19: 176159.8191 | J19: 829.6666667 | L19: 212.3260174 | M19: 212.3260174 | N19: odstajace | O19: 8 | P19: =Z7*(AB7/31) -> 5 | Q19: 21505.74472 | R19: 21079.22868 | S19: =IF(P19=0,0,IFERROR(FORECAST(P19,$H$767:$H$842,$J$767:$J$842),"")) -> 24531.40441 | T19: =IF(P19=0,0,IFERROR(FORECAST(P19,$I$767:$I$842,$K$767:$K$842),"")) -> 25807.1319 | AK19: 0
A20: 6 | H20: 514855.6358 | J20: 804.1666667 | L20: 640.2349876
A21: 6 | H21: 126134.7036 | J21: 305.25 | L21: 413.2177022 | N21: odstajace
A22: 6 | H22: 12197.45396 | I22: 12197.45396 | J22: 376.1666667 | K22: 376.1666667 | L22: 32.42566405 | M22: 32.42566405 | AK22: 0
A23: 6 | H23: 10862.29966 | I23: 10862.29966 | J23: 233.8333333 | K23: 233.8333333 | L23: 46.45317032 | M23: 46.45317032 | AK23: 0
A24: 6 | H24: 68435.06158 | I24: 68435.06158 | J24: 722.3333333 | K24: 722.3333333 | L24: 94.74166347 | M24: 94.74166347 | AK24: 0
A25: 6 | H25: 25194.32006 | J25: 1286 | L25: 19.59122866 | M25: 19.59122866 | N25: odstajace | AK25: 0
A26: 6 | H26: 53947.65552 | I26: 53947.65552 | J26: 759.3333333 | K26: 759.3333333 | L26: 71.04607838 | M26: 71.04607838 | AK26: 0
A27: 6 | H27: 43604.67976 | I27: 43604.67976 | J27: 595.25 | K27: 595.25 | L27: 73.25439691 | M27: 73.25439691 | AK27: 0
A28: 6 | H28: 19776.46454 | I28: 19776.46454 | J28: 638.75 | K28: 638.75 | L28: 30.96119693 | M28: 30.96119693 | AK28: 0
A29: 6 | H29: 3181.79446 | I29: 3181.79446 | J29: 150.5 | K29: 150.5 | L29: 21.14149143 | M29: 21.14149143 | AK29: 0
A30: 6 | H30: 54947.51216 | I30: 54947.51216 | J30: 839.0833333 | K30: 839.0833333 | L30: 65.48516694 | M30: 65.48516694 | AK30: 0
A31: 6 | H31: 5106.11326 | I31: 5106.11326 | J31: 284.5 | K31: 284.5 | L31: 17.94767402 | M31: 17.94767402 | AK31: 0
A32: 6 | H32: 94471.81184 | I32: 94471.81184 | J32: 873.75 | K32: 873.75 | L32: 108.1222453 | M32: 108.1222453 | AK32: 0
A33: 6 | H33: 87295.34834 | I33: 87295.34834 | J33: 490.4166667 | K33: 490.4166667 | L33: 178.0024095 | M33: 178.0024095 | AK33: 0
A34: 6 | H34: 68042.99532 | I34: 68042.99532 | J34: 787.25 | K34: 787.25 | L34: 86.43124207 | M34: 86.43124207 | AK34: 0
A35: 6 | H35: 90374.05976 | I35: 90374.05976 | J35: 1003.916667 | K35: 1003.916667 | L35: 90.02147565 | M35: 90.02147565 | AK35: 0
A36: 6 | H36: 68292.84252 | I36: 68292.84252 | J36: 767.8333333 | K36: 767.8333333 | L36: 88.94227374 | M36: 88.94227374 | AK36: 0
A37: 6 | H37: 37976.33752 | I37: 37976.33752 | J37: 486.3333333 | K37: 486.3333333 | L37: 78.08705453 | M37: 78.08705453 | AK37: 0
A38: 6 | H38: 9499.65288 | I38: 9499.65288 | J38: 282 | K38: 282 | L38: 33.68671234 | M38: 33.68671234 | AK38: 0
A39: 6 | H39: 20446.6075 | I39: 20446.6075 | J39: 521.75 | K39: 521.75 | L39: 39.18851461 | M39: 39.18851461 | AK39: 0
A40: 6 | H40: 27353.27164 | I40: 27353.27164 | J40: 343.1818182 | K40: 343.1818182 | L40: 79.7048975 | M40: 79.7048975 | AK40: 0
A41: 6 | H41: 399989.778 | J41: 447.3333333 | L41: 894.1649284
A42: 6 | H42: 158554.0978 | J42: 719.5 | L42: 220.3670574 | M42: 220.3670574 | N42: odstajace | AK42: 0
A43: 6 | H43: 17368.95818 | I43: 17368.95818 | J43: 584.9166667 | K43: 584.9166667 | L43: 29.69475683 | M43: 29.69475683 | AK43: 0
A44: 6 | H44: 25434.33574 | I44: 25434.33574 | J44: 500.4166667 | K44: 500.4166667 | L44: 50.82631622 | M44: 50.82631622 | AK44: 0
A45: 6 | H45: 4821.76458 | I45: 4821.76458 | J45: 219.8333333 | K45: 219.8333333 | L45: 21.93372819 | M45: 21.93372819 | AK45: 0
A46: 6 | H46: 17667.49772 | I46: 17667.49772 | J46: 497 | K46: 497 | L46: 35.54828515 | M46: 35.54828515 | AK46: 0
A47: 6 | H47: 20762.49152 | I47: 20762.49152 | J47: 480.6666667 | K47: 480.6666667 | L47: 43.19519734 | M47: 43.19519734 | AK47: 0
A48: 6 | H48: 12488.70083 | I48: 12488.70083 | J48: 425.75 | K48: 425.75 | L48: 29.33341358 | M48: 29.33341358 | AK48: 0
A49: 6 | H49: 174310.4608 | J49: 553.3333333 | L49: 315.0189051 | N49: odstajace
A50: 6 | H50: 30239.98083 | I50: 30239.98083 | J50: 402.75 | K50: 402.75 | L50: 75.08375129 | M50: 75.08375129 | AK50: 0
A51: 6 | H51: 11663.89083 | I51: 11663.89083 | J51: 397.8333333 | K51: 397.8333333 | L51: 29.31853582 | M51: 29.31853582 | AK51: 0
A52: 6 | H52: 101828.1975 | I52: 101828.1975 | J52: 734 | K52: 734 | L52: 138.7305143 | M52: 138.7305143 | AK52: 0
A53: 6 | H53: 14726.8425 | I53: 14726.8425 | J53: 318.6666667 | K53: 318.6666667 | L53: 46.2139409 | M53: 46.2139409 | AK53: 0
A54: 6 | H54: 23453.56583 | I54: 23453.56583 | J54: 699.5833333 | K54: 699.5833333 | L54: 33.52504943 | M54: 33.52504943 | AK54: 0
A55: 6 | H55: 65862.07 | I55: 65862.07 | J55: 710.75 | K55: 710.75 | L55: 92.66559268 | M55: 92.66559268 | AK55: 0
A56: 7 | H56: 44338.68015 | I56: 44338.68015 | J56: 641.0833333 | K56: 641.0833333 | L56: 69.16211644 | M56: 69.16211644 | AK56: 0
A57: 7 | H57: 92352.9432 | I57: 92352.9432 | J57: 783.25 | K57: 783.25 | L57: 117.9099179 | M57: 117.9099179 | AK57: 0
A58: 7 | H58: 53339.9811 | I58: 53339.9811 | J58: 984.0833333 | K58: 984.0833333 | L58: 54.20270753 | M58: 54.20270753 | AK58: 0
A59: 7 | H59: 91498.52146 | I59: 91498.52146 | J59: 1233.416667 | K59: 1233.416667 | L59: 74.18297801 | M59: 74.18297801 | AK59: 0
A60: 7 | H60: 68543.3615 | I60: 68543.3615 | J60: 872.75 | K60: 872.75 | L60: 78.53722315 | M60: 78.53722315 | AK60: 0
A61: 7 | H61: 73511.13984 | I61: 73511.13984 | J61: 767.0833333 | K61: 767.0833333 | L61: 95.83201283 | M61: 95.83201283 | AK61: 0
A62: 7 | H62: 68451.41954 | I62: 68451.41954 | J62: 854.5833333 | K62: 854.5833333 | L62: 80.09917449 | M62: 80.09917449 | AK62: 0
A63: 7 | H63: 515352.3965 | J63: 2001.25 | L63: 257.5152512
A64: 7 | H64: 76829.95235 | I64: 76829.95235 | J64: 1075.166667 | K64: 1075.166667 | L64: 71.45864426 | M64: 71.45864426 | AK64: 0
A65: 7 | H65: 81020.34816 | I65: 81020.34816 | J65: 1206.333333 | K65: 1206.333333 | L65: 67.16248811 | M65: 67.16248811 | AK65: 0
A66: 7 | H66: 181846.8662 | J66: 1761.083333 | L66: 103.2585243 | M66: 103.2585243 | AK66: 0
A67: 7 | H67: 30251.71131 | I67: 30251.71131 | J67: 500.75 | K67: 500.75 | L67: 60.41280341 | M67: 60.41280341 | AK67: =IF(ISNUMBER(M67),C67,"") -> 0
A68: 7 | H68: 145926.5683 | I68: 145926.5683 | J68: 786.5 | K68: 786.5 | L68: 185.5391841
A69: 7 | H69: 147881.4287 | I69: 147881.4287 | J69: 914 | K69: 914 | L69: 161.7958738
A70: 7 | H70: 140321.5068 | I70: 140321.5068 | J70: 929.4166667 | K70: 929.4166667 | L70: 150.9780401 | M70: 150.9780401 | AK70: 0
A71: 7 | H71: 18150.57678 | I71: 18150.57678 | J71: 508.6666667 | K71: 508.6666667 | L71: 35.68265422 | M71: 35.68265422 | AK71: 0
A72: 7 | H72: 114883.7085 | I72: 114883.7085 | J72: 1186.833333 | K72: 1186.833333 | L72: 96.79851864 | M72: 96.79851864 | AK72: 0
A73: 7 | H73: 90825.4494 | I73: 90825.4494 | J73: 1179.166667 | K73: 1179.166667 | L73: 77.0251161 | M73: 77.0251161 | AK73: 0
A74: 7 | H74: 12073.7422 | I74: 12073.7422 | J74: 624.1666667 | K74: 624.1666667 | L74: 19.34377923 | M74: 19.34377923 | AK74: 0
A75: 7 | H75: 104326.3067 | I75: 104326.3067 | J75: 1681.25 | K75: 1681.25 | L75: 62.05282185 | M75: 62.05282185 | AK75: 0
A76: 7 | H76: 67169.51396 | I76: 67169.51396 | J76: 979.8333333 | K76: 979.8333333 | L76: 68.55197887 | M76: 68.55197887 | AK76: 0
A77: 7 | H77: 85112.31746 | I77: 85112.31746 | J77: 951 | K77: 951 | L77: 89.49770501 | M77: 89.49770501 | AK77: 0
A78: 7 | H78: 70571.01692 | I78: 70571.01692 | J78: 668.8333333 | K78: 668.8333333 | L78: 105.5136062 | M78: 105.5136062 | AK78: 0
A79: 7 | H79: 702142.9589 | J79: 1489.333333 | L79: 471.4478238
A80: 7 | H80: 102159.3587 | I80: 102159.3587 | J80: 1077.416667 | K80: 1077.416667 | L80: 94.81880305 | M80: 94.81880305 | AK80: 0
A81: 7 | H81: 521991.2227 | J81: 941.8333333 | L81: 554.2288685
A82: 7 | H82: 27677.49438 | I82: 27677.49438 | J82: 814.9166667 | K82: 814.9166667 | L82: 33.96358856 | M82: 33.96358856 | AK82: 0
A83: 7 | H83: 99943.89208 | I83: 99943.89208 | J83: 1329.666667 | K83: 1329.666667 | L83: 75.16462177 | M83: 75.16462177 | AK83: 0
A84: 7 | H84: 34754.13768 | I84: 34754.13768 | J84: 643.6666667 | K84: 643.6666667 | L84: 53.9939995 | M84: 53.9939995 | AK84: 0
A85: 7 | H85: 49808.73266 | I85: 49808.73266 | J85: 825.75 | K85: 825.75 | L85: 60.3193856 | M85: 60.3193856 | AK85: 0
A86: 7 | H86: 80014.64596 | I86: 80014.64596 | J86: 1385.666667 | K86: 1385.666667 | L86: 57.74451236 | M86: 57.74451236 | AK86: 0
A87: 7 | H87: 73125.16016 | I87: 73125.16016 | J87: 1414.833333 | K87: 1414.833333 | L87: 51.68464613 | M87: 51.68464613 | AK87: 0
A88: 7 | H88: 61156.06716 | I88: 61156.06716 | J88: 557.8333333 | K88: 557.8333333 | L88: 109.631432 | M88: 109.631432 | AK88: 0
A89: 7 | H89: 189594.9696 | J89: 996.9166667 | L89: 190.1813622
A90: 7 | H90: 39083.87648 | I90: 39083.87648 | J90: 672.5833333 | K90: 672.5833333 | L90: 58.11008769 | M90: 58.11008769 | AK90: 0
A91: 7 | H91: 33194.97746 | I91: 33194.97746 | J91: 740.5833333 | K91: 740.5833333 | L91: 44.8227444 | M91: 44.8227444 | AK91: 0
A92: 7 | H92: 101565.4883 | I92: 101565.4883 | J92: 812.4166667 | K92: 812.4166667 | L92: 125.0165001 | M92: 125.0165001 | AK92: 0
A93: 7 | H93: 65323.90838 | I93: 65323.90838 | J93: 894.1666667 | K93: 894.1666667 | L93: 73.05562913 | M93: 73.05562913 | AK93: 0
A94: 7 | H94: 117531.2223 | I94: 117531.2223 | J94: 1949.583333 | K94: 1949.583333 | L94: 60.28530318 | M94: 60.28530318 | AK94: 0
A95: 7 | H95: 31603.35482 | I95: 31603.35482 | J95: 767.3333333 | K95: 767.3333333 | L95: 41.18595328 | M95: 41.18595328 | AK95: 0
A96: 7 | H96: 418253.4578 | J96: 1812.583333 | L96: 230.7499192
A97: 7 | H97: 562048.8987 | J97: 1136.583333 | L97: 494.5074261
A98: 7 | H98: 90598.85344 | I98: 90598.85344 | J98: 1578.5 | K98: 1578.5 | L98: 57.39553591 | M98: 57.39553591 | AK98: 0
A99: 7 | H99: 126152.8831 | I99: 126152.8831 | J99: 1030.75 | K99: 1030.75 | L99: 122.3894088 | M99: 122.3894088 | AK99: 0
A100: 7 | H100: 115390.5069 | I100: 115390.5069 | J100: 1989.083333 | K100: 1989.083333 | L100: 58.01190174 | M100: 58.01190174 | AK100: 0
A101: 7 | H101: 89334.134 | I101: 89334.134 | J101: 1215.666667 | K101: 1215.666667 | L101: 73.48571483 | M101: 73.48571483 | AK101: 0
A102: 7 | H102: 41678.4853 | I102: 41678.4853 | J102: 664.75 | K102: 664.75 | L102: 62.69798466 | M102: 62.69798466 | AK102: 0
A103: 7 | H103: 94830.84206 | I103: 94830.84206 | J103: 829 | K103: 829 | L103: 114.3918481 | M103: 114.3918481 | AK103: 0
A104: 7 | H104: 83406.59174 | I104: 83406.59174 | J104: 769.1666667 | K104: 769.1666667 | L104: 108.4376057 | M104: 108.4376057 | AK104: 0
A105: 7 | H105: 159508.6634 | I105: 159508.6634 | J105: 1316.75 | K105: 1316.75 | L105: 121.1381533 | M105: 121.1381533 | AK105: 0
A106: 7 | H106: 59663.43654 | I106: 59663.43654 | J106: 957.25 | K106: 957.25 | L106: 62.32795669 | M106: 62.32795669 | AK106: 0
A107: 7 | H107: 66072.67598 | I107: 66072.67598 | J107: 1348.583333 | K107: 1348.583333 | L107: 48.99413655 | M107: 48.99413655 | AK107: 0
A108: 7 | H108: 38249.25422 | I108: 38249.25422 | J108: 591.75 | K108: 591.75 | L108: 64.63752297 | M108: 64.63752297 | AK108: 0
A109: 7 | H109: 55573.08132 | I109: 55573.08132 | J109: 1119.916667 | K109: 1119.916667 | L109: 49.62251476 | M109: 49.62251476 | AK109: 0
A110: 7 | H110: 51602.31512 | I110: 51602.31512 | J110: 1197.333333 | K110: 1197.333333 | L110: 43.09770194 | M110: 43.09770194 | AK110: 0
A111: 7 | H111: 1690.09264 | I111: 1690.09264 | J111: 189.6666667 | K111: 189.6666667 | L111: 8.910857504 | M111: 8.910857504 | AK111: 0
A112: 7 | H112: 132319.2878 | I112: 132319.2878 | J112: 1190.5 | K112: 1190.5 | L112: 111.1459788 | M112: 111.1459788 | AK112: 0
A113: 7 | H113: 23682.2758 | I113: 23682.2758 | J113: 674.1666667 | K113: 674.1666667 | L113: 35.12822121 | M113: 35.12822121 | AK113: 0
A114: 7 | H114: 22223.72268 | I114: 22223.72268 | J114: 588.6666667 | K114: 588.6666667 | L114: 37.75264328 | M114: 37.75264328 | AK114: 0
A115: 7 | H115: 109664.1762 | I115: 109664.1762 | J115: 444.3333333 | K115: 444.3333333 | L115: 246.8060981
A116: 7 | H116: 28158.73404 | I116: 28158.73404 | J116: 595.4166667 | K116: 595.4166667 | L116: 47.29248544 | M116: 47.29248544 | AK116: 0
A117: 7 | H117: 66663.48996 | I117: 66663.48996 | J117: 1146.583333 | K117: 1146.583333 | L117: 58.14098986 | M117: 58.14098986 | AK117: 0
A118: 7 | H118: 49580.03716 | I118: 49580.03716 | J118: 900.4166667 | K118: 900.4166667 | L118: 55.06343785 | M118: 55.06343785 | AK118: 0
A119: 7 | H119: 31768.61844 | I119: 31768.61844 | J119: 1194.416667 | K119: 1194.416667 | L119: 26.59760143 | M119: 26.59760143 | AK119: 0
A120: 7 | H120: 124705.4094 | I120: 124705.4094 | J120: 1628.083333 | K120: 1628.083333 | L120: 76.59645354 | M120: 76.59645354 | AK120: 0
A121: 7 | H121: 20877.69196 | I121: 20877.69196 | J121: 535.75 | K121: 535.75 | L121: 38.96909372 | M121: 38.96909372 | AK121: 0
A122: 7 | H122: 138172.4246 | I122: 138172.4246 | J122: 1802.083333 | K122: 1802.083333 | L122: 76.67371538 | M122: 76.67371538 | AK122: 0
A123: 7 | H123: 92080.18366 | I123: 92080.18366 | J123: 1241.166667 | K123: 1241.166667 | L123: 74.1884117 | M123: 74.1884117 | AK123: 0
A124: 7 | H124: 89717.20638 | I124: 89717.20638 | J124: 1305.75 | K124: 1305.75 | L124: 68.70932903 | M124: 68.70932903 | AK124: 0
A125: 7 | H125: 44667.72146 | I125: 44667.72146 | J125: 1216.5 | K125: 1216.5 | L125: 36.71822561 | M125: 36.71822561 | AK125: 0
A126: 7 | H126: 28215.85352 | I126: 28215.85352 | J126: 821.5833333 | K126: 821.5833333 | L126: 34.34326425 | M126: 34.34326425 | AK126: 0
A127: 7 | H127: 4306.20748 | I127: 4306.20748 | J127: 226.6666667 | K127: 226.6666667 | L127: 18.99797418 | M127: 18.99797418 | AK127: 0
A128: 7 | H128: 30116.76914 | I128: 30116.76914 | J128: 1204.5 | K128: 1204.5 | L128: 25.00354433 | M128: 25.00354433 | AK128: 0
A129: 7 | H129: 25041.0156 | I129: 25041.0156 | J129: 606.6666667 | K129: 606.6666667 | L129: 41.27639934 | M129: 41.27639934 | AK129: 0
A130: 7 | H130: 22448.49916 | I130: 22448.49916 | J130: 516.25 | K130: 516.25 | L130: 43.48377561 | M130: 43.48377561 | AK130: 0
A131: 7 | H131: 83019.9882 | I131: 83019.9882 | J131: 1733.791667 | K131: 1733.791667 | L131: 47.88348554 | M131: 47.88348554 | AK131: =IF(ISNUMBER(M131),C131,"") -> 0
A132: 7 | H132: 89554.31722 | I132: 89554.31722 | J132: 1426.5 | K132: 1426.5 | L132: 62.77905168 | M132: 62.77905168 | AK132: 0
A133: 7 | H133: 251608.5178 | J133: 1071.25 | L133: 234.8737623
A134: 7 | H134: 27691.6345 | I134: 27691.6345 | J134: 545.75 | K134: 545.75 | L134: 50.74051214 | M134: 50.74051214 | AK134: 0
A135: 7 | H135: 139998.4187 | I135: 139998.4187 | J135: 1388.166667 | K135: 1388.166667 | L135: 100.8513042 | M135: 100.8513042 | AK135: 0
A136: 7 | H136: 86461.0761 | I136: 86461.0761 | J136: 332.8333333 | K136: 332.8333333 | L136: 259.7728876
A137: 7 | H137: 89602.6045 | I137: 89602.6045 | J137: 1437.916667 | K137: 1437.916667 | L137: 62.31418453 | M137: 62.31418453 | AK137: 0
A138: 7 | H138: 49575.6159 | I138: 49575.6159 | J138: 530.1666667 | K138: 530.1666667 | L138: 93.50949242 | M138: 93.50949242 | AK138: 0
A139: 7 | H139: 45270.0259 | I139: 45270.0259 | J139: 641.6666667 | K139: 641.6666667 | L139: 70.55068971 | M139: 70.55068971 | AK139: 0
A140: 7 | H140: 102063.8893 | I140: 102063.8893 | J140: 808.8333333 | K140: 808.8333333 | L140: 126.1865517 | M140: 126.1865517 | AK140: 0
A141: 7 | H141: 58120.97924 | I141: 58120.97924 | J141: 911.5 | K141: 911.5 | L141: 63.76410229 | M141: 63.76410229 | AK141: 0
A142: 7 | H142: 83672.9346 | I142: 83672.9346 | J142: 915.5 | K142: 915.5 | L142: 91.39588706 | M142: 91.39588706 | AK142: 0
A143: 7 | H143: 114484.6706 | I143: 114484.6706 | J143: 965.1666667 | K143: 965.1666667 | L143: 118.6164779 | M143: 118.6164779 | AK143: 0
A144: 7 | H144: 105781.4732 | I144: 105781.4732 | J144: 1188.583333 | K144: 1188.583333 | L144: 88.9979442 | M144: 88.9979442 | AK144: 0
A145: 7 | H145: 36629.17762 | I145: 36629.17762 | J145: 911.75 | K145: 911.75 | L145: 40.17458472 | M145: 40.17458472 | AK145: 0
A146: 7 | H146: 52686.2445 | I146: 52686.2445 | J146: 666.8333333 | K146: 666.8333333 | L146: 79.00961435 | M146: 79.00961435 | AK146: 0
A147: 7 | H147: 57809.4881 | I147: 57809.4881 | J147: 914.5 | K147: 914.5 | L147: 63.21431176 | M147: 63.21431176 | AK147: 0
A148: 7 | H148: 18320.81883 | I148: 18320.81883 | J148: 486 | K148: 486 | L148: 37.6971581 | M148: 37.6971581 | AK148: 0
A149: 7 | H149: 247430.4506 | J149: 984.4285714 | L149: 251.3442395
A150: 7 | H150: 234489.1308 | J150: 1397 | L150: 167.851919
A151: 7 | H151: 37369.80876 | I151: 37369.80876 | J151: 529.75 | K151: 529.75 | L151: 70.54234782 | M151: 70.54234782 | AK151: 0
A152: 7 | H152: 94607.78988 | I152: 94607.78988 | J152: 1314.166667 | K152: 1314.166667 | L152: 71.99070885 | M152: 71.99070885 | AK152: 0
A153: 7 | H153: 72596.91204 | I153: 72596.91204 | J153: 1451.416667 | K153: 1451.416667 | L153: 50.01796776 | M153: 50.01796776 | AK153: 0
A154: 7 | H154: 67915.98364 | I154: 67915.98364 | J154: 1498.75 | K154: 1498.75 | L154: 45.315085 | M154: 45.315085 | AK154: 0
A155: 7 | H155: 25436.20624 | I155: 25436.20624 | J155: 538.6666667 | K155: 538.6666667 | L155: 47.2206799 | M155: 47.2206799 | AK155: 0
A156: 7 | H156: 22355.87716 | I156: 22355.87716 | J156: 619.1666667 | K156: 619.1666667 | L156: 36.10639649 | M156: 36.10639649 | AK156: 0
A157: 7 | H157: 37613.7641 | I157: 37613.7641 | J157: 719 | K157: 719 | L157: 52.31399736 | M157: 52.31399736 | AK157: 0
A158: 7 | H158: 12235.78416 | I158: 12235.78416 | J158: 437.5833333 | K158: 437.5833333 | L158: 27.96218052 | M158: 27.96218052 | AK158: 0
A159: 7 | H159: 12646.5967 | I159: 12646.5967 | J159: 841.1666667 | K159: 841.1666667 | L159: 15.03459089 | M159: 15.03459089 | AK159: 0
A160: 7 | H160: 127802.788 | I160: 127802.788 | J160: 1353.166667 | K160: 1353.166667 | L160: 94.44718905 | M160: 94.44718905 | AK160: 0
A161: 7 | H161: 65858.02428 | I161: 65858.02428 | J161: 1283.666667 | K161: 1283.666667 | L161: 51.30461512 | M161: 51.30461512 | AK161: 0
A162: 7 | H162: 119989.2227 | I162: 119989.2227 | J162: 872.9166667 | K162: 872.9166667 | L162: 137.4578208 | M162: 137.4578208 | AK162: 0
A163: 7 | H163: 101917.2197 | I163: 101917.2197 | J163: 1252.833333 | K163: 1252.833333 | L163: 81.34938382 | M163: 81.34938382 | AK163: 0
A164: 7 | H164: 87035.33336 | I164: 87035.33336 | J164: 1270 | K164: 1270 | L164: 68.53175855 | M164: 68.53175855 | AK164: 0
A165: 7 | H165: 18187.10628 | I165: 18187.10628 | J165: 643.3333333 | K165: 643.3333333 | L165: 28.27011339 | M165: 28.27011339 | AK165: 0
A166: 7 | H166: 59024.78076 | I166: 59024.78076 | J166: 831.8333333 | K166: 831.8333333 | L166: 70.95746034 | M166: 70.95746034 | AK166: 0
A167: 7 | H167: 81441.16924 | I167: 81441.16924 | J167: 1267.5 | K167: 1267.5 | L167: 64.25338796 | M167: 64.25338796 | AK167: 0
A168: 7 | H168: 28077.84072 | I168: 28077.84072 | J168: 323.75 | K168: 323.75 | L168: 86.72692114 | M168: 86.72692114 | AK168: 0
A169: 7 | H169: 87010.8225 | I169: 87010.8225 | J169: 1027.583333 | K169: 1027.583333 | L169: 84.67519828 | M169: 84.67519828 | AK169: 0
A170: 7 | H170: 27266.2613 | I170: 27266.2613 | J170: 615.5 | K170: 615.5 | L170: 44.29936848 | M170: 44.29936848 | AK170: 0
A171: 7 | H171: 57823.11566 | I171: 57823.11566 | J171: 642.5833333 | K171: 642.5833333 | L171: 89.98539592 | M171: 89.98539592 | AK171: 0
A172: 7 | H172: 49550.62172 | I172: 49550.62172 | J172: 885.3333333 | K172: 885.3333333 | L172: 55.96832273 | M172: 55.96832273 | AK172: 0
A173: 7 | H173: 47234.8292 | I173: 47234.8292 | J173: 894.6666667 | K173: 894.6666667 | L173: 52.79600879 | M173: 52.79600879 | AK173: 0
A174: 7 | H174: 40182.47144 | I174: 40182.47144 | J174: 814 | K174: 814 | L174: 49.36421553 | M174: 49.36421553 | AK174: 0
A175: 7 | H175: 28650.18276 | I175: 28650.18276 | J175: 482 | K175: 482 | L175: 59.4402132 | M175: 59.4402132 | AK175: 0
A176: 7 | H176: 2778.96272 | I176: 2778.96272 | J176: 482 | K176: 482 | L176: 5.765482822 | M176: 5.765482822 | AK176: 0
A177: 7 | H177: 51632.14508 | I177: 51632.14508 | J177: 982.5 | K177: 982.5 | L177: 52.55180161 | M177: 52.55180161 | AK177: 0
A178: 7 | H178: 42677.34176 | I178: 42677.34176 | J178: 753.5 | K178: 753.5 | L178: 56.63880791 | M178: 56.63880791 | AK178: 0
A179: 7 | H179: 34889.17694 | I179: 34889.17694 | J179: 494 | K179: 494 | L179: 70.62586426 | M179: 70.62586426 | AK179: 0
A180: 7 | H180: 44987.14094 | I180: 44987.14094 | J180: 744.9166667 | K180: 744.9166667 | L180: 60.39217936 | M180: 60.39217936 | AK180: 0
A181: 7 | H181: 75794.4918 | I181: 75794.4918 | J181: 1201.333333 | K181: 1201.333333 | L181: 63.09197431 | M181: 63.09197431 | AK181: 0
A182: 7 | H182: 18890.27754 | I182: 18890.27754 | J182: 625.1666667 | K182: 625.1666667 | L182: 30.21638636 | M182: 30.21638636 | AK182: 0
A183: 7 | H183: 42097.44806 | I183: 42097.44806 | J183: 1016.083333 | K183: 1016.083333 | L183: 41.4310979 | M183: 41.4310979 | AK183: 0
A184: 7 | H184: 80464.72008 | I184: 80464.72008 | J184: 940.5 | K184: 940.5 | L184: 85.55525793 | M184: 85.55525793 | AK184: 0
A185: 7 | H185: 17748.97584 | I185: 17748.97584 | J185: 315.0833333 | K185: 315.0833333 | L185: 56.33105265 | M185: 56.33105265 | AK185: 0
A186: 7 | H186: 27617.1757 | I186: 27617.1757 | J186: 682.3333333 | K186: 682.3333333 | L186: 40.47461021 | M186: 40.47461021 | AK186: 0
A187: 7 | H187: 814727.0277 | J187: 678 | L187: 1201.662283
A188: 7 | H188: 40202.61092 | I188: 40202.61092 | J188: 1246.583333 | K188: 1246.583333 | L188: 32.25023939 | M188: 32.25023939 | AK188: 0
A189: 7 | H189: 29647.40178 | I189: 29647.40178 | J189: 732.6666667 | K189: 732.6666667 | L189: 40.46506157 | M189: 40.46506157 | AK189: 0
A190: 7 | H190: 26259.19012 | I190: 26259.19012 | J190: 835.5 | K190: 835.5 | L190: 31.42931193 | M190: 31.42931193 | AK190: 0
A191: 7 | H191: 31997.34662 | I191: 31997.34662 | J191: 869.5833333 | K191: 869.5833333 | L191: 36.79618203 | M191: 36.79618203 | AK191: 0
A192: 7 | H192: 42713.55894 | I192: 42713.55894 | J192: 521.5833333 | K192: 521.5833333 | L192: 81.89210853 | M192: 81.89210853 | AK192: 0
A193: 7 | H193: 77983.16256 | I193: 77983.16256 | J193: 923.0833333 | K193: 923.0833333 | L193: 84.48117277 | M193: 84.48117277 | AK193: 0
A194: 7 | H194: 44835.73536 | I194: 44835.73536 | J194: 595.6666667 | K194: 595.6666667 | L194: 75.26984112 | M194: 75.26984112 | AK194: 0
A195: 7 | H195: 30685.42522 | I195: 30685.42522 | J195: 869.9166667 | K195: 869.9166667 | L195: 35.27398244 | M195: 35.27398244 | AK195: =IF(ISNUMBER(M195),C195,"") -> 0
A196: 7 | H196: 56144.07316 | I196: 56144.07316 | J196: 1132.416667 | K196: 1132.416667 | L196: 49.57898874 | M196: 49.57898874 | AK196: 0
A197: 7 | H197: 33310.01192 | I197: 33310.01192 | J197: 593.3333333 | K197: 593.3333333 | L197: 56.14046953 | M197: 56.14046953 | AK197: 0
A198: 7 | H198: 30957.24198 | I198: 30957.24198 | J198: 649.5 | K198: 649.5 | L198: 47.66319012 | M198: 47.66319012 | AK198: 0
A199: 7 | H199: 60346.28686 | I199: 60346.28686 | J199: 713.6666667 | K199: 713.6666667 | L199: 84.55808528 | M199: 84.55808528 | AK199: 0
A200: 7 | H200: 67948.2775 | I200: 67948.2775 | J200: 810.25 | K200: 810.25 | L200: 83.86087936 | M200: 83.86087936 | AK200: 0
... 672 more rows

Sheet AMORT_URZADZ_INNE (hidden)
H1: AMORT_URZADZ_INNE_mc | I1: AMORT_URZADZ_INNE_mc_odciete | J1: LOZKA_OPK | K1: LOZKA_OPK_odciete | L1: sr_AMORT_URZADZ_INNE_mc | M1: sr_AMORT_URZADZ_INNE_mc_odciete | O1: KAT_MED | P1: liczba_lozek | Q1: metoda 1 - średni koszt | R1: metoda 2 - średni koszt odcięte | S1: metoda 3 - regresja liniowa | T1: metoda 4 - regresja liniowa odcięte | U1: metoda 5 - funkcja potęgowa | V1: metoda 6 - funkcja potęgowa odcięte | X1: liczba łóżek | Y1: obłożenie | Z1: liczba dni w mc | AB1: Liczba opk | AC1: Liczba szpitali | AD1: Liczba opk po odcięciach | AE1: Liczba szpitali po odcięciach
H2: 249.8392572 | I2: 249.8392572 | J2: 18 | K2: 18 | L2: 13.87995873 | M2: 13.87995873 | O2: 6 | P2: =X2*(Z2/31) -> 450 | Q2: =IFERROR(SUMIFS(L:L,A:A,O2)/COUNTIFS(A:A,O2,L:L,">0")*P2,0) -> 0 | R2: =IFERROR(SUMIFS(M:M,A:A,O2)/COUNTIFS(A:A,O2,M:M,">0")*P2,0) -> 0 | S2: =IF(P2=0,0,IFERROR(FORECAST(P2,H2:H55,J2:J55),0)) -> 24333.8232 | T2: =IF(P2=0,0,IFERROR(FORECAST(P2,I2:I55,K2:K55),0)) -> 32197.60035 | U2: =IFERROR(EXP(INDEX(LINEST(LN(#REF!),LN(#REF!),,),1,2))*P2^(INDEX(LINEST(LN(#REF!),LN(#REF!),,),1)),0) -> 0 | V2: =IFERROR(EXP(INDEX(LINEST(LN(#REF!),LN(#REF!),,),1,2))*P2^(INDEX(LINEST(LN(#REF!),LN(#REF!),,),1)),0) -> 0 | X2: 450 | Y2: =ZALOZENIA!C3 -> 0.8 | Z2: =ZALOZENIA!D3 -> 31 | AB2: 52 | AC2: 34 | AD2: 49 | AE2: 31
H3: 2058.403996 | I3: 2058.403996 | J3: 20 | K3: 20 | L3: 102.9201998 | M3: 102.9201998 | O3: 7 | P3: =X3*(Z3/31) -> 0 | Q3: 0 | R3: 0 | S3: =IF(P3=0,0,IFERROR(FORECAST(P3,H56:H228,J56:J228),"")) -> 0 | T3: =IF(P3=0,0,IFERROR(FORECAST(P3,I56:I228,K56:K228),"")) -> 0 | U3: =IFERROR(EXP(INDEX(LINEST(LN(#REF!),LN(#REF!),,),1,2))*P3^INDEX(LINEST(LN(#REF!),LN(#REF!),,),1),0) -> 0 | V3: =IFERROR(EXP(INDEX(LINEST(LN(#REF!),LN(#REF!),,),1,2))*P3^INDEX(LINEST(LN(#REF!),LN(#REF!),,),1),0) -> 0 | X3: =ZALOZENIA!B4 -> 0 | Y3: =ZALOZENIA!C4 -> 0.9 | Z3: =ZALOZENIA!D4 -> 31 | AB3: 172 | AC3: 125 | AD3: 163 | AE3: 120
H4: 8172.530011 | I4: 8172.530011 | J4: 40 | K4: 40 | L4: 204.3132503 | M4: 204.3132503 | O4: 18 | P4: 50 | Q4: 0 | R4: 0 | S4: =IF(P4=0,0,IFERROR(FORECAST(P4,H229:H426,J229:J426),"")) -> 114400.7203 | T4: =IF(P4=0,0,IFERROR(FORECAST(P4,I229:I426,K229:K426),"")) -> 99024.63967 | U4: =IFERROR(EXP(INDEX(LINEST(LN(#REF!),LN(#REF!),,),1,2))*P4^INDEX(LINEST(LN(#REF!),LN(#REF!),,),1),0) -> 0 | V4: =IFERROR(EXP(INDEX(LINEST(LN(#REF!),LN(#REF!),,),1,2))*P4^INDEX(LINEST(LN(#REF!),LN(#REF!),,),1),0) -> 0 | X4: 50 | Y4: =ZALOZENIA!C5 -> 0.8 | Z4: =ZALOZENIA!D5 -> 31 | AB4: 195 | AC4: 154 | AD4: 187 | AE4: 147
H5: 820.2481213 | I5: 820.2481213 | J5: 23 | K5: 23 | L5: 35.66296179 | M5: 35.66296179 | O5: 43 | P5: 0 | Q5: 0 | R5: 0 | S5: =IF(P5=0,0,IFERROR(FORECAST(P5,H427:H550,J427:J550),"")) -> 0 | T5: =IF(P5=0,0,IFERROR(FORECAST(P5,I427:I550,K427:K550),"")) -> 0 | U5: =IFERROR(EXP(INDEX(LINEST(LN(#REF!),LN(#REF!),,),1,2))*P5^INDEX(LINEST(LN(#REF!),LN(#REF!),,),1),0) -> 0 | V5: =IFERROR(EXP(INDEX(LINEST(LN(#REF!),LN(#REF!),,),1,2))*P5^INDEX(LINEST(LN(#REF!),LN(#REF!),,),1),0) -> 0 | X5: =ZALOZENIA!B6 -> 0 | Y5: =ZALOZENIA!C6 -> 0.9 | Z5: =ZALOZENIA!D6 -> 31 | AB5: 2 | AC5: 2 | AD5: 2 | AE5: 2
H6: 1700.872957 | I6: 1700.872957 | J6: 22 | K6: 22 | L6: 77.31240714 | M6: 77.31240714 | O6: b | P6: 5 | Q6: 0 | R6: 0 | S6: =IF(P6=0,0,IFERROR(FORECAST(P6,H551:H766,J551:J766),"")) -> 58076.93874 | T6: =IF(P6=0,0,IFERROR(FORECAST(P6,I551:I766,K551:K766),"")) -> 31132.93897 | X6: =ZALOZENIA!B10 -> 5 | Y6: =ZALOZENIA!C10/8 -> 1 | Z6: =ZALOZENIA!D10 -> 31 | AB6: 207 | AC6: 177 | AD6: 193 | AE6: 168
H7: 8697.985985 | I7: 8697.985985 | J7: 35 | K7: 35 | L7: 248.5138853 | M7: 248.5138853 | O7: 8 | P7: 5 | Q7: 0 | R7: 0 | S7: =IF(P7=0,0,IFERROR(FORECAST(P7,H767:H842,J767:J842),"")) -> 22222.40439 | T7: =IF(P7=0,0,IFERROR(FORECAST(P7,I767:I842,K767:K842),"")) -> 20001.54986 | U7: =SUM(U2:U6) -> 0 | V7: 0 | X7: =ZALOZENIA!B7 -> 5 | Y7: =ZALOZENIA!C7 -> nd | Z7: =ZALOZENIA!D7 -> 31 | AB7: 66 | AC7: 65 | AD7: 64 | AE7: 63
H8: 3671.960585 | I8: 3671.960585 | J8: 30 | K8: 30 | L8: 122.3986862 | M8: 122.3986862 | Q8: =SUM(Q2:Q7) -> 0 | R8: =SUM(R2:R7) -> 0 | S8: =SUM(S2:S7) -> 219033.8866 | T8: =SUM(T2:T7) -> 182356.7289
H9: 7587.736159 | I9: 7587.736159 | J9: 25 | K9: 25 | L9: 303.5094463 | M9: 303.5094463
H10: 1578.621566 | I10: 1578.621566 | J10: 20 | K10: 20 | L10: 78.9310783 | M10: 78.9310783
H12: 10188.5699 | I12: 10188.5699 | J12: 36 | K12: 36 | L12: 283.0158305 | M12: 283.0158305
H13: 405.574347 | I13: 405.574347 | J13: 21 | K13: 21 | L13: 19.31306414 | M13: 19.31306414
H14: 568.3511054 | I14: 568.3511054 | J14: 21 | K14: 21 | L14: 27.06433835 | M14: 27.06433835
H15: 478.7315274 | I15: 478.7315274 | J15: 34 | K15: 34 | L15: 14.08033904 | M15: 14.08033904
H16: 319.1141558 | I16: 319.1141558 | J16: 32 | K16: 32 | L16: 9.972317369 | M16: 9.972317369
H17: 396.8036317 | I17: 396.8036317 | J17: 45 | K17: 45 | L17: 8.817858482 | M17: 8.817858482
H18: 194.0562073 | I18: 194.0562073 | J18: 42 | K18: 42 | L18: 4.620385889 | M18: 4.620385889
H19: 1362.964156 | I19: 1362.964156 | J19: 42 | K19: 42 | L19: 32.45152753 | M19: 32.45152753
H20: 297.4790101 | I20: 297.4790101 | J20: 40 | K20: 40 | L20: 7.436975253 | M20: 7.436975253
H21: 527.0030648 | I21: 527.0030648 | J21: 37 | K21: 37 | L21: 14.24332607 | M21: 14.24332607
H22: 3392.192721 | I22: 3392.192721 | J22: 17 | K22: 17 | L22: 199.5407483 | M22: 199.5407483
H23: 826.4275498 | I23: 826.4275498 | J23: 17 | K23: 17 | L23: 48.61338528 | M23: 48.61338528
H24: 3079.810016 | I24: 3079.810016 | J24: 38 | K24: 38 | L24: 81.04763199 | M24: 81.04763199
H25: 1218.859669 | J25: 60 | L25: 20.31432782 | M25: 20.31432782 | N25: odstające
H26: 1202.736702 | I26: 1202.736702 | J26: 38 | K26: 38 | L26: 31.65096585 | M26: 31.65096585
H27: 330.2885777 | I27: 330.2885777 | J27: 19 | K27: 19 | L27: 17.38360935 | M27: 17.38360935
H28: 276.831787 | I28: 276.831787 | J28: 21 | K28: 21 | L28: 13.18246605 | M28: 13.18246605
H29: 876.5230815 | I29: 876.5230815 | J29: 11 | K29: 11 | L29: 79.6839165 | M29: 79.6839165
H30: 2530.298217 | I30: 2530.298217 | J30: 35 | K30: 35 | L30: 72.29423478 | M30: 72.29423478
H31: 1570.768207 | I31: 1570.768207 | J31: 38 | K31: 38 | L31: 41.33600546 | M31: 41.33600546
H32: 1293.169128 | I32: 1293.169128 | J32: 34 | K32: 34 | L32: 38.03438611 | M32: 38.03438611
H33: 8008.010542 | I33: 8008.010542 | J33: 20 | K33: 20 | L33: 400.4005271 | M33: 400.4005271
H34: 145.2835628 | I34: 145.2835628 | J34: 30 | K34: 30 | L34: 4.842785425 | M34: 4.842785425
H35: 140.8941855 | I35: 140.8941855 | J35: 36.13 | K35: 36.13 | L35: 3.899645323 | M35: 3.899645323
H36: 9342.767099 | I36: 9342.767099 | J36: 33.87 | K36: 33.87 | L36: 275.8419575 | M36: 275.8419575
H37: 77.36880301 | I37: 77.36880301 | J37: 15 | K37: 15 | L37: 5.157920201 | M37: 5.157920201
H38: 32.74078814 | I38: 32.74078814 | J38: 21 | K38: 21 | L38: 1.55908515 | M38: 1.55908515
H39: 933.953 | I39: 933.953 | J39: 24 | K39: 24 | L39: 38.91470834 | M39: 38.91470834
H40: 393.7157851 | I40: 393.7157851 | J40: 24 | K40: 24 | L40: 16.40482438 | M40: 16.40482438
H41: 1330.529749 | I41: 1330.529749 | J41: 26 | K41: 26 | L41: 51.17422111 | M41: 51.17422111
H42: 95098.04787 | J42: 29 | L42: 3279.24303
H43: 8475.671264 | I43: 8475.671264 | J43: 35 | K43: 35 | L43: 242.1620361 | M43: 242.1620361
H44: 6811.805205 | I44: 6811.805205 | J44: 30 | K44: 30 | L44: 227.0601735 | M44: 227.0601735
H45: 4775.162755 | I45: 4775.162755 | J45: 15 | K45: 15 | L45: 318.3441837 | M45: 318.3441837
H46: 1293.551434 | I46: 1293.551434 | J46: 32 | K46: 32 | L46: 40.42348232 | M46: 40.42348232
H48: 4677.205833 | I48: 4677.205833 | J48: 29 | K48: 29 | L48: 161.2829598 | M48: 161.2829598
H49: 4725.96 | I49: 4725.96 | J49: 28 | K49: 28 | L49: 168.7842857 | M49: 168.7842857
H50: 465.96 | I50: 465.96 | J50: 19 | K50: 19 | L50: 24.52421053 | M50: 24.52421053
H51: 12081.62333 | J51: 24 | L51: 503.4009722
H52: 18103.80083 | J52: 29 | L52: 624.2689943
H53: 988.5275 | I53: 988.5275 | J53: 15 | K53: 15 | L53: 65.90183333 | M53: 65.90183333
H54: 1071.965 | I54: 1071.965 | J54: 23 | K54: 23 | L54: 46.60717391 | M54: 46.60717391
H55: 5088.6025 | I55: 5088.6025 | J55: 37 | K55: 37 | L55: 137.5297973 | M55: 137.5297973
H56: 4923.566035 | I56: 4923.566035 | J56: 25 | K56: 25 | L56: 196.9426414 | M56: 196.9426414
H57: 7213.205602 | I57: 7213.205602 | J57: 35 | K57: 35 | L57: 206.0915886 | M57: 206.0915886
H58: 3754.232348 | I58: 3754.232348 | J58: 40 | K58: 40 | L58: 93.8558087 | M58: 93.8558087
H59: 684.2507477 | I59: 684.2507477 | J59: 45 | K59: 45 | L59: 15.20557217 | M59: 15.20557217
H60: 1508.454174 | I60: 1508.454174 | J60: 47 | K60: 47 | L60: 32.09476966 | M60: 32.09476966
H61: 4362.264843 | I61: 4362.264843 | J61: 31 | K61: 31 | L61: 140.7182208 | M61: 140.7182208
H62: 1030.748955 | I62: 1030.748955 | J62: 45 | K62: 45 | L62: 22.90553233 | M62: 22.90553233
H63: 36855.27557 | J63: 39 | L63: 945.007066
H64: 7034.628783 | I64: 7034.628783 | J64: 38 | K64: 38 | L64: 185.1218101 | M64: 185.1218101
H65: 6360.421767 | I65: 6360.421767 | J65: 42 | K65: 42 | L65: 151.4386135 | M65: 151.4386135
H66: 20.49621953 | I66: 20.49621953 | J66: 65 | K66: 65 | L66: 0.3153264544 | M66: 0.3153264544
H67: 7483.646379 | I67: 7483.646379 | J67: 21 | K67: 21 | L67: 356.3641133
H68: 2698.625828 | I68: 2698.625828 | J68: 21 | K68: 21 | L68: 128.5059918 | M68: 128.5059918
H69: 7937.768166 | I69: 7937.768166 | J69: 99 | K69: 99 | L69: 80.17947642 | M69: 80.17947642
H70: 11187.14697 | I70: 11187.14697 | J70: 43 | K70: 43 | L70: 260.1662086 | M70: 260.1662086
H71: 2936.010934 | I71: 2936.010934 | J71: 29 | K71: 29 | L71: 101.2417564 | M71: 101.2417564
H72: 14980.74056 | J72: 47 | L72: 318.7391608 | M72: 318.7391608
H73: 7911.312908 | I73: 7911.312908 | J73: 39 | K73: 39 | L73: 202.8541771 | M73: 202.8541771
H74: 28.43490285 | I74: 28.43490285 | J74: 35 | K74: 35 | L74: 0.8124257958 | M74: 0.8124257958
H75: 9740.408589 | I75: 9740.408589 | J75: 81 | K75: 81 | L75: 120.2519579 | M75: 120.2519579
H76: 10642.27465 | I76: 10642.27465 | J76: 62 | K76: 62 | L76: 171.6495912 | M76: 171.6495912
H77: 1964.943929 | I77: 1964.943929 | J77: 29 | K77: 29 | L77: 67.75668722 | M77: 67.75668722
H78: 6523.923156 | I78: 6523.923156 | J78: 30 | K78: 30 | L78: 217.4641052 | M78: 217.4641052
H79: 9046.871802 | I79: 9046.871802 | J79: 67 | K79: 67 | L79: 135.0279373 | M79: 135.0279373
H80: 3032.604113 | I80: 3032.604113 | J80: 40 | K80: 40 | L80: 75.81510282 | M80: 75.81510282
H81: 2144.084829 | I81: 2144.084829 | J81: 32 | K81: 32 | L81: 67.00265091 | M81: 67.00265091
H82: 8621.380902 | I82: 8621.380902 | J82: 41.2 | K82: 41.2 | L82: 209.256818 | M82: 209.256818
H83: 4264.154133 | I83: 4264.154133 | J83: 48 | K83: 48 | L83: 88.83654444 | M83: 88.83654444
H84: 362.622942 | I84: 362.622942 | J84: 29 | K84: 29 | L84: 12.50423938 | M84: 12.50423938
H85: 2074.193331 | I85: 2074.193331 | J85: 51.84931507 | K85: 51.84931507 | L85: 40.00425711 | M85: 40.00425711
H86: 610.0734133 | I86: 610.0734133 | J86: 51 | K86: 51 | L86: 11.96222379 | M86: 11.96222379
H87: 850.1430495 | I87: 850.1430495 | J87: 62 | K87: 62 | L87: 13.71198467 | M87: 13.71198467
H88: 222.9757183 | I88: 222.9757183 | J88: 20 | K88: 20 | L88: 11.14878592 | M88: 11.14878592
H89: 2691.979865 | I89: 2691.979865 | J89: 34 | K89: 34 | L89: 79.17587837 | M89: 79.17587837
H90: 2408.251378 | I90: 2408.251378 | J90: 30 | K90: 30 | L90: 80.27504594 | M90: 80.27504594
H91: 448.1175417 | I91: 448.1175417 | J91: 27 | K91: 27 | L91: 16.59694599 | M91: 16.59694599
H92: 878.5400156 | I92: 878.5400156 | J92: 36 | K92: 36 | L92: 24.40388932 | M92: 24.40388932
H93: 7577.648809 | I93: 7577.648809 | J93: 50 | K93: 50 | L93: 151.5529762 | M93: 151.5529762
H94: 1606.052047 | I94: 1606.052047 | J94: 91 | K94: 91 | L94: 17.6489236 | M94: 17.6489236
H95: 2835.498387 | I95: 2835.498387 | J95: 35 | K95: 35 | L95: 81.01423962 | M95: 81.01423962
H96: 15413.48572 | J96: 66 | L96: 233.5376624 | M96: 233.5376624
H97: 12498.77667 | I97: 12498.77667 | J97: 36 | K97: 36 | L97: 347.1882408
H98: 2456.783741 | I98: 2456.783741 | J98: 49 | K98: 49 | L98: 50.1384437 | M98: 50.1384437
H99: 3367.842129 | I99: 3367.842129 | J99: 33 | K99: 33 | L99: 102.0558221 | M99: 102.0558221
H100: 10726.45083 | I100: 10726.45083 | J100: 83 | K100: 83 | L100: 129.2343474 | M100: 129.2343474
H101: 1980.003942 | I101: 1980.003942 | J101: 40 | K101: 40 | L101: 49.50009854 | M101: 49.50009854
H102: 4909.583636 | I102: 4909.583636 | J102: 29 | K102: 29 | L102: 169.2959875 | M102: 169.2959875
H103: 3049.989226 | I103: 3049.989226 | J103: 32 | K103: 32 | L103: 95.31216333 | M103: 95.31216333
H104: 29330.72706 | J104: 34 | L104: 862.668443
H105: 4827.43511 | I105: 4827.43511 | J105: 60 | K105: 60 | L105: 80.45725184 | M105: 80.45725184
H106: 2771.34863 | I106: 2771.34863 | J106: 32 | K106: 32 | L106: 86.60464469 | M106: 86.60464469
H107: 4063.545021 | I107: 4063.545021 | J107: 45 | K107: 45 | L107: 90.30100046 | M107: 90.30100046
H108: 3022.790987 | I108: 3022.790987 | J108: 33 | K108: 33 | L108: 91.59972689 | M108: 91.59972689
H109: 2959.765819 | I109: 2959.765819 | J109: 51 | K109: 51 | L109: 58.0346239 | M109: 58.0346239
H110: 1952.928969 | I110: 1952.928969 | J110: 51 | K110: 51 | L110: 38.29272489 | M110: 38.29272489
H111: 960.8645094 | I111: 960.8645094 | J111: 24 | K111: 24 | L111: 40.03602123 | M111: 40.03602123
H112: 348.2748414 | I112: 348.2748414 | J112: 62 | K112: 62 | L112: 5.617336152 | M112: 5.617336152
H113: 1927.223333 | I113: 1927.223333 | J113: 32 | K113: 32 | L113: 60.22572915 | M113: 60.22572915
H114: 2030.250431 | I114: 2030.250431 | J114: 23 | K114: 23 | L114: 88.27175786 | M114: 88.27175786
H115: 569.9366049 | I115: 569.9366049 | J115: 35 | K115: 35 | L115: 16.283903 | M115: 16.283903
H116: 3443.394083 | I116: 3443.394083 | J116: 35 | K116: 35 | L116: 98.38268809 | M116: 98.38268809
H117: 5398.819656 | I117: 5398.819656 | J117: 42 | K117: 42 | L117: 128.5433251 | M117: 128.5433251
H118: 2919.838922 | I118: 2919.838922 | J118: 31 | K118: 31 | L118: 94.18835231 | M118: 94.18835231
H119: 1568.432387 | I119: 1568.432387 | J119: 42 | K119: 42 | L119: 37.34362826 | M119: 37.34362826
H120: 1454.935633 | I120: 1454.935633 | J120: 75 | K120: 75 | L120: 19.39914177 | M120: 19.39914177
H121: 1985.576861 | I121: 1985.576861 | J121: 31 | K121: 31 | L121: 64.05086647 | M121: 64.05086647
H122: 5694.669398 | I122: 5694.669398 | J122: 65 | K122: 65 | L122: 87.61029843 | M122: 87.61029843
H123: 94.46093432 | I123: 94.46093432 | J123: 41 | K123: 41 | L123: 2.303925227 | M123: 2.303925227
H124: 3954.242918 | I124: 3954.242918 | J124: 54 | K124: 54 | L124: 73.2267207 | M124: 73.2267207
H125: 7424.354677 | I125: 7424.354677 | J125: 50 | K125: 50 | L125: 148.4870935 | M125: 148.4870935
H126: 8697.319629 | I126: 8697.319629 | J126: 50 | K126: 50 | L126: 173.9463926 | M126: 173.9463926
H127: 359.1268039 | I127: 359.1268039 | J127: 20 | K127: 20 | L127: 17.9563402 | M127: 17.9563402
H128: 3438.172207 | I128: 3438.172207 | J128: 66 | K128: 66 | L128: 52.09351829 | M128: 52.09351829
H129: 5369.554461 | I129: 5369.554461 | J129: 23 | K129: 23 | L129: 233.4588896 | M129: 233.4588896
H130: 4826.926857 | I130: 4826.926857 | J130: 27 | K130: 27 | L130: 178.7750688 | M130: 178.7750688
H131: 4598.954359 | I131: 4598.954359 | J131: 72 | K131: 72 | L131: 63.8743661 | M131: 63.8743661
H132: 8923.602118 | I132: 8923.602118 | J132: 65 | K132: 65 | L132: 137.2861864 | M132: 137.2861864
H133: 645.8771185 | I133: 645.8771185 | J133: 37 | K133: 37 | L133: 17.45613834 | M133: 17.45613834
H134: 3037.545512 | I134: 3037.545512 | J134: 29 | K134: 29 | L134: 104.7429487 | M134: 104.7429487
H135: 6951.427418 | I135: 6951.427418 | J135: 53 | K135: 53 | L135: 131.1590079 | M135: 131.1590079
H136: 740.7114268 | I136: 740.7114268 | J136: 16 | K136: 16 | L136: 46.29446418 | M136: 46.29446418
H137: 6622.504603 | I137: 6622.504603 | J137: 60 | K137: 60 | L137: 110.3750767 | M137: 110.3750767
H138: 4355.872721 | I138: 4355.872721 | J138: 15 | K138: 15 | L138: 290.3915147 | M138: 290.3915147
H139: 3762.684207 | I139: 3762.684207 | J139: 31 | K139: 31 | L139: 121.3769099 | M139: 121.3769099
H140: 145.2835628 | I140: 145.2835628 | J140: 30 | K140: 30 | L140: 4.842785425 | M140: 4.842785425
H141: 1446.844673 | I141: 1446.844673 | J141: 35 | K141: 35 | L141: 41.33841922 | M141: 41.33841922
H142: 3899.155072 | I142: 3899.155072 | J142: 31 | K142: 31 | L142: 125.7791959 | M142: 125.7791959
H143: 3229.828639 | I143: 3229.828639 | J143: 32 | K143: 32 | L143: 100.932145 | M143: 100.932145
H144: 6117.053613 | I144: 6117.053613 | J144: 41 | K144: 41 | L144: 149.1964296 | M144: 149.1964296
H145: 2948.583358 | I145: 2948.583358 | J145: 46 | K145: 46 | L145: 64.09963821 | M145: 64.09963821
H146: 1510.911358 | I146: 1510.911358 | J146: 23 | K146: 23 | L146: 65.69179817 | M146: 65.69179817
H147: 6897.573136 | I147: 6897.573136 | J147: 37.25 | K147: 37.25 | L147: 185.1697486 | M147: 185.1697486
H148: 1038.860622 | I148: 1038.860622 | J148: 35 | K148: 35 | L148: 29.68173204 | M148: 29.68173204
H149: 3699.585793 | I149: 3699.585793 | J149: 35 | K149: 35 | L149: 105.7024512 | M149: 105.7024512
H150: 5846.328902 | I150: 5846.328902 | J150: 60 | K150: 60 | L150: 97.43881503 | M150: 97.43881503
H151: 3699.430369 | I151: 3699.430369 | J151: 24 | K151: 24 | L151: 154.1429321 | M151: 154.1429321
H152: 1486.496452 | I152: 1486.496452 | J152: 50 | K152: 50 | L152: 29.72992904 | M152: 29.72992904
H153: 2196.408099 | I153: 2196.408099 | J153: 57 | K153: 57 | L153: 38.53347543 | M153: 38.53347543
H154: 3242.673418 | I154: 3242.673418 | J154: 59 | K154: 59 | L154: 54.96056641 | M154: 54.96056641
H155: 1830.721347 | I155: 1830.721347 | J155: 20 | K155: 20 | L155: 91.53606736 | M155: 91.53606736
H156: 2877.778076 | I156: 2877.778076 | J156: 28 | K156: 28 | L156: 102.7777884 | M156: 102.7777884
H157: 2521.964296 | I157: 2521.964296 | J157: 40 | K157: 40 | L157: 63.0491074 | M157: 63.0491074
H158: 555.0954363 | I158: 555.0954363 | J158: 27 | K158: 27 | L158: 20.55909023 | M158: 20.55909023
H159: 2860.959276 | I159: 2860.959276 | J159: 30 | K159: 30 | L159: 95.3653092 | M159: 95.3653092
H160: 498.682024 | I160: 498.682024 | J160: 37.17 | K160: 37.17 | L160: 13.41625031 | M160: 13.41625031
H161: 11358.78108 | I161: 11358.78108 | J161: 60 | K161: 60 | L161: 189.3130181 | M161: 189.3130181
H162: 584.1319617 | I162: 584.1319617 | J162: 42 | K162: 42 | L162: 13.90790385 | M162: 13.90790385
H163: 17741.69215 | J163: 48 | L163: 369.6185864
H164: 1202.069453 | I164: 1202.069453 | J164: 44 | K164: 44 | L164: 27.31976028 | M164: 27.31976028
H165: 4615.717294 | I165: 4615.717294 | J165: 36 | K165: 36 | L165: 128.2143693 | M165: 128.2143693
H166: 5878.964288 | I166: 5878.964288 | J166: 39 | K166: 39 | L166: 150.742674 | M166: 150.742674
H167: 8732.419461 | I167: 8732.419461 | J167: 50 | K167: 50 | L167: 174.6483892 | M167: 174.6483892
H168: 215.1956053 | I168: 215.1956053 | J168: 15 | K168: 15 | L168: 14.34637368 | M168: 14.34637368
H169: 4414.228035 | I169: 4414.228035 | J169: 37 | K169: 37 | L169: 119.3034604 | M169: 119.3034604
H170: 1963.033291 | I170: 1963.033291 | J170: 35 | K170: 35 | L170: 56.08666545 | M170: 56.08666545
H171: 1098.060685 | I171: 1098.060685 | J171: 35 | K171: 35 | L171: 31.37316242 | M171: 31.37316242
H172: 3172.30761 | I172: 3172.30761 | J172: 55 | K172: 55 | L172: 57.67832019 | M172: 57.67832019
H173: 7515.833086 | I173: 7515.833086 | J173: 36 | K173: 36 | L173: 208.7731413 | M173: 208.7731413
H174: 2604.486196 | I174: 2604.486196 | J174: 34 | K174: 34 | L174: 76.60253517 | M174: 76.60253517
H175: 55.74080325 | I175: 55.74080325 | J175: 12 | K175: 12 | L175: 4.645066937 | M175: 4.645066937
H176: 3527.237977 | I176: 3527.237977 | J176: 22 | K176: 22 | L176: 160.3289989 | M176: 160.3289989
H177: 18997.44617 | J177: 44 | L177: 431.7601402
H178: 9777.208256 | I178: 9777.208256 | J178: 25 | K178: 25 | L178: 391.0883302
H180: 3782.536447 | I180: 3782.536447 | J180: 32 | K180: 32 | L180: 118.204264 | M180: 118.204264
H181: 5206.211389 | I181: 5206.211389 | J181: 60 | K181: 60 | L181: 86.77018982 | M181: 86.77018982
H182: 8357.305463 | I182: 8357.305463 | J182: 32 | K182: 32 | L182: 261.1657957 | M182: 261.1657957
H183: 10276.35208 | I183: 10276.35208 | J183: 43 | K183: 43 | L183: 238.9849322 | M183: 238.9849322
H184: 6347.457552 | I184: 6347.457552 | J184: 33 | K184: 33 | L184: 192.3471985 | M184: 192.3471985
H185: 75.40814306 | I185: 75.40814306 | J185: 15 | K185: 15 | L185: 5.027209537 | M185: 5.027209537
H186: 2560.502206 | I186: 2560.502206 | J186: 39 | K186: 39 | L186: 65.65390273 | M186: 65.65390273
H187: 6016.375734 | I187: 6016.375734 | J187: 29 | K187: 29 | L187: 207.4612322 | M187: 207.4612322
H188: 2169.335807 | I188: 2169.335807 | J188: 41 | K188: 41 | L188: 52.91062944 | M188: 52.91062944
H189: 3615.492685 | I189: 3615.492685 | J189: 30 | K189: 30 | L189: 120.5164228 | M189: 120.5164228
H190: 6736.832069 | I190: 6736.832069 | J190: 25 | K190: 25 | L190: 269.4732828 | M190: 269.4732828
H191: 126.6729249 | I191: 126.6729249 | J191: 38 | K191: 38 | L191: 3.333498023 | M191: 3.333498023
H192: 2141.701667 | I192: 2141.701667 | J192: 22 | K192: 22 | L192: 97.35007578 | M192: 97.35007578
H193: 8574.902988 | I193: 8574.902988 | J193: 46 | K193: 46 | L193: 186.4109345 | M193: 186.4109345
H194: 2540.892927 | I194: 2540.892927 | J194: 23 | K194: 23 | L194: 110.4736055 | M194: 110.4736055
H195: 7898.618222 | I195: 7898.618222 | J195: 41 | K195: 41 | L195: 192.6492249 | M195: 192.6492249
H196: 1143.494401 | I196: 1143.494401 | J196: 42 | K196: 42 | L196: 27.22605718 | M196: 27.22605718
H197: 1010.366037 | I197: 1010.366037 | J197: 24 | K197: 24 | L197: 42.09858488 | M197: 42.09858488
H198: 1490.05333 | I198: 1490.05333 | J198: 42 | K198: 42 | L198: 35.47746025 | M198: 35.47746025
H199: 2356.01147 | I199: 2356.01147 | J199: 24 | K199: 24 | L199: 98.1671446 | M199: 98.1671446
H200: 719.6205551 | I200: 719.6205551 | J200: 27 | K200: 27 | L200: 26.65261315 | M200: 26.65261315
H201: 2473.595419 | I201: 2473.595419 | J201: 17 | K201: 17 | L201: 145.5056129 | M201: 145.5056129
H202: 3960.165987 | I202: 3960.165987 | J202: 24 | K202: 24 | L202: 165.0069161 | M202: 165.0069161
H203: 3579.280833 | I203: 3579.280833 | J203: 43 | K203: 43 | L203: 83.23908915 | M203: 83.23908915
... 622 more rows

Sheet PROCEDURY (hidden)
A1: KAT_MED | H1: PROCEDURY_mc | I1: PROCEDURY_mc_odciete | J1: OSOBODNI_mc | K1: OSOBODNI_mcodciete | L1: sr_PROCEDURY_mc | M1: sr_PROCEDURY_mc_odciete | O1: KAT_MED | P1: OSOBODNI_mc | Q1: metoda 1 - średni koszt | R1: metoda 2 - średni koszt odcięte | S1: metoda 3 - regresja liniowa | T1: metoda 4 - regresja liniowa odcięte | V1: liczba łóżek | W1: obłożenie | X1: liczba dni w mc | Z1: koszt tlenoterapii na osobodzień | AA1: koszt tlenoterapii | AC1: Liczba opk | AD1: Liczba szpitali | AE1: Liczba opk po odcięciach | AF1: Liczba szpitali po odcięciach
A2: 6 | H2: 20776.50919 | I2: 20776.50919 | J2: 444.6666667 | K2: 444.6666667 | L2: 46.72378379 | M2: 46.72378379 | O2: 6 | P2: =V2*W2*X2 -> 11160 | Q2: =IFERROR(SUMIFS(L:L,A:A,O2)/COUNTIFS(A:A,O2,L:L,">0")*P2,0) -> 957605.3093 | R2: =IFERROR(SUMIFS(M:M,A:A,O2)/COUNTIFS(A:A,O2,M:M,">0")*P2,0) -> 915397.7575 | S2: =IF(P2=0,0,IFERROR(FORECAST(P2,$H$2:$H$55,$J$2:$J$55),0)) -> 864349.6787 | T2: =IF(P2=0,0,IFERROR(FORECAST(P2,$I$2:$I$55,$K$2:$K$55),0)) -> 1019396.086 | V2: =ZALOZENIA!B3 -> 450 | W2: =ZALOZENIA!C3 -> 0.8 | X2: =ZALOZENIA!D3 -> 31 | Z2: =ZALOZENIA!B45 -> 17 | AA2: =Z2*P2 -> 189720 | AC2: 54 | AD2: 35 | AE2: 53 | AF2: 35
A3: 6 | H3: 14852.77233 | I3: 14852.77233 | J3: 377.8333333 | K3: 377.8333333 | L3: 39.31038111 | M3: 39.31038111 | O3: 7 | P3: =V3*W3*X3 -> 0 | Q3: 0 | R3: 0 | S3: =IF(P3=0,0,IFERROR(FORECAST(P3,$H$56:$H$228,$J$56:$J$228),"")) -> 0 | T3: =IF(P3=0,0,IFERROR(FORECAST(P3,$I$56:$I$228,$K$56:$K$228),"")) -> 0 | V3: =ZALOZENIA!B4 -> 0 | W3: =ZALOZENIA!C4 -> 0.9 | X3: =ZALOZENIA!D4 -> 31 | Z3: =ZALOZENIA!B45 -> 17 | AA3: =Z3*P3 -> 0 | AC3: 173 | AD3: 125 | AE3: 167 | AF3: 123
A4: 6 | H4: 68015.89844 | I4: 68015.89844 | J4: 668.4166667 | K4: 668.4166667 | L4: 101.7567362 | M4: 101.7567362 | O4: 18 | P4: =V4*W4*X4 -> 1240 | Q4: 346351.802 | R4: 209986.8695 | S4: =IF(P4=0,0,IFERROR(FORECAST(P4,$H$229:$H$426,$J$229:$J$426),"")) -> 158582.9425 | T4: =IF(P4=0,0,IFERROR(FORECAST(P4,$I$229:$I$426,$K$229:$K$426),"")) -> 192772.2668 | V4: =ZALOZENIA!B5 -> 50 | W4: =ZALOZENIA!C5 -> 0.8 | X4: =ZALOZENIA!D5 -> 31 | Z4: =ZALOZENIA!B45 -> 17 | AA4: 21080 | AC4: 196 | AD4: 155 | AE4: 173 | AF4: 142
A5: 6 | H5: 18527.6508 | I5: 18527.6508 | J5: 497.1666667 | K5: 497.1666667 | L5: 37.26647831 | M5: 37.26647831 | O5: 43 | P5: =V5*W5*X5 -> 0 | Q5: 0 | R5: 0 | S5: =IF(P5=0,0,IFERROR(FORECAST(P5,$H$427:$H$550,$J$427:$J$550),"")) -> 0 | T5: =IF(P5=0,0,IFERROR(FORECAST(P5,$I$427:$I$550,$K$427:$K$550),"")) -> 0 | V5: =ZALOZENIA!B6 -> 0 | W5: =ZALOZENIA!C6 -> 0.9 | X5: =ZALOZENIA!D6 -> 31 | Z5: =ZALOZENIA!B45 -> 17 | AA5: 0 | AC5: 0 | AD5: 0 | AE5: 0 | AF5: 0
A6: 6 | H6: 7771.93782 | I6: 7771.93782 | J6: 355 | K6: 355 | L6: 21.89278259 | M6: 21.89278259 | O6: b | P6: =V6*W6*X6 -> 155 | Q6: 7237.965024 | R6: 217.9807632 | S6: =IF(P6=0,0,IFERROR(FORECAST(P6,$H$551:$H$766,$J$551:$J$766),"")) -> 13193.46097 | T6: =IF(P6=0,0,IFERROR(FORECAST(P6,$I$551:$I$766,$K$551:$K$766),"")) -> 396.4886734 | V6: =ZALOZENIA!B10 -> 5 | W6: =ZALOZENIA!C10/8 -> 1 | X6: =ZALOZENIA!D10 -> 31 | Z6: 0 | AA6: 0 | AC6: 157 | AD6: 138 | AE6: 126 | AF6: 111
A7: 6 | H7: 67061.20642 | I7: 67061.20642 | J7: 798.25 | K7: 798.25 | L7: 84.01028051 | M7: 84.01028051 | O7: 8 | P7: =V7*(X7/31) -> 5 | Q7: 116551.298 | R7: 94189.59635 | S7: =IF(P7=0,0,IFERROR(FORECAST(P7,$H$767:$H$842,$J$767:$J$842),"")) -> 135417.5148 | T7: =IF(P7=0,0,IFERROR(FORECAST(P7,$I$767:$I$842,$K$767:$K$842),"")) -> 124238.9979 | V7: =ZALOZENIA!B7 -> 5 | W7: =ZALOZENIA!C7 -> nd | X7: =ZALOZENIA!D7 -> 31 | Z7: =ZALOZENIA!B45 -> 17 | AA7: 85 | AC7: 68 | AD7: 67 | AE7: 61 | AF7: 60
A8: 6 | H8: 66569.8523 | I8: 66569.8523 | J8: 858.3333333 | K8: 858.3333333 | L8: 77.55710948 | M8: 77.55710948 | Q8: =SUM(Q2:Q7) -> 1427746.374 | R8: =SUM(R2:R7) -> 1219792.204 | S8: =SUM(S2:S7) -> 1171543.597 | T8: =SUM(T2:T7) -> 1336803.839
A9: 6 | H9: 61767.42396 | I9: 61767.42396 | J9: 478.5833333 | K9: 478.5833333 | L9: 129.0630485 | M9: 129.0630485
A10: 6 | H10: 10913.58748 | I10: 10913.58748 | J10: 421.1666667 | K10: 421.1666667 | L10: 25.91275223 | M10: 25.91275223
A11: 6 | H11: 13090.70242 | I11: 13090.70242 | J11: 441.75 | K11: 441.75 | L11: 29.63373496 | M11: 29.63373496
A12: 6 | H12: 50059.67206 | I12: 50059.67206 | J12: 606.75 | K12: 606.75 | L12: 82.50460991 | M12: 82.50460991
A13: 6 | H13: 60647.06498 | I13: 60647.06498 | J13: 450.9166667 | K13: 450.9166667 | L13: 134.4972796 | M13: 134.4972796 | O13: KAT_MED | P13: OSOBODNI_mc | Q13: metoda 1 - średni koszt | R13: metoda 2 - średni koszt odcięte | S13: metoda 3 - regresja liniowa | T13: metoda 4 - regresja liniowa odcięte
A14: 6 | H14: 54117.44618 | I14: 54117.44618 | J14: 462.6666667 | K14: 462.6666667 | L14: 116.9685436 | M14: 116.9685436 | O14: 6 | P14: =V2*X2 -> 13950 | Q14: =IFERROR(SUMIFS(L:L,A:A,O14)/COUNTIFS(A:A,O14,L:L,">0")*P14,0) -> 1197006.637 | R14: =IFERROR(SUMIFS(M:M,A:A,O14)/COUNTIFS(A:A,O14,M:M,">0")*P14,0) -> 1144247.197 | S14: =IF(P14=0,0,IFERROR(FORECAST(P14,$H$2:$H$55,$J$2:$J$55),0)) -> 1079061.267 | T14: =IF(P14=0,0,IFERROR(FORECAST(P14,$I$2:$I$55,$K$2:$K$55),0)) -> 1275345.673
A15: 6 | H15: 33658.91478 | I15: 33658.91478 | J15: 377.9166667 | K15: 377.9166667 | L15: 89.0643831 | M15: 89.0643831 | O15: 7 | P15: =V3*X3 -> 0 | Q15: 0 | R15: 0 | S15: =IF(P15=0,0,IFERROR(FORECAST(P15,$H$56:$H$228,$J$56:$J$228),"")) -> 0 | T15: =IF(P15=0,0,IFERROR(FORECAST(P15,$I$56:$I$228,$K$56:$K$228),"")) -> 0
A16: 6 | H16: 71099.33384 | I16: 71099.33384 | J16: 593.25 | K16: 593.25 | L16: 119.8471704 | M16: 119.8471704 | O16: 18 | P16: =V4*X4 -> 1550 | Q16: 432939.7525 | R16: 262483.5869 | S16: =IF(P16=0,0,IFERROR(FORECAST(P16,$H$229:$H$426,$J$229:$J$426),"")) -> 191808.5773 | T16: =IF(P16=0,0,IFERROR(FORECAST(P16,$I$229:$I$426,$K$229:$K$426),"")) -> 238962.6655
A17: 6 | H17: 91424.0114 | I17: 91424.0114 | J17: 722.4166667 | K17: 722.4166667 | L17: 126.5530207 | M17: 126.5530207 | O17: 43 | P17: =V5*X5 -> 0 | Q17: 0 | R17: 0 | S17: =IF(P17=0,0,IFERROR(FORECAST(P17,$H$427:$H$550,$J$427:$J$550),"")) -> 0 | T17: =IF(P17=0,0,IFERROR(FORECAST(P17,$I$427:$I$550,$K$427:$K$550),"")) -> 0
A18: 6 | H18: 105000.5949 | I18: 105000.5949 | J18: 724.5 | K18: 724.5 | L18: 144.9283573 | M18: 144.9283573 | O18: b | P18: =V6*X6 -> 155 | Q18: 7237.965024 | R18: 217.9807632 | S18: =IF(P18=0,0,IFERROR(FORECAST(P18,$H$551:$H$766,$J$551:$J$766),"")) -> 13193.46097 | T18: =IF(P18=0,0,IFERROR(FORECAST(P18,$I$551:$I$766,$K$551:$K$766),"")) -> 396.4886734
A19: 6 | H19: 152790.4354 | J19: 829.6666667 | L19: 184.1588213 | M19: 184.1588213 | O19: 8 | P19: =V7*(X7/31) -> 5 | Q19: 116551.298 | R19: 94189.59635 | S19: =IF(P19=0,0,IFERROR(FORECAST(P19,$H$767:$H$842,$J$767:$J$842),"")) -> 135417.5148 | T19: =IF(P19=0,0,IFERROR(FORECAST(P19,$I$767:$I$842,$K$767:$K$842),"")) -> 124238.9979
A20: 6 | H20: 114204.2332 | I20: 114204.2332 | J20: 804.1666667 | K20: 804.1666667 | L20: 142.0156268 | M20: 142.0156268
A21: 6 | H21: 24137.4824 | I21: 24137.4824 | J21: 305.25 | K21: 305.25 | L21: 79.07447142 | M21: 79.07447142
A22: 6 | H22: 14476.04374 | I22: 14476.04374 | J22: 376.1666667 | K22: 376.1666667 | L22: 38.48305824 | M22: 38.48305824
A23: 6 | H23: 10823.76306 | I23: 10823.76306 | J23: 233.8333333 | K23: 233.8333333 | L23: 46.28836661 | M23: 46.28836661
A24: 6 | H24: 56961.36384 | I24: 56961.36384 | J24: 722.3333333 | K24: 722.3333333 | L24: 78.85744879 | M24: 78.85744879
A25: 6 | H25: 40229.91592 | J25: 1286 | L25: 31.28298283 | M25: 31.28298283 | N25: odstające
A26: 6 | H26: 40621.57701 | I26: 40621.57701 | J26: 759.3333333 | K26: 759.3333333 | L26: 53.49637008 | M26: 53.49637008
A27: 6 | H27: 49133.28092 | I27: 49133.28092 | J27: 595.25 | K27: 595.25 | L27: 82.5422611 | M27: 82.5422611
A28: 6 | H28: 31003.36034 | I28: 31003.36034 | J28: 638.75 | K28: 638.75 | L28: 48.53755043 | M28: 48.53755043
A29: 6 | H29: 8084.15394 | I29: 8084.15394 | J29: 150.5 | K29: 150.5 | L29: 53.71530857 | M29: 53.71530857
A30: 6 | H30: 66886.97128 | I30: 66886.97128 | J30: 839.0833333 | K30: 839.0833333 | L30: 79.71433661 | M30: 79.71433661
A31: 6 | H31: 19147.90258 | I31: 19147.90258 | J31: 284.5 | K31: 284.5 | L31: 67.30369975 | M31: 67.30369975
A32: 6 | H32: 120669.7184 | I32: 120669.7184 | J32: 873.75 | K32: 873.75 | L32: 138.1055432 | M32: 138.1055432
A33: 6 | H33: 107963.7094 | I33: 107963.7094 | J33: 490.4166667 | K33: 490.4166667 | L33: 220.1469011 | M33: 220.1469011
A34: 6 | H34: 19261.90504 | I34: 19261.90504 | J34: 787.25 | K34: 787.25 | L34: 24.46732936 | M34: 24.46732936
A35: 6 | H35: 21862.88044 | J35: 1003.916667 | L35: 21.7775849 | M35: 21.7775849 | N35: odstające
A36: 6 | H36: 15052.97474 | I36: 15052.97474 | J36: 767.8333333 | K36: 767.8333333 | L36: 19.60448197 | M36: 19.60448197
A37: 6 | H37: 31480.07898 | I37: 31480.07898 | J37: 486.3333333 | K37: 486.3333333 | L37: 64.72942902 | M37: 64.72942902
A38: 6 | H38: 33779.29414 | I38: 33779.29414 | J38: 282 | K38: 282 | L38: 119.784731 | M38: 119.784731
A39: 6 | H39: 30893.94254 | I39: 30893.94254 | J39: 521.75 | K39: 521.75 | L39: 59.21215628 | M39: 59.21215628
A40: 6 | H40: 38331.12755 | I40: 38331.12755 | J40: 343.1818182 | K40: 343.1818182 | L40: 111.6933518 | M40: 111.6933518
A41: 6 | H41: 68296.03226 | I41: 68296.03226 | J41: 447.3333333 | K41: 447.3333333 | L41: 152.6736936 | M41: 152.6736936
A42: 6 | H42: 205960.4569 | J42: 719.5 | L42: 286.2549783
A43: 6 | H43: 53460.266 | I43: 53460.266 | J43: 584.9166667 | K43: 584.9166667 | L43: 91.39808976 | M43: 91.39808976
A44: 6 | H44: 63465.87408 | I44: 63465.87408 | J44: 500.4166667 | K44: 500.4166667 | L44: 126.8260598 | M44: 126.8260598
A45: 6 | H45: 27981.34786 | I45: 27981.34786 | J45: 219.8333333 | K45: 219.8333333 | L45: 127.2843724 | M45: 127.2843724
A46: 6 | H46: 40334.54524 | I46: 40334.54524 | J46: 497 | K46: 497 | L46: 81.15602664 | M46: 81.15602664
A47: 6 | H47: 17862.37372 | I47: 17862.37372 | J47: 480.6666667 | K47: 480.6666667 | L47: 37.16166516 | M47: 37.16166516
A48: 6 | H48: 19490.43583 | I48: 19490.43583 | J48: 425.75 | K48: 425.75 | L48: 45.77906244 | M48: 45.77906244
A49: 6 | H49: 49853.115 | I49: 49853.115 | J49: 553.3333333 | K49: 553.3333333 | L49: 90.09599096 | M49: 90.09599096
A50: 6 | H50: 30423.22167 | I50: 30423.22167 | J50: 402.75 | K50: 402.75 | L50: 75.53872543 | M50: 75.53872543
A51: 6 | H51: 28451.00583 | I51: 28451.00583 | J51: 397.8333333 | K51: 397.8333333 | L51: 71.51488689 | M51: 71.51488689
A52: 6 | H52: 50723.77833 | I52: 50723.77833 | J52: 734 | K52: 734 | L52: 69.10596503 | M52: 69.10596503
A53: 6 | H53: 26447.06667 | I53: 26447.06667 | J53: 318.6666667 | K53: 318.6666667 | L53: 82.99288703 | M53: 82.99288703
A54: 6 | H54: 28571.20167 | I54: 28571.20167 | J54: 699.5833333 | K54: 699.5833333 | L54: 40.84031209 | M54: 40.84031209
A55: 6 | H55: 58614.91167 | I55: 58614.91167 | J55: 710.75 | K55: 710.75 | L55: 82.46909837 | M55: 82.46909837
A56: 7 | H56: 69209.7642 | I56: 69209.7642 | J56: 641.0833333 | K56: 641.0833333 | L56: 107.957516 | M56: 107.957516
A57: 7 | H57: 125230.7001 | I57: 125230.7001 | J57: 783.25 | K57: 783.25 | L57: 159.885988 | M57: 159.885988
A58: 7 | H58: 100313.6323 | I58: 100313.6323 | J58: 984.0833333 | K58: 984.0833333 | L58: 101.9361155 | M58: 101.9361155
A59: 7 | H59: 101593.0268 | I59: 101593.0268 | J59: 1233.416667 | K59: 1233.416667 | L59: 82.36715906 | M59: 82.36715906
A60: 7 | H60: 81220.02519 | I60: 81220.02519 | J60: 872.75 | K60: 872.75 | L60: 93.06218871 | M60: 93.06218871
A61: 7 | H61: 86482.79098 | I61: 86482.79098 | J61: 767.0833333 | K61: 767.0833333 | L61: 112.7423674 | M61: 112.7423674
A62: 7 | H62: 187969.5064 | I62: 187969.5064 | J62: 854.5833333 | K62: 854.5833333 | L62: 219.9545662
A63: 7 | H63: 120565.0426 | I63: 120565.0426 | J63: 2001.25 | K63: 2001.25 | L63: 60.24486825 | M63: 60.24486825
A64: 7 | H64: 115378.2958 | I64: 115378.2958 | J64: 1075.166667 | K64: 1075.166667 | L64: 107.3120098 | M64: 107.3120098
A65: 7 | H65: 198801.6369 | I65: 198801.6369 | J65: 1206.333333 | K65: 1206.333333 | L65: 164.7982621 | M65: 164.7982621
A66: 7 | H66: 127156.5646 | I66: 127156.5646 | J66: 1761.083333 | K66: 1761.083333 | L66: 72.20360457 | M66: 72.20360457
A67: 7 | H67: 39844.27138 | I67: 39844.27138 | J67: 500.75 | K67: 500.75 | L67: 79.56918898 | M67: 79.56918898
A68: 7 | H68: 112374.0218 | I68: 112374.0218 | J68: 786.5 | K68: 786.5 | L68: 142.8786037 | M68: 142.8786037
A69: 7 | H69: 137405.4115 | I69: 137405.4115 | J69: 914 | K69: 914 | L69: 150.3341483 | M69: 150.3341483
A70: 7 | H70: 597442.2497 | J70: 929.4166667 | L70: 642.81422
A71: 7 | H71: 87839.13215 | I71: 87839.13215 | J71: 508.6666667 | K71: 508.6666667 | L71: 172.6850566 | M71: 172.6850566
A72: 7 | H72: 145683.6391 | I72: 145683.6391 | J72: 1186.833333 | K72: 1186.833333 | L72: 122.7498715 | M72: 122.7498715
A73: 7 | H73: 152253.8689 | I73: 152253.8689 | J73: 1179.166667 | K73: 1179.166667 | L73: 129.1198888 | M73: 129.1198888
A74: 7 | H74: 85792.80037 | I74: 85792.80037 | J74: 624.1666667 | K74: 624.1666667 | L74: 137.4517496 | M74: 137.4517496
A75: 7 | H75: 115478.1925 | I75: 115478.1925 | J75: 1681.25 | K75: 1681.25 | L75: 68.68591374 | M75: 68.68591374
A76: 7 | H76: 68432.49362 | I76: 68432.49362 | J76: 979.8333333 | K76: 979.8333333 | L76: 69.84095284 | M76: 69.84095284
A77: 7 | H77: 68822.08738 | I77: 68822.08738 | J77: 951 | K77: 951 | L77: 72.36812553 | M77: 72.36812553
A78: 7 | H78: 62542.66236 | I78: 62542.66236 | J78: 668.8333333 | K78: 668.8333333 | L78: 93.51008576 | M78: 93.51008576
A79: 7 | H79: 184790.7766 | I79: 184790.7766 | J79: 1489.333333 | K79: 1489.333333 | L79: 124.0761705 | M79: 124.0761705
A80: 7 | H80: 165780.3166 | I80: 165780.3166 | J80: 1077.416667 | K80: 1077.416667 | L80: 153.8683424 | M80: 153.8683424
A81: 7 | H81: 108829.7053 | I81: 108829.7053 | J81: 941.8333333 | K81: 941.8333333 | L81: 115.550917 | M81: 115.550917
A82: 7 | H82: 66313.37364 | I82: 66313.37364 | J82: 814.9166667 | K82: 814.9166667 | L82: 81.37442312 | M82: 81.37442312
A83: 7 | H83: 108615.5309 | I83: 108615.5309 | J83: 1329.666667 | K83: 1329.666667 | L83: 81.68628549 | M83: 81.68628549
A84: 7 | H84: 35256.23038 | I84: 35256.23038 | J84: 643.6666667 | K84: 643.6666667 | L84: 54.77405031 | M84: 54.77405031
A85: 7 | H85: 68141.91614 | I85: 68141.91614 | J85: 825.75 | K85: 825.75 | L85: 82.52124268 | M85: 82.52124268
A86: 7 | H86: 96398.47586 | I86: 96398.47586 | J86: 1385.666667 | K86: 1385.666667 | L86: 69.56830108 | M86: 69.56830108
A87: 7 | H87: 93838.40894 | I87: 93838.40894 | J87: 1414.833333 | K87: 1414.833333 | L87: 66.32470888 | M87: 66.32470888
A88: 7 | H88: 61732.02722 | I88: 61732.02722 | J88: 557.8333333 | K88: 557.8333333 | L88: 110.6639269 | M88: 110.6639269
A89: 7 | H89: 130785.9147 | I89: 130785.9147 | J89: 996.9166667 | K89: 996.9166667 | L89: 131.1904185 | M89: 131.1904185
A90: 7 | H90: 33246.75032 | I90: 33246.75032 | J90: 672.5833333 | K90: 672.5833333 | L90: 49.43142161 | M90: 49.43142161
A91: 7 | H91: 53772.94308 | I91: 53772.94308 | J91: 740.5833333 | K91: 740.5833333 | L91: 72.60890255 | M91: 72.60890255
A92: 7 | H92: 121813.6026 | I92: 121813.6026 | J92: 812.4166667 | K92: 812.4166667 | L92: 149.9398125 | M92: 149.9398125
A93: 7 | H93: 64512.57922 | I93: 64512.57922 | J93: 894.1666667 | K93: 894.1666667 | L93: 72.14827126 | M93: 72.14827126
A94: 7 | H94: 176517.3538 | I94: 176517.3538 | J94: 1949.583333 | K94: 1949.583333 | L94: 90.54106629 | M94: 90.54106629
A95: 7 | H95: 79570.08358 | I95: 79570.08358 | J95: 767.3333333 | K95: 767.3333333 | L95: 103.6968943 | M95: 103.6968943
A96: 7 | H96: 156161.6354 | I96: 156161.6354 | J96: 1812.583333 | K96: 1812.583333 | L96: 86.15418257 | M96: 86.15418257
A97: 7 | H97: 187030.6302 | I97: 187030.6302 | J97: 1136.583333 | K97: 1136.583333 | L97: 164.5551406 | M97: 164.5551406
A98: 7 | H98: 142370.0794 | I98: 142370.0794 | J98: 1578.5 | K98: 1578.5 | L98: 90.19327174 | M98: 90.19327174
A99: 7 | H99: 74237.31388 | I99: 74237.31388 | J99: 1030.75 | K99: 1030.75 | L99: 72.02261837 | M99: 72.02261837
A100: 7 | H100: 147037.4138 | I100: 147037.4138 | J100: 1989.083333 | K100: 1989.083333 | L100: 73.92219891 | M100: 73.92219891
A101: 7 | H101: 33085.37304 | I101: 33085.37304 | J101: 1215.666667 | K101: 1215.666667 | L101: 27.21582647 | M101: 27.21582647
A102: 7 | H102: 26185.44942 | I102: 26185.44942 | J102: 664.75 | K102: 664.75 | L102: 39.39142448 | M102: 39.39142448
A103: 7 | H103: 116144.505 | I103: 116144.505 | J103: 829 | K103: 829 | L103: 140.1019361 | M103: 140.1019361
A104: 7 | H104: 133075.6243 | I104: 133075.6243 | J104: 769.1666667 | K104: 769.1666667 | L104: 173.0127293 | M104: 173.0127293
A105: 7 | H105: 161977.8292 | I105: 161977.8292 | J105: 1316.75 | K105: 1316.75 | L105: 123.0133504 | M105: 123.0133504
A106: 7 | H106: 89825.07446 | I106: 89825.07446 | J106: 957.25 | K106: 957.25 | L106: 93.83658862 | M106: 93.83658862
A107: 7 | H107: 73826.82298 | I107: 73826.82298 | J107: 1348.583333 | K107: 1348.583333 | L107: 54.74398293 | M107: 54.74398293
A108: 7 | H108: 52491.69616 | I108: 52491.69616 | J108: 591.75 | K108: 591.75 | L108: 88.70586592 | M108: 88.70586592
A109: 7 | H109: 94640.0373 | I109: 94640.0373 | J109: 1119.916667 | K109: 1119.916667 | L109: 84.50632098 | M109: 84.50632098
A110: 7 | H110: 84323.44634 | I110: 84323.44634 | J110: 1197.333333 | K110: 1197.333333 | L110: 70.42604093 | M110: 70.42604093
A111: 7 | H111: 32801.8448 | I111: 32801.8448 | J111: 189.6666667 | K111: 189.6666667 | L111: 172.9447002 | M111: 172.9447002
A112: 7 | H112: 160784.9301 | I112: 160784.9301 | J112: 1190.5 | K112: 1190.5 | L112: 135.0566401 | M112: 135.0566401
A113: 7 | H113: 76930.27316 | I113: 76930.27316 | J113: 674.1666667 | K113: 674.1666667 | L113: 114.1116536 | M113: 114.1116536
A114: 7 | H114: 87107.02554 | I114: 87107.02554 | J114: 588.6666667 | K114: 588.6666667 | L114: 147.9734296 | M114: 147.9734296
A115: 7 | H115: 89939.918 | I115: 89939.918 | J115: 444.3333333 | K115: 444.3333333 | L115: 202.4154194 | M115: 202.4154194
A116: 7 | H116: 42787.29792 | I116: 42787.29792 | J116: 595.4166667 | K116: 595.4166667 | L116: 71.86110217 | M116: 71.86110217
A117: 7 | H117: 98973.12752 | I117: 98973.12752 | J117: 1146.583333 | K117: 1146.583333 | L117: 86.32004726 | M117: 86.32004726
A118: 7 | H118: 67684.7133 | I118: 67684.7133 | J118: 900.4166667 | K118: 900.4166667 | L118: 75.17043587 | M118: 75.17043587
A119: 7 | H119: 55875.29048 | I119: 55875.29048 | J119: 1194.416667 | K119: 1194.416667 | L119: 46.78040088 | M119: 46.78040088
A120: 7 | H120: 183251.3705 | I120: 183251.3705 | J120: 1628.083333 | K120: 1628.083333 | L120: 112.5565054 | M120: 112.5565054
A121: 7 | H121: 21111.82696 | I121: 21111.82696 | J121: 535.75 | K121: 535.75 | L121: 39.40611658 | M121: 39.40611658
A122: 7 | H122: 231851.465 | J122: 1802.083333 | L122: 128.6574604 | M122: 128.6574604
A123: 7 | H123: 86858.7358 | I123: 86858.7358 | J123: 1241.166667 | K123: 1241.166667 | L123: 69.98152475 | M123: 69.98152475
A124: 7 | H124: 117413.3834 | I124: 117413.3834 | J124: 1305.75 | K124: 1305.75 | L124: 89.92026299 | M124: 89.92026299
A125: 7 | H125: 74040.86236 | I125: 74040.86236 | J125: 1216.5 | K125: 1216.5 | L125: 60.86384082 | M125: 60.86384082
A126: 7 | H126: 59922.53476 | I126: 59922.53476 | J126: 821.5833333 | K126: 821.5833333 | L126: 72.93543129 | M126: 72.93543129
A127: 7 | H127: 9386.9989 | I127: 9386.9989 | J127: 226.6666667 | K127: 226.6666667 | L127: 41.41323044 | M127: 41.41323044
A128: 7 | H128: 56201.37496 | I128: 56201.37496 | J128: 1204.5 | K128: 1204.5 | L128: 46.65950599 | M128: 46.65950599
A129: 7 | H129: 31466.09538 | I129: 31466.09538 | J129: 606.6666667 | K129: 606.6666667 | L129: 51.86719019 | M129: 51.86719019
A130: 7 | H130: 89888.93634 | I130: 89888.93634 | J130: 516.25 | K130: 516.25 | L130: 174.119005 | M130: 174.119005
A131: 7 | H131: 39166.1458 | I131: 39166.1458 | J131: 1733.791667 | K131: 1733.791667 | L131: 22.58988006 | M131: 22.58988006
A132: 7 | H132: 176534.319 | I132: 176534.319 | J132: 1426.5 | K132: 1426.5 | L132: 123.7534659 | M132: 123.7534659
A133: 7 | H133: 126975.7311 | I133: 126975.7311 | J133: 1071.25 | K133: 1071.25 | L133: 118.5304375 | M133: 118.5304375
A134: 7 | H134: 107957.7023 | I134: 107957.7023 | J134: 545.75 | K134: 545.75 | L134: 197.8153043 | M134: 197.8153043
A135: 7 | H135: 187477.5241 | I135: 187477.5241 | J135: 1388.166667 | K135: 1388.166667 | L135: 135.0540454 | M135: 135.0540454
A136: 7 | H136: 41515.56002 | I136: 41515.56002 | J136: 332.8333333 | K136: 332.8333333 | L136: 124.7337807 | M136: 124.7337807
A137: 7 | H137: 245660.5996 | J137: 1437.916667 | L137: 170.8448099 | M137: 170.8448099
A138: 7 | H138: 107273.6024 | I138: 107273.6024 | J138: 530.1666667 | K138: 530.1666667 | L138: 202.3393947 | M138: 202.3393947
A139: 7 | H139: 89027.27654 | I139: 89027.27654 | J139: 641.6666667 | K139: 641.6666667 | L139: 138.7438076 | M139: 138.7438076
A140: 7 | H140: 29968.78722 | I140: 29968.78722 | J140: 808.8333333 | K140: 808.8333333 | L140: 37.05186963 | M140: 37.05186963
A141: 7 | H141: 71971.9638 | I141: 71971.9638 | J141: 911.5 | K141: 911.5 | L141: 78.9599164 | M141: 78.9599164
A142: 7 | H142: 84364.04006 | I142: 84364.04006 | J142: 915.5 | K142: 915.5 | L142: 92.15078106 | M142: 92.15078106
A143: 7 | H143: 154574.213 | I143: 154574.213 | J143: 965.1666667 | K143: 965.1666667 | L143: 160.1528714 | M143: 160.1528714
A144: 7 | H144: 103083.3109 | I144: 103083.3109 | J144: 1188.583333 | K144: 1188.583333 | L144: 86.72787848 | M144: 86.72787848
A145: 7 | H145: 45414.5618 | I145: 45414.5618 | J145: 911.75 | K145: 911.75 | L145: 49.81032279 | M145: 49.81032279
A146: 7 | H146: 79094.29288 | I146: 79094.29288 | J146: 666.8333333 | K146: 666.8333333 | L146: 118.6117864 | M146: 118.6117864
A147: 7 | H147: 47760.00798 | I147: 47760.00798 | J147: 914.5 | K147: 914.5 | L147: 52.22526843 | M147: 52.22526843
A148: 7 | H148: 44459.58905 | I148: 44459.58905 | J148: 486 | K148: 486 | L148: 91.48063591 | M148: 91.48063591
A149: 7 | H149: 65071.40218 | I149: 65071.40218 | J149: 984.4285714 | K149: 984.4285714 | L149: 66.10068427 | M149: 66.10068427
A150: 7 | H150: 115530.1895 | I150: 115530.1895 | J150: 1397 | K150: 1397 | L150: 82.69877556 | M150: 82.69877556
A151: 7 | H151: 76265.82512 | I151: 76265.82512 | J151: 529.75 | K151: 529.75 | L151: 143.9656916 | M151: 143.9656916
A152: 7 | H152: 123672.8409 | I152: 123672.8409 | J152: 1314.166667 | K152: 1314.166667 | L152: 94.10742494 | M152: 94.10742494
A153: 7 | H153: 117833.3291 | I153: 117833.3291 | J153: 1451.416667 | K153: 1451.416667 | L153: 81.1850462 | M153: 81.1850462
A154: 7 | H154: 112667.3306 | I154: 112667.3306 | J154: 1498.75 | K154: 1498.75 | L154: 75.17419893 | M154: 75.17419893
A155: 7 | H155: 39257.30236 | I155: 39257.30236 | J155: 538.6666667 | K155: 538.6666667 | L155: 72.87865537 | M155: 72.87865537
A156: 7 | H156: 36840.02296 | I156: 36840.02296 | J156: 619.1666667 | K156: 619.1666667 | L156: 59.49936413 | M156: 59.49936413
A157: 7 | H157: 72967.95474 | I157: 72967.95474 | J157: 719 | K157: 719 | L157: 101.4853334 | M157: 101.4853334
A158: 7 | H158: 67137.9124 | I158: 67137.9124 | J158: 437.5833333 | K158: 437.5833333 | L158: 153.4288609 | M158: 153.4288609
A159: 7 | H159: 30050.25244 | I159: 30050.25244 | J159: 841.1666667 | K159: 841.1666667 | L159: 35.7244927 | M159: 35.7244927
A160: 7 | H160: 173304.6458 | I160: 173304.6458 | J160: 1353.166667 | K160: 1353.166667 | L160: 128.0733926 | M160: 128.0733926
A161: 7 | H161: 128138.7186 | I161: 128138.7186 | J161: 1283.666667 | K161: 1283.666667 | L161: 99.82242425 | M161: 99.82242425
A162: 7 | H162: 78756.80738 | I162: 78756.80738 | J162: 872.9166667 | K162: 872.9166667 | L162: 90.22259557 | M162: 90.22259557
A163: 7 | H163: 58928.41303 | I163: 58928.41303 | J163: 1252.833333 | K163: 1252.833333 | L163: 47.03611523 | M163: 47.03611523
A164: 7 | H164: 104609.411 | I164: 104609.411 | J164: 1270 | K164: 1270 | L164: 82.36961496 | M164: 82.36961496
A165: 7 | H165: 77498.34531 | I165: 77498.34531 | J165: 643.3333333 | K165: 643.3333333 | L165: 120.4637492 | M165: 120.4637492
A166: 7 | H166: 96303.83802 | I166: 96303.83802 | J166: 831.8333333 | K166: 831.8333333 | L166: 115.772997 | M166: 115.772997
A167: 7 | H167: 53712.117 | I167: 53712.117 | J167: 1267.5 | K167: 1267.5 | L167: 42.37642367 | M167: 42.37642367
A168: 7 | H168: 122677.6971 | I168: 122677.6971 | J168: 323.75 | K168: 323.75 | L168: 378.9272497
A169: 7 | H169: 103286.5943 | I169: 103286.5943 | J169: 1027.583333 | K169: 1027.583333 | L169: 100.5140809 | M169: 100.5140809
A170: 7 | H170: 60768.0644 | I170: 60768.0644 | J170: 615.5 | K170: 615.5 | L170: 98.72959285 | M170: 98.72959285
A171: 7 | H171: 70922.65114 | I171: 70922.65114 | J171: 642.5833333 | K171: 642.5833333 | L171: 110.3711339 | M171: 110.3711339
A172: 7 | H172: 84443.32088 | I172: 84443.32088 | J172: 885.3333333 | K172: 885.3333333 | L172: 95.38025702 | M172: 95.38025702
A173: 7 | H173: 94017.39472 | I173: 94017.39472 | J173: 894.6666667 | K173: 894.6666667 | L173: 105.0865068 | M173: 105.0865068
A174: 7 | H174: 45489.82986 | I174: 45489.82986 | J174: 814 | K174: 814 | L174: 55.88431187 | M174: 55.88431187
A175: 7 | H175: 32954.03814 | I175: 32954.03814 | J175: 482 | K175: 482 | L175: 68.36937373 | M175: 68.36937373
A176: 7 | H176: 703.72252 | I176: 703.72252 | J176: 482 | K176: 482 | L176: 1.460005228 | M176: 1.460005228
A177: 7 | H177: 79115.27797 | I177: 79115.27797 | J177: 982.5 | K177: 982.5 | L177: 80.52445595 | M177: 80.52445595
A178: 7 | H178: 63303.95362 | I178: 63303.95362 | J178: 753.5 | K178: 753.5 | L178: 84.01320985 | M178: 84.01320985
A179: 7 | H179: 17513.80781 | I179: 17513.80781 | J179: 494 | K179: 494 | L179: 35.45305224 | M179: 35.45305224
A180: 7 | H180: 59386.09342 | I180: 59386.09342 | J180: 744.9166667 | K180: 744.9166667 | L180: 79.7217945 | M180: 79.7217945
A181: 7 | H181: 102644.2697 | I181: 102644.2697 | J181: 1201.333333 | K181: 1201.333333 | L181: 85.44195593 | M181: 85.44195593
A182: 7 | H182: 46029.1479 | I182: 46029.1479 | J182: 625.1666667 | K182: 625.1666667 | L182: 73.62700277 | M182: 73.62700277
A183: 7 | H183: 52097.16514 | I183: 52097.16514 | J183: 1016.083333 | K183: 1016.083333 | L183: 51.27253192 | M183: 51.27253192
A184: 7 | H184: 63505.45558 | I184: 63505.45558 | J184: 940.5 | K184: 940.5 | L184: 67.52307877 | M184: 67.52307877
A185: 7 | H185: 29546.93056 | I185: 29546.93056 | J185: 315.0833333 | K185: 315.0833333 | L185: 93.77497136 | M185: 93.77497136
A186: 7 | H186: 55114.30572 | I186: 55114.30572 | J186: 682.3333333 | K186: 682.3333333 | L186: 80.77328635 | M186: 80.77328635
A187: 7 | H187: 68707.95506 | I187: 68707.95506 | J187: 678 | K187: 678 | L187: 101.3391668 | M187: 101.3391668
A188: 7 | H188: 58056.0673 | I188: 58056.0673 | J188: 1246.583333 | K188: 1246.583333 | L188: 46.57215105 | M188: 46.57215105
A189: 7 | H189: 49264.38964 | I189: 49264.38964 | J189: 732.6666667 | K189: 732.6666667 | L189: 67.23984027 | M189: 67.23984027
A190: 7 | H190: 41220.5783 | I190: 41220.5783 | J190: 835.5 | K190: 835.5 | L190: 49.33641927 | M190: 49.33641927
A191: 7 | H191: 16869.2139 | I191: 16869.2139 | J191: 869.5833333 | K191: 869.5833333 | L191: 19.39919184 | M191: 19.39919184
A192: 7 | H192: 89703.21762 | I192: 89703.21762 | J192: 521.5833333 | K192: 521.5833333 | L192: 171.982523 | M192: 171.982523
A193: 7 | H193: 377175.7522 | J193: 923.0833333 | L193: 408.6042273
A194: 7 | H194: 46954.8218 | I194: 46954.8218 | J194: 595.6666667 | K194: 595.6666667 | L194: 78.82734494 | M194: 78.82734494
A195: 7 | H195: 109966.7647 | I195: 109966.7647 | J195: 869.9166667 | K195: 869.9166667 | L195: 126.4106884 | M195: 126.4106884
A196: 7 | H196: 75078.87032 | I196: 75078.87032 | J196: 1132.416667 | K196: 1132.416667 | L196: 66.29968679 | M196: 66.29968679
A197: 7 | H197: 37576.87784 | I197: 37576.87784 | J197: 593.3333333 | K197: 593.3333333 | L197: 63.33181658 | M197: 63.33181658
A198: 7 | H198: 27871.85008 | I198: 27871.85008 | J198: 649.5 | K198: 649.5 | L198: 42.91277918 | M198: 42.91277918
A199: 7 | H199: 51600.3096 | I199: 51600.3096 | J199: 713.6666667 | K199: 713.6666667 | L199: 72.30309612 | M199: 72.30309612
A200: 7 | H200: 69987.04682 | I200: 69987.04682 | J200: 810.25 | K200: 810.25 | L200: 86.37710191 | M200: 86.37710191
... 672 more rows

Sheet ZARZAD (hidden)
A1: KAT_MED | H1: ZARZAD_mc | I1: ZARZAD_mc_odciete | J1: LOZKA_OPK | K1: LOZKA_OPK_odciete | L1: sr_ZARZAD_mc | M1: sr_ZARZAD_mc_odciete | O1: KAT_MED | P1: liczba_lozek | Q1: metoda 1 - średni koszt | R1: metoda 2 - średni koszt odcięte | S1: metoda 3 - regresja liniowa | T1: metoda 4 - regresja liniowa odcięte | V1: liczba łóżek | W1: obłożenie | X1: liczba dni w mc | Z1: Liczba opk | AA1: Liczba szpitali | AB1: Liczba opk po odcięciach | AC1: Liczba szpitali po odcięciach
A2: 6 | H2: 10942.13666 | I2: 10942.13666 | J2: 18 | K2: 18 | L2: 607.8964811 | M2: 607.8964811 | O2: 6 | P2: =V2*(X2/31) -> 450 | Q2: =IFERROR(SUMIFS(L:L,A:A,O2)/COUNTIFS(A:A,O2,L:L,">0")*P2,0) -> 398324.823 | R2: =IFERROR(SUMIFS(M:M,A:A,O2)/COUNTIFS(A:A,O2,M:M,">0")*P2,0) -> 354781.2672 | S2: =IF(P2=0,0,IFERROR(FORECAST(P2,H2:H55,J2:J55),0)) -> 332776.0166 | T2: =IF(P2=0,0,IFERROR(FORECAST(P2,I2:I55,K2:K55),0)) -> 427934.023 | V2: =ZALOZENIA!B3 -> 450 | W2: =ZALOZENIA!C3 -> 0.8 | X2: =ZALOZENIA!D3 -> 31 | Z2: 54 | AA2: 35 | AB2: 50 | AC2: 33 | AD2: =IF(ISNUMBER(M2),C2,"") -> 0 | AE2: =IF(ISNUMBER(L2),C2,"") -> 0
A3: 6 | H3: 58695.03271 | J3: 20 | L3: 2934.751636 | N3: odstające | O3: 7 | P3: 0 | Q3: 0 | R3: 0 | S3: =IF(P3=0,0,IFERROR(FORECAST(P3,H56:H228,J56:J228),"")) -> 0 | T3: =IF(P3=0,0,IFERROR(FORECAST(P3,I56:I228,K56:K228),"")) -> 0 | V3: =ZALOZENIA!B4 -> 0 | W3: =ZALOZENIA!C4 -> 0.9 | X3: =ZALOZENIA!D4 -> 31 | Z3: 172 | AA3: 126 | AB3: 163 | AC3: 121 | AD3: =IF(ISNUMBER(M3),C3,"") ->  | AE3: =IF(ISNUMBER(L3),C3,"") -> 0
A4: 6 | H4: 33689.01809 | I4: 33689.01809 | J4: 40 | K4: 40 | L4: 842.2254523 | M4: 842.2254523 | O4: 18 | P4: 50 | Q4: 218550.0054 | R4: 200857.475 | S4: =IF(P4=0,0,IFERROR(FORECAST(P4,H229:H426,J229:J426),"")) -> 157244.8713 | T4: =IF(P4=0,0,IFERROR(FORECAST(P4,I229:I426,K229:K426),"")) -> 182733.528 | V4: =ZALOZENIA!B5 -> 50 | W4: =ZALOZENIA!C5 -> 0.8 | X4: =ZALOZENIA!D5 -> 31 | Z4: 195 | AA4: 154 | AB4: 186 | AC4: 147 | AD4: 0 | AE4: 0
A5: 6 | H5: 16994.7868 | I5: 16994.7868 | J5: 23 | K5: 23 | L5: 738.9037739 | M5: 738.9037739 | O5: 43 | P5: 0 | Q5: 0 | R5: 0 | S5: =IF(P5=0,0,IFERROR(FORECAST(P5,H427:H550,J427:J550),"")) -> 0 | T5: =IF(P5=0,0,IFERROR(FORECAST(P5,I427:I550,K427:K550),"")) -> 0 | V5: =ZALOZENIA!B6 -> 0 | W5: =ZALOZENIA!C6 -> 0.9 | X5: =ZALOZENIA!D6 -> 31 | Z5: 2 | AA5: 2 | AB5: 2 | AC5: 2 | AD5: 0 | AE5: 0
A6: 6 | H6: 7293.1655 | I6: 7293.1655 | J6: 22 | K6: 22 | L6: 331.5075227 | M6: 331.5075227 | O6: b | P6: 5 | Q6: 38042.3772 | R6: 22383.55337 | S6: =IF(P6=0,0,IFERROR(FORECAST(P6,H551:H766,J551:J766),"")) -> 38674.3401 | T6: =IF(P6=0,0,IFERROR(FORECAST(P6,I551:I766,K551:K766),"")) -> 19152.71604 | V6: =ZALOZENIA!B10 -> 5 | W6: =ZALOZENIA!C10/8 -> 1 | X6: =ZALOZENIA!D10 -> 31 | Z6: 120 | AA6: 104 | AB6: 110 | AC6: 95 | AD6: 0 | AE6: 0
A7: 6 | H7: 26111.49114 | I7: 26111.49114 | J7: 35 | K7: 35 | L7: 746.042604 | M7: 746.042604 | O7: 8 | P7: 5 | Q7: 29420.62611 | R7: 25173.72747 | S7: =IF(P7=0,0,IFERROR(FORECAST(P7,H767:H842,J767:J842),"")) -> 33649.13963 | T7: =IF(P7=0,0,IFERROR(FORECAST(P7,I767:I842,K767:K842),"")) -> 30086.52725 | V7: =ZALOZENIA!B7 -> 5 | W7: =ZALOZENIA!C7 -> nd | X7: =ZALOZENIA!D7 -> 31 | Z7: 65 | AA7: 64 | AB7: 60 | AC7: 59 | AD7: 0 | AE7: 0
A8: 6 | H8: 27405.6587 | I8: 27405.6587 | J8: 30 | K8: 30 | L8: 913.5219567 | M8: 913.5219567 | Q8: =SUM(Q2:Q7) -> 684337.8317 | R8: =SUM(R2:R7) -> 603196.023 | S8: =SUM(S2:S7) -> 562344.3676 | T8: =SUM(T2:T7) -> 659906.7943 | AD8: 0 | AE8: 0
A9: 6 | H9: 46024.2717 | I9: 46024.2717 | J9: 25 | K9: 25 | L9: 1840.970868 | AE9: 0
A10: 6 | H10: 12240.36624 | I10: 12240.36624 | J10: 20 | K10: 20 | L10: 612.018312 | M10: 612.018312 | AD10: 0 | AE10: 0
A11: 6 | H11: 11827.63848 | I11: 11827.63848 | J11: 15 | K11: 15 | L11: 788.509232 | M11: 788.509232 | AD11: 0 | AE11: 0
A12: 6 | H12: 36721.73168 | I12: 36721.73168 | J12: 36 | K12: 36 | L12: 1020.048102 | M12: 1020.048102 | AD12: 0 | AE12: 0
A13: 6 | H13: 35129.29634 | I13: 35129.29634 | J13: 21 | K13: 21 | L13: 1672.823635 | AE13: 0
A14: 6 | H14: 21660.18618 | I14: 21660.18618 | J14: 21 | K14: 21 | L14: 1031.437437 | M14: 1031.437437 | AD14: 0 | AE14: 0
A15: 6 | H15: 32977.11194 | I15: 32977.11194 | J15: 34 | K15: 34 | L15: 969.9150571 | M15: 969.9150571 | AD15: 0 | AE15: 0
A16: 6 | H16: 38176.7287 | I16: 38176.7287 | J16: 32 | K16: 32 | L16: 1193.022772 | M16: 1193.022772 | AD16: 0 | AE16: 0
A17: 6 | H17: 38176.7287 | I17: 38176.7287 | J17: 45 | K17: 45 | L17: 848.3717489 | M17: 848.3717489 | AD17: 0 | AE17: 0
A18: 6 | H18: 38176.7287 | I18: 38176.7287 | J18: 42 | K18: 42 | L18: 908.969731 | M18: 908.969731 | AD18: 0 | AE18: 0
A19: 6 | H19: 38176.7287 | I19: 38176.7287 | J19: 42 | K19: 42 | L19: 908.969731 | M19: 908.969731 | AD19: 0 | AE19: 0
A20: 6 | H20: 38176.7287 | I20: 38176.7287 | J20: 40 | K20: 40 | L20: 954.4182175 | M20: 954.4182175 | AD20: 0 | AE20: 0
A21: 6 | H21: 38176.7287 | I21: 38176.7287 | J21: 37 | K21: 37 | L21: 1031.803478 | M21: 1031.803478 | AD21: 0 | AE21: 0
A22: 6 | H22: 3421.6562 | I22: 3421.6562 | J22: 17 | K22: 17 | L22: 201.2738941 | M22: 201.2738941 | AD22: 0 | AE22: 0
A23: 6 | H23: 6194.85004 | I23: 6194.85004 | J23: 17 | K23: 17 | L23: 364.4029435 | M23: 364.4029435 | AD23: 0 | AE23: 0
A24: 6 | H24: 73351.08904 | J24: 38 | L24: 1930.291817 | N24: odstające | AE24: 0
A25: 6 | H25: 17739.93638 | J25: 60 | L25: 295.6656063 | M25: 295.6656063 | N25: odstające | AD25: 0 | AE25: 0
A26: 6 | H26: 18650.08298 | I26: 18650.08298 | J26: 38 | K26: 38 | L26: 490.7916574 | M26: 490.7916574 | AD26: 0 | AE26: 0
A27: 6 | H27: 11535.33136 | I27: 11535.33136 | J27: 19 | K27: 19 | L27: 607.1227032 | M27: 607.1227032 | AD27: 0 | AE27: 0
A28: 6 | H28: 14366.34386 | I28: 14366.34386 | J28: 21 | K28: 21 | L28: 684.1116124 | M28: 684.1116124 | AD28: 0 | AE28: 0
A29: 6 | H29: 11370.72478 | I29: 11370.72478 | J29: 11 | K29: 11 | L29: 1033.702253 | M29: 1033.702253 | AD29: 0 | AE29: 0
A30: 6 | H30: 16151.02446 | I30: 16151.02446 | J30: 35 | K30: 35 | L30: 461.4578417 | M30: 461.4578417 | AD30: 0 | AE30: 0
A31: 6 | H31: 8458.15934 | I31: 8458.15934 | J31: 38 | K31: 38 | L31: 222.5831405 | M31: 222.5831405 | AD31: 0 | AE31: 0
A32: 6 | H32: 16771.28484 | I32: 16771.28484 | J32: 34 | K32: 34 | L32: 493.2730835 | M32: 493.2730835 | AD32: 0 | AE32: 0
A33: 6 | H33: 15604.9537 | I33: 15604.9537 | J33: 20 | K33: 20 | L33: 780.247685 | M33: 780.247685 | AD33: 0 | AE33: 0
A34: 6 | H34: 32303.46706 | I34: 32303.46706 | J34: 30 | K34: 30 | L34: 1076.782235 | M34: 1076.782235 | AD34: 0 | AE34: 0
A35: 6 | H35: 46160.71414 | I35: 46160.71414 | J35: 36.13 | K35: 36.13 | L35: 1277.628401 | M35: 1277.628401 | AD35: 0 | AE35: 0
A36: 6 | H36: 43247.11584 | I36: 43247.11584 | J36: 33.87 | K36: 33.87 | L36: 1276.856092 | M36: 1276.856092 | AD36: 0 | AE36: 0
A37: 6 | H37: 2348.83372 | I37: 2348.83372 | J37: 15 | K37: 15 | L37: 156.5889147 | M37: 156.5889147 | AD37: 0 | AE37: 0
A38: 6 | H38: 19002.20482 | I38: 19002.20482 | J38: 21 | K38: 21 | L38: 904.8668962 | M38: 904.8668962 | AD38: 0 | AE38: 0
A39: 6 | H39: 8017.90298 | I39: 8017.90298 | J39: 24 | K39: 24 | L39: 334.0792908 | M39: 334.0792908 | AD39: 0 | AE39: 0
A40: 6 | H40: 7404.469593 | I40: 7404.469593 | J40: 24 | K40: 24 | L40: 308.5195664 | M40: 308.5195664 | AD40: 0 | AE40: 0
A41: 6 | H41: 23682.27322 | I41: 23682.27322 | J41: 26 | K41: 26 | L41: 910.8566623 | M41: 910.8566623 | AD41: 0 | AE41: 0
A42: 6 | H42: 34844.88146 | I42: 34844.88146 | J42: 29 | K42: 29 | L42: 1201.547636 | M42: 1201.547636 | AD42: 0 | AE42: 0
A43: 6 | H43: 23242.5578 | I43: 23242.5578 | J43: 35 | K43: 35 | L43: 664.07308 | M43: 664.07308 | AD43: 0 | AE43: 0
A44: 6 | H44: 23741.6674 | I44: 23741.6674 | J44: 30 | K44: 30 | L44: 791.3889133 | M44: 791.3889133 | AD44: 0 | AE44: 0
A45: 6 | H45: 13152.98878 | I45: 13152.98878 | J45: 15 | K45: 15 | L45: 876.8659187 | M45: 876.8659187 | AD45: 0 | AE45: 0
A46: 6 | H46: 21799.60508 | I46: 21799.60508 | J46: 32 | K46: 32 | L46: 681.2376588 | M46: 681.2376588 | AD46: 0 | AE46: 0
A47: 6 | H47: 11131.3025 | I47: 11131.3025 | J47: 20 | K47: 20 | L47: 556.565125 | M47: 556.565125 | AD47: 0 | AE47: 0
A48: 6 | H48: 15172.50417 | I48: 15172.50417 | J48: 29 | K48: 29 | L48: 523.1897989 | M48: 523.1897989 | AD48: 0 | AE48: 0
A49: 6 | H49: 38946.7275 | I49: 38946.7275 | J49: 28 | K49: 28 | L49: 1390.954554 | M49: 1390.954554 | AD49: 0 | AE49: 0
A50: 6 | H50: 18428.66333 | I50: 18428.66333 | J50: 19 | K50: 19 | L50: 969.9296491 | M50: 969.9296491 | AD50: 0 | AE50: 0
A51: 6 | H51: 28315.55333 | I51: 28315.55333 | J51: 24 | K51: 24 | L51: 1179.814722 | M51: 1179.814722 | AD51: 0 | AE51: 0
A52: 6 | H52: 41449.00083 | I52: 41449.00083 | J52: 29 | K52: 29 | L52: 1429.275891 | M52: 1429.275891 | AD52: 0 | AE52: 0
A53: 6 | H53: 12690.89917 | I53: 12690.89917 | J53: 15 | K53: 15 | L53: 846.0599444 | M53: 846.0599444 | AD53: 0 | AE53: 0
A54: 6 | H54: 20316.06083 | I54: 20316.06083 | J54: 23 | K54: 23 | L54: 883.3069928 | M54: 883.3069928 | AD54: 0 | AE54: 0
A55: 6 | H55: 40608.93667 | I55: 40608.93667 | J55: 37 | K55: 37 | L55: 1097.538829 | M55: 1097.538829 | AD55: 0 | AE55: 0
A56: 7 | H56: 36708.80244 | I56: 36708.80244 | J56: 25 | K56: 25 | L56: 1468.352098 | M56: 1468.352098 | AD56: 0 | AE56: 0
A57: 7 | H57: 49453.20264 | I57: 49453.20264 | J57: 35 | K57: 35 | L57: 1412.948647 | M57: 1412.948647 | AD57: 0 | AE57: 0
A58: 7 | H58: 74522.48039 | J58: 40 | L58: 1863.06201 | M58: 1863.06201 | AD58: 0 | AE58: 0
A59: 7 | H59: 20592.0893 | I59: 20592.0893 | J59: 45 | K59: 45 | L59: 457.6019844 | M59: 457.6019844 | AD59: 0 | AE59: 0
A60: 7 | H60: 30603.95974 | I60: 30603.95974 | J60: 47 | K60: 47 | L60: 651.1480796 | M60: 651.1480796 | AD60: 0 | AE60: 0
A61: 7 | H61: 26376.10925 | I61: 26376.10925 | J61: 31 | K61: 31 | L61: 850.842234 | M61: 850.842234 | AD61: 0 | AE61: 0
A62: 7 | H62: 20929.58322 | I62: 20929.58322 | J62: 45 | K62: 45 | L62: 465.1018494 | M62: 465.1018494 | AD62: 0 | AE62: 0
A63: 7 | H63: 48608.11869 | I63: 48608.11869 | J63: 39 | K63: 39 | L63: 1246.362018 | M63: 1246.362018 | AD63: 0 | AE63: 0
A64: 7 | H64: 19043.39621 | I64: 19043.39621 | J64: 38 | K64: 38 | L64: 501.1420054 | M64: 501.1420054 | AD64: 0 | AE64: 0
A65: 7 | H65: 19892.92318 | I65: 19892.92318 | J65: 42 | K65: 42 | L65: 473.641028 | M65: 473.641028 | AD65: 0 | AE65: 0
A66: 7 | H66: 25998.37904 | I66: 25998.37904 | J66: 65 | K66: 65 | L66: 399.9750621 | M66: 399.9750621 | AD66: 0 | AE66: 0
A67: 7 | H67: 27642.96149 | I67: 27642.96149 | J67: 21 | K67: 21 | L67: 1316.3315 | M67: 1316.3315 | AD67: =IF(ISNUMBER(M67),C67,"") -> 0 | AE67: =IF(ISNUMBER(L67),C67,"") -> 0
A68: 7 | H68: 25781.2387 | I68: 25781.2387 | J68: 21 | K68: 21 | L68: 1227.678034 | M68: 1227.678034 | AD68: 0 | AE68: 0
A69: 7 | H69: 35306.67368 | I69: 35306.67368 | J69: 99 | K69: 99 | L69: 356.6330675 | M69: 356.6330675 | AD69: 0 | AE69: 0
A70: 7 | H70: 105286.2318 | J70: 43 | L70: 2448.517018 | AE70: 0
A71: 7 | H71: 38584.10096 | I71: 38584.10096 | J71: 29 | K71: 29 | L71: 1330.48624 | M71: 1330.48624 | AD71: 0 | AE71: 0
A72: 7 | H72: 74998.15612 | J72: 47 | L72: 1595.705449 | M72: 1595.705449 | AD72: 0 | AE72: 0
A73: 7 | H73: 27508.13322 | I73: 27508.13322 | J73: 39 | K73: 39 | L73: 705.3367493 | M73: 705.3367493 | AD73: 0 | AE73: 0
A74: 7 | H74: 20485.25248 | I74: 20485.25248 | J74: 35 | K74: 35 | L74: 585.2929279 | M74: 585.2929279 | AD74: 0 | AE74: 0
A75: 7 | H75: 44042.09554 | I75: 44042.09554 | J75: 81 | K75: 81 | L75: 543.7295746 | M75: 543.7295746 | AD75: 0 | AE75: 0
A76: 7 | H76: 29573.43576 | I76: 29573.43576 | J76: 62 | K76: 62 | L76: 476.9908994 | M76: 476.9908994 | AD76: 0 | AE76: 0
A77: 7 | H77: 52633.19798 | I77: 52633.19798 | J77: 29 | K77: 29 | L77: 1814.937861 | M77: 1814.937861 | AD77: 0 | AE77: 0
A78: 7 | H78: 32394.07838 | I78: 32394.07838 | J78: 30 | K78: 30 | L78: 1079.802613 | M78: 1079.802613 | AD78: 0 | AE78: 0
A79: 7 | H79: 33057.01368 | I79: 33057.01368 | J79: 67 | K79: 67 | L79: 493.3882639 | M79: 493.3882639 | AD79: 0 | AE79: 0
A80: 7 | H80: 53379.39332 | I80: 53379.39332 | J80: 40 | K80: 40 | L80: 1334.484833 | M80: 1334.484833 | AD80: 0 | AE80: 0
A81: 7 | H81: 58939.70182 | I81: 58939.70182 | J81: 32 | K81: 32 | L81: 1841.865682 | M81: 1841.865682 | AD81: 0 | AE81: 0
A82: 7 | H82: 38169.3929 | I82: 38169.3929 | J82: 41.2 | K82: 41.2 | L82: 926.4415752 | M82: 926.4415752 | AD82: 0 | AE82: 0
A83: 7 | H83: 38854.74582 | I83: 38854.74582 | J83: 48 | K83: 48 | L83: 809.4738713 | M83: 809.4738713 | AD83: 0 | AE83: 0
A84: 7 | H84: 21796.74577 | I84: 21796.74577 | J84: 29 | K84: 29 | L84: 751.6119229 | M84: 751.6119229 | AD84: 0 | AE84: 0
A85: 7 | H85: 23582.6383 | I85: 23582.6383 | J85: 51.84931507 | K85: 51.84931507 | L85: 454.8302763 | M85: 454.8302763 | AD85: 0 | AE85: 0
A86: 7 | H86: 34753.38432 | I86: 34753.38432 | J86: 51 | K86: 51 | L86: 681.4389082 | M86: 681.4389082 | AD86: 0 | AE86: 0
A87: 7 | H87: 26766.769 | I87: 26766.769 | J87: 62 | K87: 62 | L87: 431.7220806 | M87: 431.7220806 | AD87: 0 | AE87: 0
A88: 7 | H88: 31093.50984 | I88: 31093.50984 | J88: 20 | K88: 20 | L88: 1554.675492 | M88: 1554.675492 | AD88: 0 | AE88: 0
A89: 7 | H89: 25300.70034 | I89: 25300.70034 | J89: 34 | K89: 34 | L89: 744.1382453 | M89: 744.1382453 | AD89: 0 | AE89: 0
A90: 7 | H90: 30013.26814 | I90: 30013.26814 | J90: 30 | K90: 30 | L90: 1000.442271 | M90: 1000.442271 | AD90: 0 | AE90: 0
A91: 7 | H91: 58394.9976 | I91: 58394.9976 | J91: 27 | K91: 27 | L91: 2162.777689 | AE91: 0
A92: 7 | H92: 43195.03768 | I92: 43195.03768 | J92: 36 | K92: 36 | L92: 1199.862158 | M92: 1199.862158 | AD92: 0 | AE92: 0
A93: 7 | H93: 46387.18052 | I93: 46387.18052 | J93: 50 | K93: 50 | L93: 927.7436104 | M93: 927.7436104 | AD93: 0 | AE93: 0
A94: 7 | H94: 148911.2738 | J94: 91 | L94: 1636.387625 | M94: 1636.387625 | AD94: 0 | AE94: 0
A95: 7 | H95: 16592.89762 | I95: 16592.89762 | J95: 35 | K95: 35 | L95: 474.0827891 | M95: 474.0827891 | AD95: 0 | AE95: 0
A96: 7 | H96: 64192.07872 | I96: 64192.07872 | J96: 66 | K96: 66 | L96: 972.6072533 | M96: 972.6072533 | AD96: 0 | AE96: 0
A97: 7 | H97: 20148.1445 | I97: 20148.1445 | J97: 36 | K97: 36 | L97: 559.6706806 | M97: 559.6706806 | AD97: 0 | AE97: 0
A98: 7 | H98: 29244.50554 | I98: 29244.50554 | J98: 49 | K98: 49 | L98: 596.8266437 | M98: 596.8266437 | AD98: 0 | AE98: 0
A99: 7 | H99: 53285.44004 | I99: 53285.44004 | J99: 33 | K99: 33 | L99: 1614.710304 | M99: 1614.710304 | AD99: 0 | AE99: 0
A100: 7 | H100: 49176.18546 | I100: 49176.18546 | J100: 83 | K100: 83 | L100: 592.4841622 | M100: 592.4841622 | AD100: 0 | AE100: 0
A101: 7 | H101: 39518.53338 | I101: 39518.53338 | J101: 40 | K101: 40 | L101: 987.9633345 | M101: 987.9633345 | AD101: 0 | AE101: 0
A102: 7 | H102: 29896.6917 | I102: 29896.6917 | J102: 29 | K102: 29 | L102: 1030.920403 | M102: 1030.920403 | AD102: 0 | AE102: 0
A103: 7 | H103: 36873.00396 | I103: 36873.00396 | J103: 32 | K103: 32 | L103: 1152.281374 | M103: 1152.281374 | AD103: 0 | AE103: 0
A104: 7 | H104: 58330.02546 | I104: 58330.02546 | J104: 34 | K104: 34 | L104: 1715.588984 | M104: 1715.588984 | AD104: 0 | AE104: 0
A105: 7 | H105: 81095.61436 | J105: 60 | L105: 1351.593573 | M105: 1351.593573 | AD105: 0 | AE105: 0
A106: 7 | H106: 44581.41272 | I106: 44581.41272 | J106: 32 | K106: 32 | L106: 1393.169148 | M106: 1393.169148 | AD106: 0 | AE106: 0
A107: 7 | H107: 40453.30866 | I107: 40453.30866 | J107: 45 | K107: 45 | L107: 898.9624147 | M107: 898.9624147 | AD107: 0 | AE107: 0
A108: 7 | H108: 28424.85244 | I108: 28424.85244 | J108: 33 | K108: 33 | L108: 861.3591648 | M108: 861.3591648 | AD108: 0 | AE108: 0
A109: 7 | H109: 26759.6654 | I109: 26759.6654 | J109: 51 | K109: 51 | L109: 524.6993216 | M109: 524.6993216 | AD109: 0 | AE109: 0
A110: 7 | H110: 26666.59964 | I110: 26666.59964 | J110: 51 | K110: 51 | L110: 522.8745027 | M110: 522.8745027 | AD110: 0 | AE110: 0
A111: 7 | H111: 5218.28048 | I111: 5218.28048 | J111: 24 | K111: 24 | L111: 217.4283533 | M111: 217.4283533 | AD111: 0 | AE111: 0
A112: 7 | H112: 31169.21564 | I112: 31169.21564 | J112: 62 | K112: 62 | L112: 502.7292845 | M112: 502.7292845 | AD112: 0 | AE112: 0
A113: 7 | H113: 9307.09286 | I113: 9307.09286 | J113: 32 | K113: 32 | L113: 290.8466519 | M113: 290.8466519 | AD113: 0 | AE113: 0
A114: 7 | H114: 7043.85408 | I114: 7043.85408 | J114: 23 | K114: 23 | L114: 306.2545252 | M114: 306.2545252 | AD114: 0 | AE114: 0
A115: 7 | H115: 6569.89346 | I115: 6569.89346 | J115: 35 | K115: 35 | L115: 187.7112417 | M115: 187.7112417 | AD115: 0 | AE115: 0
A116: 7 | H116: 5651.8813 | I116: 5651.8813 | J116: 35 | K116: 35 | L116: 161.4823229 | M116: 161.4823229 | AD116: 0 | AE116: 0
A117: 7 | H117: 19851.63284 | I117: 19851.63284 | J117: 42 | K117: 42 | L117: 472.6579248 | M117: 472.6579248 | AD117: 0 | AE117: 0
A118: 7 | H118: 15629.19968 | I118: 15629.19968 | J118: 31 | K118: 31 | L118: 504.1677316 | M118: 504.1677316 | AD118: 0 | AE118: 0
A119: 7 | H119: 32541.067 | I119: 32541.067 | J119: 42 | K119: 42 | L119: 774.7873095 | M119: 774.7873095 | AD119: 0 | AE119: 0
A120: 7 | H120: 136646.8758 | J120: 75 | L120: 1821.958343 | M120: 1821.958343 | AD120: 0 | AE120: 0
A121: 7 | H121: 14054.42702 | I121: 14054.42702 | J121: 31 | K121: 31 | L121: 453.3686135 | M121: 453.3686135 | AD121: 0 | AE121: 0
A122: 7 | H122: 43669.1961 | I122: 43669.1961 | J122: 65 | K122: 65 | L122: 671.8337862 | M122: 671.8337862 | AD122: 0 | AE122: 0
A123: 7 | H123: 22838.54184 | I123: 22838.54184 | J123: 41 | K123: 41 | L123: 557.0376059 | M123: 557.0376059 | AD123: 0 | AE123: 0
A124: 7 | H124: 40267.31904 | I124: 40267.31904 | J124: 54 | K124: 54 | L124: 745.6910933 | M124: 745.6910933 | AD124: 0 | AE124: 0
A125: 7 | H125: 73045.2653 | I125: 73045.2653 | J125: 50 | K125: 50 | L125: 1460.905306 | M125: 1460.905306 | AD125: 0 | AE125: 0
A126: 7 | H126: 58337.31482 | I126: 58337.31482 | J126: 50 | K126: 50 | L126: 1166.746296 | M126: 1166.746296 | AD126: 0 | AE126: 0
A127: 7 | H127: 13397.98816 | I127: 13397.98816 | J127: 20 | K127: 20 | L127: 669.899408 | M127: 669.899408 | AD127: 0 | AE127: 0
A128: 7 | H128: 50133.86856 | I128: 50133.86856 | J128: 66 | K128: 66 | L128: 759.6040691 | M128: 759.6040691 | AD128: 0 | AE128: 0
A129: 7 | H129: 19843.82404 | I129: 19843.82404 | J129: 23 | K129: 23 | L129: 862.7749583 | M129: 862.7749583 | AD129: 0 | AE129: 0
A130: 7 | H130: 24819.30416 | I130: 24819.30416 | J130: 27 | K130: 27 | L130: 919.2334874 | M130: 919.2334874 | AD130: 0 | AE130: 0
A131: 7 | H131: 67596.17114 | I131: 67596.17114 | J131: 72 | K131: 72 | L131: 938.8357103 | M131: 938.8357103 | AD131: =IF(ISNUMBER(M131),C131,"") -> 0 | AE131: =IF(ISNUMBER(L131),C131,"") -> 0
A132: 7 | H132: 30128.70336 | I132: 30128.70336 | J132: 65 | K132: 65 | L132: 463.5185132 | M132: 463.5185132 | AD132: 0 | AE132: 0
A133: 7 | H133: 26693.82552 | I133: 26693.82552 | J133: 37 | K133: 37 | L133: 721.4547438 | M133: 721.4547438 | AD133: 0 | AE133: 0
A134: 7 | H134: 22187.01616 | I134: 22187.01616 | J134: 29 | K134: 29 | L134: 765.0695228 | M134: 765.0695228 | AD134: 0 | AE134: 0
A135: 7 | H135: 34294.19764 | I135: 34294.19764 | J135: 53 | K135: 53 | L135: 647.0603328 | M135: 647.0603328 | AD135: 0 | AE135: 0
A136: 7 | H136: 10749.95184 | I136: 10749.95184 | J136: 16 | K136: 16 | L136: 671.87199 | M136: 671.87199 | AD136: 0 | AE136: 0
A137: 7 | H137: 17033.25546 | I137: 17033.25546 | J137: 60 | K137: 60 | L137: 283.887591 | M137: 283.887591 | AD137: 0 | AE137: 0
A138: 7 | H138: 31738.54569 | I138: 31738.54569 | J138: 15 | K138: 15 | L138: 2115.903046 | AE138: 0
A139: 7 | H139: 37346.72378 | I139: 37346.72378 | J139: 31 | K139: 31 | L139: 1204.733025 | M139: 1204.733025 | AD139: 0 | AE139: 0
A140: 7 | H140: 32222.89022 | I140: 32222.89022 | J140: 30 | K140: 30 | L140: 1074.096341 | M140: 1074.096341 | AD140: 0 | AE140: 0
A141: 7 | H141: 9950.75298 | I141: 9950.75298 | J141: 35 | K141: 35 | L141: 284.307228 | M141: 284.307228 | AD141: 0 | AE141: 0
A142: 7 | H142: 24734.23382 | I142: 24734.23382 | J142: 31 | K142: 31 | L142: 797.8785103 | M142: 797.8785103 | AD142: 0 | AE142: 0
A143: 7 | H143: 24266.07562 | I143: 24266.07562 | J143: 32 | K143: 32 | L143: 758.3148631 | M143: 758.3148631 | AD143: 0 | AE143: 0
A144: 7 | H144: 34357.69574 | I144: 34357.69574 | J144: 41 | K144: 41 | L144: 837.992579 | M144: 837.992579 | AD144: 0 | AE144: 0
A145: 7 | H145: 31908.47164 | I145: 31908.47164 | J145: 46 | K145: 46 | L145: 693.662427 | M145: 693.662427 | AD145: 0 | AE145: 0
A146: 7 | H146: 26617.21844 | I146: 26617.21844 | J146: 23 | K146: 23 | L146: 1157.270367 | M146: 1157.270367 | AD146: 0 | AE146: 0
A147: 7 | H147: 35429.8457 | I147: 35429.8457 | J147: 37.25 | K147: 37.25 | L147: 951.1367973 | M147: 951.1367973 | AD147: 0 | AE147: 0
A148: 7 | H148: 25036.12245 | I148: 25036.12245 | J148: 35 | K148: 35 | L148: 715.3177842 | M148: 715.3177842 | AD148: 0 | AE148: 0
A149: 7 | H149: 31336.57385 | I149: 31336.57385 | J149: 35 | K149: 35 | L149: 895.3306815 | M149: 895.3306815 | AD149: 0 | AE149: 0
A150: 7 | H150: 26082.91454 | I150: 26082.91454 | J150: 60 | K150: 60 | L150: 434.7152424 | M150: 434.7152424 | AD150: 0 | AE150: 0
A151: 7 | H151: 14544.88846 | I151: 14544.88846 | J151: 24 | K151: 24 | L151: 606.0370192 | M151: 606.0370192 | AD151: 0 | AE151: 0
A152: 7 | H152: 34334.01048 | I152: 34334.01048 | J152: 50 | K152: 50 | L152: 686.6802096 | M152: 686.6802096 | AD152: 0 | AE152: 0
A153: 7 | H153: 32296.83216 | I153: 32296.83216 | J153: 57 | K153: 57 | L153: 566.6110905 | M153: 566.6110905 | AD153: 0 | AE153: 0
A154: 7 | H154: 36682.46752 | I154: 36682.46752 | J154: 59 | K154: 59 | L154: 621.7367376 | M154: 621.7367376 | AD154: 0 | AE154: 0
A155: 7 | H155: 12893.12172 | I155: 12893.12172 | J155: 20 | K155: 20 | L155: 644.656086 | M155: 644.656086 | AD155: 0 | AE155: 0
A156: 7 | H156: 28443.05004 | I156: 28443.05004 | J156: 28 | K156: 28 | L156: 1015.823216 | M156: 1015.823216 | AD156: 0 | AE156: 0
A157: 7 | H157: 22097.10918 | I157: 22097.10918 | J157: 40 | K157: 40 | L157: 552.4277295 | M157: 552.4277295 | AD157: 0 | AE157: 0
A158: 7 | H158: 19973.90592 | I158: 19973.90592 | J158: 27 | K158: 27 | L158: 739.7742933 | M158: 739.7742933 | AD158: 0 | AE158: 0
A159: 7 | H159: 20603.52826 | I159: 20603.52826 | J159: 30 | K159: 30 | L159: 686.7842753 | M159: 686.7842753 | AD159: 0 | AE159: 0
A160: 7 | H160: 29260.70192 | I160: 29260.70192 | J160: 37.17 | K160: 37.17 | L160: 787.2128577 | M160: 787.2128577 | AD160: 0 | AE160: 0
A161: 7 | H161: 49404.6135 | I161: 49404.6135 | J161: 60 | K161: 60 | L161: 823.410225 | M161: 823.410225 | AD161: 0 | AE161: 0
A162: 7 | H162: 18305.80606 | I162: 18305.80606 | J162: 42 | K162: 42 | L162: 435.8525252 | M162: 435.8525252 | AD162: 0 | AE162: 0
A163: 7 | H163: 140617.443 | J163: 48 | L163: 2929.530063 | AE163: 0
A164: 7 | H164: 37723.2163 | I164: 37723.2163 | J164: 44 | K164: 44 | L164: 857.345825 | M164: 857.345825 | AD164: 0 | AE164: 0
A165: 7 | H165: 27096.74191 | I165: 27096.74191 | J165: 36 | K165: 36 | L165: 752.6872754 | M165: 752.6872754 | AD165: 0 | AE165: 0
A166: 7 | H166: 23075.7866 | I166: 23075.7866 | J166: 39 | K166: 39 | L166: 591.6868359 | M166: 591.6868359 | AD166: 0 | AE166: 0
A167: 7 | H167: 30413.73316 | I167: 30413.73316 | J167: 50 | K167: 50 | L167: 608.2746632 | M167: 608.2746632 | AD167: 0 | AE167: 0
A168: 7 | H168: 13016.56182 | I168: 13016.56182 | J168: 15 | K168: 15 | L168: 867.770788 | M168: 867.770788 | AD168: 0 | AE168: 0
A169: 7 | H169: 38783.13878 | I169: 38783.13878 | J169: 37 | K169: 37 | L169: 1048.19294 | M169: 1048.19294 | AD169: 0 | AE169: 0
A170: 7 | H170: 13933.56692 | I170: 13933.56692 | J170: 35 | K170: 35 | L170: 398.101912 | M170: 398.101912 | AD170: 0 | AE170: 0
A171: 7 | H171: 19019.80042 | I171: 19019.80042 | J171: 35 | K171: 35 | L171: 543.4228691 | M171: 543.4228691 | AD171: 0 | AE171: 0
A172: 7 | H172: 25394.66308 | I172: 25394.66308 | J172: 55 | K172: 55 | L172: 461.7211469 | M172: 461.7211469 | AD172: 0 | AE172: 0
A173: 7 | H173: 38890.24404 | I173: 38890.24404 | J173: 36 | K173: 36 | L173: 1080.284557 | M173: 1080.284557 | AD173: 0 | AE173: 0
A174: 7 | H174: 20471.21468 | I174: 20471.21468 | J174: 34 | K174: 34 | L174: 602.0945494 | M174: 602.0945494 | AD174: 0 | AE174: 0
A175: 7 | H175: 9593.00932 | I175: 9593.00932 | J175: 12 | K175: 12 | L175: 799.4174433 | M175: 799.4174433 | AD175: 0 | AE175: 0
A176: 7
A177: 7 | H177: 47912.71409 | I177: 47912.71409 | J177: 44 | K177: 44 | L177: 1088.92532 | M177: 1088.92532 | AD177: 0 | AE177: 0
A178: 7 | H178: 31768.70896 | I178: 31768.70896 | J178: 25 | K178: 25 | L178: 1270.748358 | M178: 1270.748358 | AD178: 0 | AE178: 0
A179: 7 | H179: 14990.91456 | I179: 14990.91456 | J179: 20 | K179: 20 | L179: 749.545728 | M179: 749.545728 | AD179: 0 | AE179: 0
A180: 7 | H180: 31707.9334 | I180: 31707.9334 | J180: 32 | K180: 32 | L180: 990.8729188 | M180: 990.8729188 | AD180: 0 | AE180: 0
A181: 7 | H181: 83716.657 | J181: 60 | L181: 1395.277617 | M181: 1395.277617 | AD181: 0 | AE181: 0
A182: 7 | H182: 75619.80258 | J182: 32 | L182: 2363.118831 | AE182: 0
A183: 7 | H183: 86002.39854 | J183: 43 | L183: 2000.05578 | M183: 2000.05578 | AD183: 0 | AE183: 0
A184: 7 | H184: 27722.24792 | I184: 27722.24792 | J184: 33 | K184: 33 | L184: 840.0681188 | M184: 840.0681188 | AD184: 0 | AE184: 0
A185: 7 | H185: 29861.72152 | I185: 29861.72152 | J185: 15 | K185: 15 | L185: 1990.781435 | M185: 1990.781435 | AD185: 0 | AE185: 0
A186: 7 | H186: 22339.73324 | I186: 22339.73324 | J186: 39 | K186: 39 | L186: 572.8136728 | M186: 572.8136728 | AD186: 0 | AE186: 0
A187: 7 | H187: 79820.47 | J187: 29 | L187: 2752.43 | AE187: 0
A188: 7 | H188: 15975.21294 | I188: 15975.21294 | J188: 41 | K188: 41 | L188: 389.63934 | M188: 389.63934 | AD188: 0 | AE188: 0
A189: 7 | H189: 45924.00946 | I189: 45924.00946 | J189: 30 | K189: 30 | L189: 1530.800315 | M189: 1530.800315 | AD189: 0 | AE189: 0
A190: 7 | H190: 58405.51712 | I190: 58405.51712 | J190: 25 | K190: 25 | L190: 2336.220685 | AE190: 0
A191: 7 | H191: 47221.11564 | I191: 47221.11564 | J191: 38 | K191: 38 | L191: 1242.660938 | M191: 1242.660938 | AD191: 0 | AE191: 0
A192: 7 | H192: 14600.00758 | I192: 14600.00758 | J192: 22 | K192: 22 | L192: 663.6367082 | M192: 663.6367082 | AD192: 0 | AE192: 0
A193: 7 | H193: 22411.8322 | I193: 22411.8322 | J193: 46 | K193: 46 | L193: 487.2137435 | M193: 487.2137435 | AD193: 0 | AE193: 0
A194: 7 | H194: 17398.08122 | I194: 17398.08122 | J194: 23 | K194: 23 | L194: 756.4383139 | M194: 756.4383139 | AD194: 0 | AE194: 0
A195: 7 | H195: 60741.67874 | I195: 60741.67874 | J195: 41 | K195: 41 | L195: 1481.50436 | M195: 1481.50436 | AD195: =IF(ISNUMBER(M195),C195,"") -> 0 | AE195: =IF(ISNUMBER(L195),C195,"") -> 0
A196: 7 | H196: 40277.30622 | I196: 40277.30622 | J196: 42 | K196: 42 | L196: 958.9834814 | M196: 958.9834814 | AD196: 0 | AE196: 0
A197: 7 | H197: 21027.09976 | I197: 21027.09976 | J197: 24 | K197: 24 | L197: 876.1291567 | M197: 876.1291567 | AD197: 0 | AE197: 0
A198: 7 | H198: 27725.06012 | I198: 27725.06012 | J198: 42 | K198: 42 | L198: 660.120479 | M198: 660.120479 | AD198: 0 | AE198: 0
A199: 7 | H199: 42623.36284 | I199: 42623.36284 | J199: 24 | K199: 24 | L199: 1775.973452 | M199: 1775.973452 | AD199: 0 | AE199: 0
A200: 7 | H200: 37074.57834 | I200: 37074.57834 | J200: 27 | K200: 27 | L200: 1373.132531 | M200: 1373.132531 | AD200: 0 | AE200: 0
... 672 more rows

Sheet TRANS_MED (hidden)
A1: KAT_MED | H1: TRANS_MED_mc | I1: TRANS_MED_mc_odciete | J1: OSOBODNI_mc | K1: OSOBODNI_mcodciete | L1: sr_TRANS_MED_mc | M1: sr_TRANS_MED_mc_odciete | O1: KAT_MED | P1: OSOBODNI_mc | Q1: metoda 1 - średni koszt | R1: metoda 2 - średni koszt odcięte | S1: metoda 3 - regresja liniowa | T1: metoda 4 - regresja liniowa odcięte | V1: liczba łóżek | W1: obłożenie | X1: liczba dni w mc | Z1: Liczba opk | AA1: Liczba szpitali | AB1: Liczba opk po odcięciach | AC1: Liczba szpitali po odcięciach
A2: 6 | H2: 669.2544768 | I2: 669.2544768 | J2: 444.6666667 | K2: 444.6666667 | L2: 1.505070038 | M2: 1.505070038 | O2: 6 | P2: =V2*W2*X2 -> 11160 | Q2: =IFERROR(SUMIFS(L:L,A:A,O2)/COUNTIFS(A:A,O2,L:L,">0")*P2,0) -> 37103.34853 | R2: =IFERROR(SUMIFS(M:M,A:A,O2)/COUNTIFS(A:A,O2,M:M,">0")*P2,0) -> 33792.25624 | S2: =IF(P2=0,0,IFERROR(FORECAST(P2,$H$2:$H$55,$J$2:$J$55),0)) -> 55974.60156 | T2: =IF(P2=0,0,IFERROR(FORECAST(P2,$I$2:$I$55,$K$2:$K$55),0)) -> 57940.98741 | V2: =ZALOZENIA!B3 -> 450 | W2: =ZALOZENIA!C3 -> 0.8 | X2: =ZALOZENIA!D3 -> 31 | Z2: 51 | AA2: 35 | AB2: 49 | AC2: 34
A3: 6 | H3: 1333.452773 | I3: 1333.452773 | J3: 377.8333333 | K3: 377.8333333 | L3: 3.529208927 | M3: 3.529208927 | O3: 7 | P3: =V3*W3*X3 -> 0 | Q3: 0 | R3: 0 | S3: =IF(P3=0,0,IFERROR(FORECAST(P3,$H$56:$H$228,$J$56:$J$228),"")) -> 0 | T3: =IF(P3=0,0,IFERROR(FORECAST(P3,$I$56:$I$228,$K$56:$K$228),"")) -> 0 | V3: =ZALOZENIA!B4 -> 0 | W3: =ZALOZENIA!C4 -> 0.9 | X3: =ZALOZENIA!D4 -> 31 | Z3: 170 | AA3: 124 | AB3: 158 | AC3: 118
A4: 6 | H4: 958.51386 | I4: 958.51386 | J4: 668.4166667 | K4: 668.4166667 | L4: 1.434006523 | M4: 1.434006523 | O4: 18 | P4: =V4*W4*X4 -> 1240 | Q4: 13127.2891 | R4: 9052.341065 | S4: =IF(P4=0,0,IFERROR(FORECAST(P4,$H$229:$H$426,$J$229:$J$426),"")) -> 5234.547233 | T4: =IF(P4=0,0,IFERROR(FORECAST(P4,$I$229:$I$426,$K$229:$K$426),"")) -> 3497.027175 | V4: =ZALOZENIA!B5 -> 50 | W4: =ZALOZENIA!C5 -> 0.8 | X4: =ZALOZENIA!D5 -> 31 | Z4: 189 | AA4: 150 | AB4: 177 | AC4: 144
A5: 6 | H5: 698.3415 | I5: 698.3415 | J5: 497.1666667 | K5: 497.1666667 | L5: 1.404642642 | M5: 1.404642642 | O5: 43 | P5: =V5*W5*X5 -> 0 | Q5: 0 | R5: 0 | S5: =IF(P5=0,0,IFERROR(FORECAST(P5,$H$427:$H$550,$J$427:$J$550),"")) -> 0 | T5: =IF(P5=0,0,IFERROR(FORECAST(P5,$I$427:$I$550,$K$427:$K$550),"")) -> 0 | V5: =ZALOZENIA!B6 -> 0 | W5: =ZALOZENIA!C6 -> 0.9 | X5: =ZALOZENIA!D6 -> 31 | Z5: 0 | AA5: 0 | AB5: 0 | AC5: 0
A6: 6 | O6: b | P6: =V6*W6*X6 -> 155 | Q6: 423.5475917 | R6: 31.15081035 | S6: =IF(P6=0,0,IFERROR(FORECAST(P6,$H$551:$H$766,$J$551:$J$766),"")) -> 729.1858362 | T6: =IF(P6=0,0,IFERROR(FORECAST(P6,$I$551:$I$766,$K$551:$K$766),"")) -> 56.94526997 | V6: =ZALOZENIA!B10 -> 5 | W6: =ZALOZENIA!C10/8 -> 1 | X6: =ZALOZENIA!D10 -> 31 | Z6: 78 | AA6: 69 | AB6: 67 | AC6: 58
A7: 6 | H7: 3557.61188 | I7: 3557.61188 | J7: 798.25 | K7: 798.25 | L7: 4.456764021 | M7: 4.456764021 | O7: 8 | P7: =V7*(X7/31) -> 5 | Q7: 10296.04229 | R7: 8694.84126 | S7: =IF(P7=0,0,IFERROR(FORECAST(P7,$H$767:$H$842,$J$767:$J$842),"")) -> 14561.74049 | T7: =IF(P7=0,0,IFERROR(FORECAST(P7,$I$767:$I$842,$K$767:$K$842),"")) -> 12517.43734 | V7: =ZALOZENIA!B7 -> 5 | W7: =ZALOZENIA!C7 -> nd | X7: =ZALOZENIA!D7 -> 31 | Z7: 66 | AA7: 65 | AB7: 63 | AC7: 62
A8: 6 | H8: 9370.64944 | J8: 858.3333333 | L8: 10.91726148 | P8: TRANS_MED_mc | Q8: =SUM(Q2:Q7) -> 60950.22751 | R8: =SUM(R2:R7) -> 51570.58938 | S8: 76500.07512 | T8: 74012.39719
A9: 6 | H9: 693.33286 | I9: 693.33286 | J9: 478.5833333 | K9: 478.5833333 | L9: 1.448719192 | M9: 1.448719192
A10: 6 | H10: 326.54974 | I10: 326.54974 | J10: 421.1666667 | K10: 421.1666667 | L10: 0.7753456431 | M10: 0.7753456431
A11: 6 | H11: 694.622 | I11: 694.622 | J11: 441.75 | K11: 441.75 | L11: 1.572432371 | M11: 1.572432371
A12: 6 | H12: 2575.13412 | I12: 2575.13412 | J12: 606.75 | K12: 606.75 | L12: 4.244143585 | M12: 4.244143585
A13: 6 | H13: 2996.00694 | I13: 2996.00694 | J13: 450.9166667 | K13: 450.9166667 | L13: 6.644258599 | M13: 6.644258599 | O13: KAT_MED | P13: OSOBODNI_mc | Q13: metoda 1 - średni koszt | R13: metoda 2 - średni koszt odcięte | S13: metoda 3 - regresja liniowa | T13: metoda 4 - regresja liniowa odcięte
A14: 6 | H14: 3747.6736 | I14: 3747.6736 | J14: 462.6666667 | K14: 462.6666667 | L14: 8.100159078 | M14: 8.100159078 | O14: 6 | P14: =V2*X2 -> 13950 | Q14: =IFERROR(SUMIFS(L:L,A:A,O14)/COUNTIFS(A:A,O14,L:L,">0")*P14,0) -> 46379.18566 | R14: =IFERROR(SUMIFS(M:M,A:A,O14)/COUNTIFS(A:A,O14,M:M,">0")*P14,0) -> 42240.3203 | S14: =IF(P14=0,0,IFERROR(FORECAST(P14,$H$2:$H$55,$J$2:$J$55),0)) -> 70184.92022 | T14: =IF(P14=0,0,IFERROR(FORECAST(P14,$I$2:$I$55,$K$2:$K$55),0)) -> 72673.69549
A15: 6 | H15: 476.85022 | I15: 476.85022 | J15: 377.9166667 | K15: 377.9166667 | L15: 1.26178669 | M15: 1.26178669 | O15: 7 | P15: =V3*X3 -> 0 | Q15: 0 | R15: 0 | S15: =IF(P15=0,0,IFERROR(FORECAST(P15,$H$56:$H$228,$J$56:$J$228),"")) -> 0 | T15: =IF(P15=0,0,IFERROR(FORECAST(P15,$I$56:$I$228,$K$56:$K$228),"")) -> 0
A16: 6 | H16: 2365.774 | I16: 2365.774 | J16: 593.25 | K16: 593.25 | L16: 3.987819638 | M16: 3.987819638 | O16: 18 | P16: =V4*X4 -> 1550 | Q16: 16409.11138 | R16: 11315.42633 | S16: =IF(P16=0,0,IFERROR(FORECAST(P16,$H$229:$H$426,$J$229:$J$426),"")) -> 6200.024689 | T16: =IF(P16=0,0,IFERROR(FORECAST(P16,$I$229:$I$426,$K$229:$K$426),"")) -> 4131.71158
A17: 6 | H17: 1581.48496 | I17: 1581.48496 | J17: 722.4166667 | K17: 722.4166667 | L17: 2.189159017 | M17: 2.189159017 | O17: 43 | P17: =V5*X5 -> 0 | Q17: 0 | R17: 0 | S17: =IF(P17=0,0,IFERROR(FORECAST(P17,$H$427:$H$550,$J$427:$J$550),"")) -> 0 | T17: =IF(P17=0,0,IFERROR(FORECAST(P17,$I$427:$I$550,$K$427:$K$550),"")) -> 0
A18: 6 | H18: 2813.4685 | I18: 2813.4685 | J18: 724.5 | K18: 724.5 | L18: 3.883324362 | M18: 3.883324362 | O18: b | P18: =V6*X6 -> 155 | Q18: 423.5475917 | R18: 31.15081035 | S18: =IF(P18=0,0,IFERROR(FORECAST(P18,$H$551:$H$766,$J$551:$J$766),"")) -> 729.1858362 | T18: =IF(P18=0,0,IFERROR(FORECAST(P18,$I$551:$I$766,$K$551:$K$766),"")) -> 56.94526997
A19: 6 | H19: 5933.91658 | I19: 5933.91658 | J19: 829.6666667 | K19: 829.6666667 | L19: 7.152169442 | M19: 7.152169442 | O19: 8 | P19: =V7*(X7/31) -> 5 | Q19: 10296.04229 | R19: 8694.84126 | S19: =IF(P19=0,0,IFERROR(FORECAST(P19,$H$767:$H$842,$J$767:$J$842),"")) -> 14561.74049 | T19: =IF(P19=0,0,IFERROR(FORECAST(P19,$I$767:$I$842,$K$767:$K$842),"")) -> 12517.43734
A20: 6 | H20: 2000.4589 | I20: 2000.4589 | J20: 804.1666667 | K20: 804.1666667 | L20: 2.487617285 | M20: 2.487617285
A21: 6 | H21: 284.66 | I21: 284.66 | J21: 305.25 | K21: 305.25 | L21: 0.9325470925 | M21: 0.9325470925
A22: 6 | H22: 370.75976 | I22: 370.75976 | J22: 376.1666667 | K22: 376.1666667 | L22: 0.9856263004 | M22: 0.9856263004
A23: 6 | H23: 143.23386 | I23: 143.23386 | J23: 233.8333333 | K23: 233.8333333 | L23: 0.6125467997 | M23: 0.6125467997
A24: 6 | H24: 2229.69362 | I24: 2229.69362 | J24: 722.3333333 | K24: 722.3333333 | L24: 3.086793198 | M24: 3.086793198
A25: 6 | H25: 4366.71794 | J25: 1286 | L25: 3.395581602 | M25: 3.395581602 | N25: odstające
A26: 6 | H26: 4101.8431 | I26: 4101.8431 | J26: 759.3333333 | K26: 759.3333333 | L26: 5.401900483 | M26: 5.401900483
A27: 6 | H27: 497.3724 | I27: 497.3724 | J27: 595.25 | K27: 595.25 | L27: 0.8355689206 | M27: 0.8355689206
A28: 6
A29: 6
A30: 6 | H30: 1432.5407 | I30: 1432.5407 | J30: 839.0833333 | K30: 839.0833333 | L30: 1.707268686 | M30: 1.707268686
A31: 6 | H31: 384.06052 | I31: 384.06052 | J31: 284.5 | K31: 284.5 | L31: 1.349949104 | M31: 1.349949104
A32: 6 | H32: 43 | J32: 873.75 | L32: 0.04921316166 | M32: 0.04921316166 | N32: odstające
A33: 6 | H33: 34.4 | I33: 34.4 | J33: 490.4166667 | K33: 490.4166667 | L33: 0.070144435 | M33: 0.070144435
A34: 6 | H34: 4497.50158 | I34: 4497.50158 | J34: 787.25 | K34: 787.25 | L34: 5.712926745 | M34: 5.712926745
A35: 6 | H35: 4464.8233 | I35: 4464.8233 | J35: 1003.916667 | K35: 1003.916667 | L35: 4.4474043 | M35: 4.4474043
A36: 6 | H36: 4076.33464 | I36: 4076.33464 | J36: 767.8333333 | K36: 767.8333333 | L36: 5.308879496 | M36: 5.308879496
A37: 6 | H37: 1172.67794 | I37: 1172.67794 | J37: 486.3333333 | K37: 486.3333333 | L37: 2.411263756 | M37: 2.411263756
A38: 6 | H38: 97.8078 | I38: 97.8078 | J38: 282 | K38: 282 | L38: 0.3468361702 | M38: 0.3468361702
A39: 6 | H39: 2653.72952 | I39: 2653.72952 | J39: 521.75 | K39: 521.75 | L39: 5.086208951 | M39: 5.086208951
A40: 6 | H40: 2701.235607 | I40: 2701.235607 | J40: 343.1818182 | K40: 343.1818182 | L40: 7.871150114 | M40: 7.871150114
A41: 6 | H41: 4594.1286 | I41: 4594.1286 | J41: 447.3333333 | K41: 447.3333333 | L41: 10.27003413
A42: 6 | H42: 4748.30338 | I42: 4748.30338 | J42: 719.5 | K42: 719.5 | L42: 6.599448756 | M42: 6.599448756
A43: 6 | H43: 786.82776 | I43: 786.82776 | J43: 584.9166667 | K43: 584.9166667 | L43: 1.345196341 | M43: 1.345196341
A44: 6 | H44: 1089.8436 | I44: 1089.8436 | J44: 500.4166667 | K44: 500.4166667 | L44: 2.177872306 | M44: 2.177872306
A45: 6 | H45: 257.17698 | I45: 257.17698 | J45: 219.8333333 | K45: 219.8333333 | L45: 1.16987254 | M45: 1.16987254
A46: 6 | H46: 13.50544 | I46: 13.50544 | J46: 497 | K46: 497 | L46: 0.02717392354 | M46: 0.02717392354
A47: 6 | H47: 3171.56046 | I47: 3171.56046 | J47: 480.6666667 | K47: 480.6666667 | L47: 6.598253384 | M47: 6.598253384
A48: 6 | H48: 183.9125 | I48: 183.9125 | J48: 425.75 | K48: 425.75 | L48: 0.4319729888 | M48: 0.4319729888
A49: 6 | H49: 2884.298333 | I49: 2884.298333 | J49: 553.3333333 | K49: 553.3333333 | L49: 5.212587349 | M49: 5.212587349
A50: 6 | H50: 1368.0975 | I50: 1368.0975 | J50: 402.75 | K50: 402.75 | L50: 3.39689013 | M50: 3.39689013
A51: 6 | H51: 1724.751667 | I51: 1724.751667 | J51: 397.8333333 | K51: 397.8333333 | L51: 4.33536238 | M51: 4.33536238
A52: 6 | H52: 2744.273333 | I52: 2744.273333 | J52: 734 | K52: 734 | L52: 3.738792007 | M52: 3.738792007
A53: 6 | H53: 615.9283333 | I53: 615.9283333 | J53: 318.6666667 | K53: 318.6666667 | L53: 1.932829498 | M53: 1.932829498
A54: 6 | H54: 1336.334167 | I54: 1336.334167 | J54: 699.5833333 | K54: 699.5833333 | L54: 1.910185825 | M54: 1.910185825
A55: 6 | H55: 2705.216667 | I55: 2705.216667 | J55: 710.75 | K55: 710.75 | L55: 3.806143745 | M55: 3.806143745
A56: 7 | H56: 25041.64507 | J56: 641.0833333 | L56: 39.06145078
A57: 7 | H57: 34783.79318 | J57: 783.25 | L57: 44.40956678
A58: 7 | H58: 6390.032699 | I58: 6390.032699 | J58: 984.0833333 | K58: 984.0833333 | L58: 6.493385755 | M58: 6.493385755
A59: 7 | H59: 7658.677936 | I59: 7658.677936 | J59: 1233.416667 | K59: 1233.416667 | L59: 6.209319318 | M59: 6.209319318
A60: 7 | H60: 3530.315962 | I60: 3530.315962 | J60: 872.75 | K60: 872.75 | L60: 4.045048366 | M60: 4.045048366
A61: 7 | H61: 6702.407128 | I61: 6702.407128 | J61: 767.0833333 | K61: 767.0833333 | L61: 8.737521513 | M61: 8.737521513
A62: 7
A63: 7 | H63: 2694.27594 | I63: 2694.27594 | J63: 2001.25 | K63: 2001.25 | L63: 1.346296535 | M63: 1.346296535
A64: 7 | H64: 4634.652866 | I64: 4634.652866 | J64: 1075.166667 | K64: 1075.166667 | L64: 4.310636676 | M64: 4.310636676
A65: 7 | H65: 2904.693413 | I65: 2904.693413 | J65: 1206.333333 | K65: 1206.333333 | L65: 2.407869643 | M65: 2.407869643
A66: 7 | H66: 4773.378538 | I66: 4773.378538 | J66: 1761.083333 | K66: 1761.083333 | L66: 2.710478515 | M66: 2.710478515
A67: 7 | H67: 504.21456 | I67: 504.21456 | J67: 500.75 | K67: 500.75 | L67: 1.006918742 | M67: 1.006918742
A68: 7 | H68: 4639.963435 | I68: 4639.963435 | J68: 786.5 | K68: 786.5 | L68: 5.8995085 | M68: 5.8995085
A69: 7 | H69: 385.00308 | I69: 385.00308 | J69: 914 | K69: 914 | L69: 0.4212287527 | M69: 0.4212287527
A70: 7 | H70: 114.176352 | I70: 114.176352 | J70: 929.4166667 | K70: 929.4166667 | L70: 0.1228473257 | M70: 0.1228473257
A71: 7 | H71: 1120.319489 | I71: 1120.319489 | J71: 508.6666667 | K71: 508.6666667 | L71: 2.202462953 | M71: 2.202462953
A72: 7 | H72: 5327.387356 | I72: 5327.387356 | J72: 1186.833333 | K72: 1186.833333 | L72: 4.488740926 | M72: 4.488740926
A73: 7 | H73: 5615.664223 | I73: 5615.664223 | J73: 1179.166667 | K73: 1179.166667 | L73: 4.762400755 | M73: 4.762400755
A74: 7 | H74: 1314.482446 | I74: 1314.482446 | J74: 624.1666667 | K74: 624.1666667 | L74: 2.105979886 | M74: 2.105979886
A75: 7 | H75: 6170.85346 | I75: 6170.85346 | J75: 1681.25 | K75: 1681.25 | L75: 3.67039611 | M75: 3.67039611
A76: 7 | H76: 2121.34566 | I76: 2121.34566 | J76: 979.8333333 | K76: 979.8333333 | L76: 2.165006627 | M76: 2.165006627
A77: 7 | H77: 2497.48816 | I77: 2497.48816 | J77: 951 | K77: 951 | L77: 2.626170515 | M77: 2.626170515
A78: 7 | H78: 1920.1392 | I78: 1920.1392 | J78: 668.8333333 | K78: 668.8333333 | L78: 2.870878445 | M78: 2.870878445
A79: 7 | H79: 8113.46532 | I79: 8113.46532 | J79: 1489.333333 | K79: 1489.333333 | L79: 5.447716195 | M79: 5.447716195
A80: 7 | H80: 6288.36816 | I80: 6288.36816 | J80: 1077.416667 | K80: 1077.416667 | L80: 5.836523932 | M80: 5.836523932
A81: 7 | H81: 13650.34914 | I81: 13650.34914 | J81: 941.8333333 | K81: 941.8333333 | L81: 14.49338079
A82: 7 | H82: 5104.70114 | I82: 5104.70114 | J82: 814.9166667 | K82: 814.9166667 | L82: 6.26407748 | M82: 6.26407748
A83: 7 | H83: 4245.50868 | I83: 4245.50868 | J83: 1329.666667 | K83: 1329.666667 | L83: 3.192912018 | M83: 3.192912018
A84: 7 | H84: 5498.8744 | I84: 5498.8744 | J84: 643.6666667 | K84: 643.6666667 | L84: 8.543046712 | M84: 8.543046712
A85: 7 | H85: 6103.58512 | I85: 6103.58512 | J85: 825.75 | K85: 825.75 | L85: 7.391565389 | M85: 7.391565389
A86: 7 | H86: 4916.7619 | I86: 4916.7619 | J86: 1385.666667 | K86: 1385.666667 | L86: 3.548300625 | M86: 3.548300625
A87: 7 | H87: 4074.62668 | I87: 4074.62668 | J87: 1414.833333 | K87: 1414.833333 | L87: 2.879934042 | M87: 2.879934042
A88: 7 | H88: 3049.72684 | I88: 3049.72684 | J88: 557.8333333 | K88: 557.8333333 | L88: 5.46709323 | M88: 5.46709323
A89: 7 | H89: 1945.66572 | I89: 1945.66572 | J89: 996.9166667 | K89: 996.9166667 | L89: 1.951683411 | M89: 1.951683411
A90: 7 | H90: 3255.01142 | I90: 3255.01142 | J90: 672.5833333 | K90: 672.5833333 | L90: 4.839565982 | M90: 4.839565982
A91: 7 | H91: 6051.97566 | I91: 6051.97566 | J91: 740.5833333 | K91: 740.5833333 | L91: 8.171903671 | M91: 8.171903671
A92: 7 | H92: 6436.47564 | I92: 6436.47564 | J92: 812.4166667 | K92: 812.4166667 | L92: 7.92262875 | M92: 7.92262875
A93: 7 | H93: 10460.3821 | I93: 10460.3821 | J93: 894.1666667 | K93: 894.1666667 | L93: 11.6984702 | M93: 11.6984702
A94: 7 | H94: 6542.01226 | I94: 6542.01226 | J94: 1949.583333 | K94: 1949.583333 | L94: 3.35559509 | M94: 3.35559509
A95: 7 | H95: 1767.44018 | I95: 1767.44018 | J95: 767.3333333 | K95: 767.3333333 | L95: 2.30335384 | M95: 2.30335384
A96: 7 | H96: 23300.3197 | J96: 1812.583333 | L96: 12.85475778 | M96: 12.85475778
A97: 7 | H97: 356.50182 | I97: 356.50182 | J97: 1136.583333 | K97: 1136.583333 | L97: 0.3136609605 | M97: 0.3136609605
A98: 7 | H98: 746.21512 | I98: 746.21512 | J98: 1578.5 | K98: 1578.5 | L98: 0.4727368514 | M98: 0.4727368514
A99: 7 | H99: 2208.45506 | I99: 2208.45506 | J99: 1030.75 | K99: 1030.75 | L99: 2.142571002 | M99: 2.142571002
A100: 7 | H100: 7489.44588 | I100: 7489.44588 | J100: 1989.083333 | K100: 1989.083333 | L100: 3.765275066 | M100: 3.765275066
A101: 7 | H101: 4972.32134 | I101: 4972.32134 | J101: 1215.666667 | K101: 1215.666667 | L101: 4.090201267 | M101: 4.090201267
A102: 7 | H102: 3751.75 | I102: 3751.75 | J102: 664.75 | K102: 664.75 | L102: 5.643851072 | M102: 5.643851072
A103: 7 | H103: 8155.1048 | I103: 8155.1048 | J103: 829 | K103: 829 | L103: 9.837279614 | M103: 9.837279614
A104: 7 | H104: 5533.55476 | I104: 5533.55476 | J104: 769.1666667 | K104: 769.1666667 | L104: 7.194220706 | M104: 7.194220706
A105: 7 | H105: 11664.44574 | J105: 1316.75 | L105: 8.858512049 | M105: 8.858512049 | N105: odstające
A106: 7 | H106: 7413.53884 | I106: 7413.53884 | J106: 957.25 | K106: 957.25 | L106: 7.744621405 | M106: 7.744621405
A107: 7 | H107: 6912.84512 | I107: 6912.84512 | J107: 1348.583333 | K107: 1348.583333 | L107: 5.126005156 | M107: 5.126005156
A108: 7 | H108: 3387.56064 | I108: 3387.56064 | J108: 591.75 | K108: 591.75 | L108: 5.724648314 | M108: 5.724648314
A109: 7 | H109: 16677.63858 | J109: 1119.916667 | L109: 14.89185676
A110: 7 | H110: 20331.05962 | J110: 1197.333333 | L110: 16.98028365
A111: 7 | H111: 115.24 | I111: 115.24 | J111: 189.6666667 | K111: 189.6666667 | L111: 0.6075922671 | M111: 0.6075922671
A112: 7 | H112: 12387.51138 | I112: 12387.51138 | J112: 1190.5 | K112: 1190.5 | L112: 10.40530145 | M112: 10.40530145
A113: 7 | H113: 809.1697 | I113: 809.1697 | J113: 674.1666667 | K113: 674.1666667 | L113: 1.200251718 | M113: 1.200251718
A114: 7 | H114: 1350.1355 | I114: 1350.1355 | J114: 588.6666667 | K114: 588.6666667 | L114: 2.293548414 | M114: 2.293548414
A115: 7 | H115: 2169.81354 | I115: 2169.81354 | J115: 444.3333333 | K115: 444.3333333 | L115: 4.88330129 | M115: 4.88330129
A116: 7 | H116: 2701.9695 | I116: 2701.9695 | J116: 595.4166667 | K116: 595.4166667 | L116: 4.537947376 | M116: 4.537947376
A117: 7 | H117: 1466.472 | I117: 1466.472 | J117: 1146.583333 | K117: 1146.583333 | L117: 1.27899295 | M117: 1.27899295
A118: 7 | H118: 1027.46866 | I118: 1027.46866 | J118: 900.4166667 | K118: 900.4166667 | L118: 1.141103556 | M118: 1.141103556
A119: 7 | H119: 2360.55036 | I119: 2360.55036 | J119: 1194.416667 | K119: 1194.416667 | L119: 1.976320681 | M119: 1.976320681
A120: 7 | H120: 13247.64038 | I120: 13247.64038 | J120: 1628.083333 | K120: 1628.083333 | L120: 8.13695473 | M120: 8.13695473
A121: 7 | H121: 3864.01182 | I121: 3864.01182 | J121: 535.75 | K121: 535.75 | L121: 7.212341241 | M121: 7.212341241
A122: 7 | H122: 7959.1839 | I122: 7959.1839 | J122: 1802.083333 | K122: 1802.083333 | L122: 4.416656962 | M122: 4.416656962
A123: 7 | H123: 1038.06902 | I123: 1038.06902 | J123: 1241.166667 | K123: 1241.166667 | L123: 0.8363655324 | M123: 0.8363655324
A124: 7 | H124: 8173.63178 | I124: 8173.63178 | J124: 1305.75 | K124: 1305.75 | L124: 6.25972183 | M124: 6.25972183
A125: 7 | H125: 8122.19346 | I125: 8122.19346 | J125: 1216.5 | K125: 1216.5 | L125: 6.676690062 | M125: 6.676690062
A126: 7 | H126: 7878.98804 | I126: 7878.98804 | J126: 821.5833333 | K126: 821.5833333 | L126: 9.590004714 | M126: 9.590004714
A127: 7 | H127: 37.84 | I127: 37.84 | J127: 226.6666667 | K127: 226.6666667 | L127: 0.1669411765 | M127: 0.1669411765
A128: 7 | H128: 46.44 | I128: 46.44 | J128: 1204.5 | K128: 1204.5 | L128: 0.03855541719 | M128: 0.03855541719
A129: 7 | H129: 18.06 | I129: 18.06 | J129: 606.6666667 | K129: 606.6666667 | L129: 0.02976923077 | M129: 0.02976923077
A130: 7 | H130: 7254.62374 | I130: 7254.62374 | J130: 516.25 | K130: 516.25 | L130: 14.05253993
A131: 7 | H131: 8158.74002 | I131: 8158.74002 | J131: 1733.791667 | K131: 1733.791667 | L131: 4.705721095 | M131: 4.705721095
A132: 7 | H132: 990.0793 | I132: 990.0793 | J132: 1426.5 | K132: 1426.5 | L132: 0.6940618998 | M132: 0.6940618998
A133: 7 | H133: 2263.42282 | I133: 2263.42282 | J133: 1071.25 | K133: 1071.25 | L133: 2.112880112 | M133: 2.112880112
A134: 7 | H134: 1262.6735 | I134: 1262.6735 | J134: 545.75 | K134: 545.75 | L134: 2.313648191 | M134: 2.313648191
A135: 7 | H135: 474.462 | I135: 474.462 | J135: 1388.166667 | K135: 1388.166667 | L135: 0.341790371 | M135: 0.341790371
A136: 7 | H136: 43 | I136: 43 | J136: 332.8333333 | K136: 332.8333333 | L136: 0.1291937907 | M136: 0.1291937907
A137: 7 | H137: 1679.71416 | I137: 1679.71416 | J137: 1437.916667 | K137: 1437.916667 | L137: 1.16815821 | M137: 1.16815821
A138: 7 | H138: 2821.34524 | I138: 2821.34524 | J138: 530.1666667 | K138: 530.1666667 | L138: 5.32161944 | M138: 5.32161944
A139: 7 | H139: 4176.7276 | I139: 4176.7276 | J139: 641.6666667 | K139: 641.6666667 | L139: 6.50918587 | M139: 6.50918587
A140: 7 | H140: 4383.12416 | I140: 4383.12416 | J140: 808.8333333 | K140: 808.8333333 | L140: 5.419069639 | M140: 5.419069639
A141: 7 | H141: 8842.5028 | I141: 8842.5028 | J141: 911.5 | K141: 911.5 | L141: 9.70104531 | M141: 9.70104531
A142: 7 | H142: 2106.1443 | I142: 2106.1443 | J142: 915.5 | K142: 915.5 | L142: 2.300539924 | M142: 2.300539924
A143: 7 | H143: 5521.34276 | I143: 5521.34276 | J143: 965.1666667 | K143: 965.1666667 | L143: 5.720610699 | M143: 5.720610699
A144: 7 | H144: 5329.56706 | I144: 5329.56706 | J144: 1188.583333 | K144: 1188.583333 | L144: 4.483965836 | M144: 4.483965836
A145: 7 | H145: 3455.1833 | I145: 3455.1833 | J145: 911.75 | K145: 911.75 | L145: 3.789617 | M145: 3.789617
A146: 7 | H146: 1887.8247 | I146: 1887.8247 | J146: 666.8333333 | K146: 666.8333333 | L146: 2.831029293 | M146: 2.831029293
A147: 7 | H147: 4016.4838 | I147: 4016.4838 | J147: 914.5 | K147: 914.5 | L147: 4.391999781 | M147: 4.391999781
A148: 7 | H148: 1410.749897 | I148: 1410.749897 | J148: 486 | K148: 486 | L148: 2.902777566 | M148: 2.902777566
A149: 7 | H149: 1882.29576 | I149: 1882.29576 | J149: 984.4285714 | K149: 984.4285714 | L149: 1.912069412 | M149: 1.912069412
A150: 7 | H150: 4381.756416 | I150: 4381.756416 | J150: 1397 | K150: 1397 | L150: 3.136547184 | M150: 3.136547184
A151: 7 | H151: 6127.30822 | I151: 6127.30822 | J151: 529.75 | K151: 529.75 | L151: 11.56641476 | M151: 11.56641476
A152: 7 | H152: 4608.68238 | I152: 4608.68238 | J152: 1314.166667 | K152: 1314.166667 | L152: 3.506923815 | M152: 3.506923815
A153: 7 | H153: 4454.47836 | I153: 4454.47836 | J153: 1451.416667 | K153: 1451.416667 | L153: 3.069055539 | M153: 3.069055539
A154: 7 | H154: 5579.0393 | I154: 5579.0393 | J154: 1498.75 | K154: 1498.75 | L154: 3.722461585 | M154: 3.722461585
A155: 7 | H155: 1776.25002 | I155: 1776.25002 | J155: 538.6666667 | K155: 538.6666667 | L155: 3.297493849 | M155: 3.297493849
A156: 7 | H156: 479.24532 | I156: 479.24532 | J156: 619.1666667 | K156: 619.1666667 | L156: 0.7740166676 | M156: 0.7740166676
A157: 7 | H157: 2981.13496 | I157: 2981.13496 | J157: 719 | K157: 719 | L157: 4.146223866 | M157: 4.146223866
A158: 7 | H158: 2472.54472 | I158: 2472.54472 | J158: 437.5833333 | K158: 437.5833333 | L158: 5.650454512 | M158: 5.650454512
A159: 7 | H159: 4594.8037 | I159: 4594.8037 | J159: 841.1666667 | K159: 841.1666667 | L159: 5.462417713 | M159: 5.462417713
A160: 7 | H160: 2159.86506 | I160: 2159.86506 | J160: 1353.166667 | K160: 1353.166667 | L160: 1.596155975 | M160: 1.596155975
A161: 7 | H161: 6055.1224 | I161: 6055.1224 | J161: 1283.666667 | K161: 1283.666667 | L161: 4.717051986 | M161: 4.717051986
A162: 7 | H162: 3674.13844 | I162: 3674.13844 | J162: 872.9166667 | K162: 872.9166667 | L162: 4.209036876 | M162: 4.209036876
A163: 7 | H163: 14267.55738 | J163: 1252.833333 | L163: 11.38823258 | M163: 11.38823258
A164: 7 | H164: 7125.73296 | I164: 7125.73296 | J164: 1270 | K164: 1270 | L164: 5.610813354 | M164: 5.610813354
A165: 7 | H165: 1529.406019 | I165: 1529.406019 | J165: 643.3333333 | K165: 643.3333333 | L165: 2.377315056 | M165: 2.377315056
A166: 7 | H166: 2466.5832 | I166: 2466.5832 | J166: 831.8333333 | K166: 831.8333333 | L166: 2.965237267 | M166: 2.965237267
A167: 7 | H167: 13488.74052 | I167: 13488.74052 | J167: 1267.5 | K167: 1267.5 | L167: 10.64200436 | M167: 10.64200436
A168: 7 | H168: 1071.54624 | I168: 1071.54624 | J168: 323.75 | K168: 323.75 | L168: 3.309795336 | M168: 3.309795336
A169: 7 | H169: 3402.93228 | I169: 3402.93228 | J169: 1027.583333 | K169: 1027.583333 | L169: 3.311587654 | M169: 3.311587654
A170: 7 | H170: 4903.24958 | I170: 4903.24958 | J170: 615.5 | K170: 615.5 | L170: 7.966286889 | M170: 7.966286889
A171: 7 | H171: 9.60276 | I171: 9.60276 | J171: 642.5833333 | K171: 642.5833333 | L171: 0.0149439917 | M171: 0.0149439917
A172: 7
A173: 7 | H173: 12258.68682 | I173: 12258.68682 | J173: 894.6666667 | K173: 894.6666667 | L173: 13.70195993
A174: 7 | H174: 3803.5951 | I174: 3803.5951 | J174: 814 | K174: 814 | L174: 4.672721253 | M174: 4.672721253
A175: 7 | H175: 10345.47578 | I175: 10345.47578 | J175: 482 | K175: 482 | L175: 21.4636427
A176: 7
A177: 7 | H177: 3212.290285 | I177: 3212.290285 | J177: 982.5 | K177: 982.5 | L177: 3.269506651 | M177: 3.269506651
A178: 7 | H178: 1856.962823 | I178: 1856.962823 | J178: 753.5 | K178: 753.5 | L178: 2.464449666 | M178: 2.464449666
A179: 7 | H179: 9968.604 | I179: 9968.604 | J179: 494 | K179: 494 | L179: 20.17936032
A180: 7 | H180: 2383.834 | I180: 2383.834 | J180: 744.9166667 | K180: 744.9166667 | L180: 3.200135138 | M180: 3.200135138
A181: 7 | H181: 1394.2148 | I181: 1394.2148 | J181: 1201.333333 | K181: 1201.333333 | L181: 1.16055616 | M181: 1.16055616
A182: 7 | H182: 3274.33648 | I182: 3274.33648 | J182: 625.1666667 | K182: 625.1666667 | L182: 5.23754169 | M182: 5.23754169
A183: 7 | H183: 2993.2945 | I183: 2993.2945 | J183: 1016.083333 | K183: 1016.083333 | L183: 2.945914377 | M183: 2.945914377
A184: 7 | H184: 1542.4358 | I184: 1542.4358 | J184: 940.5 | K184: 940.5 | L184: 1.6400168 | M184: 1.6400168
A185: 7 | H185: 1858.87194 | I185: 1858.87194 | J185: 315.0833333 | K185: 315.0833333 | L185: 5.899620016 | M185: 5.899620016
A186: 7 | H186: 19.86772 | I186: 19.86772 | J186: 682.3333333 | K186: 682.3333333 | L186: 0.02911732291 | M186: 0.02911732291
A187: 7 | H187: 5297.57162 | I187: 5297.57162 | J187: 678 | K187: 678 | L187: 7.813527463 | M187: 7.813527463
A188: 7 | H188: 341.23252 | I188: 341.23252 | J188: 1246.583333 | K188: 1246.583333 | L188: 0.2737342229 | M188: 0.2737342229
A189: 7 | H189: 36139.29582 | J189: 732.6666667 | L189: 49.32569948
A190: 7 | H190: 2959.4965 | I190: 2959.4965 | J190: 835.5 | K190: 835.5 | L190: 3.542186116 | M190: 3.542186116
A191: 7 | H191: 330.56766 | I191: 330.56766 | J191: 869.5833333 | K191: 869.5833333 | L191: 0.3801448893 | M191: 0.3801448893
A192: 7 | H192: 2478.7092 | I192: 2478.7092 | J192: 521.5833333 | K192: 521.5833333 | L192: 4.752278383 | M192: 4.752278383
A193: 7 | H193: 8830.0543 | I193: 8830.0543 | J193: 923.0833333 | K193: 923.0833333 | L193: 9.565825729 | M193: 9.565825729
A194: 7 | H194: 4833.1355 | I194: 4833.1355 | J194: 595.6666667 | K194: 595.6666667 | L194: 8.113825686 | M194: 8.113825686
A195: 7 | H195: 2116.48322 | I195: 2116.48322 | J195: 869.9166667 | K195: 869.9166667 | L195: 2.432972377 | M195: 2.432972377
A196: 7 | H196: 4948.34712 | I196: 4948.34712 | J196: 1132.416667 | K196: 1132.416667 | L196: 4.36972297 | M196: 4.36972297
A197: 7 | H197: 3634.04868 | I197: 3634.04868 | J197: 593.3333333 | K197: 593.3333333 | L197: 6.124801146 | M197: 6.124801146
A198: 7 | H198: 2513.55898 | I198: 2513.55898 | J198: 649.5 | K198: 649.5 | L198: 3.869990731 | M198: 3.869990731
A199: 7 | H199: 2798.182 | I199: 2798.182 | J199: 713.6666667 | K199: 713.6666667 | L199: 3.920852872 | M199: 3.920852872
A200: 7 | H200: 1226.919 | I200: 1226.919 | J200: 810.25 | K200: 810.25 | L200: 1.514247454 | M200: 1.514247454
... 672 more rows

Sheet ZYWIENIE (hidden)
A1: KAT_MED | H1: ZYWIENIE_mc | I1: ZYWIENIE_mc_odciete | J1: OSOBODNI_mc | K1: OSOBODNI_mcodciete | L1: sr_ZYWIENIE_mc | M1: sr_ZYWIENIE_mc_odciete | O1: KAT_MED | P1: OSOBODNI_mc | Q1: metoda 1 - średni koszt | R1: metoda 2 - średni koszt odcięte | S1: metoda 3 - regresja liniowa | T1: metoda 4 - regresja liniowa odcięte | V1: liczba łóżek | W1: obłożenie | X1: liczba dni w mc | Z1: Liczba opk | AA1: Liczba szpitali | AB1: Liczba opk po odcięciach | AC1: Liczba szpitali po odcięciach
A2: 6 | H2: 7427.384857 | I2: 7427.384857 | J2: 444.6666667 | K2: 444.6666667 | L2: 16.7032643 | M2: 16.7032643 | O2: 6 | P2: =V2*W2*X2 -> 11160 | Q2: =IFERROR(SUMIFS(L:L,A:A,O2)/COUNTIFS(A:A,O2,L:L,">0")*P2,0) -> 211420.581 | R2: =IFERROR(SUMIFS(M:M,A:A,O2)/COUNTIFS(A:A,O2,M:M,">0")*P2,0) -> 211420.581 | S2: =IF(P2=0,0,IFERROR(FORECAST(P2,$H$2:$H$55,$J$2:$J$55),0)) -> 187282.111 | T2: =IF(P2=0,0,IFERROR(FORECAST(P2,$I$2:$I$55,$K$2:$K$55),0)) -> 194376.6835 | V2: =ZALOZENIA!B3 -> 450 | W2: =ZALOZENIA!C3 -> 0.8 | X2: =ZALOZENIA!D3 -> 31 | Z2: 54 | AA2: 35 | AB2: 54 | AC2: 35
A3: 6 | H3: 6833.967829 | I3: 6833.967829 | J3: 377.8333333 | K3: 377.8333333 | L3: 18.08725495 | M3: 18.08725495 | O3: 7 | P3: =V3*W3*X3 -> 0 | Q3: 0 | R3: 0 | S3: =IF(P3=0,0,IFERROR(FORECAST(P3,$H$56:$H$228,$J$56:$J$228),"")) -> 0 | T3: =IF(P3=0,0,IFERROR(FORECAST(P3,$I$56:$I$228,$K$56:$K$228),"")) -> 0 | V3: =ZALOZENIA!B4 -> 0 | W3: =ZALOZENIA!C4 -> 0.9 | X3: =ZALOZENIA!D4 -> 31 | Z3: 171 | AA3: 126 | AB3: 166 | AC3: 122
A4: 6 | H4: 19961.35508 | I4: 19961.35508 | J4: 668.4166667 | K4: 668.4166667 | L4: 29.86364056 | M4: 29.86364056 | O4: 18 | P4: =V4*W4*X4 -> 1240 | Q4: 8923.738313 | R4: 7073.488268 | S4: =IF(P4=0,0,IFERROR(FORECAST(P4,$H$229:$H$426,$J$229:$J$426),"")) -> 10513.67232 | T4: =IF(P4=0,0,IFERROR(FORECAST(P4,$I$229:$I$426,$K$229:$K$426),"")) -> 3441.533636 | V4: =ZALOZENIA!B5 -> 50 | W4: =ZALOZENIA!C5 -> 0.8 | X4: =ZALOZENIA!D5 -> 31 | Z4: 182 | AA4: 148 | AB4: 174 | AC4: 143
A5: 6 | H5: 10236.71588 | I5: 10236.71588 | J5: 497.1666667 | K5: 497.1666667 | L5: 20.59010904 | M5: 20.59010904 | O5: 43 | P5: =V5*W5*X5 -> 0 | Q5: 0 | R5: 0 | S5: =IF(P5=0,0,IFERROR(FORECAST(P5,$H$427:$H$550,$J$427:$J$550),"")) -> 0 | T5: =IF(P5=0,0,IFERROR(FORECAST(P5,$I$427:$I$550,$K$427:$K$550),"")) -> 0 | V5: =ZALOZENIA!B6 -> 0 | W5: =ZALOZENIA!C6 -> 0.9 | X5: =ZALOZENIA!D6 -> 31 | Z5: 0 | AA5: 0 | AB5: 0 | AC5: 0
A6: 6 | H6: 6432.05524 | I6: 6432.05524 | J6: 355 | K6: 355 | L6: 18.11846546 | M6: 18.11846546 | O6: b | P6: =V6*W6*X6 -> 155 | Q6: 184.2919861 | R6: 42.0671103 | S6: =IF(P6=0,0,IFERROR(FORECAST(P6,$H$551:$H$766,$J$551:$J$766),"")) -> 375.494332 | T6: =IF(P6=0,0,IFERROR(FORECAST(P6,$I$551:$I$766,$K$551:$K$766),"")) -> 87.09892454 | V6: =ZALOZENIA!B10 -> 5 | W6: =ZALOZENIA!C10/8 -> 1 | X6: =ZALOZENIA!D10 -> 31 | Z6: 7 | AA6: 7 | AB6: 6 | AC6: 6
A7: 6 | H7: 20156.5639 | I7: 20156.5639 | J7: 798.25 | K7: 798.25 | L7: 25.25094131 | M7: 25.25094131 | O7: 8 | P7: =V7*(X7/31) -> 5 | Q7: 478.3410486 | R7: 298.4908289 | S7: =IF(P7=0,0,IFERROR(FORECAST(P7,$H$767:$H$842,$J$767:$J$842),"")) -> 548.9978782 | T7: =IF(P7=0,0,IFERROR(FORECAST(P7,$I$767:$I$842,$K$767:$K$842),"")) -> 259.2593234 | V7: =ZALOZENIA!B7 -> 5 | W7: =ZALOZENIA!C7 -> nd | X7: =ZALOZENIA!D7 -> 31 | Z7: 43 | AA7: 43 | AB7: 39 | AC7: 39
A8: 6 | H8: 12950.8002 | I8: 12950.8002 | J8: 858.3333333 | K8: 858.3333333 | L8: 15.08831091 | M8: 15.08831091 | P8: ZYWIENIE_mc | Q8: =SUM(Q2:Q7) -> 221006.9524 | R8: =SUM(R2:R7) -> 218834.6272 | S8: =SUM(S2:S7) -> 198720.2756 | T8: =SUM(T2:T7) -> 198164.5754
A9: 6 | H9: 1558.69754 | J9: 478.5833333 | L9: 3.256898917 | M9: 3.256898917 | N9: odstające
A10: 6 | H10: 5442.7508 | I10: 5442.7508 | J10: 421.1666667 | K10: 421.1666667 | L10: 12.92303316 | M10: 12.92303316
A11: 6 | H11: 7140.021 | I11: 7140.021 | J11: 441.75 | K11: 441.75 | L11: 16.16303565 | M11: 16.16303565
A12: 6 | H12: 12253.30322 | I12: 12253.30322 | J12: 606.75 | K12: 606.75 | L12: 20.19497852 | M12: 20.19497852
A13: 6 | H13: 8610.96328 | I13: 8610.96328 | J13: 450.9166667 | K13: 450.9166667 | L13: 19.09657353 | M13: 19.09657353 | O13: KAT_MED | P13: OSOBODNI_mc | Q13: metoda 1 - średni koszt | R13: metoda 2 - średni koszt odcięte | S13: metoda 3 - regresja liniowa | T13: metoda 4 - regresja liniowa odcięte
A14: 6 | H14: 11720.9271 | I14: 11720.9271 | J14: 462.6666667 | K14: 462.6666667 | L14: 25.33341592 | M14: 25.33341592 | O14: 6 | P14: =V2*X2 -> 13950 | Q14: =IFERROR(SUMIFS(L:L,A:A,O14)/COUNTIFS(A:A,O14,L:L,">0")*P14,0) -> 264275.7263 | R14: =IFERROR(SUMIFS(M:M,A:A,O14)/COUNTIFS(A:A,O14,M:M,">0")*P14,0) -> 264275.7263 | S14: =IF(P14=0,0,IFERROR(FORECAST(P14,$H$2:$H$55,$J$2:$J$55),0)) -> 233801.3157 | T14: =IF(P14=0,0,IFERROR(FORECAST(P14,$I$2:$I$55,$K$2:$K$55),0)) -> 242746.2424
A15: 6 | H15: 7044.44748 | I15: 7044.44748 | J15: 377.9166667 | K15: 377.9166667 | L15: 18.64021384 | M15: 18.64021384 | O15: 7 | P15: =V3*X3 -> 0 | Q15: 0 | R15: 0 | S15: =IF(P15=0,0,IFERROR(FORECAST(P15,$H$56:$H$228,$J$56:$J$228),"")) -> 0 | T15: =IF(P15=0,0,IFERROR(FORECAST(P15,$I$56:$I$228,$K$56:$K$228),"")) -> 0
A16: 6 | H16: 17919.90858 | I16: 17919.90858 | J16: 593.25 | K16: 593.25 | L16: 30.20633558 | M16: 30.20633558 | O16: 18 | P16: =V4*X4 -> 1550 | Q16: 11154.67289 | R16: 8841.860335 | S16: =IF(P16=0,0,IFERROR(FORECAST(P16,$H$229:$H$426,$J$229:$J$426),"")) -> 13238.65199 | T16: =IF(P16=0,0,IFERROR(FORECAST(P16,$I$229:$I$426,$K$229:$K$426),"")) -> 4189.649164
A17: 6 | H17: 22796.32014 | J17: 722.4166667 | L17: 31.55563983 | M17: 31.55563983 | O17: 43 | P17: =V5*X5 -> 0 | Q17: 0 | R17: 0 | S17: =IF(P17=0,0,IFERROR(FORECAST(P17,$H$427:$H$550,$J$427:$J$550),"")) -> 0 | T17: =IF(P17=0,0,IFERROR(FORECAST(P17,$I$427:$I$550,$K$427:$K$550),"")) -> 0
A18: 6 | H18: 19880.79802 | I18: 19880.79802 | J18: 724.5 | K18: 724.5 | L18: 27.440715 | M18: 27.440715 | O18: b | P18: =V6*X6 -> 155 | Q18: 184.2919861 | R18: 42.0671103 | S18: =IF(P18=0,0,IFERROR(FORECAST(P18,$H$551:$H$766,$J$551:$J$766),"")) -> 375.494332 | T18: =IF(P18=0,0,IFERROR(FORECAST(P18,$I$551:$I$766,$K$551:$K$766),"")) -> 87.09892454
A19: 6 | H19: 20995.80866 | I19: 20995.80866 | J19: 829.6666667 | K19: 829.6666667 | L19: 25.30631819 | M19: 25.30631819 | O19: 8 | P19: =V7*(X7/31) -> 5 | Q19: 478.3410486 | R19: 298.4908289 | S19: =IF(P19=0,0,IFERROR(FORECAST(P19,$H$767:$H$842,$J$767:$J$842),"")) -> 548.9978782 | T19: =IF(P19=0,0,IFERROR(FORECAST(P19,$I$767:$I$842,$K$767:$K$842),"")) -> 259.2593234
A20: 6 | H20: 22120.87958 | I20: 22120.87958 | J20: 804.1666667 | K20: 804.1666667 | L20: 27.50782953 | M20: 27.50782953
A21: 6 | H21: 10052.40068 | I21: 10052.40068 | J21: 305.25 | K21: 305.25 | L21: 32.93169756 | M21: 32.93169756
A22: 6 | H22: 5703.73414 | I22: 5703.73414 | J22: 376.1666667 | K22: 376.1666667 | L22: 15.1627846 | M22: 15.1627846
A23: 6 | H23: 2564.93022 | I23: 2564.93022 | J23: 233.8333333 | K23: 233.8333333 | L23: 10.96905297 | M23: 10.96905297
A24: 6 | H24: 7908.97882 | I24: 7908.97882 | J24: 722.3333333 | K24: 722.3333333 | L24: 10.94920926 | M24: 10.94920926
A25: 6 | H25: 17895.93952 | J25: 1286 | L25: 13.91597163 | M25: 13.91597163 | N25: odstające
A26: 6 | H26: 10864.73948 | I26: 10864.73948 | J26: 759.3333333 | K26: 759.3333333 | L26: 14.30826095 | M26: 14.30826095
A27: 6 | H27: 7601.84444 | I27: 7601.84444 | J27: 595.25 | K27: 595.25 | L27: 12.77084324 | M27: 12.77084324
A28: 6 | H28: 9501.39352 | I28: 9501.39352 | J28: 638.75 | K28: 638.75 | L28: 14.87498007 | M28: 14.87498007
A29: 6 | H29: 2014.4683 | I29: 2014.4683 | J29: 150.5 | K29: 150.5 | L29: 13.38517143 | M29: 13.38517143
A30: 6 | H30: 16153.33528 | I30: 16153.33528 | J30: 839.0833333 | K30: 839.0833333 | L30: 19.25116927 | M30: 19.25116927
A31: 6 | H31: 5405.29092 | I31: 5405.29092 | J31: 284.5 | K31: 284.5 | L31: 18.9992651 | M31: 18.9992651
A32: 6 | H32: 20004.2321 | I32: 20004.2321 | J32: 873.75 | K32: 873.75 | L32: 22.89468624 | M32: 22.89468624
A33: 6 | H33: 11100.4629 | I33: 11100.4629 | J33: 490.4166667 | K33: 490.4166667 | L33: 22.63475867 | M33: 22.63475867
A34: 6 | H34: 7949.53986 | I34: 7949.53986 | J34: 787.25 | K34: 787.25 | L34: 10.09785946 | M34: 10.09785946
A35: 6 | H35: 10183.57476 | I35: 10183.57476 | J35: 1003.916667 | K35: 1003.916667 | L35: 10.1438447 | M35: 10.1438447
A36: 6 | H36: 7747.45706 | I36: 7747.45706 | J36: 767.8333333 | K36: 767.8333333 | L36: 10.09002439 | M36: 10.09002439
A37: 6 | H37: 7461.10802 | I37: 7461.10802 | J37: 486.3333333 | K37: 486.3333333 | L37: 15.34155179 | M37: 15.34155179
A38: 6 | H38: 7745.8179 | I38: 7745.8179 | J38: 282 | K38: 282 | L38: 27.46743936 | M38: 27.46743936
A39: 6 | H39: 9054.10924 | I39: 9054.10924 | J39: 521.75 | K39: 521.75 | L39: 17.35334785 | M39: 17.35334785
A40: 6 | H40: 5281.118335 | I40: 5281.118335 | J40: 343.1818182 | K40: 343.1818182 | L40: 15.38868919 | M40: 15.38868919
A41: 6 | H41: 8864.13524 | I41: 8864.13524 | J41: 447.3333333 | K41: 447.3333333 | L41: 19.81550352 | M41: 19.81550352
A42: 6 | H42: 14879.95312 | I42: 14879.95312 | J42: 719.5 | K42: 719.5 | L42: 20.68096333 | M42: 20.68096333
A43: 6 | H43: 10455.58588 | I43: 10455.58588 | J43: 584.9166667 | K43: 584.9166667 | L43: 17.87534272 | M43: 17.87534272
A44: 6 | H44: 11012.55112 | I44: 11012.55112 | J44: 500.4166667 | K44: 500.4166667 | L44: 22.00676327 | M44: 22.00676327
A45: 6 | H45: 5709.90206 | I45: 5709.90206 | J45: 219.8333333 | K45: 219.8333333 | L45: 25.97377738 | M45: 25.97377738
A46: 6 | H46: 9546.95804 | I46: 9546.95804 | J46: 497 | K46: 497 | L46: 19.20917111 | M46: 19.20917111
A47: 6 | H47: 6458.01262 | I47: 6458.01262 | J47: 480.6666667 | K47: 480.6666667 | L47: 13.4355325 | M47: 13.4355325
A48: 6 | H48: 10162.23417 | I48: 10162.23417 | J48: 425.75 | K48: 425.75 | L48: 23.86901742 | M48: 23.86901742
A49: 6 | H49: 13317.3125 | I49: 13317.3125 | J49: 553.3333333 | K49: 553.3333333 | L49: 24.06743223 | M49: 24.06743223
A50: 6 | H50: 9001.360833 | I50: 9001.360833 | J50: 402.75 | K50: 402.75 | L50: 22.34974757 | M50: 22.34974757
A51: 6 | H51: 6379.635 | I51: 6379.635 | J51: 397.8333333 | K51: 397.8333333 | L51: 16.03594889 | M51: 16.03594889
A52: 6 | H52: 13482.17833 | I52: 13482.17833 | J52: 734 | K52: 734 | L52: 18.36809037 | M52: 18.36809037
A53: 6 | H53: 5292.245833 | I53: 5292.245833 | J53: 318.6666667 | K53: 318.6666667 | L53: 16.607466 | M53: 16.607466
A54: 6 | H54: 7724.11 | I54: 7724.11 | J54: 699.5833333 | K54: 699.5833333 | L54: 11.04101489 | M54: 11.04101489
A55: 6 | H55: 15216.7725 | I55: 15216.7725 | J55: 710.75 | K55: 710.75 | L55: 21.40945832 | M55: 21.40945832
A56: 7 | H56: 14329.49007 | I56: 14329.49007 | J56: 641.0833333 | K56: 641.0833333 | L56: 22.35199284 | M56: 22.35199284
A57: 7 | H57: 17349.21862 | I57: 17349.21862 | J57: 783.25 | K57: 783.25 | L57: 22.15029507 | M57: 22.15029507
A58: 7 | H58: 12082.12034 | I58: 12082.12034 | J58: 984.0833333 | K58: 984.0833333 | L58: 12.27753782 | M58: 12.27753782
A59: 7 | H59: 31354.42452 | I59: 31354.42452 | J59: 1233.416667 | K59: 1233.416667 | L59: 25.42078874 | M59: 25.42078874
A60: 7 | H60: 25111.05703 | I60: 25111.05703 | J60: 872.75 | K60: 872.75 | L60: 28.7723369
A61: 7 | H61: 12499.4421 | I61: 12499.4421 | J61: 767.0833333 | K61: 767.0833333 | L61: 16.29476428 | M61: 16.29476428
A62: 7 | H62: 20218.3635 | I62: 20218.3635 | J62: 854.5833333 | K62: 854.5833333 | L62: 23.65873837 | M62: 23.65873837
A63: 7 | H63: 14771.01115 | I63: 14771.01115 | J63: 2001.25 | K63: 2001.25 | L63: 7.380892517 | M63: 7.380892517
A64: 7 | H64: 29672.44352 | I64: 29672.44352 | J64: 1075.166667 | K64: 1075.166667 | L64: 27.59799428 | M64: 27.59799428
A65: 7 | H65: 28629.4343 | I65: 28629.4343 | J65: 1206.333333 | K65: 1206.333333 | L65: 23.73260649 | M65: 23.73260649
A66: 7 | H66: 19905.65398 | I66: 19905.65398 | J66: 1761.083333 | K66: 1761.083333 | L66: 11.30307329 | M66: 11.30307329
A67: 7 | H67: 13772.31895 | I67: 13772.31895 | J67: 500.75 | K67: 500.75 | L67: 27.50338282 | M67: 27.50338282
A68: 7 | H68: 10785.68628 | I68: 10785.68628 | J68: 786.5 | K68: 786.5 | L68: 13.71352357 | M68: 13.71352357
A69: 7 | H69: 29891.12071 | I69: 29891.12071 | J69: 914 | K69: 914 | L69: 32.70363316
A70: 7 | H70: 24219.72797 | I70: 24219.72797 | J70: 929.4166667 | K70: 929.4166667 | L70: 26.05906353 | M70: 26.05906353
A71: 7 | H71: 8378.102989 | I71: 8378.102989 | J71: 508.6666667 | K71: 508.6666667 | L71: 16.47071361 | M71: 16.47071361
A72: 7 | H72: 21995.19087 | I72: 21995.19087 | J72: 1186.833333 | K72: 1186.833333 | L72: 18.5326703 | M72: 18.5326703
A73: 7 | H73: 22658.48741 | I73: 22658.48741 | J73: 1179.166667 | K73: 1179.166667 | L73: 19.21567837 | M73: 19.21567837
A74: 7 | H74: 9535.103473 | I74: 9535.103473 | J74: 624.1666667 | K74: 624.1666667 | L74: 15.27653427 | M74: 15.27653427
A75: 7 | H75: 26757.43198 | I75: 26757.43198 | J75: 1681.25 | K75: 1681.25 | L75: 15.91520118 | M75: 15.91520118
A76: 7 | H76: 17702.07402 | I76: 17702.07402 | J76: 979.8333333 | K76: 979.8333333 | L76: 18.06641336 | M76: 18.06641336
A77: 7 | H77: 18610.85666 | I77: 18610.85666 | J77: 951 | K77: 951 | L77: 19.56977567 | M77: 19.56977567
A78: 7 | H78: 12930.0613 | I78: 12930.0613 | J78: 668.8333333 | K78: 668.8333333 | L78: 19.3322621 | M78: 19.3322621
A79: 7 | H79: 25408.19862 | I79: 25408.19862 | J79: 1489.333333 | K79: 1489.333333 | L79: 17.06011546 | M79: 17.06011546
A80: 7 | H80: 11169.89414 | I80: 11169.89414 | J80: 1077.416667 | K80: 1077.416667 | L80: 10.36729288 | M80: 10.36729288
A81: 7 | H81: 9876.2529 | I81: 9876.2529 | J81: 941.8333333 | K81: 941.8333333 | L81: 10.48620021 | M81: 10.48620021
A82: 7 | H82: 6682.03402 | I82: 6682.03402 | J82: 814.9166667 | K82: 814.9166667 | L82: 8.199653159 | M82: 8.199653159
A83: 7 | H83: 23953.66256 | I83: 23953.66256 | J83: 1329.666667 | K83: 1329.666667 | L83: 18.01478759 | M83: 18.01478759
A84: 7 | H84: 9350.66304 | I84: 9350.66304 | J84: 643.6666667 | K84: 643.6666667 | L84: 14.52718235 | M84: 14.52718235
A85: 7 | H85: 11901.30178 | I85: 11901.30178 | J85: 825.75 | K85: 825.75 | L85: 14.41271787 | M85: 14.41271787
A86: 7 | H86: 29321.61572 | I86: 29321.61572 | J86: 1385.666667 | K86: 1385.666667 | L86: 21.16065604 | M86: 21.16065604
A87: 7 | H87: 21930.06794 | I87: 21930.06794 | J87: 1414.833333 | K87: 1414.833333 | L87: 15.50010692 | M87: 15.50010692
A88: 7 | H88: 7972.12776 | I88: 7972.12776 | J88: 557.8333333 | K88: 557.8333333 | L88: 14.2912359 | M88: 14.2912359
A89: 7 | H89: 24950.46706 | I89: 24950.46706 | J89: 996.9166667 | K89: 996.9166667 | L89: 25.0276356 | M89: 25.0276356
A90: 7 | H90: 11821.13 | I90: 11821.13 | J90: 672.5833333 | K90: 672.5833333 | L90: 17.57571057 | M90: 17.57571057
A91: 7 | H91: 13214.53554 | I91: 13214.53554 | J91: 740.5833333 | K91: 740.5833333 | L91: 17.8434147 | M91: 17.8434147
A92: 7 | H92: 14272.17386 | I92: 14272.17386 | J92: 812.4166667 | K92: 812.4166667 | L92: 17.56755424 | M92: 17.56755424
A93: 7 | H93: 17228.5606 | I93: 17228.5606 | J93: 894.1666667 | K93: 894.1666667 | L93: 19.26772854 | M93: 19.26772854
A94: 7 | H94: 12131.93228 | I94: 12131.93228 | J94: 1949.583333 | K94: 1949.583333 | L94: 6.222833399 | M94: 6.222833399
A95: 7 | H95: 11019.46724 | I95: 11019.46724 | J95: 767.3333333 | K95: 767.3333333 | L95: 14.36073055 | M95: 14.36073055
A96: 7 | H96: 37616.185 | I96: 37616.185 | J96: 1812.583333 | K96: 1812.583333 | L96: 20.75280309 | M96: 20.75280309
A97: 7 | H97: 6119.72216 | I97: 6119.72216 | J97: 1136.583333 | K97: 1136.583333 | L97: 5.384314533 | M97: 5.384314533
A98: 7 | H98: 8732.1218 | I98: 8732.1218 | J98: 1578.5 | K98: 1578.5 | L98: 5.531911182 | M98: 5.531911182
A99: 7 | H99: 6618.64686 | I99: 6618.64686 | J99: 1030.75 | K99: 1030.75 | L99: 6.42119511 | M99: 6.42119511
A100: 7 | H100: 27834.51576 | I100: 27834.51576 | J100: 1989.083333 | K100: 1989.083333 | L100: 13.99363983 | M100: 13.99363983
A101: 7 | H101: 19098.97632 | I101: 19098.97632 | J101: 1215.666667 | K101: 1215.666667 | L101: 15.71070166 | M101: 15.71070166
A102: 7 | H102: 10599.61868 | I102: 10599.61868 | J102: 664.75 | K102: 664.75 | L102: 15.94527067 | M102: 15.94527067
A103: 7 | H103: 16365.44138 | I103: 16365.44138 | J103: 829 | K103: 829 | L103: 19.74118381 | M103: 19.74118381
A104: 7 | H104: 14141.76088 | I104: 14141.76088 | J104: 769.1666667 | K104: 769.1666667 | L104: 18.3858213 | M104: 18.3858213
A105: 7 | H105: 34228.14534 | I105: 34228.14534 | J105: 1316.75 | K105: 1316.75 | L105: 25.99441454 | M105: 25.99441454
A106: 7 | H106: 13137.4847 | I106: 13137.4847 | J106: 957.25 | K106: 957.25 | L106: 13.72419399 | M106: 13.72419399
A107: 7 | H107: 11942.86902 | I107: 11942.86902 | J107: 1348.583333 | K107: 1348.583333 | L107: 8.855862834 | M107: 8.855862834
A108: 7 | H108: 7991.9671 | I108: 7991.9671 | J108: 591.75 | K108: 591.75 | L108: 13.50564782 | M108: 13.50564782
A109: 7 | H109: 15468.55168 | I109: 15468.55168 | J109: 1119.916667 | K109: 1119.916667 | L109: 13.81223455 | M109: 13.81223455
A110: 7 | H110: 16989.128 | I110: 16989.128 | J110: 1197.333333 | K110: 1197.333333 | L110: 14.18913808 | M110: 14.18913808
A111: 7 | H111: 5882.00096 | I111: 5882.00096 | J111: 189.6666667 | K111: 189.6666667 | L111: 31.01230735
A112: 7 | H112: 30682.46338 | I112: 30682.46338 | J112: 1190.5 | K112: 1190.5 | L112: 25.77275378 | M112: 25.77275378
A113: 7 | H113: 13629.64292 | I113: 13629.64292 | J113: 674.1666667 | K113: 674.1666667 | L113: 20.21702287 | M113: 20.21702287
A114: 7 | H114: 11882.51164 | I114: 11882.51164 | J114: 588.6666667 | K114: 588.6666667 | L114: 20.18546711 | M114: 20.18546711
A115: 7 | H115: 5527.02736 | I115: 5527.02736 | J115: 444.3333333 | K115: 444.3333333 | L115: 12.43892129 | M115: 12.43892129
A116: 7 | H116: 9223.52838 | I116: 9223.52838 | J116: 595.4166667 | K116: 595.4166667 | L116: 15.49088041 | M116: 15.49088041
A117: 7 | H117: 10377.67246 | I117: 10377.67246 | J117: 1146.583333 | K117: 1146.583333 | L117: 9.050953523 | M117: 9.050953523
A118: 7 | H118: 7856.83788 | I118: 7856.83788 | J118: 900.4166667 | K118: 900.4166667 | L118: 8.725780154 | M118: 8.725780154
A119: 7 | H119: 17350.4226 | I119: 17350.4226 | J119: 1194.416667 | K119: 1194.416667 | L119: 14.52627302 | M119: 14.52627302
A120: 7 | H120: 18482.82158 | I120: 18482.82158 | J120: 1628.083333 | K120: 1628.083333 | L120: 11.3525034 | M120: 11.3525034
A121: 7 | H121: 6348.6877 | I121: 6348.6877 | J121: 535.75 | K121: 535.75 | L121: 11.8500937 | M121: 11.8500937
A122: 7 | H122: 24094.4953 | I122: 24094.4953 | J122: 1802.083333 | K122: 1802.083333 | L122: 13.37035577 | M122: 13.37035577
A123: 7 | H123: 15284.4747 | I123: 15284.4747 | J123: 1241.166667 | K123: 1241.166667 | L123: 12.31460295 | M123: 12.31460295
A124: 7 | H124: 18811.04488 | I124: 18811.04488 | J124: 1305.75 | K124: 1305.75 | L124: 14.40631429 | M124: 14.40631429
A125: 7 | H125: 28422.64482 | I125: 28422.64482 | J125: 1216.5 | K125: 1216.5 | L125: 23.36427852 | M125: 23.36427852
A126: 7 | H126: 26991.73296 | I126: 26991.73296 | J126: 821.5833333 | K126: 821.5833333 | L126: 32.85331124
A127: 7 | H127: 2480.71128 | I127: 2480.71128 | J127: 226.6666667 | K127: 226.6666667 | L127: 10.94431447 | M127: 10.94431447
A128: 7 | H128: 17557.56478 | I128: 17557.56478 | J128: 1204.5 | K128: 1204.5 | L128: 14.57664158 | M128: 14.57664158
A129: 7 | H129: 8862.90974 | I129: 8862.90974 | J129: 606.6666667 | K129: 606.6666667 | L129: 14.60919188 | M129: 14.60919188
A130: 7 | H130: 7620.81518 | I130: 7620.81518 | J130: 516.25 | K130: 516.25 | L130: 14.7618696 | M130: 14.7618696
A131: 7 | H131: 35887.9333 | I131: 35887.9333 | J131: 1733.791667 | K131: 1733.791667 | L131: 20.69910358 | M131: 20.69910358
A132: 7 | H132: 25393.46596 | I132: 25393.46596 | J132: 1426.5 | K132: 1426.5 | L132: 17.80123797 | M132: 17.80123797
A133: 7 | H133: 6172.64226 | I133: 6172.64226 | J133: 1071.25 | K133: 1071.25 | L133: 5.762093125 | M133: 5.762093125
A134: 7 | H134: 4851.13358 | I134: 4851.13358 | J134: 545.75 | K134: 545.75 | L134: 8.88893006 | M134: 8.88893006
A135: 7 | H135: 32715.77428 | I135: 32715.77428 | J135: 1388.166667 | K135: 1388.166667 | L135: 23.56761264 | M135: 23.56761264
A136: 7 | H136: 5852.8332 | I136: 5852.8332 | J136: 332.8333333 | K136: 332.8333333 | L136: 17.58487692 | M136: 17.58487692
A137: 7
A138: 7 | H138: 11676.78416 | I138: 11676.78416 | J138: 530.1666667 | K138: 530.1666667 | L138: 22.02474221 | M138: 22.02474221
A139: 7 | H139: 11188.66622 | I139: 11188.66622 | J139: 641.6666667 | K139: 641.6666667 | L139: 17.43688242 | M139: 17.43688242
A140: 7 | H140: 8163.7865 | I140: 8163.7865 | J140: 808.8333333 | K140: 808.8333333 | L140: 10.09328642 | M140: 10.09328642
A141: 7 | H141: 15137.85674 | I141: 15137.85674 | J141: 911.5 | K141: 911.5 | L141: 16.60763219 | M141: 16.60763219
A142: 7 | H142: 14309.45744 | I142: 14309.45744 | J142: 915.5 | K142: 915.5 | L142: 15.6302102 | M142: 15.6302102
A143: 7 | H143: 15279.8823 | I143: 15279.8823 | J143: 965.1666667 | K143: 965.1666667 | L143: 15.83134067 | M143: 15.83134067
A144: 7 | H144: 34747.16996 | I144: 34747.16996 | J144: 1188.583333 | K144: 1188.583333 | L144: 29.23410499
A145: 7 | H145: 13120.1729 | I145: 13120.1729 | J145: 911.75 | K145: 911.75 | L145: 14.39009915 | M145: 14.39009915
A146: 7 | H146: 18785.53642 | I146: 18785.53642 | J146: 666.8333333 | K146: 666.8333333 | L146: 28.17126181 | M146: 28.17126181
A147: 7 | H147: 17491.65352 | I147: 17491.65352 | J147: 914.5 | K147: 914.5 | L147: 19.12701314 | M147: 19.12701314
A148: 7 | H148: 9295.98768 | I148: 9295.98768 | J148: 486 | K148: 486 | L148: 19.12754667 | M148: 19.12754667
A149: 7 | H149: 16824.35397 | I149: 16824.35397 | J149: 984.4285714 | K149: 984.4285714 | L149: 17.09047711 | M149: 17.09047711
A150: 7 | H150: 24016.33042 | I150: 24016.33042 | J150: 1397 | K150: 1397 | L150: 17.19136036 | M150: 17.19136036
A151: 7 | H151: 8825.62444 | I151: 8825.62444 | J151: 529.75 | K151: 529.75 | L151: 16.65998007 | M151: 16.65998007
A152: 7 | H152: 25777.2831 | I152: 25777.2831 | J152: 1314.166667 | K152: 1314.166667 | L152: 19.6149269 | M152: 19.6149269
A153: 7 | H153: 28512.84506 | I153: 28512.84506 | J153: 1451.416667 | K153: 1451.416667 | L153: 19.64483784 | M153: 19.64483784
A154: 7 | H154: 29432.44478 | I154: 29432.44478 | J154: 1498.75 | K154: 1498.75 | L154: 19.63799485 | M154: 19.63799485
A155: 7 | H155: 11670.46918 | I155: 11670.46918 | J155: 538.6666667 | K155: 538.6666667 | L155: 21.66547496 | M155: 21.66547496
A156: 7 | H156: 10826.2605 | I156: 10826.2605 | J156: 619.1666667 | K156: 619.1666667 | L156: 17.48521211 | M156: 17.48521211
A157: 7 | H157: 7144.13438 | I157: 7144.13438 | J157: 719 | K157: 719 | L157: 9.936209152 | M157: 9.936209152
A158: 7 | H158: 6748.40194 | I158: 6748.40194 | J158: 437.5833333 | K158: 437.5833333 | L158: 15.4219812 | M158: 15.4219812
A159: 7 | H159: 5315.50864 | I159: 5315.50864 | J159: 841.1666667 | K159: 841.1666667 | L159: 6.319209796 | M159: 6.319209796
A160: 7 | H160: 27541.5645 | I160: 27541.5645 | J160: 1353.166667 | K160: 1353.166667 | L160: 20.35341631 | M160: 20.35341631
A161: 7 | H161: 19992.32282 | I161: 19992.32282 | J161: 1283.666667 | K161: 1283.666667 | L161: 15.57438807 | M161: 15.57438807
A162: 7 | H162: 14483.23248 | I162: 14483.23248 | J162: 872.9166667 | K162: 872.9166667 | L162: 16.59176991 | M162: 16.59176991
A163: 7 | H163: 16952.07748 | I163: 16952.07748 | J163: 1252.833333 | K163: 1252.833333 | L163: 13.53099174 | M163: 13.53099174
A164: 7 | H164: 19823.96664 | I164: 19823.96664 | J164: 1270 | K164: 1270 | L164: 15.60942255 | M164: 15.60942255
A165: 7 | H165: 10807.8049 | I165: 10807.8049 | J165: 643.3333333 | K165: 643.3333333 | L165: 16.79969674 | M165: 16.79969674
A166: 7 | H166: 10021.65654 | I166: 10021.65654 | J166: 831.8333333 | K166: 831.8333333 | L166: 12.04767366 | M166: 12.04767366
A167: 7 | H167: 18333.83518 | I167: 18333.83518 | J167: 1267.5 | K167: 1267.5 | L167: 14.46456424 | M167: 14.46456424
A168: 7 | H168: 4670.64366 | I168: 4670.64366 | J168: 323.75 | K168: 323.75 | L168: 14.42669856 | M168: 14.42669856
A169: 7 | H169: 23267.9149 | I169: 23267.9149 | J169: 1027.583333 | K169: 1027.583333 | L169: 22.64333621 | M169: 22.64333621
A170: 7 | H170: 9140.87636 | I170: 9140.87636 | J170: 615.5 | K170: 615.5 | L170: 14.8511395 | M170: 14.8511395
A171: 7 | H171: 12087.3946 | I171: 12087.3946 | J171: 642.5833333 | K171: 642.5833333 | L171: 18.81062576 | M171: 18.81062576
A172: 7 | H172: 7527.2962 | I172: 7527.2962 | J172: 885.3333333 | K172: 885.3333333 | L172: 8.502217093 | M172: 8.502217093
A173: 7 | H173: 16093.25396 | I173: 16093.25396 | J173: 894.6666667 | K173: 894.6666667 | L173: 17.98798878 | M173: 17.98798878
A174: 7 | H174: 10983.39798 | I174: 10983.39798 | J174: 814 | K174: 814 | L174: 13.49311791 | M174: 13.49311791
A175: 7 | H175: 5970.2834 | I175: 5970.2834 | J175: 482 | K175: 482 | L175: 12.38648008 | M175: 12.38648008
A176: 7
A177: 7 | H177: 12442.92204 | I177: 12442.92204 | J177: 982.5 | K177: 982.5 | L177: 12.66455169 | M177: 12.66455169
A178: 7 | H178: 10014.27086 | I178: 10014.27086 | J178: 753.5 | K178: 753.5 | L178: 13.29033956 | M178: 13.29033956
A179: 7 | H179: 7248.21072 | I179: 7248.21072 | J179: 494 | K179: 494 | L179: 14.67249134 | M179: 14.67249134
A180: 7 | H180: 3965.7524 | I180: 3965.7524 | J180: 744.9166667 | K180: 744.9166667 | L180: 5.323753082 | M180: 5.323753082
A181: 7 | H181: 14463.74574 | I181: 14463.74574 | J181: 1201.333333 | K181: 1201.333333 | L181: 12.03974396 | M181: 12.03974396
A182: 7 | H182: 8711.0776 | I182: 8711.0776 | J182: 625.1666667 | K182: 625.1666667 | L182: 13.93400842 | M182: 13.93400842
A183: 7 | H183: 14433.97856 | I183: 14433.97856 | J183: 1016.083333 | K183: 1016.083333 | L183: 14.20550666 | M183: 14.20550666
A184: 7 | H184: 18528.15992 | I184: 18528.15992 | J184: 940.5 | K184: 940.5 | L184: 19.70032953 | M184: 19.70032953
A185: 7 | H185: 7785.85778 | I185: 7785.85778 | J185: 315.0833333 | K185: 315.0833333 | L185: 24.71047166 | M185: 24.71047166
A186: 7 | H186: 10755.99764 | I186: 10755.99764 | J186: 682.3333333 | K186: 682.3333333 | L186: 15.76355297 | M186: 15.76355297
A187: 7 | H187: 17243.74476 | I187: 17243.74476 | J187: 678 | K187: 678 | L187: 25.43325186 | M187: 25.43325186
A188: 7 | H188: 27465.10792 | I188: 27465.10792 | J188: 1246.583333 | K188: 1246.583333 | L188: 22.03230798 | M188: 22.03230798
A189: 7 | H189: 9605.67196 | I189: 9605.67196 | J189: 732.6666667 | K189: 732.6666667 | L189: 13.11056227 | M189: 13.11056227
A190: 7 | H190: 10887.20526 | I190: 10887.20526 | J190: 835.5 | K190: 835.5 | L190: 13.03076632 | M190: 13.03076632
A191: 7 | H191: 23985.46794 | I191: 23985.46794 | J191: 869.5833333 | K191: 869.5833333 | L191: 27.58271349 | M191: 27.58271349
A192: 7 | H192: 6766.781 | I192: 6766.781 | J192: 521.5833333 | K192: 521.5833333 | L192: 12.97353763 | M192: 12.97353763
A193: 7 | H193: 11926.12224 | I193: 11926.12224 | J193: 923.0833333 | K193: 923.0833333 | L193: 12.91987604 | M193: 12.91987604
A194: 7 | H194: 7370.27482 | I194: 7370.27482 | J194: 595.6666667 | K194: 595.6666667 | L194: 12.37315303 | M194: 12.37315303
A195: 7 | H195: 16196.74722 | I195: 16196.74722 | J195: 869.9166667 | K195: 869.9166667 | L195: 18.61873423 | M195: 18.61873423
A196: 7 | H196: 17185.08416 | I196: 17185.08416 | J196: 1132.416667 | K196: 1132.416667 | L196: 15.17558392 | M196: 15.17558392
A197: 7 | H197: 8973.2572 | I197: 8973.2572 | J197: 593.3333333 | K197: 593.3333333 | L197: 15.12346719 | M197: 15.12346719
A198: 7 | H198: 9181.11404 | I198: 9181.11404 | J198: 649.5 | K198: 649.5 | L198: 14.13566442 | M198: 14.13566442
A199: 7 | H199: 13159.89716 | I199: 13159.89716 | J199: 713.6666667 | K199: 713.6666667 | L199: 18.43983722 | M199: 18.43983722
A200: 7 | H200: 16153.30088 | I200: 16153.30088 | J200: 810.25 | K200: 810.25 | L200: 19.93619362 | M200: 19.93619362
... 672 more rows

Sheet KOSZTY_RESZTA (hidden)
A1: KAT_MED | H1: KOSZTY_RESZTA_mc | I1: KOSZTY_RESZTA_mc_odciete | J1: LOZKA_OPK | K1: LOZKA_OPK_odciete | L1: sr_KOSZTY_RESZTA_mc | M1: sr_KOSZTY_RESZTA_mc_odciete | O1: KAT_MED | P1: liczba_lozek | Q1: metoda 1 - średni koszt | R1: metoda 2 - średni koszt odcięte | S1: metoda 3 - regresja liniowa | T1: metoda 4 - regresja liniowa odcięte | V1: liczba łóżek | W1: obłożenie | X1: liczba dni w mc | Z1: Liczba opk | AA1: Liczba szpitali | AB1: Liczba opk po odcięciach | AC1: Liczba szpitali po odcięciach
A2: 6 | H2: 13924.15525 | I2: 13924.15525 | J2: 18 | K2: 18 | L2: 773.5641807 | M2: 773.5641807 | O2: 6 | P2: =V2*(X2/31) -> 450 | Q2: =IFERROR(SUMIFS(L:L,A:A,O2)/COUNTIFS(A:A,O2,L:L,">0")*P2,0) -> 707067.5234 | R2: =IFERROR(SUMIFS(M:M,A:A,O2)/COUNTIFS(A:A,O2,M:M,">0")*P2,0) -> 674695.6669 | S2: =IF(P2=0,0,IFERROR(FORECAST(P2,H2:H55,J2:J55),0)) -> 463407.1856 | T2: =IF(P2=0,0,IFERROR(FORECAST(P2,I2:I55,K2:K55),0)) -> 452973.324 | V2: =ZALOZENIA!B3 -> 450 | W2: =ZALOZENIA!C3 -> 0.8 | X2: =ZALOZENIA!D3 -> 31 | Z2: 54 | AA2: 35 | AB2: 52 | AC2: 34
A3: 6 | H3: 46098.72493 | I3: 46098.72493 | J3: 20 | K3: 20 | L3: 2304.936246 | M3: 2304.936246 | O3: 7 | P3: 0 | Q3: 0 | R3: 0 | S3: =IF(P3=0,0,IFERROR(FORECAST(P3,H56:H228,J56:J228),"")) -> 0 | T3: =IF(P3=0,0,IFERROR(FORECAST(P3,I56:I228,K56:K228),"")) -> 0 | V3: =ZALOZENIA!B4 -> 0 | W3: =ZALOZENIA!C4 -> 0.9 | X3: =ZALOZENIA!D4 -> 31 | Z3: 173 | AA3: 125 | AB3: 164 | AC3: 120
A4: 6 | H4: 57147.63296 | I4: 57147.63296 | J4: 40 | K4: 40 | L4: 1428.690824 | M4: 1428.690824 | O4: 18 | P4: 50 | Q4: 334981.3174 | R4: 318402.5083 | S4: =IF(P4=0,0,IFERROR(FORECAST(P4,H229:H426,J229:J426),"")) -> 229773.6529 | T4: =IF(P4=0,0,IFERROR(FORECAST(P4,I229:I426,K229:K426),"")) -> 178188.2685 | V4: =ZALOZENIA!B5 -> 50 | W4: =ZALOZENIA!C5 -> 0.8 | X4: =ZALOZENIA!D5 -> 31 | Z4: 198 | AA4: 156 | AB4: 194 | AC4: 155
A5: 6 | H5: 67687.1428 | I5: 67687.1428 | J5: 23 | K5: 23 | L5: 2942.919252 | M5: 2942.919252 | O5: 43 | P5: 0 | Q5: 0 | R5: 0 | S5: =IF(P5=0,0,IFERROR(FORECAST(P5,H427:H550,J427:J550),"")) -> 0 | T5: =IF(P5=0,0,IFERROR(FORECAST(P5,I427:I550,K427:K550),"")) -> 0 | V5: =ZALOZENIA!B6 -> 0 | W5: =ZALOZENIA!C6 -> 0.9 | X5: =ZALOZENIA!D6 -> 31 | Z5: 121 | AA5: 93 | AB5: 119 | AC5: 91
A6: 6 | H6: 20713.19976 | I6: 20713.19976 | J6: 22 | K6: 22 | L6: 941.50908 | M6: 941.50908 | O6: b | P6: 5 | Q6: 111384.0194 | R6: 104389.8876 | S6: =IF(P6=0,0,IFERROR(FORECAST(P6,H551:H766,J551:J766),"")) -> 115261.7353 | T6: =IF(P6=0,0,IFERROR(FORECAST(P6,I551:I766,K551:K766),"")) -> 100544.5604 | V6: =ZALOZENIA!B10 -> 5 | W6: =ZALOZENIA!C10/8 -> 1 | X6: =ZALOZENIA!D10 -> 31 | Z6: 216 | AA6: 181 | AB6: 209 | AC6: 176
A7: 6 | H7: 69746.04902 | I7: 69746.04902 | J7: 35 | K7: 35 | L7: 1992.744258 | M7: 1992.744258 | O7: 8 | P7: 5 | Q7: 49136.90228 | R7: 40901.96375 | S7: =IF(P7=0,0,IFERROR(FORECAST(P7,H767:H842,J767:J842),"")) -> 61329.21112 | T7: =IF(P7=0,0,IFERROR(FORECAST(P7,I767:I842,K767:K842),"")) -> 52043.87404 | V7: =ZALOZENIA!B7 -> 5 | W7: =ZALOZENIA!C7 -> nd | X7: =ZALOZENIA!D7 -> 31 | Z7: 76 | AA7: 72 | AB7: 71 | AC7: 68
A8: 6 | H8: 47502.93334 | I8: 47502.93334 | J8: 30 | K8: 30 | L8: 1583.431111 | M8: 1583.431111 | Q8: =SUM(Q2:Q7) -> 1202569.763 | R8: =SUM(R2:R7) -> 1138390.027 | S8: 869771.785 | T8: 783750.027
A9: 6 | H9: 49835.83384 | I9: 49835.83384 | J9: 25 | K9: 25 | L9: 1993.433354 | M9: 1993.433354
A10: 6 | H10: 30448.07554 | I10: 30448.07554 | J10: 20 | K10: 20 | L10: 1522.403777 | M10: 1522.403777
A11: 6 | H11: 22382.43138 | I11: 22382.43138 | J11: 15 | K11: 15 | L11: 1492.162092 | M11: 1492.162092
A12: 6 | H12: 44658.78864 | I12: 44658.78864 | J12: 36 | K12: 36 | L12: 1240.521907 | M12: 1240.521907
A13: 6 | H13: 42183.85312 | I13: 42183.85312 | J13: 21 | K13: 21 | L13: 2008.75491 | M13: 2008.75491
A14: 6 | H14: 21296.17054 | I14: 21296.17054 | J14: 21 | K14: 21 | L14: 1014.103359 | M14: 1014.103359
A15: 6 | H15: 30334.62262 | I15: 30334.62262 | J15: 34 | K15: 34 | L15: 892.1947829 | M15: 892.1947829
A16: 6 | H16: 47411.75786 | I16: 47411.75786 | J16: 32 | K16: 32 | L16: 1481.617433 | M16: 1481.617433
A17: 6 | H17: 51372.75274 | I17: 51372.75274 | J17: 45 | K17: 45 | L17: 1141.616728 | M17: 1141.616728
A18: 6 | H18: 51178.6559 | I18: 51178.6559 | J18: 42 | K18: 42 | L18: 1218.539426 | M18: 1218.539426
A19: 6 | H19: 56053.54698 | I19: 56053.54698 | J19: 42 | K19: 42 | L19: 1334.608261 | M19: 1334.608261
A20: 6 | H20: 49810.42772 | I20: 49810.42772 | J20: 40 | K20: 40 | L20: 1245.260693 | M20: 1245.260693
A21: 6 | H21: 47118.90292 | I21: 47118.90292 | J21: 37 | K21: 37 | L21: 1273.483863 | M21: 1273.483863
A22: 6 | H22: 34845.90054 | I22: 34845.90054 | J22: 17 | K22: 17 | L22: 2049.758855 | M22: 2049.758855
A23: 6 | H23: 31583.54472 | I23: 31583.54472 | J23: 17 | K23: 17 | L23: 1857.855572 | M23: 1857.855572
A24: 6 | H24: 51270.83328 | I24: 51270.83328 | J24: 38 | K24: 38 | L24: 1349.232455 | M24: 1349.232455
A25: 6 | H25: 68553.98926 | I25: 68553.98926 | J25: 60 | K25: 60 | L25: 1142.566488 | M25: 1142.566488 | N25: odstające
A26: 6 | H26: 67181.83891 | I26: 67181.83891 | J26: 38 | K26: 38 | L26: 1767.943129 | M26: 1767.943129
A27: 6 | H27: 39457.17238 | I27: 39457.17238 | J27: 19 | K27: 19 | L27: 2076.693283 | M27: 2076.693283
A28: 6 | H28: 26760.85564 | I28: 26760.85564 | J28: 21 | K28: 21 | L28: 1274.326459 | M28: 1274.326459
A29: 6 | H29: 12957.7103 | I29: 12957.7103 | J29: 11 | K29: 11 | L29: 1177.973664 | M29: 1177.973664
A30: 6 | H30: 58253.01676 | I30: 58253.01676 | J30: 35 | K30: 35 | L30: 1664.371907 | M30: 1664.371907
A31: 6 | H31: 15969.99613 | I31: 15969.99613 | J31: 38 | K31: 38 | L31: 420.263056 | M31: 420.263056
A32: 6 | H32: 52599.70007 | I32: 52599.70007 | J32: 34 | K32: 34 | L32: 1547.050002 | M32: 1547.050002
A33: 6 | H33: 32788.55345 | I33: 32788.55345 | J33: 20 | K33: 20 | L33: 1639.427672 | M33: 1639.427672
A34: 6 | H34: 17649.92878 | I34: 17649.92878 | J34: 30 | K34: 30 | L34: 588.3309593 | M34: 588.3309593
A35: 6 | H35: 37087.23254 | I35: 37087.23254 | J35: 36.13 | K35: 36.13 | L35: 1026.49412 | M35: 1026.49412
A36: 6 | H36: 23706.91136 | I36: 23706.91136 | J36: 33.87 | K36: 33.87 | L36: 699.9383336 | M36: 699.9383336
A37: 6 | H37: 19819.70448 | I37: 19819.70448 | J37: 15 | K37: 15 | L37: 1321.313632 | M37: 1321.313632
A38: 6 | H38: 16880.90732 | I38: 16880.90732 | J38: 21 | K38: 21 | L38: 803.8527295 | M38: 803.8527295
A39: 6 | H39: 25399.85318 | I39: 25399.85318 | J39: 24 | K39: 24 | L39: 1058.327216 | M39: 1058.327216
A40: 6 | H40: 22889.15112 | I40: 22889.15112 | J40: 24 | K40: 24 | L40: 953.71463 | M40: 953.71463
A41: 6 | H41: 34486.83592 | I41: 34486.83592 | J41: 26 | K41: 26 | L41: 1326.416766 | M41: 1326.416766
A42: 6 | H42: 99647.10145 | J42: 29 | L42: 3436.106947
A43: 6 | H43: 67855.8705 | I43: 67855.8705 | J43: 35 | K43: 35 | L43: 1938.739157 | M43: 1938.739157
A44: 6 | H44: 65494.92282 | I44: 65494.92282 | J44: 30 | K44: 30 | L44: 2183.164094 | M44: 2183.164094
A45: 6 | H45: 30983.09874 | I45: 30983.09874 | J45: 15 | K45: 15 | L45: 2065.539916 | M45: 2065.539916
A46: 6 | H46: 29415.02806 | I46: 29415.02806 | J46: 32 | K46: 32 | L46: 919.2196269 | M46: 919.2196269
A47: 6 | H47: 20572.8555 | I47: 20572.8555 | J47: 20 | K47: 20 | L47: 1028.642775 | M47: 1028.642775
A48: 6 | H48: 55757.78333 | I48: 55757.78333 | J48: 29 | K48: 29 | L48: 1922.682184 | M48: 1922.682184
A49: 6 | H49: 59703.08333 | I49: 59703.08333 | J49: 28 | K49: 28 | L49: 2132.252976 | M49: 2132.252976
A50: 6 | H50: 30225.0325 | I50: 30225.0325 | J50: 19 | K50: 19 | L50: 1590.791184 | M50: 1590.791184
A51: 6 | H51: 51375.20583 | I51: 51375.20583 | J51: 24 | K51: 24 | L51: 2140.633576 | M51: 2140.633576
A52: 6 | H52: 99967.73417 | J52: 29 | L52: 3447.163247
A53: 6 | H53: 47987.515 | I53: 47987.515 | J53: 15 | K53: 15 | L53: 3199.167667 | M53: 3199.167667
A54: 6 | H54: 36748.64833 | I54: 36748.64833 | J54: 23 | K54: 23 | L54: 1597.767319 | M54: 1597.767319
A55: 6 | H55: 61933.77 | I55: 61933.77 | J55: 37 | K55: 37 | L55: 1673.885676 | M55: 1673.885676
A56: 7 | H56: 30854.55385 | I56: 30854.55385 | J56: 25 | K56: 25 | L56: 1234.182154 | M56: 1234.182154
A57: 7 | H57: 46185.59931 | I57: 46185.59931 | J57: 35 | K57: 35 | L57: 1319.588552 | M57: 1319.588552
A58: 7 | H58: 42868.14294 | I58: 42868.14294 | J58: 40 | K58: 40 | L58: 1071.703574 | M58: 1071.703574
A59: 7 | H59: 58024.7563 | I59: 58024.7563 | J59: 45 | K59: 45 | L59: 1289.439029 | M59: 1289.439029
A60: 7 | H60: 49106.82443 | I60: 49106.82443 | J60: 47 | K60: 47 | L60: 1044.826052 | M60: 1044.826052
A61: 7 | H61: 21162.20811 | I61: 21162.20811 | J61: 31 | K61: 31 | L61: 682.6518744 | M61: 682.6518744
A62: 7 | H62: 32784.00683 | I62: 32784.00683 | J62: 45 | K62: 45 | L62: 728.5334851 | M62: 728.5334851
A63: 7 | H63: 149350.4132 | J63: 39 | L63: 3829.497775
A64: 7 | H64: 80242.76738 | I64: 80242.76738 | J64: 38 | K64: 38 | L64: 2111.651773 | M64: 2111.651773
A65: 7 | H65: 87077.60188 | I65: 87077.60188 | J65: 42 | K65: 42 | L65: 2073.276235 | M65: 2073.276235
A66: 7 | H66: 88820.40442 | I66: 88820.40442 | J66: 65 | K66: 65 | L66: 1366.46776 | M66: 1366.46776
A67: 7 | H67: 39617.22483 | I67: 39617.22483 | J67: 21 | K67: 21 | L67: 1886.534516 | M67: 1886.534516
A68: 7 | H68: 78117.48108 | I68: 78117.48108 | J68: 21 | K68: 21 | L68: 3719.880051
A69: 7 | H69: 99390.6574 | I69: 99390.6574 | J69: 99 | K69: 99 | L69: 1003.946034 | M69: 1003.946034
A70: 7 | H70: 43485.9549 | I70: 43485.9549 | J70: 43 | K70: 43 | L70: 1011.301277 | M70: 1011.301277
A71: 7 | H71: 74739.1178 | I71: 74739.1178 | J71: 29 | K71: 29 | L71: 2577.210959 | M71: 2577.210959
A72: 7 | H72: 86106.55815 | I72: 86106.55815 | J72: 47 | K72: 47 | L72: 1832.054429 | M72: 1832.054429
A73: 7 | H73: 75789.69666 | I73: 75789.69666 | J73: 39 | K73: 39 | L73: 1943.325555 | M73: 1943.325555
A74: 7 | H74: 38753.63459 | I74: 38753.63459 | J74: 35 | K74: 35 | L74: 1107.246703 | M74: 1107.246703
A75: 7 | H75: 121986.8617 | I75: 121986.8617 | J75: 81 | K75: 81 | L75: 1506.010638 | M75: 1506.010638
A76: 7 | H76: 69569.78944 | I76: 69569.78944 | J76: 62 | K76: 62 | L76: 1122.093378 | M76: 1122.093378
A77: 7 | H77: 51902.27796 | I77: 51902.27796 | J77: 29 | K77: 29 | L77: 1789.733723 | M77: 1789.733723
A78: 7 | H78: 46121.28744 | I78: 46121.28744 | J78: 30 | K78: 30 | L78: 1537.376248 | M78: 1537.376248
A79: 7 | H79: 311288.1327 | J79: 67 | L79: 4646.091533
A80: 7 | H80: 56313.23946 | I80: 56313.23946 | J80: 40 | K80: 40 | L80: 1407.830987 | M80: 1407.830987
A81: 7 | H81: 61853.10834 | I81: 61853.10834 | J81: 32 | K81: 32 | L81: 1932.909636 | M81: 1932.909636
A82: 7 | H82: 59620.45976 | I82: 59620.45976 | J82: 41.2 | K82: 41.2 | L82: 1447.098538 | M82: 1447.098538
A83: 7 | H83: 79517.20304 | I83: 79517.20304 | J83: 48 | K83: 48 | L83: 1656.608397 | M83: 1656.608397
A84: 7 | H84: 40399.96329 | I84: 40399.96329 | J84: 29 | K84: 29 | L84: 1393.102183 | M84: 1393.102183
A85: 7 | H85: 39433.27763 | I85: 39433.27763 | J85: 51.84931507 | K85: 51.84931507 | L85: 760.536134 | M85: 760.536134
A86: 7 | H86: 73172.6356 | I86: 73172.6356 | J86: 51 | K86: 51 | L86: 1434.757561 | M86: 1434.757561
A87: 7 | H87: 75684.60444 | I87: 75684.60444 | J87: 62 | K87: 62 | L87: 1220.719426 | M87: 1220.719426
A88: 7 | H88: 56696.7341 | I88: 56696.7341 | J88: 20 | K88: 20 | L88: 2834.836705 | M88: 2834.836705
A89: 7 | H89: 60013.47374 | I89: 60013.47374 | J89: 34 | K89: 34 | L89: 1765.102169 | M89: 1765.102169
A90: 7 | H90: 50853.4512 | I90: 50853.4512 | J90: 30 | K90: 30 | L90: 1695.11504 | M90: 1695.11504
A91: 7 | H91: 8873.80336 | I91: 8873.80336 | J91: 27 | K91: 27 | L91: 328.6593837 | M91: 328.6593837
A92: 7 | H92: 101469.2509 | I92: 101469.2509 | J92: 36 | K92: 36 | L92: 2818.590302 | M92: 2818.590302
A93: 7 | H93: 54655.54388 | I93: 54655.54388 | J93: 50 | K93: 50 | L93: 1093.110878 | M93: 1093.110878
A94: 7 | H94: 142623.7794 | J94: 91 | L94: 1567.29428 | M94: 1567.29428
A95: 7 | H95: 70371.97508 | I95: 70371.97508 | J95: 35 | K95: 35 | L95: 2010.627859 | M95: 2010.627859
A96: 7 | H96: 99291.45136 | I96: 99291.45136 | J96: 66 | K96: 66 | L96: 1504.41593 | M96: 1504.41593
A97: 7 | H97: 91218.51784 | I97: 91218.51784 | J97: 36 | K97: 36 | L97: 2533.847718 | M97: 2533.847718
A98: 7 | H98: 75894.86068 | I98: 75894.86068 | J98: 49 | K98: 49 | L98: 1548.874708 | M98: 1548.874708
A99: 7 | H99: 104883.4087 | I99: 104883.4087 | J99: 33 | K99: 33 | L99: 3178.285113 | M99: 3178.285113
A100: 7 | H100: 77369.89054 | I100: 77369.89054 | J100: 83 | K100: 83 | L100: 932.1673559 | M100: 932.1673559
A101: 7 | H101: 87685.70234 | I101: 87685.70234 | J101: 40 | K101: 40 | L101: 2192.142559 | M101: 2192.142559
A102: 7 | H102: 72034.18136 | I102: 72034.18136 | J102: 29 | K102: 29 | L102: 2483.937288 | M102: 2483.937288
A103: 7 | H103: 41611.82412 | I103: 41611.82412 | J103: 32 | K103: 32 | L103: 1300.369504 | M103: 1300.369504
A104: 7 | H104: 84267.67276 | I104: 84267.67276 | J104: 34 | K104: 34 | L104: 2478.460964 | M104: 2478.460964
A105: 7 | H105: 72721.30932 | I105: 72721.30932 | J105: 60 | K105: 60 | L105: 1212.021822 | M105: 1212.021822
A106: 7 | H106: 43907.59326 | I106: 43907.59326 | J106: 32 | K106: 32 | L106: 1372.112289 | M106: 1372.112289
A107: 7 | H107: 52963.88862 | I107: 52963.88862 | J107: 45 | K107: 45 | L107: 1176.975303 | M107: 1176.975303
A108: 7 | H108: 34632.11486 | I108: 34632.11486 | J108: 33 | K108: 33 | L108: 1049.458026 | M108: 1049.458026
A109: 7 | H109: 82291.17002 | I109: 82291.17002 | J109: 51 | K109: 51 | L109: 1613.552353 | M109: 1613.552353
A110: 7 | H110: 74897.62704 | I110: 74897.62704 | J110: 51 | K110: 51 | L110: 1468.580922 | M110: 1468.580922
A111: 7 | H111: 21628.73168 | I111: 21628.73168 | J111: 24 | K111: 24 | L111: 901.1971533 | M111: 901.1971533
A112: 7 | H112: 130479.9895 | I112: 130479.9895 | J112: 62 | K112: 62 | L112: 2104.515959 | M112: 2104.515959
A113: 7 | H113: 60426.85166 | I113: 60426.85166 | J113: 32 | K113: 32 | L113: 1888.339114 | M113: 1888.339114
A114: 7 | H114: 40082.26166 | I114: 40082.26166 | J114: 23 | K114: 23 | L114: 1742.707029 | M114: 1742.707029
A115: 7 | H115: 49220.29753 | I115: 49220.29753 | J115: 35 | K115: 35 | L115: 1406.294215 | M115: 1406.294215
A116: 7 | H116: 53428.30453 | I116: 53428.30453 | J116: 35 | K116: 35 | L116: 1526.522987 | M116: 1526.522987
A117: 7 | H117: 83790.86812 | I117: 83790.86812 | J117: 42 | K117: 42 | L117: 1995.02067 | M117: 1995.02067
A118: 7 | H118: 67785.0968 | I118: 67785.0968 | J118: 31 | K118: 31 | L118: 2186.616026 | M118: 2186.616026
A119: 7 | H119: 79859.8021 | I119: 79859.8021 | J119: 42 | K119: 42 | L119: 1901.42386 | M119: 1901.42386
A120: 7 | H120: 47185.15904 | I120: 47185.15904 | J120: 75 | K120: 75 | L120: 629.1354539 | M120: 629.1354539
A121: 7 | H121: 52618.0852 | I121: 52618.0852 | J121: 31 | K121: 31 | L121: 1697.357587 | M121: 1697.357587
A122: 7 | H122: 118074.5859 | I122: 118074.5859 | J122: 65 | K122: 65 | L122: 1816.53209 | M122: 1816.53209
A123: 7 | H123: 64262.5411 | I123: 64262.5411 | J123: 41 | K123: 41 | L123: 1567.379051 | M123: 1567.379051
A124: 7 | H124: 110333.3474 | I124: 110333.3474 | J124: 54 | K124: 54 | L124: 2043.210137 | M124: 2043.210137
A125: 7 | H125: 33183.86884 | I125: 33183.86884 | J125: 50 | K125: 50 | L125: 663.6773768 | M125: 663.6773768
A126: 7 | H126: 74079.3379 | I126: 74079.3379 | J126: 50 | K126: 50 | L126: 1481.586758 | M126: 1481.586758
A127: 7 | H127: 14900.01428 | I127: 14900.01428 | J127: 20 | K127: 20 | L127: 745.000714 | M127: 745.000714
A128: 7 | H128: 80152.70262 | I128: 80152.70262 | J128: 66 | K128: 66 | L128: 1214.434888 | M128: 1214.434888
A129: 7 | H129: 32175.84134 | I129: 32175.84134 | J129: 23 | K129: 23 | L129: 1398.949623 | M129: 1398.949623
A130: 7 | H130: 30809.3323 | I130: 30809.3323 | J130: 27 | K130: 27 | L130: 1141.086381 | M130: 1141.086381
A131: 7 | H131: 37733.30238 | I131: 37733.30238 | J131: 72 | K131: 72 | L131: 524.0736442 | M131: 524.0736442
A132: 7 | H132: 81857.509 | I132: 81857.509 | J132: 65 | K132: 65 | L132: 1259.346292 | M132: 1259.346292
A133: 7 | H133: 126036.1127 | I133: 126036.1127 | J133: 37 | K133: 37 | L133: 3406.381424
A134: 7 | H134: 75701.5826 | I134: 75701.5826 | J134: 29 | K134: 29 | L134: 2610.3994 | M134: 2610.3994
A135: 7 | H135: 64830.59427 | I135: 64830.59427 | J135: 53 | K135: 53 | L135: 1223.21876 | M135: 1223.21876
A136: 7 | H136: 16226.94173 | I136: 16226.94173 | J136: 16 | K136: 16 | L136: 1014.183858 | M136: 1014.183858
A137: 7 | H137: 56737.33298 | I137: 56737.33298 | J137: 60 | K137: 60 | L137: 945.6222163 | M137: 945.6222163
A138: 7 | H138: 22133.175 | I138: 22133.175 | J138: 15 | K138: 15 | L138: 1475.545 | M138: 1475.545
A139: 7 | H139: 41160.3396 | I139: 41160.3396 | J139: 31 | K139: 31 | L139: 1327.75289 | M139: 1327.75289
A140: 7 | H140: 18857.9682 | I140: 18857.9682 | J140: 30 | K140: 30 | L140: 628.59894 | M140: 628.59894
A141: 7 | H141: 55331.13322 | I141: 55331.13322 | J141: 35 | K141: 35 | L141: 1580.889521 | M141: 1580.889521
A142: 7 | H142: 49705.84226 | I142: 49705.84226 | J142: 31 | K142: 31 | L142: 1603.414266 | M142: 1603.414266
A143: 7 | H143: 49597.25522 | I143: 49597.25522 | J143: 32 | K143: 32 | L143: 1549.914226 | M143: 1549.914226
A144: 7 | H144: 77377.42844 | I144: 77377.42844 | J144: 41 | K144: 41 | L144: 1887.254352 | M144: 1887.254352
A145: 7 | H145: 56860.2932 | I145: 56860.2932 | J145: 46 | K145: 46 | L145: 1236.09333 | M145: 1236.09333
A146: 7 | H146: 49041.77778 | I146: 49041.77778 | J146: 23 | K146: 23 | L146: 2132.251208 | M146: 2132.251208
A147: 7 | H147: 107510.6511 | I147: 107510.6511 | J147: 37.25 | K147: 37.25 | L147: 2886.191976 | M147: 2886.191976
A148: 7 | H148: 39573.02187 | I148: 39573.02187 | J148: 35 | K148: 35 | L148: 1130.657768 | M148: 1130.657768
A149: 7 | H149: 45861.22934 | I149: 45861.22934 | J149: 35 | K149: 35 | L149: 1310.320838 | M149: 1310.320838
A150: 7 | H150: 89022.55531 | I150: 89022.55531 | J150: 60 | K150: 60 | L150: 1483.709255 | M150: 1483.709255
A151: 7 | H151: 37809.66952 | I151: 37809.66952 | J151: 24 | K151: 24 | L151: 1575.402897 | M151: 1575.402897
A152: 7 | H152: 100445.813 | I152: 100445.813 | J152: 50 | K152: 50 | L152: 2008.91626 | M152: 2008.91626
A153: 7 | H153: 113061.1668 | I153: 113061.1668 | J153: 57 | K153: 57 | L153: 1983.529242 | M153: 1983.529242
A154: 7 | H154: 109358.1452 | I154: 109358.1452 | J154: 59 | K154: 59 | L154: 1853.527885 | M154: 1853.527885
A155: 7 | H155: 70940.24502 | I155: 70940.24502 | J155: 20 | K155: 20 | L155: 3547.012251
A156: 7 | H156: 39732.51686 | I156: 39732.51686 | J156: 28 | K156: 28 | L156: 1419.018459 | M156: 1419.018459
A157: 7 | H157: 47880.71844 | I157: 47880.71844 | J157: 40 | K157: 40 | L157: 1197.017961 | M157: 1197.017961
A158: 7 | H158: 58782.71656 | I158: 58782.71656 | J158: 27 | K158: 27 | L158: 2177.13765 | M158: 2177.13765
A159: 7 | H159: 49011.28304 | I159: 49011.28304 | J159: 30 | K159: 30 | L159: 1633.709435 | M159: 1633.709435
A160: 7 | H160: 68161.29692 | I160: 68161.29692 | J160: 37.17 | K160: 37.17 | L160: 1833.771776 | M160: 1833.771776
A161: 7 | H161: 96424.06086 | I161: 96424.06086 | J161: 60 | K161: 60 | L161: 1607.067681 | M161: 1607.067681
A162: 7 | H162: 65471.9935 | I162: 65471.9935 | J162: 42 | K162: 42 | L162: 1558.856988 | M162: 1558.856988
A163: 7 | H163: 10871.84222 | I163: 10871.84222 | J163: 48 | K163: 48 | L163: 226.4967129 | M163: 226.4967129
A164: 7 | H164: 51494.11336 | I164: 51494.11336 | J164: 44 | K164: 44 | L164: 1170.320758 | M164: 1170.320758
A165: 7 | H165: 137374.3196 | J165: 36 | L165: 3815.953323
A166: 7 | H166: 68372.64708 | I166: 68372.64708 | J166: 39 | K166: 39 | L166: 1753.144797 | M166: 1753.144797
A167: 7 | H167: 66866.54284 | I167: 66866.54284 | J167: 50 | K167: 50 | L167: 1337.330857 | M167: 1337.330857
A168: 7 | H168: 26562.17156 | I168: 26562.17156 | J168: 15 | K168: 15 | L168: 1770.811437 | M168: 1770.811437
A169: 7 | H169: 57562.69046 | I169: 57562.69046 | J169: 37 | K169: 37 | L169: 1555.748391 | M169: 1555.748391
A170: 7 | H170: 43585.35986 | I170: 43585.35986 | J170: 35 | K170: 35 | L170: 1245.295996 | M170: 1245.295996
A171: 7 | H171: 35639.19722 | I171: 35639.19722 | J171: 35 | K171: 35 | L171: 1018.262778 | M171: 1018.262778
A172: 7 | H172: 63738.12084 | I172: 63738.12084 | J172: 55 | K172: 55 | L172: 1158.874924 | M172: 1158.874924
A173: 7 | H173: 93990.5782 | I173: 93990.5782 | J173: 36 | K173: 36 | L173: 2610.849394 | M173: 2610.849394
A174: 7 | H174: 30926.9244 | I174: 30926.9244 | J174: 34 | K174: 34 | L174: 909.6154235 | M174: 909.6154235
A175: 7 | H175: 21838.0574 | I175: 21838.0574 | J175: 12 | K175: 12 | L175: 1819.838117 | M175: 1819.838117
A176: 7 | H176: 4787.50562 | I176: 4787.50562 | J176: 22 | K176: 22 | L176: 217.6138918 | M176: 217.6138918
A177: 7 | H177: 27358.2101 | I177: 27358.2101 | J177: 44 | K177: 44 | L177: 621.7775022 | M177: 621.7775022
A178: 7 | H178: 19998.72365 | I178: 19998.72365 | J178: 25 | K178: 25 | L178: 799.9489462 | M178: 799.9489462
A179: 7 | H179: 19257.56582 | I179: 19257.56582 | J179: 20 | K179: 20 | L179: 962.8782912 | M179: 962.8782912
A180: 7 | H180: 52485.74754 | I180: 52485.74754 | J180: 32 | K180: 32 | L180: 1640.179611 | M180: 1640.179611
A181: 7 | H181: 48122.62956 | I181: 48122.62956 | J181: 60 | K181: 60 | L181: 802.043826 | M181: 802.043826
A182: 7 | H182: 41196.8638 | I182: 41196.8638 | J182: 32 | K182: 32 | L182: 1287.401994 | M182: 1287.401994
A183: 7 | H183: 47794.65136 | I183: 47794.65136 | J183: 43 | K183: 43 | L183: 1111.50352 | M183: 1111.50352
A184: 7 | H184: 110461.3928 | I184: 110461.3928 | J184: 33 | K184: 33 | L184: 3347.314933
A185: 7 | H185: 20370.691 | I185: 20370.691 | J185: 15 | K185: 15 | L185: 1358.046067 | M185: 1358.046067
A186: 7 | H186: 36513.07504 | I186: 36513.07504 | J186: 39 | K186: 39 | L186: 936.2326933 | M186: 936.2326933
A187: 7 | H187: 138669.7033 | J187: 29 | L187: 4781.713906
A188: 7 | H188: 38275.02498 | I188: 38275.02498 | J188: 41 | K188: 41 | L188: 933.5371946 | M188: 933.5371946
A189: 7 | H189: 48004.00546 | I189: 48004.00546 | J189: 30 | K189: 30 | L189: 1600.133515 | M189: 1600.133515
A190: 7 | H190: 66315.15212 | I190: 66315.15212 | J190: 25 | K190: 25 | L190: 2652.606085 | M190: 2652.606085
A191: 7 | H191: 74697.08966 | I191: 74697.08966 | J191: 38 | K191: 38 | L191: 1965.712886 | M191: 1965.712886
A192: 7 | H192: 60220.22032 | I192: 60220.22032 | J192: 22 | K192: 22 | L192: 2737.282742 | M192: 2737.282742
A193: 7 | H193: 69401.68094 | I193: 69401.68094 | J193: 46 | K193: 46 | L193: 1508.732194 | M193: 1508.732194
A194: 7 | H194: 48246.57104 | I194: 48246.57104 | J194: 23 | K194: 23 | L194: 2097.677002 | M194: 2097.677002
A195: 7 | H195: 54220.08632 | I195: 54220.08632 | J195: 41 | K195: 41 | L195: 1322.44113 | M195: 1322.44113
A196: 7 | H196: 47321.30392 | I196: 47321.30392 | J196: 42 | K196: 42 | L196: 1126.697712 | M196: 1126.697712
A197: 7 | H197: 22851.13396 | I197: 22851.13396 | J197: 24 | K197: 24 | L197: 952.1305817 | M197: 952.1305817
A198: 7 | H198: 47222.81844 | I198: 47222.81844 | J198: 42 | K198: 42 | L198: 1124.35282 | M198: 1124.35282
A199: 7 | H199: 21343.43958 | I199: 21343.43958 | J199: 24 | K199: 24 | L199: 889.3099825 | M199: 889.3099825
A200: 7 | H200: 20428.29036 | I200: 20428.29036 | J200: 27 | K200: 27 | L200: 756.6033467 | M200: 756.6033467
... 672 more rows

Sheet KOSZTY_RESZTA_rozbicie (hidden)
A1: KAT_MED | I1: KOSZTY_RESZTA_mc | J1: KOSZTY_RESZTA_mc_odciete | K1: KOSZTY_RESZTA | L1: DEZYNFEKCJA, ZAKAŻENIA SZPITALNE, UTYLIZACJA | M1: ENERGIA ELEKTRYCZNA | N1: MEDIA_POZOSTAŁE (CIEPLNA, GAZOWA, WODA) | O1: STERYLIZACJA | P1: BIELIZNA,POŚCIEL | Q1: SPRZĄTANIE | R1: LOZKA_OPK | S1: wskaznik_wynagrodzenia | T1: wskaznik_inflacja | U1: koszt_kapitalu | V1: DEZYNFEKCJA, ZAKAŻENIA SZPITALNE, UTYLIZACJA | W1: DEZYNFEKCJA, ZAKAŻENIA SZPITALNE, UTYLIZACJA | X1: sr_DEZYNFEKCJA, ZAKAŻENIA SZPITALNE, UTYLIZACJA | Y1: sr_DEZYNFEKCJA, ZAKAŻENIA SZPITALNE, UTYLIZACJA_odciete | Z1: ENERGIA ELEKTRYCZNA | AA1: ENERGIA ELEKTRYCZNA | AB1: sr_ENERGIA ELEKTRYCZNA | AC1: sr_ENERGIA ELEKTRYCZNA_odciete | AD1: MEDIA_POZOSTAŁE (CIEPLNA, GAZOWA, WODA) | AE1: MEDIA_POZOSTAŁE (CIEPLNA, GAZOWA, WODA) | AF1: sr_MEDIA_POZOSTAŁE (CIEPLNA, GAZOWA, WODA) | AG1: sr_MEDIA_POZOSTAŁE (CIEPLNA, GAZOWA, WODA)_odciete | AH1: STERYLIZACJA | AI1: STERYLIZACJA | AJ1: sr_STERYLIZACJA | AK1: sr_STERYLIZACJA_odciete | AL1: BIELIZNA,POŚCIEL | AM1: BIELIZNA,POŚCIEL | AN1: sr_BIELIZNA,POŚCIEL | AO1: sr_BIELIZNA,POŚCIEL_odciete | AP1: SPRZĄTANIE | AQ1: SPRZĄTANIE | AR1: sr_SPRZĄTANIE | AS1: sr_SPRZĄTANIE_odciete | AX1: KAT_MED | AY1: sr_DEZYNFEKCJA, ZAKAŻENIA SZPITALNE, UTYLIZACJA | AZ1: sr_DEZYNFEKCJA, ZAKAŻENIA SZPITALNE, UTYLIZACJA_odciete | BA1: sr_ENERGIA ELEKTRYCZNA | BB1: sr_ENERGIA ELEKTRYCZNA_odciete | BC1: sr_MEDIA_POZOSTAŁE (CIEPLNA, GAZOWA, WODA) | BD1: sr_MEDIA_POZOSTAŁE (CIEPLNA, GAZOWA, WODA)_odciete | BE1: sr_STERYLIZACJA | BF1: sr_STERYLIZACJA_odciete | BG1: sr_BIELIZNA,POŚCIEL | BH1: sr_BIELIZNA,POŚCIEL_odciete | BI1: sr_SPRZĄTANIE | BJ1: sr_SPRZĄTANIE_odciete
A2: 6 | I2: 57147.63296 | J2: 57147.63296 | K2: 664507.36 | L2: 8327.49 | M2: 55880.19 | N2: 29902.95 | O2: 146.9713442 | P2: 5734.39 | Q2: 0 | R2: 40 | S2: 1.102184204 | T2: 1.032 | U2: 1.071886991 | V2: 0.01253182508 | W2: 0.01253182508 | X2: 0.05082475678 | Y2: 0.04288656528 | Z2: 0.08409265775 | AA2: 0.08409265775 | AB2: 0.07139135142 | AC2: 0.05438066924 | AD2: 0.04500017878 | AE2: 0.04500017878 | AF2: 0.1286794282 | AG2: 0.1011228813 | AH2: 0.000221173388 | AI2: 0.000221173388 | AJ2: 0.007966362446 | AK2: 0.00532456162 | AL2: 0.008629535721 | AM2: 0.008629535721 | AN2: 0.01279837217 | AO2: 0.003240683108 | AR2: 0.1969124341 | AS2: 0.1969124341 | AX2: 6 | AY2: =VLOOKUP($AX2,$A$2:$AS$525,24,0) -> 0.05082475678 | AZ2: =VLOOKUP($AX2,$A$2:$AS$525,25,0) -> 0.04288656528 | BA2: =VLOOKUP($AX2,$A$2:$AS$525,28,0) -> 0.07139135142 | BB2: =VLOOKUP($AX2,$A$2:$AS$525,29,0) -> 0.05438066924 | BC2: =VLOOKUP($AX2,$A$2:$AS$525,32,0) -> 0.1286794282 | BD2: =VLOOKUP($AX2,$A$2:$AS$525,33,0) -> 0.1011228813 | BE2: =VLOOKUP($AX2,$A$2:$AS$525,36,0) -> 0.007966362446 | BF2: =VLOOKUP($AX2,$A$2:$AS$525,37,0) -> 0.00532456162 | BG2: =VLOOKUP($AX2,$A$2:$AS$525,40,0) -> 0.01279837217 | BH2: =VLOOKUP($AX2,$A$2:$AS$525,41,0) -> 0.003240683108 | BI2: =VLOOKUP($AX2,$A$2:$AS$525,44,0) -> 0.1969124341 | BJ2: =VLOOKUP($AX2,$A$2:$AS$525,45,0) -> 0.1969124341 | BL2: =AY2+BA2+BC2+BE2+BG2+BI2 -> 0.4685727052 | BM2: 0.4038677946
A3: 6 | I3: 67687.1428 | J3: 67687.1428 | K3: 787059.8 | L3: 32050.84 | M3: 65994.59 | N3: 91621.51 | O3: 1586.63 | P3: 0 | Q3: 280265.94 | R3: 23 | S3: 1.102184204 | T3: 1.032 | U3: 1.071886991 | V3: 0.04072224245 | W3: 0.04072224245 | X3: 0.05082475678 | Y3: 0.04288656528 | Z3: 0.08384952452 | AA3: 0.08384952452 | AB3: 0.07139135142 | AC3: 0.05438066924 | AD3: 0.1164098459 | AE3: 0.1164098459 | AF3: 0.1286794282 | AG3: 0.1011228813 | AH3: 0.002015895107 | AI3: 0.002015895107 | AJ3: 0.007966362446 | AK3: 0.00532456162 | AN3: 0.01279837217 | AO3: 0.003240683108 | AP3: 0.3560923071 | AQ3: 0.3560923071 | AR3: 0.1969124341 | AS3: 0.1969124341 | AX3: 7 | AY3: =VLOOKUP($AX3,$A$2:$AS$525,24,0) -> 0.04431841031 | AZ3: =VLOOKUP($AX3,$A$2:$AS$525,25,0) -> 0.03287322112 | BA3: =VLOOKUP($AX3,$A$2:$AS$525,28,0) -> 0.04766513951 | BB3: =VLOOKUP($AX3,$A$2:$AS$525,29,0) -> 0.04175416555 | BC3: =VLOOKUP($AX3,$A$2:$AS$525,32,0) -> 0.08337415179 | BD3: =VLOOKUP($AX3,$A$2:$AS$525,33,0) -> 0.07105311858 | BE3: =VLOOKUP($AX3,$A$2:$AS$525,36,0) -> 0.01054696405 | BF3: =VLOOKUP($AX3,$A$2:$AS$525,37,0) -> 0.005554598837 | BG3: =VLOOKUP($AX3,$A$2:$AS$525,40,0) -> 0.02377048134 | BH3: =VLOOKUP($AX3,$A$2:$AS$525,41,0) -> 0.008709189941 | BI3: =VLOOKUP($AX3,$A$2:$AS$525,44,0) -> 0.1034019175 | BJ3: =VLOOKUP($AX3,$A$2:$AS$525,45,0) -> 0.09368491053 | BL3: 0.3130770645 | BM3: 0.2536292046
A4: 6 | I4: 20713.19976 | J4: 20713.19976 | K4: 240851.16 | L4: 6972.89 | M4: 65994.59 | N4: 59301.98 | O4: 0 | P4: 0 | Q4: 0 | R4: 22 | S4: 1.102184204 | T4: 1.032 | U4: 1.071886991 | V4: 0.02895103349 | W4: 0.02895103349 | X4: 0.05082475678 | Y4: 0.04288656528 | Z4: 0.2740056971 | AB4: 0.07139135142 | AC4: 0.05438066924 | AD4: 0.2462183699 | AE4: 0.2462183699 | AF4: 0.1286794282 | AG4: 0.1011228813 | AJ4: 0.007966362446 | AK4: 0.00532456162 | AN4: 0.01279837217 | AO4: 0.003240683108 | AR4: 0.1969124341 | AS4: 0.1969124341 | AX4: 18 | AY4: =VLOOKUP($AX4,$A$2:$AS$525,24,0) -> 0.05541767559 | AZ4: =VLOOKUP($AX4,$A$2:$AS$525,25,0) -> 0.0450229492 | BA4: =VLOOKUP($AX4,$A$2:$AS$525,28,0) -> 0.05980016036 | BB4: =VLOOKUP($AX4,$A$2:$AS$525,29,0) -> 0.04396182413 | BC4: =VLOOKUP($AX4,$A$2:$AS$525,32,0) -> 0.05641180875 | BD4: =VLOOKUP($AX4,$A$2:$AS$525,33,0) -> 0.04705184405 | BE4: =VLOOKUP($AX4,$A$2:$AS$525,36,0) -> 0.04416879442 | BF4: =VLOOKUP($AX4,$A$2:$AS$525,37,0) -> 0.04027516974 | BG4: =VLOOKUP($AX4,$A$2:$AS$525,40,0) -> 0.02521237977 | BH4: =VLOOKUP($AX4,$A$2:$AS$525,41,0) -> 0.0173391645 | BI4: =VLOOKUP($AX4,$A$2:$AS$525,44,0) -> 0.08493821394 | BJ4: =VLOOKUP($AX4,$A$2:$AS$525,45,0) -> 0.08493821394 | BL4: 0.3259490328 | BM4: 0.2785891656
A5: 6 | I5: 47502.93334 | J5: 47502.93334 | K5: 552359.69 | L5: 55454.33 | M5: 25820.64 | N5: 50886.78 | O5: 0 | P5: 0 | Q5: 0 | R5: 30 | S5: 1.102184204 | T5: 1.032 | U5: 1.071886991 | V5: 0.1003953239 | W5: 0.1003953239 | X5: 0.05082475678 | Y5: 0.04288656528 | Z5: 0.04674606143 | AA5: 0.04674606143 | AB5: 0.07139135142 | AC5: 0.05438066924 | AD5: 0.09212616511 | AE5: 0.09212616511 | AF5: 0.1286794282 | AG5: 0.1011228813 | AJ5: 0.007966362446 | AK5: 0.00532456162 | AN5: 0.01279837217 | AO5: 0.003240683108 | AR5: 0.1969124341 | AS5: 0.1969124341 | AX5: 43 | AY5: =VLOOKUP($AX5,$A$2:$AS$525,24,0) -> 0.04746330101 | AZ5: =VLOOKUP($AX5,$A$2:$AS$525,25,0) -> 0.02501530069 | BA5: =VLOOKUP($AX5,$A$2:$AS$525,28,0) -> 0.04549973229 | BB5: =VLOOKUP($AX5,$A$2:$AS$525,29,0) -> 0.02770682775 | BC5: =VLOOKUP($AX5,$A$2:$AS$525,32,0) -> 0.06156826623 | BD5: =VLOOKUP($AX5,$A$2:$AS$525,33,0) -> 0.0342396828 | BE5: =VLOOKUP($AX5,$A$2:$AS$525,36,0) -> 0.2301995156 | BF5: =VLOOKUP($AX5,$A$2:$AS$525,37,0) -> 0.1875441822 | BG5: =VLOOKUP($AX5,$A$2:$AS$525,40,0) -> 0.07387758752 | BH5: =VLOOKUP($AX5,$A$2:$AS$525,41,0) -> 0.01840953517 | BI5: =VLOOKUP($AX5,$A$2:$AS$525,44,0) -> 0.05436820397 | BJ5: =VLOOKUP($AX5,$A$2:$AS$525,45,0) -> 0.03861229329 | BL5: 0.5129766066 | BM5: 0.3315278219
A6: 6 | I6: 49835.83384 | J6: 49835.83384 | K6: 579486.44 | L6: 14367.93 | M6: 20485.27 | N6: 65751.64 | O6: 503.57 | P6: 1579.79 | Q6: 0 | R6: 25 | S6: 1.102184204 | T6: 1.032 | U6: 1.071886991 | V6: 0.02479424713 | W6: 0.02479424713 | X6: 0.05082475678 | Y6: 0.04288656528 | Z6: 0.03535073228 | AA6: 0.03535073228 | AB6: 0.07139135142 | AC6: 0.05438066924 | AD6: 0.1134653643 | AE6: 0.1134653643 | AF6: 0.1286794282 | AG6: 0.1011228813 | AH6: 0.0008689935868 | AI6: 0.0008689935868 | AJ6: 0.007966362446 | AK6: 0.00532456162 | AL6: 0.002726189762 | AM6: 0.002726189762 | AN6: 0.01279837217 | AO6: 0.003240683108 | AR6: 0.1969124341 | AS6: 0.1969124341 | AX6: b | AY6: =VLOOKUP($AX6,$A$2:$AS$525,24,0) -> 0.07064876822 | AZ6: =VLOOKUP($AX6,$A$2:$AS$525,25,0) -> 0.04199476845 | BA6: =VLOOKUP($AX6,$A$2:$AS$525,28,0) -> 0.05619077696 | BB6: =VLOOKUP($AX6,$A$2:$AS$525,29,0) -> 0.04863967185 | BC6: =VLOOKUP($AX6,$A$2:$AS$525,32,0) -> 0.04901086134 | BD6: =VLOOKUP($AX6,$A$2:$AS$525,33,0) -> 0.03853731509 | BE6: =VLOOKUP($AX6,$A$2:$AS$525,36,0) -> 0.3096018961 | BF6: =VLOOKUP($AX6,$A$2:$AS$525,37,0) -> 0.2967218911 | BG6: =VLOOKUP($AX6,$A$2:$AS$525,40,0) -> 0.08025540213 | BH6: =VLOOKUP($AX6,$A$2:$AS$525,41,0) -> 0.05801500162 | BI6: =VLOOKUP($AX6,$A$2:$AS$525,44,0) -> 0.07463574197 | BJ6: =VLOOKUP($AX6,$A$2:$AS$525,45,0) -> 0.06996521883 | BL6: 0.6403434467 | BM6: 0.5538738669
A7: 6 | I7: 30448.07554 | J7: 30448.07554 | K7: 354047.39 | L7: 24400.51 | M7: 27712.68 | N7: 27273.31 | O7: 6591.76 | P7: 11560.3 | Q7: 0 | R7: 20 | S7: 1.102184204 | T7: 1.032 | U7: 1.071886991 | V7: 0.06891876819 | W7: 0.06891876819 | X7: 0.05082475678 | Y7: 0.04288656528 | Z7: 0.07827392824 | AA7: 0.07827392824 | AB7: 0.07139135142 | AC7: 0.05438066924 | AD7: 0.07703293618 | AE7: 0.07703293618 | AF7: 0.1286794282 | AG7: 0.1011228813 | AH7: 0.01861829853 | AI7: 0.01861829853 | AJ7: 0.007966362446 | AK7: 0.00532456162 | AL7: 0.03265184359 | AN7: 0.01279837217 | AO7: 0.003240683108 | AR7: 0.1969124341 | AS7: 0.1969124341 | AX7: 8 | AY7: =AVERAGE(AY6,AY2) -> 0.0607367625 | AZ7: =AVERAGE(AZ6,AZ2,AZ4) -> 0.04330142764 | BA7: 0.06246076291 | BB7: 0.04899405507 | BC7: 0.07803403277 | BD7: 0.06223734681 | BE7: 0.1205790176 | BF7: 0.1141072075 | BG7: 0.03942205136 | BH7: 0.02619828307 | BI7: 0.1188287967 | BJ7: 0.1172719556 | BL7: 0.4800614239 | BM7: 0.4121102757
A8: 6 | I8: 44658.78864 | J8: 44658.78864 | K8: 519288.24 | L8: 6287.62 | M8: 33269.39 | N8: 54922.47 | O8: 0 | P8: 1529.55 | Q8: 162811.38 | R8: 36 | S8: 1.102184204 | T8: 1.032 | U8: 1.071886991 | V8: 0.01210815019 | W8: 0.01210815019 | X8: 0.05082475678 | Y8: 0.04288656528 | Z8: 0.06406728949 | AA8: 0.06406728949 | AB8: 0.07139135142 | AC8: 0.05438066924 | AD8: 0.1057649024 | AE8: 0.1057649024 | AF8: 0.1286794282 | AG8: 0.1011228813 | AJ8: 0.007966362446 | AK8: 0.00532456162 | AL8: 0.002945473982 | AM8: 0.002945473982 | AN8: 0.01279837217 | AO8: 0.003240683108 | AP8: 0.3135279551 | AQ8: 0.3135279551 | AR8: 0.1969124341 | AS8: 0.1969124341
A9: 6 | I9: 42183.85312 | J9: 42183.85312 | K9: 490509.92 | L9: 4642.01 | M9: 25727.51 | N9: 38093.73 | O9: 0 | P9: 123 | Q9: 131428.13 | R9: 21 | S9: 1.102184204 | T9: 1.032 | U9: 1.071886991 | V9: 0.009463641428 | W9: 0.009463641428 | X9: 0.05082475678 | Y9: 0.04288656528 | Z9: 0.05245053963 | AA9: 0.05245053963 | AB9: 0.07139135142 | AC9: 0.05438066924 | AD9: 0.07766148746 | AE9: 0.07766148746 | AF9: 0.1286794282 | AG9: 0.1011228813 | AJ9: 0.007966362446 | AK9: 0.00532456162 | AL9: 0.0002507594546 | AM9: 0.0002507594546 | AN9: 0.01279837217 | AO9: 0.003240683108 | AP9: 0.267941839 | AQ9: 0.267941839 | AR9: 0.1969124341 | AS9: 0.1969124341
A10: 6 | I10: 21296.17054 | J10: 21296.17054 | K10: 247629.89 | L10: 2645.91 | M10: 11708.13 | N10: 19328.28 | O10: 0 | P10: 0 | Q10: 51373.99 | R10: 21 | S10: 1.102184204 | T10: 1.032 | U10: 1.071886991 | V10: 0.01068493791 | W10: 0.01068493791 | X10: 0.05082475678 | Y10: 0.04288656528 | Z10: 0.04728076243 | AA10: 0.04728076243 | AB10: 0.07139135142 | AC10: 0.05438066924 | AD10: 0.07805309771 | AE10: 0.07805309771 | AF10: 0.1286794282 | AG10: 0.1011228813 | AJ10: 0.007966362446 | AK10: 0.00532456162 | AN10: 0.01279837217 | AO10: 0.003240683108 | AP10: 0.2074627986 | AQ10: 0.2074627986 | AR10: 0.1969124341 | AS10: 0.1969124341
A11: 6 | I11: 30334.62262 | J11: 30334.62262 | K11: 352728.17 | L11: 4612.78 | M11: 23933.28 | N11: 39510.04 | O11: 0 | P11: 1957.98 | Q11: 120834.03 | R11: 34 | S11: 1.102184204 | T11: 1.032 | U11: 1.071886991 | V11: 0.01307743581 | W11: 0.01307743581 | X11: 0.05082475678 | Y11: 0.04288656528 | Z11: 0.06785190987 | AA11: 0.06785190987 | AB11: 0.07139135142 | AC11: 0.05438066924 | AD11: 0.1120127151 | AE11: 0.1120127151 | AF11: 0.1286794282 | AG11: 0.1011228813 | AJ11: 0.007966362446 | AK11: 0.00532456162 | AL11: 0.005550960106 | AM11: 0.005550960106 | AN11: 0.01279837217 | AO11: 0.003240683108 | AP11: 0.3425698322 | AQ11: 0.3425698322 | AR11: 0.1969124341 | AS11: 0.1969124341
A12: 6 | I12: 47411.75786 | J12: 47411.75786 | K12: 551299.51 | L12: 0 | M12: 35535.99 | N12: 73764.85 | O12: 0 | P12: 1801.95 | Q12: 0 | R12: 32 | S12: 1.102184204 | T12: 1.032 | U12: 1.071886991 | X12: 0.05082475678 | Y12: 0.04288656528 | Z12: 0.06445859166 | AA12: 0.06445859166 | AB12: 0.07139135142 | AC12: 0.05438066924 | AD12: 0.1338017696 | AE12: 0.1338017696 | AF12: 0.1286794282 | AG12: 0.1011228813 | AJ12: 0.007966362446 | AK12: 0.00532456162 | AL12: 0.003268549976 | AM12: 0.003268549976 | AN12: 0.01279837217 | AO12: 0.003240683108 | AR12: 0.1969124341 | AS12: 0.1969124341
A13: 6 | I13: 51372.75274 | J13: 51372.75274 | K13: 597357.59 | L13: 0 | M13: 35652.77 | N13: 47655.01 | O13: 0 | P13: 153.75 | Q13: 0 | R13: 45 | S13: 1.102184204 | T13: 1.032 | U13: 1.071886991 | X13: 0.05082475678 | Y13: 0.04288656528 | Z13: 0.05968413325 | AA13: 0.05968413325 | AB13: 0.07139135142 | AC13: 0.05438066924 | AD13: 0.07977635306 | AE13: 0.07977635306 | AF13: 0.1286794282 | AG13: 0.1011228813 | AJ13: 0.007966362446 | AK13: 0.00532456162 | AL13: 0.0002573835213 | AM13: 0.0002573835213 | AN13: 0.01279837217 | AO13: 0.003240683108 | AR13: 0.1969124341 | AS13: 0.1969124341
A14: 6 | I14: 51178.6559 | J14: 51178.6559 | K14: 595100.65 | L14: 0 | M14: 35652.77 | N14: 44305.96 | O14: 0 | P14: 2170.95 | Q14: 0 | R14: 42 | S14: 1.102184204 | T14: 1.032 | U14: 1.071886991 | X14: 0.05082475678 | Y14: 0.04288656528 | Z14: 0.05991048741 | AA14: 0.05991048741 | AB14: 0.07139135142 | AC14: 0.05438066924 | AD14: 0.07445120418 | AE14: 0.07445120418 | AF14: 0.1286794282 | AG14: 0.1011228813 | AJ14: 0.007966362446 | AK14: 0.00532456162 | AL14: 0.003648038361 | AM14: 0.003648038361 | AN14: 0.01279837217 | AO14: 0.003240683108 | AR14: 0.1969124341 | AS14: 0.1969124341
A15: 6 | I15: 56053.54698 | J15: 56053.54698 | K15: 651785.43 | L15: 0 | M15: 41251.58 | N15: 51263.65 | O15: 0 | P15: 2539.95 | Q15: 0 | R15: 42 | S15: 1.102184204 | T15: 1.032 | U15: 1.071886991 | X15: 0.05082475678 | Y15: 0.04288656528 | Z15: 0.06329012295 | AA15: 0.06329012295 | AB15: 0.07139135142 | AC15: 0.05438066924 | AD15: 0.07865111376 | AE15: 0.07865111376 | AF15: 0.1286794282 | AG15: 0.1011228813 | AJ15: 0.007966362446 | AK15: 0.00532456162 | AL15: 0.003896911289 | AM15: 0.003896911289 | AN15: 0.01279837217 | AO15: 0.003240683108 | AR15: 0.1969124341 | AS15: 0.1969124341
A16: 6 | I16: 49810.42772 | J16: 49810.42772 | K16: 579191.02 | L16: 0 | M16: 41251.58 | N16: 51263.65 | O16: 0 | P16: 1531.35 | Q16: 0 | R16: 40 | S16: 1.102184204 | T16: 1.032 | U16: 1.071886991 | X16: 0.05082475678 | Y16: 0.04288656528 | Z16: 0.0712227548 | AA16: 0.0712227548 | AB16: 0.07139135142 | AC16: 0.05438066924 | AD16: 0.08850905527 | AE16: 0.08850905527 | AF16: 0.1286794282 | AG16: 0.1011228813 | AJ16: 0.007966362446 | AK16: 0.00532456162 | AL16: 0.002643946379 | AM16: 0.002643946379 | AN16: 0.01279837217 | AO16: 0.003240683108 | AR16: 0.1969124341 | AS16: 0.1969124341
A17: 6 | I17: 47118.90292 | J17: 47118.90292 | K17: 547894.22 | L17: 0 | M17: 41251.58 | N17: 51263.65 | O17: 0 | P17: 1185.97 | Q17: 0 | R17: 37 | S17: 1.102184204 | T17: 1.032 | U17: 1.071886991 | X17: 0.05082475678 | Y17: 0.04288656528 | Z17: 0.07529113923 | AA17: 0.07529113923 | AB17: 0.07139135142 | AC17: 0.05438066924 | AD17: 0.09356486732 | AE17: 0.09356486732 | AF17: 0.1286794282 | AG17: 0.1011228813 | AJ17: 0.007966362446 | AK17: 0.00532456162 | AL17: 0.002164596662 | AM17: 0.002164596662 | AN17: 0.01279837217 | AO17: 0.003240683108 | AR17: 0.1969124341 | AS17: 0.1969124341
A18: 6 | I18: 31583.54472 | J18: 31583.54472 | K18: 367250.52 | L18: 0 | M18: 15569.78 | N18: 58118.02 | O18: 1554.39 | P18: 0 | Q18: 0 | R18: 17 | S18: 1.102184204 | T18: 1.032 | U18: 1.071886991 | X18: 0.05082475678 | Y18: 0.04288656528 | Z18: 0.04239552881 | AA18: 0.04239552881 | AB18: 0.07139135142 | AC18: 0.05438066924 | AD18: 0.1582517024 | AE18: 0.1582517024 | AF18: 0.1286794282 | AG18: 0.1011228813 | AH18: 0.00423250592 | AI18: 0.00423250592 | AJ18: 0.007966362446 | AK18: 0.00532456162 | AN18: 0.01279837217 | AO18: 0.003240683108 | AR18: 0.1969124341 | AS18: 0.1969124341
A19: 6 | I19: 51270.83328 | J19: 51270.83328 | K19: 596172.48 | L19: 0 | M19: 84187.2 | N19: 183599.95 | O19: 9420.7 | P19: 2162.24 | Q19: 0 | R19: 38 | S19: 1.102184204 | T19: 1.032 | U19: 1.071886991 | X19: 0.05082475678 | Y19: 0.04288656528 | Z19: 0.1412128249 | AB19: 0.07139135142 | AC19: 0.05438066924 | AD19: 0.3079644837 | AF19: 0.1286794282 | AG19: 0.1011228813 | AH19: 0.0158019706 | AI19: 0.0158019706 | AJ19: 0.007966362446 | AK19: 0.00532456162 | AL19: 0.003626869862 | AM19: 0.003626869862 | AN19: 0.01279837217 | AO19: 0.003240683108 | AR19: 0.1969124341 | AS19: 0.1969124341
A20: 6 | I20: 68553.98926 | J20: 68553.98926 | K20: 797139.41 | L20: 8686.73 | M20: 18986.55 | N20: 87287.78 | O20: 8066.57 | P20: 0 | Q20: 5392.35 | R20: 60 | S20: 1.102184204 | T20: 1.032 | U20: 1.071886991 | V20: 0.01089737867 | W20: 0.01089737867 | X20: 0.05082475678 | Y20: 0.04288656528 | Z20: 0.02381835569 | AA20: 0.02381835569 | AB20: 0.07139135142 | AC20: 0.05438066924 | AD20: 0.1095012728 | AE20: 0.1095012728 | AF20: 0.1286794282 | AG20: 0.1011228813 | AH20: 0.01011939681 | AI20: 0.01011939681 | AJ20: 0.007966362446 | AK20: 0.00532456162 | AN20: 0.01279837217 | AO20: 0.003240683108 | AP20: 0.006764626027 | AQ20: 0.006764626027 | AR20: 0.1969124341 | AS20: 0.1969124341
A21: 6 | I21: 39457.17238 | J21: 39457.17238 | K21: 458804.33 | L21: 24064.12 | M21: 15698.28 | N21: 21573.2 | O21: 180.75 | P21: 272.16 | Q21: 0 | R21: 19 | S21: 1.102184204 | T21: 1.032 | U21: 1.071886991 | V21: 0.05244963577 | W21: 0.05244963577 | X21: 0.05082475678 | Y21: 0.04288656528 | Z21: 0.03421563175 | AA21: 0.03421563175 | AB21: 0.07139135142 | AC21: 0.05438066924 | AD21: 0.04702048039 | AE21: 0.04702048039 | AF21: 0.1286794282 | AG21: 0.1011228813 | AH21: 0.0003939587928 | AI21: 0.0003939587928 | AJ21: 0.007966362446 | AK21: 0.00532456162 | AL21: 0.0005931940529 | AM21: 0.0005931940529 | AN21: 0.01279837217 | AO21: 0.003240683108 | AR21: 0.1969124341 | AS21: 0.1969124341
A22: 6 | I22: 26760.85564 | J22: 26760.85564 | K22: 311172.74 | L22: 12831.89 | M22: 9379.48 | N22: 54583.68 | O22: 4063.08 | P22: 708.75 | Q22: 0 | R22: 21 | S22: 1.102184204 | T22: 1.032 | U22: 1.071886991 | V22: 0.04123719192 | W22: 0.04123719192 | X22: 0.05082475678 | Y22: 0.04288656528 | Z22: 0.03014235759 | AA22: 0.03014235759 | AB22: 0.07139135142 | AC22: 0.05438066924 | AD22: 0.1754127948 | AE22: 0.1754127948 | AF22: 0.1286794282 | AG22: 0.1011228813 | AH22: 0.01305731344 | AI22: 0.01305731344 | AJ22: 0.007966362446 | AK22: 0.00532456162 | AL22: 0.002277673809 | AM22: 0.002277673809 | AN22: 0.01279837217 | AO22: 0.003240683108 | AR22: 0.1969124341 | AS22: 0.1969124341
A23: 6 | I23: 12957.7103 | J23: 12957.7103 | K23: 150671.05 | L23: 9655.54 | M23: 5002.44 | N23: 23932.8 | O23: 7677.98 | P23: 430.11 | Q23: 0 | R23: 11 | S23: 1.102184204 | T23: 1.032 | U23: 1.071886991 | V23: 0.0640835781 | W23: 0.0640835781 | X23: 0.05082475678 | Y23: 0.04288656528 | Z23: 0.03320106948 | AA23: 0.03320106948 | AB23: 0.07139135142 | AC23: 0.05438066924 | AD23: 0.1588413965 | AE23: 0.1588413965 | AF23: 0.1286794282 | AG23: 0.1011228813 | AH23: 0.05095856171 | AJ23: 0.007966362446 | AK23: 0.00532456162 | AL23: 0.00285462934 | AM23: 0.00285462934 | AN23: 0.01279837217 | AO23: 0.003240683108 | AR23: 0.1969124341 | AS23: 0.1969124341
A24: 6 | I24: 58253.01676 | J24: 58253.01676 | K24: 677360.66 | L24: 65533.63 | M24: 45650.98 | N24: 81218.57 | O24: 2132.32 | P24: 2684.19 | Q24: 291375.78 | R24: 35 | S24: 1.102184204 | T24: 1.032 | U24: 1.071886991 | V24: 0.09674850323 | W24: 0.09674850323 | X24: 0.05082475678 | Y24: 0.04288656528 | Z24: 0.06739538136 | AA24: 0.06739538136 | AB24: 0.07139135142 | AC24: 0.05438066924 | AD24: 0.1199044686 | AE24: 0.1199044686 | AF24: 0.1286794282 | AG24: 0.1011228813 | AH24: 0.003147983232 | AI24: 0.003147983232 | AJ24: 0.007966362446 | AK24: 0.00532456162 | AL24: 0.003962719063 | AM24: 0.003962719063 | AN24: 0.01279837217 | AO24: 0.003240683108 | AP24: 0.4301634228 | AQ24: 0.4301634228 | AR24: 0.1969124341 | AS24: 0.1969124341
A25: 6 | I25: 15969.99613 | J25: 15969.99613 | K25: 185697.6294 | L25: 346.3 | M25: 7351.25 | N25: 24309.93 | O25: 785.18 | P25: 275.51 | Q25: 0 | R25: 38 | S25: 1.102184204 | T25: 1.032 | U25: 1.071886991 | V25: 0.001864859563 | W25: 0.001864859563 | X25: 0.05082475678 | Y25: 0.04288656528 | Z25: 0.03958720434 | AA25: 0.03958720434 | AB25: 0.07139135142 | AC25: 0.05438066924 | AD25: 0.1309113642 | AE25: 0.1309113642 | AF25: 0.1286794282 | AG25: 0.1011228813 | AH25: 0.004228271532 | AI25: 0.004228271532 | AJ25: 0.007966362446 | AK25: 0.00532456162 | AL25: 0.00148364845 | AM25: 0.00148364845 | AN25: 0.01279837217 | AO25: 0.003240683108 | AR25: 0.1969124341 | AS25: 0.1969124341
A26: 6 | I26: 52599.70007 | J26: 52599.70007 | K26: 611624.4194 | L26: 44994.82 | M26: 40582.65 | N26: 103935.47 | O26: 1713.97 | P26: 10115.75 | Q26: 0 | R26: 34 | S26: 1.102184204 | T26: 1.032 | U26: 1.071886991 | V26: 0.07356609477 | W26: 0.07356609477 | X26: 0.05082475678 | Y26: 0.04288656528 | Z26: 0.06635223957 | AA26: 0.06635223957 | AB26: 0.07139135142 | AC26: 0.05438066924 | AD26: 0.1699334865 | AE26: 0.1699334865 | AF26: 0.1286794282 | AG26: 0.1011228813 | AH26: 0.002802324344 | AI26: 0.002802324344 | AJ26: 0.007966362446 | AK26: 0.00532456162 | AL26: 0.01653915324 | AM26: 0.01653915324 | AN26: 0.01279837217 | AO26: 0.003240683108 | AR26: 0.1969124341 | AS26: 0.1969124341
A27: 6 | I27: 32788.55345 | J27: 32788.55345 | K27: 381262.2494 | L27: 34273.06 | M27: 26053.24 | N27: 63362.26 | O27: 1078.08 | P27: 2415.32 | Q27: 0 | R27: 20 | S27: 1.102184204 | T27: 1.032 | U27: 1.071886991 | V27: 0.08989366257 | W27: 0.08989366257 | X27: 0.05082475678 | Y27: 0.04288656528 | Z27: 0.06833417167 | AA27: 0.06833417167 | AB27: 0.07139135142 | AC27: 0.05438066924 | AD27: 0.1661907522 | AE27: 0.1661907522 | AF27: 0.1286794282 | AG27: 0.1011228813 | AH27: 0.002827659968 | AI27: 0.002827659968 | AJ27: 0.007966362446 | AK27: 0.00532456162 | AL27: 0.006335062031 | AM27: 0.006335062031 | AN27: 0.01279837217 | AO27: 0.003240683108 | AR27: 0.1969124341 | AS27: 0.1969124341
A28: 6 | I28: 17649.92878 | J28: 17649.92878 | K28: 205231.73 | L28: 0 | M28: 41941.25 | N28: 105778.52 | O28: 0 | P28: 0 | Q28: 33467.64 | R28: 30 | S28: 1.102184204 | T28: 1.032 | U28: 1.071886991 | X28: 0.05082475678 | Y28: 0.04288656528 | Z28: 0.2043604563 | AB28: 0.07139135142 | AC28: 0.05438066924 | AD28: 0.5154101659 | AF28: 0.1286794282 | AG28: 0.1011228813 | AJ28: 0.007966362446 | AK28: 0.00532456162 | AN28: 0.01279837217 | AO28: 0.003240683108 | AP28: 0.163072445 | AQ28: 0.163072445 | AR28: 0.1969124341 | AS28: 0.1969124341
A29: 6 | I29: 37087.23254 | J29: 37087.23254 | K29: 431246.89 | L29: 15100.57 | M29: 97211.73 | N29: 158075.06 | O29: 0 | P29: 731.24 | Q29: 44207.68 | R29: 36.13 | S29: 1.102184204 | T29: 1.032 | U29: 1.071886991 | V29: 0.03501606701 | W29: 0.03501606701 | X29: 0.05082475678 | Y29: 0.04288656528 | Z29: 0.22542013 | AB29: 0.07139135142 | AC29: 0.05438066924 | AD29: 0.3665535072 | AF29: 0.1286794282 | AG29: 0.1011228813 | AJ29: 0.007966362446 | AK29: 0.00532456162 | AL29: 0.001695641214 | AM29: 0.001695641214 | AN29: 0.01279837217 | AO29: 0.003240683108 | AP29: 0.1025113016 | AQ29: 0.1025113016 | AR29: 0.1969124341 | AS29: 0.1969124341
A30: 6 | I30: 23706.91136 | J30: 23706.91136 | K30: 275661.76 | L30: 25595.3 | M30: 53033.17 | N30: 117721.75 | O30: 0 | P30: 0 | Q30: 36674.76 | R30: 33.87 | S30: 1.102184204 | T30: 1.032 | U30: 1.071886991 | V30: 0.09285038302 | W30: 0.09285038302 | X30: 0.05082475678 | Y30: 0.04288656528 | Z30: 0.1923849358 | AB30: 0.07139135142 | AC30: 0.05438066924 | AD30: 0.4270514343 | AF30: 0.1286794282 | AG30: 0.1011228813 | AJ30: 0.007966362446 | AK30: 0.00532456162 | AN30: 0.01279837217 | AO30: 0.003240683108 | AP30: 0.1330426099 | AQ30: 0.1330426099 | AR30: 0.1969124341 | AS30: 0.1969124341
A31: 6 | I31: 25399.85318 | J31: 25399.85318 | K31: 295347.13 | L31: 21491.81 | M31: 20782.67 | N31: 23515.62 | O31: 0 | P31: 9530.82 | Q31: 0 | R31: 24 | S31: 1.102184204 | T31: 1.032 | U31: 1.071886991 | V31: 0.07276796629 | W31: 0.07276796629 | X31: 0.05082475678 | Y31: 0.04288656528 | Z31: 0.07036692722 | AA31: 0.07036692722 | AB31: 0.07139135142 | AC31: 0.05438066924 | AD31: 0.07962027598 | AE31: 0.07962027598 | AF31: 0.1286794282 | AG31: 0.1011228813 | AJ31: 0.007966362446 | AK31: 0.00532456162 | AL31: 0.03226989204 | AN31: 0.01279837217 | AO31: 0.003240683108 | AR31: 0.1969124341 | AS31: 0.1969124341
A32: 6 | I32: 22889.15112 | J32: 22889.15112 | K32: 243973.51 | L32: 17462.92 | M32: 18069.66 | N32: 19750.3 | O32: 0 | P32: 9090.02 | Q32: 0 | R32: 24 | S32: 1.102184204 | T32: 1.032 | U32: 1.071886991 | V32: 0.07157711507 | W32: 0.07157711507 | X32: 0.05082475678 | Y32: 0.04288656528 | Z32: 0.07406402441 | AA32: 0.07406402441 | AB32: 0.07139135142 | AC32: 0.05438066924 | AD32: 0.08095264113 | AE32: 0.08095264113 | AF32: 0.1286794282 | AG32: 0.1011228813 | AJ32: 0.007966362446 | AK32: 0.00532456162 | AL32: 0.03725822529 | AN32: 0.01279837217 | AO32: 0.003240683108 | AR32: 0.1969124341 | AS32: 0.1969124341
A33: 6 | I33: 34486.83592 | J33: 34486.83592 | K33: 401009.72 | L33: 21587.21 | M33: 21876.76 | N33: 24753.47 | O33: 0 | P33: 14689.89 | Q33: 0 | R33: 26 | S33: 1.102184204 | T33: 1.032 | U33: 1.071886991 | V33: 0.05383213654 | W33: 0.05383213654 | X33: 0.05082475678 | Y33: 0.04288656528 | Z33: 0.05455418886 | AA33: 0.05455418886 | AB33: 0.07139135142 | AC33: 0.05438066924 | AD33: 0.06172785537 | AE33: 0.06172785537 | AF33: 0.1286794282 | AG33: 0.1011228813 | AJ33: 0.007966362446 | AK33: 0.00532456162 | AL33: 0.0366322542 | AN33: 0.01279837217 | AO33: 0.003240683108 | AR33: 0.1969124341 | AS33: 0.1969124341
A34: 6 | I34: 99647.10145 | K34: 1158687.226 | L34: 2174.88 | M34: 93592.9285 | N34: 18940.64086 | O34: 3504.874974 | P34: 0 | Q34: 0 | R34: 29 | S34: 1.102184204 | T34: 1.032 | U34: 1.071886991 | V34: 0.001877020779 | W34: 0.001877020779 | X34: 0.05082475678 | Y34: 0.04288656528 | Z34: 0.08077497221 | AA34: 0.08077497221 | AB34: 0.07139135142 | AC34: 0.05438066924 | AD34: 0.01634663819 | AE34: 0.01634663819 | AF34: 0.1286794282 | AG34: 0.1011228813 | AH34: 0.00302486719 | AI34: 0.00302486719 | AJ34: 0.007966362446 | AK34: 0.00532456162 | AN34: 0.01279837217 | AO34: 0.003240683108 | AR34: 0.1969124341 | AS34: 0.1969124341
A35: 6 | I35: 67855.8705 | J35: 67855.8705 | K35: 789021.75 | L35: 15501.34 | M35: 27808.59 | N35: 73735.19 | O35: 5812.82 | P35: 1506.25 | Q35: 0 | R35: 35 | S35: 1.102184204 | T35: 1.032 | U35: 1.071886991 | V35: 0.01964627718 | W35: 0.01964627718 | X35: 0.05082475678 | Y35: 0.04288656528 | Z35: 0.03524438965 | AA35: 0.03524438965 | AB35: 0.07139135142 | AC35: 0.05438066924 | AD35: 0.09345140359 | AE35: 0.09345140359 | AF35: 0.1286794282 | AG35: 0.1011228813 | AH35: 0.007367122643 | AI35: 0.007367122643 | AJ35: 0.007966362446 | AK35: 0.00532456162 | AL35: 0.001909009479 | AM35: 0.001909009479 | AN35: 0.01279837217 | AO35: 0.003240683108 | AR35: 0.1969124341 | AS35: 0.1969124341
A36: 6 | I36: 65494.92282 | J36: 65494.92282 | K36: 761568.87 | L36: 18242.93 | M36: 26529.48 | N36: 63824.15 | O36: 2416.12 | P36: 1368.35 | Q36: 0 | R36: 30 | S36: 1.102184204 | T36: 1.032 | U36: 1.071886991 | V36: 0.02395440612 | W36: 0.02395440612 | X36: 0.05082475678 | Y36: 0.04288656528 | Z36: 0.03483529993 | AA36: 0.03483529993 | AB36: 0.07139135142 | AC36: 0.05438066924 | AD36: 0.08380614349 | AE36: 0.08380614349 | AF36: 0.1286794282 | AG36: 0.1011228813 | AH36: 0.003172556147 | AI36: 0.003172556147 | AJ36: 0.007966362446 | AK36: 0.00532456162 | AL36: 0.001796751487 | AM36: 0.001796751487 | AN36: 0.01279837217 | AO36: 0.003240683108 | AR36: 0.1969124341 | AS36: 0.1969124341
A37: 6 | I37: 30983.09874 | J37: 30983.09874 | K37: 360268.59 | L37: 15793.74 | M37: 13084.96 | N37: 27621.68 | O37: 1056.99 | P37: 1117.43 | Q37: 0 | R37: 15 | S37: 1.102184204 | T37: 1.032 | U37: 1.071886991 | V37: 0.04383879261 | W37: 0.04383879261 | X37: 0.05082475678 | Y37: 0.04288656528 | Z37: 0.03632001335 | AA37: 0.03632001335 | AB37: 0.07139135142 | AC37: 0.05438066924 | AD37: 0.07666968691 | AE37: 0.07666968691 | AF37: 0.1286794282 | AG37: 0.1011228813 | AH37: 0.002933894404 | AI37: 0.002933894404 | AJ37: 0.007966362446 | AK37: 0.00532456162 | AL37: 0.003101658127 | AM37: 0.003101658127 | AN37: 0.01279837217 | AO37: 0.003240683108 | AR37: 0.1969124341 | AS37: 0.1969124341
A38: 6 | I38: 29415.02806 | J38: 29415.02806 | K38: 342035.21 | L38: 15456.91 | M38: 9173.26 | N38: 19584.83 | O38: 59.61 | P38: 1009.12 | Q38: 0 | R38: 32 | S38: 1.102184204 | T38: 1.032 | U38: 1.071886991 | V38: 0.04519099072 | W38: 0.04519099072 | X38: 0.05082475678 | Y38: 0.04288656528 | Z38: 0.02681963649 | AA38: 0.02681963649 | AB38: 0.07139135142 | AC38: 0.05438066924 | AD38: 0.05725968973 | AE38: 0.05725968973 | AF38: 0.1286794282 | AG38: 0.1011228813 | AH38: 0.0001742803029 | AI38: 0.0001742803029 | AJ38: 0.007966362446 | AK38: 0.00532456162 | AL38: 0.002950339528 | AM38: 0.002950339528 | AN38: 0.01279837217 | AO38: 0.003240683108 | AR38: 0.1969124341 | AS38: 0.1969124341
A39: 6 | I39: 20572.8555 | J39: 20572.8555 | K39: 239219.25 | L39: 9234.45 | M39: 18161.53 | N39: 37589.11 | O39: 49.94 | P39: 472.32 | Q39: 934.35 | R39: 20 | S39: 1.102184204 | T39: 1.032 | U39: 1.071886991 | V39: 0.03860245361 | W39: 0.03860245361 | X39: 0.05082475678 | Y39: 0.04288656528 | Z39: 0.07592001898 | AA39: 0.07592001898 | AB39: 0.07139135142 | AC39: 0.05438066924 | AD39: 0.1571324632 | AE39: 0.1571324632 | AF39: 0.1286794282 | AG39: 0.1011228813 | AH39: 0.0002087624637 | AI39: 0.0002087624637 | AJ39: 0.007966362446 | AK39: 0.00532456162 | AL39: 0.001974423045 | AM39: 0.001974423045 | AN39: 0.01279837217 | AO39: 0.003240683108 | AP39: 0.003905831157 | AQ39: 0.003905831157 | AR39: 0.1969124341 | AS39: 0.1969124341
A40: 6 | I40: 55757.78333 | J40: 55757.78333 | K40: 669093.4 | L40: 26916.88 | M40: 27203.72 | N40: 94331.31 | O40: 1491.02 | P40: 0 | Q40: 117684.12 | R40: 29 | S40: 1 | T40: 1 | U40: 1 | V40: 0.04022888284 | W40: 0.04022888284 | X40: 0.05082475678 | Y40: 0.04288656528 | Z40: 0.04065758233 | AA40: 0.04065758233 | AB40: 0.07139135142 | AC40: 0.05438066924 | AD40: 0.14098377 | AE40: 0.14098377 | AF40: 0.1286794282 | AG40: 0.1011228813 | AH40: 0.002228418334 | AI40: 0.002228418334 | AJ40: 0.007966362446 | AK40: 0.00532456162 | AN40: 0.01279837217 | AO40: 0.003240683108 | AP40: 0.1758859376 | AQ40: 0.1758859376 | AR40: 0.1969124341 | AS40: 0.1969124341
A41: 6 | I41: 59703.08333 | J41: 59703.08333 | K41: 716437 | L41: 235465.23 | M41: 71858.75 | N41: 55338.65 | O41: 22223.291 | P41: 36771.73 | Q41: 0 | R41: 28 | S41: 1 | T41: 1 | U41: 1 | V41: 0.3286614594 | X41: 0.05082475678 | Y41: 0.04288656528 | Z41: 0.100300166 | AA41: 0.100300166 | AB41: 0.07139135142 | AC41: 0.05438066924 | AD41: 0.07724147413 | AE41: 0.07724147413 | AF41: 0.1286794282 | AG41: 0.1011228813 | AH41: 0.03101918382 | AJ41: 0.007966362446 | AK41: 0.00532456162 | AL41: 0.05132583884 | AN41: 0.01279837217 | AO41: 0.003240683108 | AR41: 0.1969124341 | AS41: 0.1969124341
A42: 6 | I42: 30225.0325 | J42: 30225.0325 | K42: 362700.39 | L42: 14748.2 | M42: 4208.6 | N42: 0 | O42: 634.63 | P42: 0 | Q42: 0 | R42: 19 | S42: 1 | T42: 1 | U42: 1 | V42: 0.04066221158 | W42: 0.04066221158 | X42: 0.05082475678 | Y42: 0.04288656528 | Z42: 0.01160351661 | AA42: 0.01160351661 | AB42: 0.07139135142 | AC42: 0.05438066924 | AF42: 0.1286794282 | AG42: 0.1011228813 | AH42: 0.001749736194 | AI42: 0.001749736194 | AJ42: 0.007966362446 | AK42: 0.00532456162 | AN42: 0.01279837217 | AO42: 0.003240683108 | AR42: 0.1969124341 | AS42: 0.1969124341
A43: 6 | I43: 51375.20583 | J43: 51375.20583 | K43: 616502.47 | L43: 18086.5 | M43: 39370.41 | N43: 47116 | O43: 13154.02 | P43: 172.8 | Q43: 150625.17 | R43: 24 | S43: 1 | T43: 1 | U43: 1 | V43: 0.02933727094 | W43: 0.02933727094 | X43: 0.05082475678 | Y43: 0.04288656528 | Z43: 0.06386091203 | AA43: 0.06386091203 | AB43: 0.07139135142 | AC43: 0.05438066924 | AD43: 0.07642467353 | AE43: 0.07642467353 | AF43: 0.1286794282 | AG43: 0.1011228813 | AH43: 0.02133652441 | AI43: 0.02133652441 | AJ43: 0.007966362446 | AK43: 0.00532456162 | AL43: 0.0002802908478 | AM43: 0.0002802908478 | AN43: 0.01279837217 | AO43: 0.003240683108 | AP43: 0.2443220868 | AQ43: 0.2443220868 | AR43: 0.1969124341 | AS43: 0.1969124341
A44: 6 | I44: 99967.73417 | K44: 1199612.81 | L44: 14073.06 | M44: 36851.64 | N44: 44632.24 | O44: 11512.37 | P44: 86290.05 | Q44: 0 | R44: 29 | S44: 1 | T44: 1 | U44: 1 | V44: 0.01173133521 | W44: 0.01173133521 | X44: 0.05082475678 | Y44: 0.04288656528 | Z44: 0.03071961194 | AA44: 0.03071961194 | AB44: 0.07139135142 | AC44: 0.05438066924 | AD44: 0.03720553801 | AE44: 0.03720553801 | AF44: 0.1286794282 | AG44: 0.1011228813 | AH44: 0.009596738134 | AI44: 0.009596738134 | AJ44: 0.007966362446 | AK44: 0.00532456162 | AL44: 0.07193158433 | AN44: 0.01279837217 | AO44: 0.003240683108 | AR44: 0.1969124341 | AS44: 0.1969124341
A45: 6 | I45: 47987.515 | J45: 47987.515 | K45: 575850.18 | L45: 17088.89 | M45: 18493.59 | N45: 43655.73 | O45: 1597.92 | P45: 77.76 | Q45: 5476.96 | R45: 15 | S45: 1 | T45: 1 | U45: 1 | V45: 0.02967593064 | W45: 0.02967593064 | X45: 0.05082475678 | Y45: 0.04288656528 | Z45: 0.0321152804 | AA45: 0.0321152804 | AB45: 0.07139135142 | AC45: 0.05438066924 | AD45: 0.07581091665 | AE45: 0.07581091665 | AF45: 0.1286794282 | AG45: 0.1011228813 | AH45: 0.002774888427 | AI45: 0.002774888427 | AJ45: 0.007966362446 | AK45: 0.00532456162 | AL45: 0.0001350351232 | AM45: 0.0001350351232 | AN45: 0.01279837217 | AO45: 0.003240683108 | AP45: 0.009511084984 | AQ45: 0.009511084984 | AR45: 0.1969124341 | AS45: 0.1969124341
A46: 6 | I46: 36748.64833 | J46: 36748.64833 | K46: 440983.78 | L46: 43151.16 | M46: 21082.4 | N46: 36079.06 | O46: 92.83 | P46: 37737.88 | Q46: 0 | R46: 23 | S46: 1 | T46: 1 | U46: 1 | V46: 0.09785203438 | W46: 0.09785203438 | X46: 0.05082475678 | Y46: 0.04288656528 | Z46: 0.04780765406 | AA46: 0.04780765406 | AB46: 0.07139135142 | AC46: 0.05438066924 | AD46: 0.08181493659 | AE46: 0.08181493659 | AF46: 0.1286794282 | AG46: 0.1011228813 | AH46: 0.0002105066087 | AI46: 0.0002105066087 | AJ46: 0.007966362446 | AK46: 0.00532456162 | AL46: 0.08557657155 | AN46: 0.01279837217 | AO46: 0.003240683108 | AR46: 0.1969124341 | AS46: 0.1969124341
A47: 7 | I47: 121986.8617 | J47: 121986.8617 | K47: 1418451.88 | L47: 57752.76 | M47: 24479.41 | N47: 207147.17 | O47: 10323.54 | P47: 0 | Q47: 359442.1 | R47: 81 | S47: 1.102184204 | T47: 1.032 | U47: 1.071886991 | V47: 0.04071534665 | W47: 0.04071534665 | X47: 0.04431841031 | Y47: 0.03287322112 | Z47: 0.01725783606 | AA47: 0.01725783606 | AB47: 0.04766513951 | AC47: 0.04175416555 | AD47: 0.1460375025 | AE47: 0.1460375025 | AF47: 0.08337415179 | AG47: 0.07105311858 | AH47: 0.007278033288 | AI47: 0.007278033288 | AJ47: 0.01054696405 | AK47: 0.005554598837 | AN47: 0.02377048134 | AO47: 0.008709189941 | AP47: 0.2534045075 | AQ47: 0.2534045075 | AR47: 0.1034019175 | AS47: 0.09368491053
A48: 7 | I48: 69569.78944 | J48: 69569.78944 | K48: 808951.04 | L48: 29857.16 | M48: 5397.3 | N48: 102380.25 | O48: 6302.17 | P48: 0 | Q48: 201481.43 | R48: 62 | S48: 1.102184204 | T48: 1.032 | U48: 1.071886991 | V48: 0.03690848831 | W48: 0.03690848831 | X48: 0.04431841031 | Y48: 0.03287322112 | Z48: 0.006671973622 | AA48: 0.006671973622 | AB48: 0.04766513951 | AC48: 0.04175416555 | AD48: 0.1265592662 | AE48: 0.1265592662 | AF48: 0.08337415179 | AG48: 0.07105311858 | AH48: 0.007790545643 | AI48: 0.007790545643 | AJ48: 0.01054696405 | AK48: 0.005554598837 | AN48: 0.02377048134 | AO48: 0.008709189941 | AP48: 0.2490650485 | AQ48: 0.2490650485 | AR48: 0.1034019175 | AS48: 0.09368491053
A49: 7 | I49: 51902.27796 | J49: 51902.27796 | K49: 603514.86 | L49: 294.78 | M49: 71791.58 | N49: 49233.29 | O49: 526.37 | P49: 0 | Q49: 0 | R49: 29 | S49: 1.102184204 | T49: 1.032 | U49: 1.071886991 | V49: 0.0004884386774 | W49: 0.0004884386774 | X49: 0.04431841031 | Y49: 0.03287322112 | Z49: 0.1189557785 | AB49: 0.04766513951 | AC49: 0.04175416555 | AD49: 0.08157759363 | AE49: 0.08157759363 | AF49: 0.08337415179 | AG49: 0.07105311858 | AH49: 0.0008721740505 | AI49: 0.0008721740505 | AJ49: 0.01054696405 | AK49: 0.005554598837 | AN49: 0.02377048134 | AO49: 0.008709189941 | AR49: 0.1034019175 | AS49: 0.09368491053
A50: 7 | I50: 46121.28744 | J50: 46121.28744 | K50: 536294.04 | L50: 13154.4 | M50: 43607.01 | N50: 13904.72 | O50: 4069.34 | P50: 30841.38 | Q50: 0 | R50: 30 | S50: 1.102184204 | T50: 1.032 | U50: 1.071886991 | V50: 0.02452833524 | W50: 0.02452833524 | X50: 0.04431841031 | Y50: 0.03287322112 | Z50: 0.08131175577 | AA50: 0.08131175577 | AB50: 0.04766513951 | AC50: 0.04175416555 | AD50: 0.02592741847 | AE50: 0.02592741847 | AF50: 0.08337415179 | AG50: 0.07105311858 | AH50: 0.007587889658 | AI50: 0.007587889658 | AJ50: 0.01054696405 | AK50: 0.005554598837 | AL50: 0.05750834001 | AN50: 0.02377048134 | AO50: 0.008709189941 | AR50: 0.1034019175 | AS50: 0.09368491053
A51: 7 | I51: 311288.1327 | K51: 3619629.45 | L51: 78134.45 | M51: 0 | N51: 187807.18 | O51: 264.45 | P51: 48546.02 | Q51: 0 | R51: 67 | S51: 1.102184204 | T51: 1.032 | U51: 1.071886991 | V51: 0.02158631183 | W51: 0.02158631183 | X51: 0.04431841031 | Y51: 0.03287322112 | AB51: 0.04766513951 | AC51: 0.04175416555 | AD51: 0.05188574759 | AE51: 0.05188574759 | AF51: 0.08337415179 | AG51: 0.07105311858 | AH51: 7.305996474e-05 | AI51: 7.305996474e-05 | AJ51: 0.01054696405 | AK51: 0.005554598837 | AL51: 0.01341187563 | AM51: 0.01341187563 | AN51: 0.02377048134 | AO51: 0.008709189941 | AR51: 0.1034019175 | AS51: 0.09368491053
A52: 7 | I52: 59620.45976 | J52: 59620.45976 | K52: 693261.16 | L52: 11163.99 | M52: 20450.61 | N52: 30195.72 | O52: 456.04 | P52: 0 | Q52: 0 | R52: 41.2 | S52: 1.102184204 | T52: 1.032 | U52: 1.071886991 | V52: 0.01610358498 | W52: 0.01610358498 | X52: 0.04431841031 | Y52: 0.03287322112 | Z52: 0.02949914286 | AA52: 0.02949914286 | AB52: 0.04766513951 | AC52: 0.04175416555 | AD52: 0.04355605325 | AE52: 0.04355605325 | AF52: 0.08337415179 | AG52: 0.07105311858 | AH52: 0.0006578184764 | AI52: 0.0006578184764 | AJ52: 0.01054696405 | AK52: 0.005554598837 | AN52: 0.02377048134 | AO52: 0.008709189941 | AR52: 0.1034019175 | AS52: 0.09368491053
A53: 7 | I53: 40399.96329 | J53: 40399.96329 | K53: 117441.7538 | L53: 1291.25 | M53: 9104.03 | N53: 10644.49 | O53: 0 | P53: 2787.98 | Q53: 0 | R53: 29 | S53: 1.102184204 | T53: 1.032 | U53: 1.071886991 | V53: 0.01099481197 | W53: 0.01099481197 | X53: 0.04431841031 | Y53: 0.03287322112 | Z53: 0.0775195338 | AA53: 0.0775195338 | AB53: 0.04766513951 | AC53: 0.04175416555 | AD53: 0.09063633383 | AE53: 0.09063633383 | AF53: 0.08337415179 | AG53: 0.07105311858 | AJ53: 0.01054696405 | AK53: 0.005554598837 | AL53: 0.02373925721 | AM53: 0.02373925721 | AN53: 0.02377048134 | AO53: 0.008709189941 | AR53: 0.1034019175 | AS53: 0.09368491053
A54: 7 | I54: 39433.27763 | J54: 39433.27763 | K54: 458526.4841 | L54: 16773.68 | M54: 28146.6 | N54: 47307.23 | O54: 0 | P54: 1221.36 | Q54: 0 | R54: 51.84931507 | S54: 1.102184204 | T54: 1.032 | U54: 1.071886991 | V54: 0.03658170374 | W54: 0.03658170374 | X54: 0.04431841031 | Y54: 0.03287322112 | Z54: 0.06138489482 | AA54: 0.06138489482 | AB54: 0.04766513951 | AC54: 0.04175416555 | AD54: 0.1031722957 | AE54: 0.1031722957 | AF54: 0.08337415179 | AG54: 0.07105311858 | AJ54: 0.01054696405 | AK54: 0.005554598837 | AL54: 0.002663662934 | AM54: 0.002663662934 | AN54: 0.02377048134 | AO54: 0.008709189941 | AR54: 0.1034019175 | AS54: 0.09368491053
A55: 7 | I55: 73172.6356 | J55: 73172.6356 | K55: 850844.6 | L55: 0 | M55: 20268.93 | N55: 78977.05 | O55: 7512.8 | P55: 3888 | Q55: 0 | R55: 51 | S55: 1.102184204 | T55: 1.032 | U55: 1.071886991 | X55: 0.04431841031 | Y55: 0.03287322112 | Z55: 0.02382212921 | AA55: 0.02382212921 | AB55: 0.04766513951 | AC55: 0.04175416555 | AD55: 0.09282194422 | AE55: 0.09282194422 | AF55: 0.08337415179 | AG55: 0.07105311858 | AH55: 0.008829814516 | AI55: 0.008829814516 | AJ55: 0.01054696405 | AK55: 0.005554598837 | AL55: 0.0045695771 | AM55: 0.0045695771 | AN55: 0.02377048134 | AO55: 0.008709189941 | AR55: 0.1034019175 | AS55: 0.09368491053
A56: 7 | I56: 75684.60444 | J56: 75684.60444 | K56: 880053.54 | L56: 0 | M56: 19534.45 | N56: 89468.94 | O56: 1838.73 | P56: 0 | Q56: 0 | R56: 62 | S56: 1.102184204 | T56: 1.032 | U56: 1.071886991 | X56: 0.04431841031 | Y56: 0.03287322112 | Z56: 0.02219688816 | AA56: 0.02219688816 | AB56: 0.04766513951 | AC56: 0.04175416555 | AD56: 0.1016630647 | AE56: 0.1016630647 | AF56: 0.08337415179 | AG56: 0.07105311858 | AH56: 0.002089338792 | AI56: 0.002089338792 | AJ56: 0.01054696405 | AK56: 0.005554598837 | AN56: 0.02377048134 | AO56: 0.008709189941 | AR56: 0.1034019175 | AS56: 0.09368491053
A57: 7 | I57: 56696.7341 | J57: 56696.7341 | K57: 659264.35 | L57: 0 | M57: 40072.73 | N57: 25333.66 | O57: 16.71 | P57: 0 | Q57: 105800.36 | R57: 20 | S57: 1.102184204 | T57: 1.032 | U57: 1.071886991 | X57: 0.04431841031 | Y57: 0.03287322112 | Z57: 0.06078400872 | AA57: 0.06078400872 | AB57: 0.04766513951 | AC57: 0.04175416555 | AD57: 0.03842716507 | AE57: 0.03842716507 | AF57: 0.08337415179 | AG57: 0.07105311858 | AH57: 2.534643349e-05 | AI57: 2.534643349e-05 | AJ57: 0.01054696405 | AK57: 0.005554598837 | AN57: 0.02377048134 | AO57: 0.008709189941 | AP57: 0.1604824529 | AQ57: 0.1604824529 | AR57: 0.1034019175 | AS57: 0.09368491053
A58: 7 | I58: 50853.4512 | J58: 50853.4512 | K58: 591319.2 | L58: 0 | M58: 60256.08 | N58: 76238.94 | O58: 4323.25 | P58: 0.02 | Q58: 14648.31 | R58: 30 | S58: 1.102184204 | T58: 1.032 | U58: 1.071886991 | X58: 0.04431841031 | Y58: 0.03287322112 | Z58: 0.1019011052 | AA58: 0.1019011052 | AB58: 0.04766513951 | AC58: 0.04175416555 | AD58: 0.128930263 | AE58: 0.128930263 | AF58: 0.08337415179 | AG58: 0.07105311858 | AH58: 0.007311195036 | AI58: 0.007311195036 | AJ58: 0.01054696405 | AK58: 0.005554598837 | AL58: 3.382267987e-08 | AM58: 3.382267987e-08 | AN58: 0.02377048134 | AO58: 0.008709189941 | AP58: 0.02477225499 | AQ58: 0.02477225499 | AR58: 0.1034019175 | AS58: 0.09368491053
A59: 7 | I59: 8873.80336 | J59: 8873.80336 | K59: 103183.76 | L59: 0 | M59: 8836.81 | N59: 40041.29 | O59: 0 | P59: 0 | Q59: 0 | R59: 27 | S59: 1.102184204 | T59: 1.032 | U59: 1.071886991 | X59: 0.04431841031 | Y59: 0.03287322112 | Z59: 0.08564148079 | AA59: 0.08564148079 | AB59: 0.04766513951 | AC59: 0.04175416555 | AD59: 0.3880580626 | AF59: 0.08337415179 | AG59: 0.07105311858 | AJ59: 0.01054696405 | AK59: 0.005554598837 | AN59: 0.02377048134 | AO59: 0.008709189941 | AR59: 0.1034019175 | AS59: 0.09368491053
A60: 7 | I60: 54655.54388 | J60: 54655.54388 | K60: 635529.58 | L60: 17214.24 | M60: 28198.88 | N60: 51829.27 | O60: 2525.14 | P60: 0 | Q60: 0 | R60: 50 | S60: 1.102184204 | T60: 1.032 | U60: 1.071886991 | V60: 0.0270864497 | W60: 0.0270864497 | X60: 0.04431841031 | Y60: 0.03287322112 | Z60: 0.04437068059 | AA60: 0.04437068059 | AB60: 0.04766513951 | AC60: 0.04175416555 | AD60: 0.08155288382 | AE60: 0.08155288382 | AF60: 0.08337415179 | AG60: 0.07105311858 | AH60: 0.003973284768 | AI60: 0.003973284768 | AJ60: 0.01054696405 | AK60: 0.005554598837 | AN60: 0.02377048134 | AO60: 0.008709189941 | AR60: 0.1034019175 | AS60: 0.09368491053
A61: 7 | I61: 70371.97508 | J61: 70371.97508 | K61: 818278.78 | L61: 20635.48 | M61: 23115.11 | N61: 72810.4 | O61: 973.9 | P61: 20145.5 | Q61: 131855.01 | R61: 35 | S61: 1.102184204 | T61: 1.032 | U61: 1.071886991 | V61: 0.02521815365 | W61: 0.02521815365 | X61: 0.04431841031 | Y61: 0.03287322112 | Z61: 0.02824845342 | AA61: 0.02824845342 | AB61: 0.04766513951 | AC61: 0.04175416555 | AD61: 0.08897994397 | AE61: 0.08897994397 | AF61: 0.08337415179 | AG61: 0.07105311858 | AH61: 0.001190181175 | AI61: 0.001190181175 | AJ61: 0.01054696405 | AK61: 0.005554598837 | AL61: 0.02461936016 | AM61: 0.02461936016 | AN61: 0.02377048134 | AO61: 0.008709189941 | AP61: 0.1611370272 | AQ61: 0.1611370272 | AR61: 0.1034019175 | AS61: 0.09368491053
A62: 7 | I62: 99291.45136 | J62: 99291.45136 | K62: 1154551.76 | L62: 10109.21 | M62: 70912.66 | N62: 123563.63 | O62: 16273.65 | P62: 0 | Q62: 0 | R62: 66 | S62: 1.102184204 | T62: 1.032 | U62: 1.071886991 | V62: 0.008755960841 | W62: 0.008755960841 | X62: 0.04431841031 | Y62: 0.03287322112 | Z62: 0.06142007873 | AA62: 0.06142007873 | AB62: 0.04766513951 | AC62: 0.04175416555 | AD62: 0.107023032 | AE62: 0.107023032 | AF62: 0.08337415179 | AG62: 0.07105311858 | AH62: 0.01409521042 | AI62: 0.01409521042 | AJ62: 0.01054696405 | AK62: 0.005554598837 | AN62: 0.02377048134 | AO62: 0.008709189941 | AR62: 0.1034019175 | AS62: 0.09368491053
A63: 7 | I63: 91218.51784 | J63: 91218.51784 | K63: 1060680.44 | L63: 15570.11 | M63: 39112.2 | N63: 74570.81 | O63: 7751.45 | P63: 3136.09 | Q63: 0 | R63: 36 | S63: 1.102184204 | T63: 1.032 | U63: 1.071886991 | V63: 0.01467935998 | W63: 0.01467935998 | X63: 0.04431841031 | Y63: 0.03287322112 | Z63: 0.03687463116 | AA63: 0.03687463116 | AB63: 0.04766513951 | AC63: 0.04175416555 | AD63: 0.07030469045 | AE63: 0.07030469045 | AF63: 0.08337415179 | AG63: 0.07105311858 | AH63: 0.007307997496 | AI63: 0.007307997496 | AJ63: 0.01054696405 | AK63: 0.005554598837 | AL63: 0.002956677508 | AM63: 0.002956677508 | AN63: 0.02377048134 | AO63: 0.008709189941 | AR63: 0.1034019175 | AS63: 0.09368491053
A64: 7 | I64: 75894.86068 | J64: 75894.86068 | K64: 882498.38 | L64: 60377.5 | M64: 48295.46 | N64: 95128.58 | O64: 16872.04 | P64: 3655.02 | Q64: 0 | R64: 49 | S64: 1.102184204 | T64: 1.032 | U64: 1.071886991 | V64: 0.06841655619 | W64: 0.06841655619 | X64: 0.04431841031 | Y64: 0.03287322112 | Z64: 0.05472583417 | AA64: 0.05472583417 | AB64: 0.04766513951 | AC64: 0.04175416555 | AD64: 0.1077946228 | AE64: 0.1077946228 | AF64: 0.08337415179 | AG64: 0.07105311858 | AH64: 0.01911849402 | AI64: 0.01911849402 | AJ64: 0.01054696405 | AK64: 0.005554598837 | AL64: 0.004141673325 | AM64: 0.004141673325 | AN64: 0.02377048134 | AO64: 0.008709189941 | AR64: 0.1034019175 | AS64: 0.09368491053
A65: 7 | I65: 104883.4087 | J65: 104883.4087 | K65: 1219574.52 | L65: 18249.95 | M65: 30793.13 | N65: 91716.25 | O65: 741.06 | P65: 365.32 | Q65: 0 | R65: 33 | S65: 1.102184204 | T65: 1.032 | U65: 1.071886991 | V65: 0.01496419423 | W65: 0.01496419423 | X65: 0.04431841031 | Y65: 0.03287322112 | Z65: 0.02524907621 | AA65: 0.02524907621 | AB65: 0.04766513951 | AC65: 0.04175416555 | AD65: 0.07520348162 | AE65: 0.07520348162 | AF65: 0.08337415179 | AG65: 0.07105311858 | AH65: 0.0006076381458 | AI65: 0.0006076381458 | AJ65: 0.01054696405 | AK65: 0.005554598837 | AL65: 0.0002995470912 | AM65: 0.0002995470912 | AN65: 0.02377048134 | AO65: 0.008709189941 | AR65: 0.1034019175 | AS65: 0.09368491053
A66: 7 | I66: 77369.89054 | J66: 77369.89054 | K66: 899649.89 | L66: 53878.78 | M66: 39908.69 | N66: 39336.68 | O66: 2765.16 | P66: 17421.24 | Q66: 0 | R66: 83 | S66: 1.102184204 | T66: 1.032 | U66: 1.071886991 | V66: 0.05988860845 | W66: 0.05988860845 | X66: 0.04431841031 | Y66: 0.03287322112 | Z66: 0.04436024552 | AA66: 0.04436024552 | AB66: 0.04766513951 | AC66: 0.04175416555 | AD66: 0.04372443151 | AE66: 0.04372443151 | AF66: 0.08337415179 | AG66: 0.07105311858 | AH66: 0.003073595663 | AI66: 0.003073595663 | AJ66: 0.01054696405 | AK66: 0.005554598837 | AL66: 0.01936446633 | AM66: 0.01936446633 | AN66: 0.02377048134 | AO66: 0.008709189941 | AR66: 0.1034019175 | AS66: 0.09368491053
A67: 7 | I67: 41611.82412 | J67: 41611.82412 | K67: 483858.42 | L67: 23240.91 | M67: 32167.16 | N67: 37823.43 | O67: 0 | P67: 147.6 | Q67: 0 | R67: 32 | S67: 1.102184204 | T67: 1.032 | U67: 1.071886991 | V67: 0.04803245958 | W67: 0.04803245958 | X67: 0.04431841031 | Y67: 0.03287322112 | Z67: 0.06648052131 | AA67: 0.06648052131 | AB67: 0.04766513951 | AC67: 0.04175416555 | AD67: 0.07817044912 | AE67: 0.07817044912 | AF67: 0.08337415179 | AG67: 0.07105311858 | AJ67: 0.01054696405 | AK67: 0.005554598837 | AL67: 0.0003050479105 | AM67: 0.0003050479105 | AN67: 0.02377048134 | AO67: 0.008709189941 | AR67: 0.1034019175 | AS67: 0.09368491053
A68: 7 | I68: 84267.67276 | J68: 84267.67276 | K68: 979856.66 | L68: 44175.13 | M68: 35302.62 | N68: 44536.25 | O68: 418.47 | P68: 0 | Q68: 0 | R68: 34 | S68: 1.102184204 | T68: 1.032 | U68: 1.071886991 | V68: 0.04508325738 | W68: 0.04508325738 | X68: 0.04431841031 | Y68: 0.03287322112 | Z68: 0.03602835133 | AA68: 0.03602835133 | AB68: 0.04766513951 | AC68: 0.04175416555 | AD68: 0.04545180108 | AE68: 0.04545180108 | AF68: 0.08337415179 | AG68: 0.07105311858 | AH68: 0.00042707267 | AI68: 0.00042707267 | AJ68: 0.01054696405 | AK68: 0.005554598837 | AN68: 0.02377048134 | AO68: 0.008709189941 | AR68: 0.1034019175 | AS68: 0.09368491053
A69: 7 | I69: 72721.30932 | J69: 72721.30932 | K69: 845596.62 | L69: 28375.59 | M69: 14067.03 | N69: 8184.93 | O69: 0 | P69: 129.15 | Q69: 0 | R69: 60 | S69: 1.102184204 | T69: 1.032 | U69: 1.071886991 | V69: 0.03355688673 | W69: 0.03355688673 | X69: 0.04431841031 | Y69: 0.03287322112 | Z69: 0.01663562704 | AA69: 0.01663562704 | AB69: 0.04766513951 | AC69: 0.04175416555 | AD69: 0.009679473411 | AE69: 0.009679473411 | AF69: 0.08337415179 | AG69: 0.07105311858 | AJ69: 0.01054696405 | AK69: 0.005554598837 | AL69: 0.0001527323986 | AM69: 0.0001527323986 | AN69: 0.02377048134 | AO69: 0.008709189941 | AR69: 0.1034019175 | AS69: 0.09368491053
A70: 7 | I70: 43907.59326 | J70: 43907.59326 | K70: 510553.41 | L70: 26564.72 | M70: 35784.92 | N70: 51178.03 | O70: 556.59 | P70: 1586.58 | Q70: 108536.81 | R70: 32 | S70: 1.102184204 | T70: 1.032 | U70: 1.071886991 | V70: 0.05203122627 | W70: 0.05203122627 | X70: 0.04431841031 | Y70: 0.03287322112 | Z70: 0.07009045342 | AA70: 0.07009045342 | AB70: 0.04766513951 | AC70: 0.04175416555 | AD70: 0.1002403059 | AE70: 0.1002403059 | AF70: 0.08337415179 | AG70: 0.07105311858 | AH70: 0.001090169978 | AI70: 0.001090169978 | AJ70: 0.01054696405 | AK70: 0.005554598837 | AL70: 0.003107569098 | AM70: 0.003107569098 | AN70: 0.02377048134 | AO70: 0.008709189941 | AP70: 0.212586593 | AQ70: 0.212586593 | AR70: 0.1034019175 | AS70: 0.09368491053
A71: 7 | I71: 52963.88862 | J71: 52963.88862 | K71: 615859.17 | L71: 34653.7 | M71: 41401.09 | N71: 66240.89 | O71: 18504.4 | P71: 1085.45 | Q71: 159856.9 | R71: 45 | S71: 1.102184204 | T71: 1.032 | U71: 1.071886991 | V71: 0.05626887069 | W71: 0.05626887069 | X71: 0.04431841031 | Y71: 0.03287322112 | Z71: 0.06722493066 | AA71: 0.06722493066 | AB71: 0.04766513951 | AC71: 0.04175416555 | AD71: 0.1075585024 | AE71: 0.1075585024 | AF71: 0.08337415179 | AG71: 0.07105311858 | AH71: 0.03004647962 | AJ71: 0.01054696405 | AK71: 0.005554598837 | AL71: 0.001762497098 | AM71: 0.001762497098 | AN71: 0.02377048134 | AO71: 0.008709189941 | AP71: 0.2595672969 | AQ71: 0.2595672969 | AR71: 0.1034019175 | AS71: 0.09368491053
A72: 7 | I72: 34632.11486 | J72: 34632.11486 | K72: 402699.01 | L72: 16971.04 | M72: 20438.22 | N72: 53646.86 | O72: 1968.93 | P72: 1707.61 | Q72: 80509.53 | R72: 33 | S72: 1.102184204 | T72: 1.032 | U72: 1.071886991 | V72: 0.04214323745 | W72: 0.04214323745 | X72: 0.04431841031 | Y72: 0.03287322112 | Z72: 0.05075309224 | AA72: 0.05075309224 | AB72: 0.04766513951 | AC72: 0.04175416555 | AD72: 0.1332182565 | AE72: 0.1332182565 | AF72: 0.08337415179 | AG72: 0.07105311858 | AH72: 0.004889334096 | AI72: 0.004889334096 | AJ72: 0.01054696405 | AK72: 0.005554598837 | AL72: 0.004240412709 | AM72: 0.004240412709 | AN72: 0.02377048134 | AO72: 0.008709189941 | AP72: 0.1999248272 | AQ72: 0.1999248272 | AR72: 0.1034019175 | AS72: 0.09368491053
A73: 7 | I73: 82291.17002 | J73: 82291.17002 | K73: 956874.07 | L73: 28220.03 | M73: 16860.93 | N73: 70462.88 | O73: 0 | P73: 182.5 | Q73: 0 | R73: 51 | S73: 1.102184204 | T73: 1.032 | U73: 1.071886991 | V73: 0.02949189542 | W73: 0.02949189542 | X73: 0.04431841031 | Y73: 0.03287322112 | Z73: 0.01762084534 | AA73: 0.01762084534 | AB73: 0.04766513951 | AC73: 0.04175416555 | AD73: 0.0736386137 | AE73: 0.0736386137 | AF73: 0.08337415179 | AG73: 0.07105311858 | AJ73: 0.01054696405 | AK73: 0.005554598837 | AL73: 0.0001907252017 | AM73: 0.0001907252017 | AN73: 0.02377048134 | AO73: 0.008709189941 | AR73: 0.1034019175 | AS73: 0.09368491053
A74: 7 | I74: 74897.62704 | J74: 74897.62704 | K74: 870902.64 | L74: 34376.35 | M74: 16763.43 | N74: 68285.89 | O74: 0 | P74: 91.8 | Q74: 0 | R74: 51 | S74: 1.102184204 | T74: 1.032 | U74: 1.071886991 | V74: 0.039472093 | W74: 0.039472093 | X74: 0.04431841031 | Y74: 0.03287322112 | Z74: 0.01924833986 | AA74: 0.01924833986 | AB74: 0.04766513951 | AC74: 0.04175416555 | AD74: 0.0784081789 | AE74: 0.0784081789 | AF74: 0.08337415179 | AG74: 0.07105311858 | AJ74: 0.01054696405 | AK74: 0.005554598837 | AL74: 0.0001054078789 | AM74: 0.0001054078789 | AN74: 0.02377048134 | AO74: 0.008709189941 | AR74: 0.1034019175 | AS74: 0.09368491053
A75: 7 | I75: 60426.85166 | J75: 60426.85166 | K75: 702637.81 | L75: 13281.62 | M75: 29148.39 | N75: 87596.25 | O75: 1804.41 | P75: 0 | Q75: 0 | R75: 32 | S75: 1.102184204 | T75: 1.032 | U75: 1.071886991 | V75: 0.01890251252 | W75: 0.01890251252 | X75: 0.04431841031 | Y75: 0.03287322112 | Z75: 0.04148423211 | AA75: 0.04148423211 | AB75: 0.04766513951 | AC75: 0.04175416555 | AD75: 0.1246677147 | AE75: 0.1246677147 | AF75: 0.08337415179 | AG75: 0.07105311858 | AH75: 0.002568051383 | AI75: 0.002568051383 | AJ75: 0.01054696405 | AK75: 0.005554598837 | AN75: 0.02377048134 | AO75: 0.008709189941 | AR75: 0.1034019175 | AS75: 0.09368491053
A76: 7 | I76: 40082.26166 | J76: 40082.26166 | K76: 466072.81 | L76: 7263.08 | M76: 13998.07 | N76: 42066.86 | O76: 1330.65 | P76: 0 | Q76: 0 | R76: 23 | S76: 1.102184204 | T76: 1.032 | U76: 1.071886991 | V76: 0.01558357373 | W76: 0.01558357373 | X76: 0.04431841031 | Y76: 0.03287322112 | Z76: 0.03003408416 | AA76: 0.03003408416 | AB76: 0.04766513951 | AC76: 0.04175416555 | AD76: 0.09025812941 | AE76: 0.09025812941 | AF76: 0.08337415179 | AG76: 0.07105311858 | AH76: 0.002855026021 | AI76: 0.002855026021 | AJ76: 0.01054696405 | AK76: 0.005554598837 | AN76: 0.02377048134 | AO76: 0.008709189941 | AR76: 0.1034019175 | AS76: 0.09368491053
A77: 7 | I77: 83790.86812 | J77: 83790.86812 | K77: 974312.42 | L77: 0 | M77: 35421.2 | N77: 116607.61 | O77: 25392.73 | P77: 0 | Q77: 0 | R77: 42 | S77: 1.102184204 | T77: 1.032 | U77: 1.071886991 | X77: 0.04431841031 | Y77: 0.03287322112 | Z77: 0.03635507387 | AA77: 0.03635507387 | AB77: 0.04766513951 | AC77: 0.04175416555 | AD77: 0.1196819497 | AE77: 0.1196819497 | AF77: 0.08337415179 | AG77: 0.07105311858 | AH77: 0.02606220498 | AJ77: 0.01054696405 | AK77: 0.005554598837 | AN77: 0.02377048134 | AO77: 0.008709189941 | AR77: 0.1034019175 | AS77: 0.09368491053
A78: 7 | I78: 67785.0968 | J78: 67785.0968 | K78: 788198.8 | L78: 0 | M78: 28782.38 | N78: 78333.79 | O78: 5951.13 | P78: 0 | Q78: 0 | R78: 31 | S78: 1.102184204 | T78: 1.032 | U78: 1.071886991 | X78: 0.04431841031 | Y78: 0.03287322112 | Z78: 0.03651665037 | AA78: 0.03651665037 | AB78: 0.04766513951 | AC78: 0.04175416555 | AD78: 0.0993832901 | AE78: 0.0993832901 | AF78: 0.08337415179 | AG78: 0.07105311858 | AH78: 0.007550290612 | AI78: 0.007550290612 | AJ78: 0.01054696405 | AK78: 0.005554598837 | AN78: 0.02377048134 | AO78: 0.008709189941 | AR78: 0.1034019175 | AS78: 0.09368491053
A79: 7 | I79: 47185.15904 | J79: 47185.15904 | K79: 548664.64 | L79: 0 | M79: 39334.9 | N79: 85783.68 | O79: 18429.95 | P79: 4371.67 | Q79: 0 | R79: 75 | S79: 1.102184204 | T79: 1.032 | U79: 1.071886991 | X79: 0.04431841031 | Y79: 0.03287322112 | Z79: 0.07169206312 | AA79: 0.07169206312 | AB79: 0.04766513951 | AC79: 0.04175416555 | AD79: 0.1563499335 | AE79: 0.1563499335 | AF79: 0.08337415179 | AG79: 0.07105311858 | AH79: 0.03359055543 | AJ79: 0.01054696405 | AK79: 0.005554598837 | AL79: 0.007967836236 | AM79: 0.007967836236 | AN79: 0.02377048134 | AO79: 0.008709189941 | AR79: 0.1034019175 | AS79: 0.09368491053
A80: 7 | I80: 52618.0852 | J80: 52618.0852 | K80: 611838.2 | L80: 7747.29 | M80: 11322.52 | N80: 40001.72 | O80: 2174.79 | P80: 0 | Q80: 29539.19 | R80: 31 | S80: 1.102184204 | T80: 1.032 | U80: 1.071886991 | V80: 0.01266231824 | W80: 0.01266231824 | X80: 0.04431841031 | Y80: 0.03287322112 | Z80: 0.0185057422 | AA80: 0.0185057422 | AB80: 0.04766513951 | AC80: 0.04175416555 | AD80: 0.06537957257 | AE80: 0.06537957257 | AF80: 0.08337415179 | AG80: 0.07105311858 | AH80: 0.003554518172 | AI80: 0.003554518172 | AJ80: 0.01054696405 | AK80: 0.005554598837 | AN80: 0.02377048134 | AO80: 0.008709189941 | AP80: 0.04827941439 | AQ80: 0.04827941439 | AR80: 0.1034019175 | AS80: 0.09368491053
A81: 7 | I81: 64262.5411 | J81: 64262.5411 | K81: 747238.85 | L81: 26631.33 | M81: 21939.52 | N81: 30178.26 | O81: 4113.77 | P81: 0 | Q81: 0 | R81: 41 | S81: 1.102184204 | T81: 1.032 | U81: 1.071886991 | V81: 0.03563964855 | W81: 0.03563964855 | X81: 0.04431841031 | Y81: 0.03287322112 | Z81: 0.02936078605 | AA81: 0.02936078605 | AB81: 0.04766513951 | AC81: 0.04175416555 | AD81: 0.04038636374 | AE81: 0.04038636374 | AF81: 0.08337415179 | AG81: 0.07105311858 | AH81: 0.005505294592 | AI81: 0.005505294592 | AJ81: 0.01054696405 | AK81: 0.005554598837 | AN81: 0.02377048134 | AO81: 0.008709189941 | AR81: 0.1034019175 | AS81: 0.09368491053
A82: 7 | I82: 110333.3474 | J82: 110333.3474 | K82: 1282945.9 | L82: 27258.97 | M82: 55135.57 | N82: 112433.69 | O82: 0 | P82: 0 | Q82: 0 | R82: 54 | S82: 1.102184204 | T82: 1.032 | U82: 1.071886991 | V82: 0.02124717028 | W82: 0.02124717028 | X82: 0.04431841031 | Y82: 0.03287322112 | Z82: 0.04297575603 | AA82: 0.04297575603 | AB82: 0.04766513951 | AC82: 0.04175416555 | AD82: 0.08763712484 | AE82: 0.08763712484 | AF82: 0.08337415179 | AG82: 0.07105311858 | AJ82: 0.01054696405 | AK82: 0.005554598837 | AN82: 0.02377048134 | AO82: 0.008709189941 | AR82: 0.1034019175 | AS82: 0.09368491053
A83: 7 | I83: 33183.86884 | J83: 33183.86884 | K83: 385858.94 | L83: 19840.67 | M83: 14492.97 | N83: 46839.55 | O83: 4101.67 | P83: 3008.58 | Q83: 0 | R83: 50 | S83: 1.102184204 | T83: 1.032 | U83: 1.071886991 | V83: 0.05141949024 | W83: 0.05141949024 | X83: 0.04431841031 | Y83: 0.03287322112 | Z83: 0.03756028045 | AA83: 0.03756028045 | AB83: 0.04766513951 | AC83: 0.04175416555 | AD83: 0.1213903454 | AE83: 0.1213903454 | AF83: 0.08337415179 | AG83: 0.07105311858 | AH83: 0.0106299727 | AI83: 0.0106299727 | AJ83: 0.01054696405 | AK83: 0.005554598837 | AL83: 0.007797098079 | AM83: 0.007797098079 | AN83: 0.02377048134 | AO83: 0.008709189941 | AR83: 0.1034019175 | AS83: 0.09368491053
A84: 7 | I84: 14900.01428 | J84: 14900.01428 | K84: 173255.98 | L84: 5743.79 | M84: 2362.25 | N84: 36857.82 | O84: 9368.65 | P84: 0 | Q84: 0 | R84: 20 | S84: 1.102184204 | T84: 1.032 | U84: 1.071886991 | V84: 0.03315204474 | W84: 0.03315204474 | X84: 0.04431841031 | Y84: 0.03287322112 | Z84: 0.01363445002 | AA84: 0.01363445002 | AB84: 0.04766513951 | AC84: 0.04175416555 | AD84: 0.2127362069 | AF84: 0.08337415179 | AG84: 0.07105311858 | AH84: 0.05407403542 | AJ84: 0.01054696405 | AK84: 0.005554598837 | AN84: 0.02377048134 | AO84: 0.008709189941 | AR84: 0.1034019175 | AS84: 0.09368491053
A85: 7 | I85: 80152.70262 | J85: 80152.70262 | K85: 932008.17 | L85: 12705.77 | M85: 12610.23 | N85: 137792.84 | O85: 15633.62 | P85: 4654.21 | Q85: 0 | R85: 66 | S85: 1.102184204 | T85: 1.032 | U85: 1.071886991 | V85: 0.01363268092 | W85: 0.01363268092 | X85: 0.04431841031 | Y85: 0.03287322112 | Z85: 0.01353017109 | AA85: 0.01353017109 | AB85: 0.04766513951 | AC85: 0.04175416555 | AD85: 0.1478450988 | AE85: 0.1478450988 | AF85: 0.08337415179 | AG85: 0.07105311858 | AH85: 0.01677412334 | AI85: 0.01677412334 | AJ85: 0.01054696405 | AK85: 0.005554598837 | AL85: 0.004993743778 | AM85: 0.004993743778 | AN85: 0.02377048134 | AO85: 0.008709189941 | AR85: 0.1034019175 | AS85: 0.09368491053
A86: 7 | I86: 32175.84134 | J86: 32175.84134 | K86: 374137.69 | L86: 12728.78 | M86: 4064.48 | N86: 47849.66 | O86: 5627.37 | P86: 952.64 | Q86: 0 | R86: 23 | S86: 1.102184204 | T86: 1.032 | U86: 1.071886991 | V86: 0.03402164588 | W86: 0.03402164588 | X86: 0.04431841031 | Y86: 0.03287322112 | Z86: 0.0108635941 | AA86: 0.0108635941 | AB86: 0.04766513951 | AC86: 0.04175416555 | AD86: 0.1278931829 | AE86: 0.1278931829 | AF86: 0.08337415179 | AG86: 0.07105311858 | AH86: 0.01504090646 | AI86: 0.01504090646 | AJ86: 0.01054696405 | AK86: 0.005554598837 | AL86: 0.002546228368 | AM86: 0.002546228368 | AN86: 0.02377048134 | AO86: 0.008709189941 | AR86: 0.1034019175 | AS86: 0.09368491053
A87: 7 | I87: 30809.3323 | J87: 30809.3323 | K87: 358248.05 | L87: 1710.72 | M87: 3993.45 | N87: 50127.56 | O87: 327.13 | P87: 0 | Q87: 0 | R87: 27 | S87: 1.102184204 | T87: 1.032 | U87: 1.071886991 | V87: 0.004775238832 | W87: 0.004775238832 | X87: 0.04431841031 | Y87: 0.03287322112 | Z87: 0.01114716465 | AA87: 0.01114716465 | AB87: 0.04766513951 | AC87: 0.04175416555 | AD87: 0.1399241671 | AE87: 0.1399241671 | AF87: 0.08337415179 | AG87: 0.07105311858 | AH87: 0.0009131382571 | AI87: 0.0009131382571 | AJ87: 0.01054696405 | AK87: 0.005554598837 | AN87: 0.02377048134 | AO87: 0.008709189941 | AR87: 0.1034019175 | AS87: 0.09368491053
A88: 7 | I88: 37733.30238 | J88: 37733.30238 | K88: 438759.33 | L88: 0 | M88: 14347.73 | N88: 83030.92 | O88: 0 | P88: 12542.47 | Q88: 258539.93 | R88: 72 | S88: 1.102184204 | T88: 1.032 | U88: 1.071886991 | X88: 0.04431841031 | Y88: 0.03287322112 | Z88: 0.03270068354 | AA88: 0.03270068354 | AB88: 0.04766513951 | AC88: 0.04175416555 | AD88: 0.1892402379 | AE88: 0.1892402379 | AF88: 0.08337415179 | AG88: 0.07105311858 | AJ88: 0.01054696405 | AK88: 0.005554598837 | AL88: 0.02858621833 | AM88: 0.02858621833 | AN88: 0.02377048134 | AO88: 0.008709189941 | AP88: 0.5892522673 | AR88: 0.1034019175 | AS88: 0.09368491053
A89: 7 | I89: 81857.509 | J89: 81857.509 | K89: 951831.5 | L89: 50707.44 | M89: 50367.53 | N89: 105297.01 | O89: 2941.83 | P89: 6743.96 | Q89: 343868.58 | R89: 65 | S89: 1.102184204 | T89: 1.032 | U89: 1.071886991 | V89: 0.05327354684 | W89: 0.05327354684 | X89: 0.04431841031 | Y89: 0.03287322112 | Z89: 0.05291643531 | AA89: 0.05291643531 | AB89: 0.04766513951 | AC89: 0.04175416555 | AD89: 0.1106256832 | AE89: 0.1106256832 | AF89: 0.08337415179 | AG89: 0.07105311858 | AH89: 0.003090704605 | AI89: 0.003090704605 | AJ89: 0.01054696405 | AK89: 0.005554598837 | AL89: 0.007085245655 | AM89: 0.007085245655 | AN89: 0.02377048134 | AO89: 0.008709189941 | AP89: 0.3612704349 | AQ89: 0.3612704349 | AR89: 0.1034019175 | AS89: 0.09368491053
A90: 7 | I90: 126036.1127 | J90: 126036.1127 | K90: 1465536.194 | L90: 5750.77 | M90: 0 | N90: 114439.73 | O90: 10002.82 | P90: 10381.96 | Q90: 65123.86 | R90: 37 | S90: 1.102184204 | T90: 1.032 | U90: 1.071886991 | V90: 0.003924004077 | W90: 0.003924004077 | X90: 0.04431841031 | Y90: 0.03287322112 | AB90: 0.04766513951 | AC90: 0.04175416555 | AD90: 0.07808727649 | AE90: 0.07808727649 | AF90: 0.08337415179 | AG90: 0.07105311858 | AH90: 0.006825365378 | AI90: 0.006825365378 | AJ90: 0.01054696405 | AK90: 0.005554598837 | AL90: 0.007084069327 | AM90: 0.007084069327 | AN90: 0.02377048134 | AO90: 0.008709189941 | AP90: 0.04443688273 | AQ90: 0.04443688273 | AR90: 0.1034019175 | AS90: 0.09368491053
A91: 7 | I91: 75701.5826 | J91: 75701.5826 | K91: 880250.9604 | L91: 5709.22 | M91: 0 | N91: 80034.11 | O91: 7880.9 | P91: 0 | Q91: 47410.59 | R91: 29 | S91: 1.102184204 | T91: 1.032 | U91: 1.071886991 | V91: 0.006485900336 | W91: 0.006485900336 | X91: 0.04431841031 | Y91: 0.03287322112 | AB91: 0.04766513951 | AC91: 0.04175416555 | AD91: 0.09092192295 | AE91: 0.09092192295 | AF91: 0.08337415179 | AG91: 0.07105311858 | AH91: 0.00895301494 | AI91: 0.00895301494 | AJ91: 0.01054696405 | AK91: 0.005554598837 | AN91: 0.02377048134 | AO91: 0.008709189941 | AP91: 0.05386031045 | AQ91: 0.05386031045 | AR91: 0.1034019175 | AS91: 0.09368491053
A92: 7 | I92: 64830.59427 | J92: 64830.59427 | K92: 753844.1194 | L92: 52589.87 | M92: 43735.99 | N92: 136814.55 | O92: 2661.14 | P92: 7409.58 | Q92: 0 | R92: 53 | S92: 1.102184204 | T92: 1.032 | U92: 1.071886991 | V92: 0.06976226072 | W92: 0.06976226072 | X92: 0.04431841031 | Y92: 0.03287322112 | Z92: 0.05801728617 | AA92: 0.05801728617 | AB92: 0.04766513951 | AC92: 0.04175416555 | AD92: 0.1814891786 | AE92: 0.1814891786 | AF92: 0.08337415179 | AG92: 0.07105311858 | AH92: 0.0035300932 | AI92: 0.0035300932 | AJ92: 0.01054696405 | AK92: 0.005554598837 | AL92: 0.00982906122 | AM92: 0.00982906122 | AN92: 0.02377048134 | AO92: 0.008709189941 | AR92: 0.1034019175 | AS92: 0.09368491053
A93: 7 | I93: 16226.94173 | J93: 16226.94173 | K93: 188685.369 | L93: 16661.58 | M93: 12126.01 | N93: 26289.23 | O93: 436.53 | P93: 5268.31 | Q93: 0 | R93: 16 | S93: 1.102184204 | T93: 1.032 | U93: 1.071886991 | V93: 0.08830350805 | W93: 0.08830350805 | X93: 0.04431841031 | Y93: 0.03287322112 | Z93: 0.06426576721 | AA93: 0.06426576721 | AB93: 0.04766513951 | AC93: 0.04175416555 | AD93: 0.139328397 | AE93: 0.139328397 | AF93: 0.08337415179 | AG93: 0.07105311858 | AH93: 0.002313533913 | AI93: 0.002313533913 | AJ93: 0.01054696405 | AK93: 0.005554598837 | AL93: 0.0279211368 | AM93: 0.0279211368 | AN93: 0.02377048134 | AO93: 0.008709189941 | AR93: 0.1034019175 | AS93: 0.09368491053
A94: 7 | I94: 56737.33298 | J94: 56737.33298 | K94: 659736.43 | L94: 25358.04 | M94: 83222.4 | N94: 31501.84 | O94: 35.67 | P94: 24005.79 | Q94: 0 | R94: 60 | S94: 1.102184204 | T94: 1.032 | U94: 1.071886991 | V94: 0.03843662233 | W94: 0.03843662233 | X94: 0.04431841031 | Y94: 0.03287322112 | Z94: 0.1261449212 | AB94: 0.04766513951 | AC94: 0.04175416555 | AD94: 0.04774912915 | AE94: 0.04774912915 | AF94: 0.08337415179 | AG94: 0.07105311858 | AH94: 5.406704614e-05 | AI94: 5.406704614e-05 | AJ94: 0.01054696405 | AK94: 0.005554598837 | AL94: 0.03638694016 | AM94: 0.03638694016 | AN94: 0.02377048134 | AO94: 0.008709189941 | AR94: 0.1034019175 | AS94: 0.09368491053
A95: 7 | I95: 22133.175 | J95: 22133.175 | K95: 257362.5 | L95: 14649.23 | M95: 25636.13 | N95: 42631.71 | O95: 2628.69 | P95: 0 | Q95: 0 | R95: 15 | S95: 1.102184204 | T95: 1.032 | U95: 1.071886991 | V95: 0.05692060809 | W95: 0.05692060809 | X95: 0.04431841031 | Y95: 0.03287322112 | Z95: 0.09961097674 | AA95: 0.09961097674 | AB95: 0.04766513951 | AC95: 0.04175416555 | AD95: 0.1656484919 | AE95: 0.1656484919 | AF95: 0.08337415179 | AG95: 0.07105311858 | AH95: 0.01021395891 | AI95: 0.01021395891 | AJ95: 0.01054696405 | AK95: 0.005554598837 | AN95: 0.02377048134 | AO95: 0.008709189941 | AR95: 0.1034019175 | AS95: 0.09368491053
A96: 7 | I96: 41160.3396 | J96: 41160.3396 | K96: 478608.6 | L96: 15620.76 | M96: 32839.71 | N96: 45047.91 | O96: 14.09 | P96: 1212.2 | Q96: 117951.54 | R96: 31 | S96: 1.102184204 | T96: 1.032 | U96: 1.071886991 | V96: 0.03263785899 | W96: 0.03263785899 | X96: 0.04431841031 | Y96: 0.03287322112 | Z96: 0.06861496012 | AA96: 0.06861496012 | AB96: 0.04766513951 | AC96: 0.04175416555 | AD96: 0.09412265053 | AE96: 0.09412265053 | AF96: 0.08337415179 | AG96: 0.07105311858 | AH96: 2.943950443e-05 | AI96: 2.943950443e-05 | AJ96: 0.01054696405 | AK96: 0.005554598837 | AL96: 0.0025327585 | AM96: 0.0025327585 | AN96: 0.02377048134 | AO96: 0.008709189941 | AP96: 0.2464467626 | AQ96: 0.2464467626 | AR96: 0.1034019175 | AS96: 0.09368491053
A97: 7 | I97: 18857.9682 | J97: 18857.9682 | K97: 219278.7 | L97: 12771.26 | M97: 46232.15 | N97: 102452.36 | O97: 0 | P97: 0 | Q97: 33467.64 | R97: 30 | S97: 1.102184204 | T97: 1.032 | U97: 1.071886991 | V97: 0.05824213661 | W97: 0.05824213661 | X97: 0.04431841031 | Y97: 0.03287322112 | Z97: 0.2108373955 | AB97: 0.04766513951 | AC97: 0.04175416555 | AD97: 0.4672244044 | AF97: 0.08337415179 | AG97: 0.07105311858 | AJ97: 0.01054696405 | AK97: 0.005554598837 | AN97: 0.02377048134 | AO97: 0.008709189941 | AP97: 0.1526260417 | AQ97: 0.1526260417 | AR97: 0.1034019175 | AS97: 0.09368491053
A98: 7 | I98: 49705.84226 | J98: 49705.84226 | K98: 577974.91 | L98: 4811.48 | M98: 32002.54 | N98: 22754.92 | O98: 3934.84 | P98: 77655.38 | Q98: 15448.12 | R98: 31 | S98: 1.102184204 | T98: 1.032 | U98: 1.071886991 | V98: 0.008324721224 | W98: 0.008324721224 | X98: 0.04431841031 | Y98: 0.03287322112 | Z98: 0.05537011979 | AA98: 0.05537011979 | AB98: 0.04766513951 | AC98: 0.04175416555 | AD98: 0.03937008269 | AE98: 0.03937008269 | AF98: 0.08337415179 | AG98: 0.07105311858 | AH98: 0.006807977184 | AI98: 0.006807977184 | AJ98: 0.01054696405 | AK98: 0.005554598837 | AL98: 0.1343577008 | AN98: 0.02377048134 | AO98: 0.008709189941 | AP98: 0.02672801143 | AQ98: 0.02672801143 | AR98: 0.1034019175 | AS98: 0.09368491053
A99: 7 | I99: 49597.25522 | J99: 49597.25522 | K99: 576712.27 | L99: 4410.51 | M99: 27687.35 | N99: 23990.17 | O99: 8102.04 | P99: 85213.34 | Q99: 15212.4 | R99: 32 | S99: 1.102184204 | T99: 1.032 | U99: 1.071886991 | V99: 0.007647678452 | W99: 0.007647678452 | X99: 0.04431841031 | Y99: 0.03287322112 | Z99: 0.04800894907 | AA99: 0.04800894907 | AB99: 0.04766513951 | AC99: 0.04175416555 | AD99: 0.04159816125 | AE99: 0.04159816125 | AF99: 0.08337415179 | AG99: 0.07105311858 | AH99: 0.01404866937 | AI99: 0.01404866937 | AJ99: 0.01054696405 | AK99: 0.005554598837 | AL99: 0.1477571129 | AN99: 0.02377048134 | AO99: 0.008709189941 | AP99: 0.02637779841 | AQ99: 0.02637779841 | AR99: 0.1034019175 | AS99: 0.09368491053
A100: 7 | I100: 77377.42844 | J100: 77377.42844 | K100: 899737.54 | L100: 95788.86 | M100: 24415.52 | N100: 21531.2 | O100: 3233.23 | P100: 701.89 | Q100: 39599.85 | R100: 41 | S100: 1.102184204 | T100: 1.032 | U100: 1.071886991 | V100: 0.1064631137 | X100: 0.04431841031 | Y100: 0.03287322112 | Z100: 0.02713626909 | AA100: 0.02713626909 | AB100: 0.04766513951 | AC100: 0.04175416555 | AD100: 0.02393053423 | AE100: 0.02393053423 | AF100: 0.08337415179 | AG100: 0.07105311858 | AH100: 0.00359352573 | AI100: 0.00359352573 | AJ100: 0.01054696405 | AK100: 0.005554598837 | AL100: 0.0007801052738 | AM100: 0.0007801052738 | AN100: 0.02377048134 | AO100: 0.008709189941 | AP100: 0.04401266841 | AQ100: 0.04401266841 | AR100: 0.1034019175 | AS100: 0.09368491053
A101: 7 | I101: 56860.2932 | J101: 56860.2932 | K101: 661166.2 | L101: 35816.6 | M101: 26363.35 | N101: 62134.7 | O101: 6943.93 | P101: 52139.76 | Q101: 117369.44 | R101: 46 | S101: 1.102184204 | T101: 1.032 | U101: 1.071886991 | V101: 0.05417185573 | W101: 0.05417185573 | X101: 0.04431841031 | Y101: 0.03287322112 | Z101: 0.03987401352 | AA101: 0.03987401352 | AB101: 0.04766513951 | AC101: 0.04175416555 | AD101: 0.09397742958 | AE101: 0.09397742958 | AF101: 0.08337415179 | AG101: 0.07105311858 | AH101: 0.01050254838 | AI101: 0.01050254838 | AJ101: 0.01054696405 | AK101: 0.005554598837 | AL101: 0.07886029262 | AN101: 0.02377048134 | AO101: 0.008709189941 | AP101: 0.1775188145 | AQ101: 0.1775188145 | AR101: 0.1034019175 | AS101: 0.09368491053
A102: 7 | I102: 107510.6511 | J102: 107510.6511 | K102: 1250123.85 | L102: 57722.67 | M102: 12739.26 | N102: 48503.01 | O102: 27069.42 | P102: 0 | Q102: 0 | R102: 37.25 | S102: 1.102184204 | T102: 1.032 | U102: 1.071886991 | V102: 0.04617356112 | W102: 0.04617356112 | X102: 0.04431841031 | Y102: 0.03287322112 | Z102: 0.01019039834 | AA102: 0.01019039834 | AB102: 0.04766513951 | AC102: 0.04175416555 | AD102: 0.03879856384 | AE102: 0.03879856384 | AF102: 0.08337415179 | AG102: 0.07105311858 | AH102: 0.02165339058 | AI102: 0.02165339058 | AJ102: 0.01054696405 | AK102: 0.005554598837 | AN102: 0.02377048134 | AO102: 0.008709189941 | AR102: 0.1034019175 | AS102: 0.09368491053
A103: 7 | I103: 39573.02187 | J103: 39573.02187 | K103: 268421.66 | L103: 4286.67 | M103: 0 | N103: 9218.4 | O103: 8923.17 | P103: 1137.08 | Q103: 0 | R103: 35 | S103: 1.102184204 | T103: 1.032 | U103: 1.071886991 | V103: 0.01596991092 | W103: 0.01596991092 | X103: 0.04431841031 | Y103: 0.03287322112 | AB103: 0.04766513951 | AC103: 0.04175416555 | AD103: 0.03434298111 | AE103: 0.03434298111 | AF103: 0.08337415179 | AG103: 0.07105311858 | AH103: 0.03324310713 | AJ103: 0.01054696405 | AK103: 0.005554598837 | AL103: 0.004236170807 | AM103: 0.004236170807 | AN103: 0.02377048134 | AO103: 0.008709189941 | AR103: 0.1034019175 | AS103: 0.09368491053
A104: 7 | I104: 45861.22934 | J104: 45861.22934 | K104: 311074.23 | L104: 5842.06 | M104: 0 | N104: 9218.4 | O104: 12925.63 | P104: 1364.35 | Q104: 0 | R104: 35 | S104: 1.102184204 | T104: 1.032 | U104: 1.071886991 | V104: 0.01878027633 | W104: 0.01878027633 | X104: 0.04431841031 | Y104: 0.03287322112 | AB104: 0.04766513951 | AC104: 0.04175416555 | AD104: 0.02963408444 | AE104: 0.02963408444 | AF104: 0.08337415179 | AG104: 0.07105311858 | AH104: 0.04155159365 | AJ104: 0.01054696405 | AK104: 0.005554598837 | AL104: 0.004385930651 | AM104: 0.004385930651 | AN104: 0.02377048134 | AO104: 0.008709189941 | AR104: 0.1034019175 | AS104: 0.09368491053
A105: 7 | I105: 89022.55531 | J105: 89022.55531 | K105: 431310.83 | L105: 7843.92 | M105: 0 | N105: 18100.99 | O105: 14660.7 | P105: 446.96 | Q105: 15477.17 | R105: 60 | S105: 1.102184204 | T105: 1.032 | U105: 1.071886991 | V105: 0.01818623474 | W105: 0.01818623474 | X105: 0.04431841031 | Y105: 0.03287322112 | AB105: 0.04766513951 | AC105: 0.04175416555 | AD105: 0.04196739043 | AE105: 0.04196739043 | AF105: 0.08337415179 | AG105: 0.07105311858 | AH105: 0.03399103148 | AJ105: 0.01054696405 | AK105: 0.005554598837 | AL105: 0.001036282813 | AM105: 0.001036282813 | AN105: 0.02377048134 | AO105: 0.008709189941 | AP105: 0.03588402823 | AQ105: 0.03588402823 | AR105: 0.1034019175 | AS105: 0.09368491053
A106: 7 | I106: 37809.66952 | J106: 37809.66952 | K106: 439647.32 | L106: 8402.02 | M106: 0 | N106: 12769.64 | O106: 18816.07 | P106: 0 | Q106: 91215.81 | R106: 24 | S106: 1.102184204 | T106: 1.032 | U106: 1.071886991 | V106: 0.01911081819 | W106: 0.01911081819 | X106: 0.04431841031 | Y106: 0.03287322112 | AB106: 0.04766513951 | AC106: 0.04175416555 | AD106: 0.02904519013 | AE106: 0.02904519013 | AF106: 0.08337415179 | AG106: 0.07105311858 | AH106: 0.04279810008 | AJ106: 0.01054696405 | AK106: 0.005554598837 | AN106: 0.02377048134 | AO106: 0.008709189941 | AP106: 0.2074749597 | AQ106: 0.2074749597 | AR106: 0.1034019175 | AS106: 0.09368491053
A107: 7 | I107: 100445.813 | J107: 100445.813 | K107: 1167974.57 | L107: 18453.61 | M107: 32209.53 | N107: 19950.49 | O107: 2098.49 | P107: 23466.17 | Q107: 0 | R107: 50 | S107: 1.102184204 | T107: 1.032 | U107: 1.071886991 | V107: 0.01579966762 | W107: 0.01579966762 | X107: 0.04431841031 | Y107: 0.03287322112 | Z107: 0.02757725282 | AA107: 0.02757725282 | AB107: 0.04766513951 | AC107: 0.04175416555 | AD107: 0.01708127087 | AE107: 0.01708127087 | AF107: 0.08337415179 | AG107: 0.07105311858 | AH107: 0.001796691515 | AI107: 0.001796691515 | AJ107: 0.01054696405 | AK107: 0.005554598837 | AL107: 0.02009133641 | AM107: 0.02009133641 | AN107: 0.02377048134 | AO107: 0.008709189941 | AR107: 0.1034019175 | AS107: 0.09368491053
A108: 7 | I108: 113061.1668 | J108: 113061.1668 | K108: 1314664.73 | L108: 16859.49 | M108: 41179.29 | N108: 24816.34 | O108: 2079.17 | P108: 21602.48 | Q108: 0 | R108: 57 | S108: 1.102184204 | T108: 1.032 | U108: 1.071886991 | V108: 0.01282417457 | W108: 0.01282417457 | X108: 0.04431841031 | Y108: 0.03287322112 | Z108: 0.03132303549 | AA108: 0.03132303549 | AB108: 0.04766513951 | AC108: 0.04175416555 | AD108: 0.01887655418 | AE108: 0.01887655418 | AF108: 0.08337415179 | AG108: 0.07105311858 | AH108: 0.001581521092 | AI108: 0.001581521092 | AJ108: 0.01054696405 | AK108: 0.005554598837 | AL108: 0.0164319309 | AM108: 0.0164319309 | AN108: 0.02377048134 | AO108: 0.008709189941 | AR108: 0.1034019175 | AS108: 0.09368491053
A109: 7 | I109: 109358.1452 | J109: 109358.1452 | K109: 1271606.34 | L109: 15466.89 | M109: 41179.34 | N109: 25419 | O109: 1491.8 | P109: 17623.39 | Q109: 0 | R109: 59 | S109: 1.102184204 | T109: 1.032 | U109: 1.071886991 | V109: 0.01216326902 | W109: 0.01216326902 | X109: 0.04431841031 | Y109: 0.03287322112 | Z109: 0.03238371712 | AA109: 0.03238371712 | AB109: 0.04766513951 | AC109: 0.04175416555 | AD109: 0.01998967699 | AE109: 0.01998967699 | AF109: 0.08337415179 | AG109: 0.07105311858 | AH109: 0.001173161814 | AI109: 0.001173161814 | AJ109: 0.01054696405 | AK109: 0.005554598837 | AL109: 0.0138591555 | AM109: 0.0138591555 | AN109: 0.02377048134 | AO109: 0.008709189941 | AR109: 0.1034019175 | AS109: 0.09368491053
A110: 7 | I110: 70940.24502 | J110: 70940.24502 | K110: 824886.57 | L110: 17873.79 | M110: 29286.92 | N110: 59625.81 | O110: 165.97 | P110: 0 | Q110: 88011.75 | R110: 20 | S110: 1.102184204 | T110: 1.032 | U110: 1.071886991 | V110: 0.02166817918 | W110: 0.02166817918 | X110: 0.04431841031 | Y110: 0.03287322112 | Z110: 0.03550417847 | AA110: 0.03550417847 | AB110: 0.04766513951 | AC110: 0.04175416555 | AD110: 0.07228364744 | AE110: 0.07228364744 | AF110: 0.08337415179 | AG110: 0.07105311858 | AH110: 0.0002012034212 | AI110: 0.0002012034212 | AJ110: 0.01054696405 | AK110: 0.005554598837 | AN110: 0.02377048134 | AO110: 0.008709189941 | AP110: 0.1066955788 | AQ110: 0.1066955788 | AR110: 0.1034019175 | AS110: 0.09368491053
A111: 7 | I111: 39732.51686 | J111: 39732.51686 | K111: 462006.01 | L111: 0 | M111: 19038.04 | N111: 4830.22 | O111: 895.2 | P111: 0 | Q111: 0 | R111: 28 | S111: 1.102184204 | T111: 1.032 | U111: 1.071886991 | X111: 0.04431841031 | Y111: 0.03287322112 | Z111: 0.04120734274 | AA111: 0.04120734274 | AB111: 0.04766513951 | AC111: 0.04175416555 | AD111: 0.01045488564 | AE111: 0.01045488564 | AF111: 0.08337415179 | AG111: 0.07105311858 | AH111: 0.001937637132 | AI111: 0.001937637132 | AJ111: 0.01054696405 | AK111: 0.005554598837 | AN111: 0.02377048134 | AO111: 0.008709189941 | AR111: 0.1034019175 | AS111: 0.09368491053
A112: 7 | I112: 47880.71844 | J112: 47880.71844 | K112: 556752.54 | L112: 270.57 | M112: 32791.2 | N112: 28501.91 | O112: 349.61 | P112: 4514.09 | Q112: 78492.04 | R112: 40 | S112: 1.102184204 | T112: 1.032 | U112: 1.071886991 | V112: 0.0004859789234 | W112: 0.0004859789234 | X112: 0.04431841031 | Y112: 0.03287322112 | Z112: 0.05889726161 | AA112: 0.05889726161 | AB112: 0.04766513951 | AC112: 0.04175416555 | AD112: 0.0511931387 | AE112: 0.0511931387 | AF112: 0.08337415179 | AG112: 0.07105311858 | AH112: 0.0006279450472 | AI112: 0.0006279450472 | AJ112: 0.01054696405 | AK112: 0.005554598837 | AL112: 0.008107892961 | AM112: 0.008107892961 | AN112: 0.02377048134 | AO112: 0.008709189941 | AP112: 0.1409819163 | AQ112: 0.1409819163 | AR112: 0.1034019175 | AS112: 0.09368491053
A113: 7 | I113: 58782.71656 | J113: 58782.71656 | K113: 683519.96 | L113: 14669.9 | M113: 16754.54 | N113: 35895.66 | O113: 0 | P113: 10271.7 | Q113: 0 | R113: 27 | S113: 1.102184204 | T113: 1.032 | U113: 1.071886991 | V113: 0.02146228473 | W113: 0.02146228473 | X113: 0.04431841031 | Y113: 0.03287322112 | Z113: 0.02451214446 | AA113: 0.02451214446 | AB113: 0.04766513951 | AC113: 0.04175416555 | AD113: 0.05251589142 | AE113: 0.05251589142 | AF113: 0.08337415179 | AG113: 0.07105311858 | AJ113: 0.01054696405 | AK113: 0.005554598837 | AL113: 0.01502765186 | AM113: 0.01502765186 | AN113: 0.02377048134 | AO113: 0.008709189941 | AR113: 0.1034019175 | AS113: 0.09368491053
A114: 7 | I114: 49011.28304 | J114: 49011.28304 | K114: 569898.64 | L114: 0 | M114: 12954.49 | N114: 24648.79 | O114: 0 | P114: 2680.14 | Q114: 0 | R114: 30 | S114: 1.102184204 | T114: 1.032 | U114: 1.071886991 | X114: 0.04431841031 | Y114: 0.03287322112 | Z114: 0.02273121761 | AA114: 0.02273121761 | AB114: 0.04766513951 | AC114: 0.04175416555 | AD114: 0.04325118235 | AE114: 0.04325118235 | AF114: 0.08337415179 | AG114: 0.07105311858 | AJ114: 0.01054696405 | AK114: 0.005554598837 | AL114: 0.00470283628 | AM114: 0.00470283628 | AN114: 0.02377048134 | AO114: 0.008709189941 | AR114: 0.1034019175 | AS114: 0.09368491053
A115: 7 | I115: 68161.29692 | J115: 68161.29692 | K115: 792573.22 | L115: 62454.23 | M115: 14934.05 | N115: 0 | O115: 11517.6 | P115: 1654.97 | Q115: 0 | R115: 37.17 | S115: 1.102184204 | T115: 1.032 | U115: 1.071886991 | V115: 0.07879931901 | W115: 0.07879931901 | X115: 0.04431841031 | Y115: 0.03287322112 | Z115: 0.01884248625 | AA115: 0.01884248625 | AB115: 0.04766513951 | AC115: 0.04175416555 | AF115: 0.08337415179 | AG115: 0.07105311858 | AH115: 0.01453190659 | AI115: 0.01453190659 | AJ115: 0.01054696405 | AK115: 0.005554598837 | AL115: 0.002088097299 | AM115: 0.002088097299 | AN115: 0.02377048134 | AO115: 0.008709189941 | AR115: 0.1034019175 | AS115: 0.09368491053
A116: 7 | I116: 96424.06086 | J116: 96424.06086 | K116: 1121210.01 | L116: 48787.94 | M116: 40322.47 | N116: 64979.75 | O116: 6717.95 | P116: 3198 | Q116: 0 | R116: 60 | S116: 1.102184204 | T116: 1.032 | U116: 1.071886991 | V116: 0.04351365004 | W116: 0.04351365004 | X116: 0.04431841031 | Y116: 0.03287322112 | Z116: 0.03596335177 | AA116: 0.03596335177 | AB116: 0.04766513951 | AC116: 0.04175416555 | AD116: 0.05795502129 | AE116: 0.05795502129 | AF116: 0.08337415179 | AG116: 0.07105311858 | AH116: 0.005991696417 | AI116: 0.005991696417 | AJ116: 0.01054696405 | AK116: 0.005554598837 | AL116: 0.002852275641 | AM116: 0.002852275641 | AN116: 0.02377048134 | AO116: 0.008709189941 | AR116: 0.1034019175 | AS116: 0.09368491053
A117: 7 | I117: 65471.9935 | J117: 65471.9935 | K117: 761302.25 | L117: 33055.25 | M117: 27452.45 | N117: 41672.85 | O117: 4047.08 | P117: 556.22 | Q117: 0 | R117: 42 | S117: 1.102184204 | T117: 1.032 | U117: 1.071886991 | V117: 0.04341935151 | W117: 0.04341935151 | X117: 0.04431841031 | Y117: 0.03287322112 | Z117: 0.03605985665 | AA117: 0.03605985665 | AB117: 0.04766513951 | AC117: 0.04175416555 | AD117: 0.05473890298 | AE117: 0.05473890298 | AF117: 0.08337415179 | AG117: 0.07105311858 | AH117: 0.005315996373 | AI117: 0.005315996373 | AJ117: 0.01054696405 | AK117: 0.005554598837 | AL117: 0.0007306165193 | AM117: 0.0007306165193 | AN117: 0.02377048134 | AO117: 0.008709189941 | AR117: 0.1034019175 | AS117: 0.09368491053
A118: 7 | I118: 10871.84222 | J118: 10871.84222 | K118: 126416.77 | L118: 12687.99 | M118: 0 | N118: 0 | O118: 7.75 | P118: 34264.51 | Q118: 0 | R118: 48 | S118: 1.102184204 | T118: 1.032 | U118: 1.071886991 | V118: 0.1003663517 | W118: 0.1003663517 | X118: 0.04431841031 | Y118: 0.03287322112 | AB118: 0.04766513951 | AC118: 0.04175416555 | AF118: 0.08337415179 | AG118: 0.07105311858 | AH118: 6.130515754e-05 | AI118: 6.130515754e-05 | AJ118: 0.01054696405 | AK118: 0.005554598837 | AL118: 0.2710440237 | AN118: 0.02377048134 | AO118: 0.008709189941 | AR118: 0.1034019175 | AS118: 0.09368491053
A119: 7 | I119: 51494.11336 | J119: 51494.11336 | K119: 598768.76 | L119: 17410.88 | M119: 0 | N119: 0 | O119: 27653.7 | P119: 1045.5 | Q119: 32371.23 | R119: 44 | S119: 1.102184204 | T119: 1.032 | U119: 1.071886991 | V119: 0.02907780292 | W119: 0.02907780292 | X119: 0.04431841031 | Y119: 0.03287322112 | AB119: 0.04766513951 | AC119: 0.04175416555 | AF119: 0.08337415179 | AG119: 0.07105311858 | AH119: 0.04618427321 | AJ119: 0.01054696405 | AK119: 0.005554598837 | AL119: 0.001746083079 | AM119: 0.001746083079 | AN119: 0.02377048134 | AO119: 0.008709189941 | AP119: 0.05406299086 | AQ119: 0.05406299086 | AR119: 0.1034019175 | AS119: 0.09368491053
A120: 7 | I120: 137374.3196 | K120: 1597375.81 | L120: 5362.41 | M120: 25746.15 | N120: 15932.29279 | O120: 1274.109823 | P120: 3882.94 | Q120: 230216.7441 | R120: 36 | S120: 1.102184204 | T120: 1.032 | U120: 1.071886991 | V120: 0.003357012149 | W120: 0.003357012149 | X120: 0.04431841031 | Y120: 0.03287322112 | Z120: 0.01611777882 | AA120: 0.01611777882 | AB120: 0.04766513951 | AC120: 0.04175416555 | AD120: 0.009974041607 | AE120: 0.009974041607 | AF120: 0.08337415179 | AG120: 0.07105311858 | AH120: 0.0007976268425 | AI120: 0.0007976268425 | AJ120: 0.01054696405 | AK120: 0.005554598837 | AL120: 0.002430824341 | AM120: 0.002430824341 | AN120: 0.02377048134 | AO120: 0.008709189941 | AP120: 0.144121842 | AQ120: 0.144121842 | AR120: 0.1034019175 | AS120: 0.09368491053
A121: 7 | I121: 68372.64708 | J121: 68372.64708 | K121: 795030.78 | L121: 16419.16 | M121: 31535.43 | N121: 19368.42 | O121: 17868.63 | P121: 0 | Q121: 26245.14 | R121: 39 | S121: 1.102184204 | T121: 1.032 | U121: 1.071886991 | V121: 0.02065223185 | W121: 0.02065223185 | X121: 0.04431841031 | Y121: 0.03287322112 | Z121: 0.03966567181 | AA121: 0.03966567181 | AB121: 0.04766513951 | AC121: 0.04175416555 | AD121: 0.02436184924 | AE121: 0.02436184924 | AF121: 0.08337415179 | AG121: 0.07105311858 | AH121: 0.02247539397 | AI121: 0.02247539397 | AJ121: 0.01054696405 | AK121: 0.005554598837 | AN121: 0.02377048134 | AO121: 0.008709189941 | AP121: 0.03301147661 | AQ121: 0.03301147661 | AR121: 0.1034019175 | AS121: 0.09368491053
A122: 7 | I122: 66866.54284 | J122: 66866.54284 | K122: 777517.94 | L122: 0 | M122: 0 | N122: 34620.42 | O122: 217.94 | P122: 17256.29 | Q122: 0 | R122: 50 | S122: 1.102184204 | T122: 1.032 | U122: 1.071886991 | X122: 0.04431841031 | Y122: 0.03287322112 | AB122: 0.04766513951 | AC122: 0.04175416555 | AD122: 0.04452684397 | AE122: 0.04452684397 | AF122: 0.08337415179 | AG122: 0.07105311858 | AH122: 0.000280302214 | AI122: 0.000280302214 | AJ122: 0.01054696405 | AK122: 0.005554598837 | AL122: 0.0221940731 | AM122: 0.0221940731 | AN122: 0.02377048134 | AO122: 0.008709189941 | AR122: 0.1034019175 | AS122: 0.09368491053
A123: 7 | I123: 26562.17156 | J123: 26562.17156 | K123: 308862.46 | L123: 32407.13 | M123: 10974.86 | N123: 17715.46 | O123: 0 | P123: 10792.94 | Q123: 56824.7 | R123: 15 | S123: 1.102184204 | T123: 1.032 | U123: 1.071886991 | V123: 0.1049241465 | W123: 0.1049241465 | X123: 0.04431841031 | Y123: 0.03287322112 | Z123: 0.03553316256 | AA123: 0.03553316256 | AB123: 0.04766513951 | AC123: 0.04175416555 | AD123: 0.05735711617 | AE123: 0.05735711617 | AF123: 0.08337415179 | AG123: 0.07105311858 | AJ123: 0.01054696405 | AK123: 0.005554598837 | AL123: 0.03494416252 | AM123: 0.03494416252 | AN123: 0.02377048134 | AO123: 0.008709189941 | AP123: 0.1839805977 | AQ123: 0.1839805977 | AR123: 0.1034019175 | AS123: 0.09368491053
A124: 7 | I124: 57562.69046 | J124: 57562.69046 | K124: 669333.61 | L124: 123238.33 | M124: 20753.52 | N124: 33430.27 | O124: 0 | P124: 33875.39 | Q124: 106609.16 | R124: 37 | S124: 1.102184204 | T124: 1.032 | U124: 1.071886991 | V124: 0.1841209349 | X124: 0.04431841031 | Y124: 0.03287322112 | Z124: 0.03100624216 | AA124: 0.03100624216 | AB124: 0.04766513951 | AC124: 0.04175416555 | AD124: 0.04994560187 | AE124: 0.04994560187 | AF124: 0.08337415179 | AG124: 0.07105311858 | AJ124: 0.01054696405 | AK124: 0.005554598837 | AL124: 0.05061062151 | AN124: 0.02377048134 | AO124: 0.008709189941 | AP124: 0.1592765676 | AQ124: 0.1592765676 | AR124: 0.1034019175 | AS124: 0.09368491053
A125: 7 | I125: 43585.35986 | J125: 43585.35986 | K125: 506806.51 | L125: 5522.58 | M125: 17100.95 | N125: 66831.43 | O125: 159.25 | P125: 1225.7 | Q125: 0 | R125: 35 | S125: 1.102184204 | T125: 1.032 | U125: 1.071886991 | V125: 0.01089682135 | W125: 0.01089682135 | X125: 0.04431841031 | Y125: 0.03287322112 | Z125: 0.03374256183 | AA125: 0.03374256183 | AB125: 0.04766513951 | AC125: 0.04175416555 | AD125: 0.1318677418 | AE125: 0.1318677418 | AF125: 0.08337415179 | AG125: 0.07105311858 | AH125: 0.0003142224831 | AI125: 0.0003142224831 | AJ125: 0.01054696405 | AK125: 0.005554598837 | AL125: 0.002418477221 | AM125: 0.002418477221 | AN125: 0.02377048134 | AO125: 0.008709189941 | AR125: 0.1034019175 | AS125: 0.09368491053
A126: 7 | I126: 35639.19722 | J126: 35639.19722 | K126: 414409.27 | L126: 11761.26 | M126: 38962.41 | N126: 17021.71 | O126: 1379.59 | P126: 349.21 | Q126: 0 | R126: 35 | S126: 1.102184204 | T126: 1.032 | U126: 1.071886991 | V126: 0.02838078405 | W126: 0.02838078405 | X126: 0.04431841031 | Y126: 0.03287322112 | Z126: 0.09401915647 | AA126: 0.09401915647 | AB126: 0.04766513951 | AC126: 0.04175416555 | AD126: 0.04107463619 | AE126: 0.04107463619 | AF126: 0.08337415179 | AG126: 0.07105311858 | AH126: 0.003329051978 | AI126: 0.003329051978 | AJ126: 0.01054696405 | AK126: 0.005554598837 | AL126: 0.0008426693737 | AM126: 0.0008426693737 | AN126: 0.02377048134 | AO126: 0.008709189941 | AR126: 0.1034019175 | AS126: 0.09368491053
A127: 7 | I127: 63738.12084 | J127: 63738.12084 | K127: 741140.94 | L127: 0 | M127: 32701.4 | N127: 23513.5 | O127: 3204.03 | P127: 8810.52 | Q127: 0 | R127: 55 | S127: 1.102184204 | T127: 1.032 | U127: 1.071886991 | X127: 0.04431841031 | Y127: 0.03287322112 | Z127: 0.04412305168 | AA127: 0.04412305168 | AB127: 0.04766513951 | AC127: 0.04175416555 | AD127: 0.03172608438 | AE127: 0.03172608438 | AF127: 0.08337415179 | AG127: 0.07105311858 | AH127: 0.00432310486 | AI127: 0.00432310486 | AJ127: 0.01054696405 | AK127: 0.005554598837 | AL127: 0.0118877794 | AM127: 0.0118877794 | AN127: 0.02377048134 | AO127: 0.008709189941 | AR127: 0.1034019175 | AS127: 0.09368491053
A128: 7 | I128: 93990.5782 | J128: 93990.5782 | K128: 1092913.7 | L128: 26913.32 | M128: 31489.8 | N128: 55120.87 | O128: 1150.24 | P128: 35982.13 | Q128: 0 | R128: 36 | S128: 1.102184204 | T128: 1.032 | U128: 1.071886991 | V128: 0.02462529292 | W128: 0.02462529292 | X128: 0.04431841031 | Y128: 0.03287322112 | Z128: 0.02881270497 | AA128: 0.02881270497 | AB128: 0.04766513951 | AC128: 0.04175416555 | AD128: 0.0504347873 | AE128: 0.0504347873 | AF128: 0.08337415179 | AG128: 0.07105311858 | AH128: 0.001052452723 | AI128: 0.001052452723 | AJ128: 0.01054696405 | AK128: 0.005554598837 | AL128: 0.03292312101 | AM128: 0.03292312101 | AN128: 0.02377048134 | AO128: 0.008709189941 | AR128: 0.1034019175 | AS128: 0.09368491053
A129: 7 | I129: 30926.9244 | J129: 30926.9244 | K129: 359615.4 | L129: 13860.95 | M129: 13312.32 | N129: 27552.62 | O129: 162.69 | P129: 0 | Q129: 684.91 | R129: 34 | S129: 1.102184204 | T129: 1.032 | U129: 1.071886991 | V129: 0.03854381653 | W129: 0.03854381653 | X129: 0.04431841031 | Y129: 0.03287322112 | Z129: 0.03701821446 | AA129: 0.03701821446 | AB129: 0.04766513951 | AC129: 0.04175416555 | AD129: 0.07661690795 | AE129: 0.07661690795 | AF129: 0.08337415179 | AG129: 0.07105311858 | AH129: 0.0004523999806 | AI129: 0.0004523999806 | AJ129: 0.01054696405 | AK129: 0.005554598837 | AN129: 0.02377048134 | AO129: 0.008709189941 | AP129: 0.001904562485 | AQ129: 0.001904562485 | AR129: 0.1034019175 | AS129: 0.09368491053
A130: 7 | I130: 21838.0574 | J130: 21838.0574 | K130: 253930.9 | L130: 8725.4 | M130: 20254.19 | N130: 22327.98 | O130: 1961.82 | P130: 0 | Q130: 555 | R130: 12 | S130: 1.102184204 | T130: 1.032 | U130: 1.071886991 | V130: 0.03436131641 | W130: 0.03436131641 | X130: 0.04431841031 | Y130: 0.03287322112 | Z130: 0.07976260471 | AA130: 0.07976260471 | AB130: 0.04766513951 | AC130: 0.04175416555 | AD130: 0.08792935401 | AE130: 0.08792935401 | AF130: 0.08337415179 | AG130: 0.07105311858 | AH130: 0.007725802571 | AI130: 0.007725802571 | AJ130: 0.01054696405 | AK130: 0.005554598837 | AN130: 0.02377048134 | AO130: 0.008709189941 | AP130: 0.002185633966 | AQ130: 0.002185633966 | AR130: 0.1034019175 | AS130: 0.09368491053
A131: 7 | I131: 4787.50562 | J131: 4787.50562 | K131: 55668.67 | L131: 0 | M131: 9589.23 | N131: 19849.19 | O131: 0 | P131: 7.47 | Q131: 493.37 | R131: 22 | S131: 1.102184204 | T131: 1.032 | U131: 1.071886991 | X131: 0.04431841031 | Y131: 0.03287322112 | Z131: 0.1722554176 | AB131: 0.04766513951 | AC131: 0.04175416555 | AD131: 0.3565594436 | AF131: 0.08337415179 | AG131: 0.07105311858 | AJ131: 0.01054696405 | AK131: 0.005554598837 | AL131: 0.0001341867876 | AM131: 0.0001341867876 | AN131: 0.02377048134 | AO131: 0.008709189941 | AP131: 0.008862615184 | AQ131: 0.008862615184 | AR131: 0.1034019175 | AS131: 0.09368491053
A132: 7 | I132: 27358.2101 | J132: 27358.2101 | K132: 318118.722 | L132: 23439.5 | M132: 49414.63 | N132: 33024.4 | O132: 2581.707844 | P132: 0 | Q132: 0 | R132: 44 | S132: 1.102184204 | T132: 1.032 | U132: 1.071886991 | V132: 0.07368161122 | W132: 0.07368161122 | X132: 0.04431841031 | Y132: 0.03287322112 | Z132: 0.1553339259 | AB132: 0.04766513951 | AC132: 0.04175416555 | AD132: 0.1038115575 | AE132: 0.1038115575 | AF132: 0.08337415179 | AG132: 0.07105311858 | AH132: 0.008115548268 | AI132: 0.008115548268 | AJ132: 0.01054696405 | AK132: 0.005554598837 | AN132: 0.02377048134 | AO132: 0.008709189941 | AR132: 0.1034019175 | AS132: 0.09368491053
A133: 7 | I133: 19998.72365 | J133: 19998.72365 | K133: 232543.2983 | L133: 11283.49 | M133: 30004.28 | N133: 20403.96 | O133: 1782.756724 | P133: 0 | Q133: 0 | R133: 25 | S133: 1.102184204 | T133: 1.032 | U133: 1.071886991 | V133: 0.04852210355 | W133: 0.04852210355 | X133: 0.04431841031 | Y133: 0.03287322112 | Z133: 0.1290266381 | AB133: 0.04766513951 | AC133: 0.04175416555 | AD133: 0.0877426275 | AE133: 0.0877426275 | AF133: 0.08337415179 | AG133: 0.07105311858 | AH133: 0.007666343159 | AI133: 0.007666343159 | AJ133: 0.01054696405 | AK133: 0.005554598837 | AN133: 0.02377048134 | AO133: 0.008709189941 | AR133: 0.1034019175 | AS133: 0.09368491053
A134: 7 | I134: 19257.56582 | J134: 19257.56582 | K134: 93302.16 | L134: 917.75 | M134: 0 | N134: 6219.36 | O134: 0 | P134: 0 | Q134: 0 | R134: 20 | S134: 1.102184204 | T134: 1.032 | U134: 1.071886991 | V134: 0.009836321046 | W134: 0.009836321046 | X134: 0.04431841031 | Y134: 0.03287322112 | AB134: 0.04766513951 | AC134: 0.04175416555 | AD134: 0.06665826386 | AE134: 0.06665826386 | AF134: 0.08337415179 | AG134: 0.07105311858 | AJ134: 0.01054696405 | AK134: 0.005554598837 | AN134: 0.02377048134 | AO134: 0.008709189941 | AR134: 0.1034019175 | AS134: 0.09368491053
A135: 7 | I135: 52485.74754 | J135: 52485.74754 | K135: 610299.39 | L135: 39962.63 | M135: 0 | N135: 17355.25 | O135: 317.94 | P135: 0 | Q135: 0 | R135: 32 | S135: 1.102184204 | T135: 1.032 | U135: 1.071886991 | V135: 0.06548037022 | W135: 0.06548037022 | X135: 0.04431841031 | Y135: 0.03287322112 | AB135: 0.04766513951 | AC135: 0.04175416555 | AD135: 0.0284372724 | AE135: 0.0284372724 | AF135: 0.08337415179 | AG135: 0.07105311858 | AH135: 0.0005209574271 | AI135: 0.0005209574271 | AJ135: 0.01054696405 | AK135: 0.005554598837 | AN135: 0.02377048134 | AO135: 0.008709189941 | AR135: 0.1034019175 | AS135: 0.09368491053
A136: 7 | I136: 41196.8638 | J136: 41196.8638 | K136: 479033.3 | L136: 0 | M136: 46063.59 | N136: 35689.46 | O136: 1578.47 | P136: 0 | Q136: 0 | R136: 32 | S136: 1.102184204 | T136: 1.032 | U136: 1.071886991 | X136: 0.04431841031 | Y136: 0.03287322112 | Z136: 0.09615947367 | AA136: 0.09615947367 | AB136: 0.04766513951 | AC136: 0.04175416555 | AD136: 0.07450308778 | AE136: 0.07450308778 | AF136: 0.08337415179 | AG136: 0.07105311858 | AH136: 0.003295115392 | AI136: 0.003295115392 | AJ136: 0.01054696405 | AK136: 0.005554598837 | AN136: 0.02377048134 | AO136: 0.008709189941 | AR136: 0.1034019175 | AS136: 0.09368491053
A137: 7 | I137: 47794.65136 | J137: 47794.65136 | K137: 555751.76 | L137: 0 | M137: 44224.86 | N137: 34263.6 | O137: 0 | P137: 0 | Q137: 0 | R137: 43 | S137: 1.102184204 | T137: 1.032 | U137: 1.071886991 | X137: 0.04431841031 | Y137: 0.03287322112 | Z137: 0.07957664408 | AA137: 0.07957664408 | AB137: 0.04766513951 | AC137: 0.04175416555 | AD137: 0.06165270624 | AE137: 0.06165270624 | AF137: 0.08337415179 | AG137: 0.07105311858 | AJ137: 0.01054696405 | AK137: 0.005554598837 | AN137: 0.02377048134 | AO137: 0.008709189941 | AR137: 0.1034019175 | AS137: 0.09368491053
A138: 7 | I138: 110461.3928 | J138: 110461.3928 | K138: 1284434.8 | L138: 2343.89 | M138: 31000.31 | N138: 0 | O138: 43966.42 | P138: 9610.34 | Q138: 50589.94 | R138: 33 | S138: 1.102184204 | T138: 1.032 | U138: 1.071886991 | V138: 0.001824841557 | W138: 0.001824841557 | X138: 0.04431841031 | Y138: 0.03287322112 | Z138: 0.02413537067 | AA138: 0.02413537067 | AB138: 0.04766513951 | AC138: 0.04175416555 | AF138: 0.08337415179 | AG138: 0.07105311858 | AH138: 0.03423016879 | AJ138: 0.01054696405 | AK138: 0.005554598837 | AL138: 0.007482154797 | AM138: 0.007482154797 | AN138: 0.02377048134 | AO138: 0.008709189941 | AP138: 0.03938692723 | AQ138: 0.03938692723 | AR138: 0.1034019175 | AS138: 0.09368491053
A139: 7 | I139: 20370.691 | J139: 20370.691 | K139: 236868.5 | L139: 11110.52 | M139: 6887.73 | N139: 8580.02 | O139: 2537.12 | P139: 0 | Q139: 0 | R139: 15 | S139: 1.102184204 | T139: 1.032 | U139: 1.071886991 | V139: 0.04690585705 | W139: 0.04690585705 | X139: 0.04431841031 | Y139: 0.03287322112 | Z139: 0.02907828605 | AA139: 0.02907828605 | AB139: 0.04766513951 | AC139: 0.04175416555 | AD139: 0.03622271429 | AE139: 0.03622271429 | AF139: 0.08337415179 | AG139: 0.07105311858 | AH139: 0.01071109075 | AI139: 0.01071109075 | AJ139: 0.01054696405 | AK139: 0.005554598837 | AN139: 0.02377048134 | AO139: 0.008709189941 | AR139: 0.1034019175 | AS139: 0.09368491053
A140: 7 | I140: 36513.07504 | J140: 36513.07504 | K140: 424570.64 | L140: 0 | M140: 23647.72 | N140: 20590.93 | O140: 505.55 | P140: 0 | Q140: 0 | R140: 39 | S140: 1.102184204 | T140: 1.032 | U140: 1.071886991 | X140: 0.04431841031 | Y140: 0.03287322112 | Z140: 0.05569796348 | AA140: 0.05569796348 | AB140: 0.04766513951 | AC140: 0.04175416555 | AD140: 0.04849824284 | AE140: 0.04849824284 | AF140: 0.08337415179 | AG140: 0.07105311858 | AH140: 0.00119073236 | AI140: 0.00119073236 | AJ140: 0.01054696405 | AK140: 0.005554598837 | AN140: 0.02377048134 | AO140: 0.008709189941 | AR140: 0.1034019175 | AS140: 0.09368491053
A141: 7 | I141: 138669.7033 | K141: 1612438.41 | L141: 28164.48 | M141: 18529.59 | N141: 70847.84 | O141: 3981.9 | P141: 72395.02 | Q141: 0 | R141: 29 | S141: 1.102184204 | T141: 1.032 | U141: 1.071886991 | V141: 0.01746701134 | W141: 0.01746701134 | X141: 0.04431841031 | Y141: 0.03287322112 | Z141: 0.01149165753 | AA141: 0.01149165753 | AB141: 0.04766513951 | AC141: 0.04175416555 | AD141: 0.0439383232 | AE141: 0.0439383232 | AF141: 0.08337415179 | AG141: 0.07105311858 | AH141: 0.002469489672 | AI141: 0.002469489672 | AJ141: 0.01054696405 | AK141: 0.005554598837 | AL141: 0.04489785132 | AM141: 0.04489785132 | AN141: 0.02377048134 | AO141: 0.008709189941 | AR141: 0.1034019175 | AS141: 0.09368491053
A142: 7 | I142: 38275.02498 | J142: 38275.02498 | K142: 445058.43 | L142: 13253.48 | M142: 0 | N142: 0 | O142: 15474.98 | P142: 3284.1 | Q142: 0 | R142: 41 | S142: 1.102184204 | T142: 1.032 | U142: 1.071886991 | V142: 0.02977919102 | W142: 0.02977919102 | X142: 0.04431841031 | Y142: 0.03287322112 | AB142: 0.04766513951 | AC142: 0.04175416555 | AF142: 0.08337415179 | AG142: 0.07105311858 | AH142: 0.03477067045 | AJ142: 0.01054696405 | AK142: 0.005554598837 | AL142: 0.007379031108 | AM142: 0.007379031108 | AN142: 0.02377048134 | AO142: 0.008709189941 | AR142: 0.1034019175 | AS142: 0.09368491053
A143: 7 | I143: 74697.08966 | J143: 74697.08966 | K143: 868570.81 | L143: 0 | M143: 0 | N143: 0 | O143: 0 | P143: 0 | Q143: 64282.81 | R143: 38 | S143: 1.102184204 | T143: 1.032 | U143: 1.071886991 | X143: 0.04431841031 | Y143: 0.03287322112 | AB143: 0.04766513951 | AC143: 0.04175416555 | AF143: 0.08337415179 | AG143: 0.07105311858 | AJ143: 0.01054696405 | AK143: 0.005554598837 | AN143: 0.02377048134 | AO143: 0.008709189941 | AP143: 0.07400986685 | AQ143: 0.07400986685 | AR143: 0.1034019175 | AS143: 0.09368491053
A144: 7 | I144: 60220.22032 | J144: 60220.22032 | K144: 700235.12 | L144: 11771.74 | M144: 39965.92 | N144: 36321.35 | O144: 3626.58 | P144: 0 | Q144: 39485.98 | R144: 22 | S144: 1.102184204 | T144: 1.032 | U144: 1.071886991 | V144: 0.01681112481 | W144: 0.01681112481 | X144: 0.04431841031 | Y144: 0.03287322112 | Z144: 0.05707500075 | AA144: 0.05707500075 | AB144: 0.04766513951 | AC144: 0.04175416555 | AD144: 0.05187022039 | AE144: 0.05187022039 | AF144: 0.08337415179 | AG144: 0.07105311858 | AH144: 0.005179088989 | AI144: 0.005179088989 | AJ144: 0.01054696405 | AK144: 0.005554598837 | AN144: 0.02377048134 | AO144: 0.008709189941 | AP144: 0.0563896024 | AQ144: 0.0563896024 | AR144: 0.1034019175 | AS144: 0.09368491053
A145: 7 | I145: 69401.68094 | J145: 69401.68094 | K145: 806996.29 | L145: 18304.61 | M145: 42573.52 | N145: 37178.01 | O145: 11292.63 | P145: 0 | Q145: 41078.08 | R145: 46 | S145: 1.102184204 | T145: 1.032 | U145: 1.071886991 | V145: 0.02268239672 | W145: 0.02268239672 | X145: 0.04431841031 | Y145: 0.03287322112 | Z145: 0.05275553373 | AA145: 0.05275553373 | AB145: 0.04766513951 | AC145: 0.04175416555 | AD145: 0.046069617 | AE145: 0.046069617 | AF145: 0.08337415179 | AG145: 0.07105311858 | AH145: 0.01399341006 | AI145: 0.01399341006 | AJ145: 0.01054696405 | AK145: 0.005554598837 | AN145: 0.02377048134 | AO145: 0.008709189941 | AP145: 0.05090243971 | AQ145: 0.05090243971 | AR145: 0.1034019175 | AS145: 0.09368491053
A146: 7 | I146: 48246.57104 | J146: 48246.57104 | K146: 561006.64 | L146: 18336.73 | M146: 32636.96 | N146: 39446.29 | O146: 3099.19 | P146: 0 | Q146: 27712.72 | R146: 23 | S146: 1.102184204 | T146: 1.032 | U146: 1.071886991 | V146: 0.03268540636 | W146: 0.03268540636 | X146: 0.04431841031 | Y146: 0.03287322112 | Z146: 0.05817571072 | AA146: 0.05817571072 | AB146: 0.04766513951 | AC146: 0.04175416555 | AD146: 0.07031341019 | AE146: 0.07031341019 | AF146: 0.08337415179 | AG146: 0.07105311858 | AH146: 0.005524337466 | AI146: 0.005524337466 | AJ146: 0.01054696405 | AK146: 0.005554598837 | AN146: 0.02377048134 | AO146: 0.008709189941 | AP146: 0.0493982032 | AQ146: 0.0493982032 | AR146: 0.1034019175 | AS146: 0.09368491053
A147: 7 | I147: 54220.08632 | J147: 54220.08632 | K147: 630466.12 | L147: 18141.83 | M147: 14853.83 | N147: 20378.29 | O147: 5188.05 | P147: 0 | Q147: 0 | R147: 41 | S147: 1.102184204 | T147: 1.032 | U147: 1.071886991 | V147: 0.02877526551 | W147: 0.02877526551 | X147: 0.04431841031 | Y147: 0.03287322112 | Z147: 0.02356007647 | AA147: 0.02356007647 | AB147: 0.04766513951 | AC147: 0.04175416555 | AD147: 0.03232257746 | AE147: 0.03232257746 | AF147: 0.08337415179 | AG147: 0.07105311858 | AH147: 0.00822891165 | AI147: 0.00822891165 | AJ147: 0.01054696405 | AK147: 0.005554598837 | AN147: 0.02377048134 | AO147: 0.008709189941 | AR147: 0.1034019175 | AS147: 0.09368491053
A148: 7 | I148: 47222.81844 | J148: 47222.81844 | K148: 549102.54 | L148: 16239.79 | M148: 10710.82 | N148: 24455.67 | O148: 3837.91 | P148: 2917.63 | Q148: 0 | R148: 42 | S148: 1.102184204 | T148: 1.032 | U148: 1.071886991 | V148: 0.02957515003 | W148: 0.02957515003 | X148: 0.04431841031 | Y148: 0.03287322112 | Z148: 0.01950604709 | AA148: 0.01950604709 | AB148: 0.04766513951 | AC148: 0.04175416555 | AD148: 0.04453752846 | AE148: 0.04453752846 | AF148: 0.08337415179 | AG148: 0.07105311858 | AH148: 0.006989423141 | AI148: 0.006989423141 | AJ148: 0.01054696405 | AK148: 0.005554598837 | AL148: 0.005313452019 | AM148: 0.005313452019 | AN148: 0.02377048134 | AO148: 0.008709189941 | AR148: 0.1034019175 | AS148: 0.09368491053
A149: 7 | I149: 21343.43958 | J149: 21343.43958 | K149: 248179.53 | L149: 49062.62 | M149: 14457.38 | N149: 31136.41 | O149: 768.36 | P149: 0 | Q149: 0 | R149: 24 | S149: 1.102184204 | T149: 1.032 | U149: 1.071886991 | V149: 0.1976900351 | X149: 0.04431841031 | Y149: 0.03287322112 | Z149: 0.05825371657 | AA149: 0.05825371657 | AB149: 0.04766513951 | AC149: 0.04175416555 | AD149: 0.125459219 | AE149: 0.125459219 | AF149: 0.08337415179 | AG149: 0.07105311858 | AH149: 0.003095984588 | AI149: 0.003095984588 | AJ149: 0.01054696405 | AK149: 0.005554598837 | AN149: 0.02377048134 | AO149: 0.008709189941 | AR149: 0.1034019175 | AS149: 0.09368491053
A150: 7 | I150: 20428.29036 | J150: 20428.29036 | K150: 237538.26 | L150: 51832.67 | M150: 14457.37 | N150: 31136.41 | O150: 607.26 | P150: 1069.2 | Q150: 0 | R150: 27 | S150: 1.102184204 | T150: 1.032 | U150: 1.071886991 | V150: 0.2182076689 | X150: 0.04431841031 | Y150: 0.03287322112 | Z150: 0.06086333208 | AA150: 0.06086333208 | AB150: 0.04766513951 | AC150: 0.04175416555 | AD150: 0.1310795575 | AE150: 0.1310795575 | AF150: 0.08337415179 | AG150: 0.07105311858 | AH150: 0.002556472376 | AI150: 0.002556472376 | AJ150: 0.01054696405 | AK150: 0.005554598837 | AL150: 0.004501169622 | AM150: 0.004501169622 | AN150: 0.02377048134 | AO150: 0.008709189941 | AR150: 0.1034019175 | AS150: 0.09368491053
A151: 7 | I151: 17325.00702 | J151: 17325.00702 | K151: 201453.57 | L151: 36756.93 | M151: 12699.89 | N151: 41608.8 | O151: 1723.4 | P151: 0 | Q151: 0 | R151: 17 | S151: 1.102184204 | T151: 1.032 | U151: 1.071886991 | V151: 0.1824585685 | X151: 0.04431841031 | Y151: 0.03287322112 | Z151: 0.06304127547 | AA151: 0.06304127547 | AB151: 0.04766513951 | AC151: 0.04175416555 | AD151: 0.2065428773 | AF151: 0.08337415179 | AG151: 0.07105311858 | AH151: 0.008554824816 | AI151: 0.008554824816 | AJ151: 0.01054696405 | AK151: 0.005554598837 | AN151: 0.02377048134 | AO151: 0.008709189941 | AR151: 0.1034019175 | AS151: 0.09368491053
A152: 7 | I152: 64509.83496 | J152: 64509.83496 | K152: 750114.36 | L152: 21340.94 | M152: 0 | N152: 80329.63 | O152: 9954.86 | P152: 66438.12 | Q152: 1606.88 | R152: 24 | S152: 1.102184204 | T152: 1.032 | U152: 1.071886991 | V152: 0.02845024857 | W152: 0.02845024857 | X152: 0.04431841031 | Y152: 0.03287322112 | AB152: 0.04766513951 | AC152: 0.04175416555 | AD152: 0.1070898443 | AE152: 0.1070898443 | AF152: 0.08337415179 | AG152: 0.07105311858 | AH152: 0.01327112309 | AI152: 0.01327112309 | AJ152: 0.01054696405 | AK152: 0.005554598837 | AL152: 0.08857065475 | AN152: 0.02377048134 | AO152: 0.008709189941 | AP152: 0.002142180027 | AQ152: 0.002142180027 | AR152: 0.1034019175 | AS152: 0.09368491053
A153: 7 | I153: 94098.98583 | J153: 94098.98583 | K153: 1129187.83 | L153: 45601.15 | M153: 10752.16 | N153: 27760.48 | O153: 927.71 | P153: 0 | Q153: 266940.06 | R153: 43 | S153: 1 | T153: 1 | U153: 1 | V153: 0.04038402539 | W153: 0.04038402539 | X153: 0.04431841031 | Y153: 0.03287322112 | Z153: 0.009522029652 | AA153: 0.009522029652 | AB153: 0.04766513951 | AC153: 0.04175416555 | AD153: 0.02458446616 | AE153: 0.02458446616 | AF153: 0.08337415179 | AG153: 0.07105311858 | AH153: 0.0008215727936 | AI153: 0.0008215727936 | AJ153: 0.01054696405 | AK153: 0.005554598837 | AN153: 0.02377048134 | AO153: 0.008709189941 | AP153: 0.2364000505 | AQ153: 0.2364000505 | AR153: 0.1034019175 | AS153: 0.09368491053
A154: 7 | I154: 85019.49167 | J154: 85019.49167 | K154: 1020233.9 | L154: 348374.24 | M154: 100969.85 | N154: 66687.08 | O154: 7390.861253 | P154: 109023.52 | Q154: 0 | R154: 80 | S154: 1 | T154: 1 | U154: 1 | V154: 0.3414650699 | X154: 0.04431841031 | Y154: 0.03287322112 | Z154: 0.09896735445 | AA154: 0.09896735445 | AB154: 0.04766513951 | AC154: 0.04175416555 | AD154: 0.06536450122 | AE154: 0.06536450122 | AF154: 0.08337415179 | AG154: 0.07105311858 | AH154: 0.007244281192 | AI154: 0.007244281192 | AJ154: 0.01054696405 | AK154: 0.005554598837 | AL154: 0.1068612992 | AN154: 0.02377048134 | AO154: 0.008709189941 | AR154: 0.1034019175 | AS154: 0.09368491053
A155: 7 | I155: 46357.32667 | J155: 46357.32667 | K155: 556287.92 | L155: 28743.85 | M155: 17879.12 | N155: 12759.94 | O155: 105859.39 | P155: 7058.06 | Q155: 31454.43 | R155: 62 | S155: 1 | T155: 1 | U155: 1 | V155: 0.05167081464 | W155: 0.05167081464 | X155: 0.04431841031 | Y155: 0.03287322112 | Z155: 0.03214004719 | AA155: 0.03214004719 | AB155: 0.04766513951 | AC155: 0.04175416555 | AD155: 0.0229376543 | AE155: 0.0229376543 | AF155: 0.08337415179 | AG155: 0.07105311858 | AH155: 0.1902960431 | AJ155: 0.01054696405 | AK155: 0.005554598837 | AL155: 0.01268778225 | AM155: 0.01268778225 | AN155: 0.02377048134 | AO155: 0.008709189941 | AP155: 0.05654343528 | AQ155: 0.05654343528 | AR155: 0.1034019175 | AS155: 0.09368491053
A156: 7 | I156: 53107.90583 | J156: 53107.90583 | K156: 637294.87 | L156: 33599.52 | M156: 7269.12 | N156: 0 | O156: 1168.96 | P156: 0 | Q156: 0 | R156: 52 | S156: 1 | T156: 1 | U156: 1 | V156: 0.05272209393 | W156: 0.05272209393 | X156: 0.04431841031 | Y156: 0.03287322112 | Z156: 0.01140621138 | AA156: 0.01140621138 | AB156: 0.04766513951 | AC156: 0.04175416555 | AF156: 0.08337415179 | AG156: 0.07105311858 | AH156: 0.001834252957 | AI156: 0.001834252957 | AJ156: 0.01054696405 | AK156: 0.005554598837 | AN156: 0.02377048134 | AO156: 0.008709189941 | AR156: 0.1034019175 | AS156: 0.09368491053
A157: 7 | I157: 37907.78903 | J157: 37907.78903 | K157: 454893.4684 | L157: 22184.49 | M157: 23449.78 | N157: 22388.65 | O157: 401.777529 | P157: 4704.16 | Q157: 16705.48 | R157: 25 | S157: 1 | T157: 1 | U157: 1 | V157: 0.04876853932 | W157: 0.04876853932 | X157: 0.04431841031 | Y157: 0.03287322112 | Z157: 0.05155004772 | AA157: 0.05155004772 | AB157: 0.04766513951 | AC157: 0.04175416555 | AD157: 0.0492173477 | AE157: 0.0492173477 | AF157: 0.08337415179 | AG157: 0.07105311858 | AH157: 0.0008832343327 | AI157: 0.0008832343327 | AJ157: 0.01054696405 | AK157: 0.005554598837 | AL157: 0.01034123444 | AM157: 0.01034123444 | AN157: 0.02377048134 | AO157: 0.008709189941 | AP157: 0.03672393904 | AQ157: 0.03672393904 | AR157: 0.1034019175 | AS157: 0.09368491053
